Workbook

Sheet Содержание
B2: № листа | C2: Имя листа | D2: Описание
B3: 1 | C3: Инструкция | D3: Описание функционала шаблона и рекомендации по работе
B4: 2 | C4: Слайд | D4: Резюме проекта для стандарта презентации
B5: 3 | C5: Результаты_1 | D5: Ключевые показатели эффективности проекта
B6: 4 | C6: Результаты_2 | D6: Налоговые поступления в бюджет (без мер и с мерами поддержки)
B7: 5 | C7: Контроль | D7: Панель управления финансовой моделью
B8: 6 | C8: Графики | D8: Ключевые графики по проекту
B9: 7 | C9: Вводные | D9: Основные допущения и вводные данные
B10: 8 | C10: Расчет | D10: Расчет основных показателей
B11: 9 | C11: Отчеты | D11: Отчетность по проекту (ОДДС, ОПиУ и Баланс)
B12: 10 | C12: Прогнозы | D12: Прогноз основных макроэкономических показателей
B13: 11 | C13: Формат | D13: Для добавления листов в формате модели

Sheet Инструкция
B1: Описание функционала шаблона и рекомендации по работе | E1: К содержанию
B2: Инструкция по работе с документом
B3: Пожалуйста, внимательно ознакомьтесь с инструкцией, если работаете с документом впервые
B5: Настоящий файл предназначен для расчета показателей эффективности инвестиционного проекта согласно основным требованиям, указанным в постановлении Правительства РФ № 1577 и Методике Минэкономразвития России,
B6: на которую ссылается постановление.
B8: Подготовка к работе с файлом
B9: Определенный функционал модели реализован с использованием макросов (скрипт, написанный на языке VBA, который запускается с помощью кнопки).
B10: Перед использованием документа убедитесь, что у вас разрешен запуск макросов.
B12: Описание работы каждого макроса приведено ниже.
B14: Структура документа
B15: Модель состоит из 10 основыных листов. При необходимости можно добавлять вспомогательные листы.
B16: Новые листы рекомендуется добавлять, копируя лист "Формат" (после можно будет нажать на кнопку "обновить содержание")
B17: Каждый лист состоит из нескольких блоков расчетов, объединенных одной тематикой. Например, вкладка «Вводные» разделена на блоки «Базис», «Индексы», «Строительство (реконструкция)» и т.д.
B18: Для удобной навигации между блоками можно использовать ctrl + стрелочки "вверх" или "вниз" в столбце А.
B20: В расчете используется выделение различными стилями тех ячеек, которые содержат различные типы данных:
B21: - вводные | E21: 2 | F21: ячейки, используемые для ввода данных вручную
B22: - ссылка с листа "Контроль" | E22: 2
B23: - расчет | E23: 2
B25: Краткое описание каждого из листов представлено на вкладке «Содержание»
B27: Описание ключевых листов
B28: На листе «Вводные» вносятся исходные данные и допущения для расчета
B30: На листе «Расчет» представлена калькуляция по основным блокам проекта:
B31: - инвестиции
B32: - операционная деятельность
B33: - оборотный капитал
B34: - финансирование
B35: - налоги
B36: - эффективность проекта, и т.д.
B38: На данной вкладке используются вводные параметры с листа "Вводные", дополнительных вводных не требуется
B40: На листе «Отчеты» выведены 3 формы отчетности (ОПиУ, Баланс и ОДДС)
B42: На листе «Контроль» реализована панель управления финансовой моделью, которая позволяет задавать различные сценарии по льготам, налоговым режимам, мерам поддержки, и прочее.
B43: На листе указаны основные сценарии проекта и выделен активный сценарий
B44: В ячейке "E5" указан номер активного сценария, переключение между активными сценариями осуществляется ручным вводом в ячейку номера сценария, либо через счетчик
B45: В ячейке "E6" указан номер сценария, который используется в качестве альтернативного к активному сценарию
B46: По умолчанию сценарий №1 является базовым и отражает реализацию проекта без мер поддержки, а сценарий №2 отражает реализацию проекта с целевыми мерами
B47: Настроить различные сценарии можно в столбцах справа; вводные задаются в специально выделенных ячейках
B48: После изменения в расчетах модели или параметрах сценариев необходимо:
B49: - выбрать в качестве основного сценария сценарий "Без мер", а в качестве альтернативного - сценарий "С мерами"
B50: - пересчитать таблицу чувствительности, нажав кнопку "Пересчет сценариев"
B52: По завершении работы с моделью необходимо заполнить листы "Слайд" и "Результаты-1" (только те ячейки, в которых нет формул)
B53: На листе "Слайд" необходимо заполнить блоки "профиль проекта", "преимущества реализации проекта" и прочие блоки, выделенные цветом | Q53: текст
B54: На листе "Результаты 1" необходимо заполнить блоки "Структура финансирования капитальных и иных затрат", "Сроки реализации" и прочие блоки, выделенные цветом | Q54: текст
B55: На листе "Результаты 2" необходимо заполнить данные (при наличии) по инвестициям в объекты инф-ры по проекту (строки 11-13) и в объекты инф-ры за периметром проекта (строки 15-17)
B57: Описание работы макросов
B58: Обновить содержание (лист "Содержание") - обновление листа "Содержание"
B59: Пересчитать сценарии (лист "Контроль") - пересчет таблицы чувствительности и заполнение вкладки "Результаты 2" в зависимости от выбранного альтернативного сценария
B60: Подобрать номер года (лист "Контроль") - определить оптимальный момент для начала возмещения затрат на инфраструктуру в рамках СЗПК (под оптимальностью понимается наибольший NPV) для сценария 2

Sheet Слайд
B1: Резюме проекта для стандарта презентации | E1: К содержанию
B2: Агентство инвестиционного развития | Z2: 1 | AC2: Проверка | AD2: =(Y8 >= Y9) * 1 -> 1
AC3: Сценарий | AD3: =(Контроль!E5 = 1) * 1 -> 1
B4: [Название проекта]
B5: Участвующий ФОИВ | G5: Местоположение реализации проекта | M5: Наименование инициатора | R5: Имя бенефициара | W5: Наименование национального проекта
B7: I. Бизнес профиль | J7: VI. Вклад в национальный проект | R7: IX. Финансовые показатели, млрд. руб.
B8: Описать цель проекта, рынок и название отрасли | J8: Указать, к какому национальному проекту относится данный проект и какой вклад он вносит (в денежном выражении, рабочих местах и т.д.) | R8: Общий бюджет | Y8: =Y10 + Y11 -> 68.07663766
R9: в т.ч . инвестиции в основной капитал | Y9: =БДДС[[#This Row],[Всего]] / 1000 -> 61.12248304
R10: Собственные средства | Y10: =Результаты_2!E19 / 1000 -> 27.23065507
R11: Заемные средства | Y11: =Результаты_2!E20 / 1000 -> 40.8459826
J13: VII. Преимущества реализации проекта | R13: X. Показатели эффективности | W13: Без мер | Y13: С мерами
R14: Доходность по проекту, % | W14: =Контроль!I25 -> 0.1603938282 | Y14: =Контроль!J25 -> 0.1914953411
R16: Среднеотраслевая доходность, %
R17: Доходность акционера по проекту, % | W17: =Контроль!I26 -> 0.2154357851 | Y17: =Контроль!J26 -> 0.2933736384
R18: Бюджетный эффект, млрд руб. * | W18: =Результаты_2!E29 / 1000 -> 115.7926381 | Y18: =Результаты_2!E43 / 1000 -> 109.7504802
B19: II. Рабочие места | G19: Кол-во мест
B20: Действующие рабочие места: | R20: Субъектовый бюджет, млрд. руб. | W20: =Результаты_2!E36 / 1000 -> 49.18018102 | Y20: =Результаты_2!E50 / 1000 -> 42.70696956
B21: Новые рабочие места: | R21: Чистый бюджетный эффект, млрд руб. ** | W21: =Результаты_2!E59 / 1000 -> 79.66463645
B22: в т. ч. завезённые | R22: Субъектовый бюджет, млрд. руб. | W22: =(Результаты_2!E50 - Результаты_2!E36) / 1000 -> -6.47321146
B23: в т. ч. Местные | R23: Окупаемость, лет | W23: =Контроль!I31 -> 10.19405588 | Y23: =Контроль!J31 -> 8.747609984
B24: Рабочие места на период строительства | R24: NPV проекта, млрд руб. | W24: =Контроль!I29 / 1000 -> 5.19269501 | Y24: =Контроль!J29 / 1000 -> 14.13982094
B26: III. Сроки реализации | G26: Годы | J26: VIII. Инфраструктура для проекта | O26: Сроки | P26: млрд руб. | R26: XI. Меры поддержки проекта, млрд руб. | W26: Федеральные | Y26: Региональные
B27: Капитальное строительство: | J27: Объект сопутствующей инфраструктуры | R27: Налоговые льготы | W27: =(Результаты_2!E31 + Результаты_2!E32 + Результаты_2!E34 - Результаты_2!E45 - Результаты_2!E46 - Результаты_2!E48) / 1000 -> 0 | Y27: =(Результаты_2!E37 + Результаты_2!E40 - Результаты_2!E51 - Результаты_2!E54) / 1000 -> 10.35269286
B28: Выход на прибыльность: | J28: Объект обеспечивающей инфораструктуры | R28: Субсидирование долга | W28: =Результаты_2!E27 / 1000 -> 11.02921624
B29: Выход на проектную мощность: | J29: Прочие объекты инфраструктуры проекта, которые попадают под определение сопутствующей или обеспечивающей согласно 69-ФЗ | R29: Возмещение инфраструктуры по СЗПК | W29: =Контроль!J40 / 1000 -> 13.07418051 | Y29: =Контроль!J41 / 1000 -> 5.982446975
R30: Иные меры поддержки
B31: IV. Опыт и компетенции
B32: ФИО, должность, роль в проекте, опыт успешной реализации схожих проектов / количество лет в проектах отрасли
J34: Итог: | P34: =SUM(P27:P33) -> 0 | R34: Итог: | W34: =SUM(W27:Z33) -> 40.43853658
B36: V. Базовые условия/необходимые решения | R36: XII. Мультипликативные эффекты
B37: Перечислить условия, необходимые для запуска проекта: Возврат затрат на инфраструктуру Стабилизация налогов Налоговые льготы и прочее | R37: Соотношение средств господдержки к собственным инвестициям в проект | Y37: =IFERROR(W34/Y10,"н/д") -> 1.48503723
R39: Соотношение средств господдержки к чистому бюджетному эффекту | Y39: =IFERROR(W34/W21,"н/д") -> 0.5076096294
B42: * Сумма всех чистых налоговых поступлений в бюджеты федерального, регионального и местного уровней
B43: ** Бюджетный эффект в сценарии "Без мер" за вычетом суммы всех налоговых и неналоговых мер гос. поддержки и выпадающих налогов, уплачиваемых в рамках проекта в сценарии "С мерами"

Sheet Результаты_1
B1: Ключевые показатели эффективности проекта | E1: К содержанию
C2: 1. Оценка коммерческой эффективности проекта
C4: Ключевые финансовые показатели
B6: Структура финансирования капитальных и иных затрат
C8: Затраты \ источники | H8: с НДС / без НДС | I8: Заемные средства | J8: Собственные средства | K8: Итого
C9: СМР и ПИР | D9: в валюте (указать)* | H9: млн руб. | K9: =SUM(I9:J9) -> 0
C10: Российское оборудование | D10: в валюте (указать) | H10: млн руб. | K10: 0
C11: Импортное оборудование (импорт пересчитан в руб.) | D11: в валюте (указать) | H11: млн руб. | K11: 0
C12: НИОКР | D12: в валюте (указать) | H12: млн руб. | K12: 0
C13: Оборотный капитал | D13: в валюте (указать) | H13: млн руб. | K13: 0
C14: Иное | D14: в валюте (указать) | H14: млн руб. | K14: 0
C15: Финансирование итого | D15: в валюте (указать) | H15: млн руб. | I15: =SUM(I9:I14) -> 0 | J15: =SUM(J9:J14) -> 0 | K15: =SUM(K9:K14) -> 0
C16: Итого структура финансирования | H16: % | I16: =IFERROR(I15/$K$15,"н/д") -> н/д | J16: =IFERROR(J15/$K$15,"н/д") -> н/д
B17: *возможно добавление нескольких столбцов при наличии нескольких валют
B19: Сроки реализации
C21: Инвестиционная фаза | D21: ОТ | F21: ДО
C22: Период финансирования ОС (выборка) | D22: ОТ | F22: ДО
C23: Год выхода на прибыльность | D23: Год
C24: Год выхода на полную мощность | D24: Год
C26: Периоды строительства инфраструктуры
C27: Инфраструктура в модели проекта
C28: Указать наименование объекта | D28: ОТ | F28: ДО
C29: Указать наименование объекта | D29: ОТ | F29: ДО
C30: Указать наименование объекта | D30: ОТ | F30: ДО
C31: Инфраструктура за периметром проекта
C32: Указать наименование объекта | D32: ОТ | F32: ДО
C33: Указать наименование объекта | D33: ОТ | F33: ДО
C34: Указать наименование объекта | D34: ОТ | F34: ДО
B37: Результаты реализации проекта
F39: База расчета
F40: Для Проекта | G40: Для акционеров
C41: NPV | D41: млн руб. | F41: =Расчет!E811 -> 5192.69501 | G41: =Расчет!E825 -> 3326.69472
C42: в т.ч. Терминальная стоимость | D42: млн руб. | F42: - | G42: -
C43: IRR | D43: % | F43: =Расчет!E814 -> 0.1603938282 | G43: =Расчет!E828 -> 0.2154357851
C45: Период окупаемости | D45: лет | F45: =Расчет!E815 -> 10.19405588 | G45: =Расчет!E829 -> 9.386389963
C46: Дисконтированный период окупаемости | D46: лет | F46: =Расчет!E816 -> 17.33835667 | G46: =Расчет!E830 -> 16.42225345
C47: Прогнозный период финансовой модели | D47: лет | F47: =Вводные!E24 -> 20
C48: Дисконтированный бюджетный эффект (прогнозный период) | D48: млн руб. | F48: =F154 -> 52269.34958
C51: Показатели операционной стадии:
C52: DSCR min | D52: =MIN(F109:Y109) -> 1.169326247
C53: DSCR срзнач | D53: =IFERROR(AVERAGE(F109:Y109), "н/д") -> 2.474800453
C54: EBITDA рентабельность max | D54: =MAX(F101:Y101) -> 0.2763740327
C55: EBITDA рентабельность срзнач | D55: =IFERROR(AVERAGE(F101:Y101), "н/д") -> 0.2665191935
C56: D/EBITDA max | D56: =MAX(F110:Y110) -> 2.58300833
C57: D/EBITDA срзнач | D57: =IFERROR(AVERAGE(F110:Y110), "н/д") -> 0.8614037212
C58: WACC срзнач | D58: =Вводные!E198 -> 0.1430520328
C59: Стоимость акционерного капитала (Cost of equity) | D59: =Вводные!E191 -> 0.1877723581
C60: Максимальная загрузка (мощность), %
B63: Финансовые результаты
F64: =YEAR(Вводные!$E$11) -> 2021 | G64: =F64+1 -> 2022 | H64: =G64+1 -> 2023 | I64: 2024 | J64: =I64+1 -> 2025 | K64: =J64+1 -> 2026 | L64: 2027 | M64: 2028 | N64: 2029 | O64: 2030 | P64: 2031 | Q64: 2032 | R64: 2033 | S64: 2034 | T64: 2035 | U64: 2036 | V64: 2037 | W64: 2038 | X64: 2039 | Y64: 2040 | Z64: Итого
C65: Показатели операционной деятельности
C66: Объемы реализации товара / услуги | D66: млн тонн | F66: =Вводные!$E$137 + Вводные!$E$138 -> 100 | G66: =Вводные!$E$137 + Вводные!$E$138 -> 100 | H66: =Вводные!$E$137 + Вводные!$E$138 -> 100 | I66: =Вводные!$E$137 + Вводные!$E$138 -> 100 | J66: =Вводные!$E$137 + Вводные!$E$138 -> 100 | K66: =Вводные!$E$137 + Вводные!$E$138 -> 100 | L66: =Вводные!$E$137 + Вводные!$E$138 -> 100 | M66: =Вводные!$E$137 + Вводные!$E$138 -> 100 | N66: =Вводные!$E$137 + Вводные!$E$138 -> 100 | O66: =Вводные!$E$137 + Вводные!$E$138 -> 100 | P66: =Вводные!$E$137 + Вводные!$E$138 -> 100 | Q66: =Вводные!$E$137 + Вводные!$E$138 -> 100 | R66: =Вводные!$E$137 + Вводные!$E$138 -> 100 | S66: =Вводные!$E$137 + Вводные!$E$138 -> 100 | T66: =Вводные!$E$137 + Вводные!$E$138 -> 100 | U66: =Вводные!$E$137 + Вводные!$E$138 -> 100 | V66: =Вводные!$E$137 + Вводные!$E$138 -> 100 | W66: =Вводные!$E$137 + Вводные!$E$138 -> 100 | X66: =Вводные!$E$137 + Вводные!$E$138 -> 100 | Y66: =Вводные!$E$137 + Вводные!$E$138 -> 100 | Z66: =SUM(F66:Y66) -> 2000
C67: Цена реализации товара / услуги | D67: руб/тонн | F67: =(Вводные!$E$141 * Вводные!H$32 * Вводные!$E$137 + Вводные!$E$142 * Вводные!H$32 * Вводные!$E$138) / (Вводные!$E$137 + Вводные!$E$138) -> 456.72 | G67: =(Вводные!$E$141 * Вводные!I$32 * Вводные!$E$137 + Вводные!$E$142 * Вводные!I$32 * Вводные!$E$138) / (Вводные!$E$137 + Вводные!$E$138) -> 474.9888 | H67: =(Вводные!$E$141 * Вводные!J$32 * Вводные!$E$137 + Вводные!$E$142 * Вводные!J$32 * Вводные!$E$138) / (Вводные!$E$137 + Вводные!$E$138) -> 493.988352 | I67: =(Вводные!$E$141 * Вводные!K$32 * Вводные!$E$137 + Вводные!$E$142 * Вводные!K$32 * Вводные!$E$138) / (Вводные!$E$137 + Вводные!$E$138) -> 513.7478861 | J67: =(Вводные!$E$141 * Вводные!L$32 * Вводные!$E$137 + Вводные!$E$142 * Вводные!L$32 * Вводные!$E$138) / (Вводные!$E$137 + Вводные!$E$138) -> 534.2978015 | K67: =(Вводные!$E$141 * Вводные!M$32 * Вводные!$E$137 + Вводные!$E$142 * Вводные!M$32 * Вводные!$E$138) / (Вводные!$E$137 + Вводные!$E$138) -> 555.6697136 | L67: =(Вводные!$E$141 * Вводные!N$32 * Вводные!$E$137 + Вводные!$E$142 * Вводные!N$32 * Вводные!$E$138) / (Вводные!$E$137 + Вводные!$E$138) -> 577.8965021 | M67: =(Вводные!$E$141 * Вводные!O$32 * Вводные!$E$137 + Вводные!$E$142 * Вводные!O$32 * Вводные!$E$138) / (Вводные!$E$137 + Вводные!$E$138) -> 601.0123622 | N67: =(Вводные!$E$141 * Вводные!P$32 * Вводные!$E$137 + Вводные!$E$142 * Вводные!P$32 * Вводные!$E$138) / (Вводные!$E$137 + Вводные!$E$138) -> 625.0528567 | O67: =(Вводные!$E$141 * Вводные!Q$32 * Вводные!$E$137 + Вводные!$E$142 * Вводные!Q$32 * Вводные!$E$138) / (Вводные!$E$137 + Вводные!$E$138) -> 650.054971 | P67: =(Вводные!$E$141 * Вводные!R$32 * Вводные!$E$137 + Вводные!$E$142 * Вводные!R$32 * Вводные!$E$138) / (Вводные!$E$137 + Вводные!$E$138) -> 676.0571698 | Q67: =(Вводные!$E$141 * Вводные!S$32 * Вводные!$E$137 + Вводные!$E$142 * Вводные!S$32 * Вводные!$E$138) / (Вводные!$E$137 + Вводные!$E$138) -> 703.0994566 | R67: =(Вводные!$E$141 * Вводные!T$32 * Вводные!$E$137 + Вводные!$E$142 * Вводные!T$32 * Вводные!$E$138) / (Вводные!$E$137 + Вводные!$E$138) -> 731.2234349 | S67: =(Вводные!$E$141 * Вводные!U$32 * Вводные!$E$137 + Вводные!$E$142 * Вводные!U$32 * Вводные!$E$138) / (Вводные!$E$137 + Вводные!$E$138) -> 760.4723723 | T67: =(Вводные!$E$141 * Вводные!V$32 * Вводные!$E$137 + Вводные!$E$142 * Вводные!V$32 * Вводные!$E$138) / (Вводные!$E$137 + Вводные!$E$138) -> 790.8912671 | U67: =(Вводные!$E$141 * Вводные!W$32 * Вводные!$E$137 + Вводные!$E$142 * Вводные!W$32 * Вводные!$E$138) / (Вводные!$E$137 + Вводные!$E$138) -> 822.5269178 | V67: =(Вводные!$E$141 * Вводные!X$32 * Вводные!$E$137 + Вводные!$E$142 * Вводные!X$32 * Вводные!$E$138) / (Вводные!$E$137 + Вводные!$E$138) -> 855.4279945 | W67: =(Вводные!$E$141 * Вводные!Y$32 * Вводные!$E$137 + Вводные!$E$142 * Вводные!Y$32 * Вводные!$E$138) / (Вводные!$E$137 + Вводные!$E$138) -> 889.6451143 | X67: =(Вводные!$E$141 * Вводные!Z$32 * Вводные!$E$137 + Вводные!$E$142 * Вводные!Z$32 * Вводные!$E$138) / (Вводные!$E$137 + Вводные!$E$138) -> 925.2309189 | Y67: =(Вводные!$E$141 * Вводные!AA$32 * Вводные!$E$137 + Вводные!$E$142 * Вводные!AA$32 * Вводные!$E$138) / (Вводные!$E$137 + Вводные!$E$138) -> 962.2401557
C69: Показатели прибыли и затрат
C70: Выручка | D70: млн руб. | F70: =Отчеты!H41 -> 0 | G70: =Отчеты!I41 -> 0 | H70: =Отчеты!J41 -> 0 | I70: =Отчеты!K41 -> 0 | J70: =Отчеты!L41 -> 0 | K70: =Отчеты!M41 -> 55566.97136 | L70: =Отчеты!N41 -> 57789.65021 | M70: =Отчеты!O41 -> 60101.23622 | N70: =Отчеты!P41 -> 62505.28567 | O70: =Отчеты!Q41 -> 65005.4971 | P70: =Отчеты!R41 -> 67605.71698 | Q70: =Отчеты!S41 -> 70309.94566 | R70: =Отчеты!T41 -> 73122.34349 | S70: =Отчеты!U41 -> 76047.23723 | T70: =Отчеты!V41 -> 79089.12671 | U70: =Отчеты!W41 -> 82252.69178 | V70: =Отчеты!X41 -> 85542.79945 | W70: =Отчеты!Y41 -> 88964.51143 | X70: =Отчеты!Z41 -> 92523.09189 | Y70: =Отчеты!AA41 -> 96224.01557 | Z70: =SUM(F70:Y70) -> 1112650.121
C71: Переменные затраты | D71: млн руб. | F71: =Отчеты!H42 -> 0 | G71: =Отчеты!I42 -> 0 | H71: =Отчеты!J42 -> 0 | I71: =Отчеты!K42 -> 0 | J71: =Отчеты!L42 -> 0 | K71: =Отчеты!M42 -> -39149.45709 | L71: =Отчеты!N42 -> -40715.43538 | M71: =Отчеты!O42 -> -42344.05279 | N71: =Отчеты!P42 -> -44037.8149 | O71: =Отчеты!Q42 -> -45799.3275 | P71: =Отчеты!R42 -> -47631.3006 | Q71: =Отчеты!S42 -> -49536.55262 | R71: =Отчеты!T42 -> -51518.01473 | S71: =Отчеты!U42 -> -53578.73532 | T71: =Отчеты!V42 -> -55721.88473 | U71: =Отчеты!W42 -> -57950.76012 | V71: =Отчеты!X42 -> -60268.79053 | W71: =Отчеты!Y42 -> -62679.54215 | X71: =Отчеты!Z42 -> -65186.72383 | Y71: =Отчеты!AA42 -> -67794.19279 | Z71: -783912.5851
C72: Валовая прибыль | D72: млн руб. | F72: =Отчеты!H43 -> 0 | G72: =Отчеты!I43 -> 0 | H72: =Отчеты!J43 -> 0 | I72: =Отчеты!K43 -> 0 | J72: =Отчеты!L43 -> 0 | K72: =Отчеты!M43 -> 16417.51426 | L72: =Отчеты!N43 -> 17074.21484 | M72: =Отчеты!O43 -> 17757.18343 | N72: =Отчеты!P43 -> 18467.47077 | O72: =Отчеты!Q43 -> 19206.1696 | P72: =Отчеты!R43 -> 19974.41638 | Q72: =Отчеты!S43 -> 20773.39304 | R72: =Отчеты!T43 -> 21604.32876 | S72: =Отчеты!U43 -> 22468.50191 | T72: =Отчеты!V43 -> 23367.24198 | U72: =Отчеты!W43 -> 24301.93166 | V72: =Отчеты!X43 -> 25274.00893 | W72: =Отчеты!Y43 -> 26284.96929 | X72: =Отчеты!Z43 -> 27336.36806 | Y72: =Отчеты!AA43 -> 28429.82278 | Z72: 328737.5357
C73: Постоянные производственные затраты | D73: млн руб. | F73: =Отчеты!H45 -> 0 | G73: =Отчеты!I45 -> 0 | H73: =Отчеты!J45 -> 0 | I73: =Отчеты!K45 -> 0 | J73: =Отчеты!L45 -> 0 | K73: =Отчеты!M45 -> -378.8657138 | L73: =Отчеты!N45 -> -394.0203424 | M73: =Отчеты!O45 -> -409.7811561 | N73: =Отчеты!P45 -> -426.1724023 | O73: =Отчеты!Q45 -> -443.2192984 | P73: =Отчеты!R45 -> -460.9480703 | Q73: =Отчеты!S45 -> -479.3859931 | R73: =Отчеты!T45 -> -498.5614329 | S73: =Отчеты!U45 -> -518.5038902 | T73: =Отчеты!V45 -> -539.2440458 | U73: =Отчеты!W45 -> -560.8138076 | V73: =Отчеты!X45 -> -583.2463599 | W73: =Отчеты!Y45 -> -606.5762143 | X73: =Отчеты!Z45 -> -630.8392629 | Y73: =Отчеты!AA45 -> -656.0728334 | Z73: -7586.250823
C74: Прочие непроизводственные затраты | D74: млн руб. | F74: =Отчеты!H46 -> 0 | G74: =Отчеты!I46 -> 0 | H74: =Отчеты!J46 -> 0 | I74: =Отчеты!K46 -> 0 | J74: =Отчеты!L46 -> 0 | K74: =Отчеты!M46 -> -505.1542851 | L74: =Отчеты!N46 -> -525.3604565 | M74: =Отчеты!O46 -> -546.3748747 | N74: =Отчеты!P46 -> -568.2298697 | O74: =Отчеты!Q46 -> -590.9590645 | P74: =Отчеты!R46 -> -614.5974271 | Q74: =Отчеты!S46 -> -639.1813242 | R74: =Отчеты!T46 -> -664.7485771 | S74: =Отчеты!U46 -> -691.3385202 | T74: =Отчеты!V46 -> -718.992061 | U74: =Отчеты!W46 -> -747.7517435 | V74: =Отчеты!X46 -> -777.6618132 | W74: =Отчеты!Y46 -> -808.7682858 | X74: =Отчеты!Z46 -> -841.1190172 | Y74: =Отчеты!AA46 -> -874.7637779 | Z74: -10115.0011
C75: Налог на имущество | D75: млн руб. | F75: =Отчеты!H48 -> 0 | G75: =Отчеты!I48 -> 0 | H75: =Отчеты!J48 -> 0 | I75: =Отчеты!K48 -> 0 | J75: =Отчеты!L48 -> 0 | K75: =Отчеты!M48 -> -690.1795242 | L75: =Отчеты!N48 -> -1331.060511 | M75: =Отчеты!O48 -> -1232.463436 | N75: =Отчеты!P48 -> -1133.866361 | O75: =Отчеты!Q48 -> -1035.269286 | P75: =Отчеты!R48 -> -936.6722114 | Q75: =Отчеты!S48 -> -838.0751365 | R75: =Отчеты!T48 -> -739.4780616 | S75: =Отчеты!U48 -> -640.8809867 | T75: =Отчеты!V48 -> -542.2839118 | U75: =Отчеты!W48 -> -443.686837 | V75: =Отчеты!X48 -> -345.0897621 | W75: =Отчеты!Y48 -> -246.4926872 | X75: =Отчеты!Z48 -> -147.8956123 | Y75: =Отчеты!AA48 -> -49.29853744 | Z75: -10352.69286
C76: EBITDA | D76: млн руб. | F76: =Отчеты!H49 -> 0 | G76: =Отчеты!I49 -> 0 | H76: =Отчеты!J49 -> 0 | I76: =Отчеты!K49 -> 0 | J76: =Отчеты!L49 -> 0 | K76: =Отчеты!M49 -> 14695.55711 | L76: =Отчеты!N49 -> 14670.10559 | M76: =Отчеты!O49 -> 15408.74931 | N76: =Отчеты!P49 -> 16172.9949 | O76: =Отчеты!Q49 -> 16963.86642 | P76: =Отчеты!R49 -> 17782.42892 | Q76: =Отчеты!S49 -> 18629.79004 | R76: =Отчеты!T49 -> 19507.10173 | S76: =Отчеты!U49 -> 20415.56199 | T76: =Отчеты!V49 -> 21356.41679 | U76: =Отчеты!W49 -> 22330.96189 | V76: =Отчеты!X49 -> 23340.54491 | W76: =Отчеты!Y49 -> 24386.56738 | X76: =Отчеты!Z49 -> 25470.48685 | Y76: =Отчеты!AA49 -> 26593.81923 | Z76: 297724.9531
C77: Амортизация | D77: млн руб. | F77: =Отчеты!H51 -> 0 | G77: =Отчеты!I51 -> 0 | H77: =Отчеты!J51 -> 0 | I77: =Отчеты!K51 -> 0 | J77: =Отчеты!L51 -> 0 | K77: =Отчеты!M51 -> -4481.685222 | L77: =Отчеты!N51 -> -4481.685222 | M77: =Отчеты!O51 -> -4481.685222 | N77: =Отчеты!P51 -> -4481.685222 | O77: =Отчеты!Q51 -> -4481.685222 | P77: =Отчеты!R51 -> -4481.685222 | Q77: =Отчеты!S51 -> -4481.685222 | R77: =Отчеты!T51 -> -4481.685222 | S77: =Отчеты!U51 -> -4481.685222 | T77: =Отчеты!V51 -> -4481.685222 | U77: =Отчеты!W51 -> -4481.685222 | V77: =Отчеты!X51 -> -4481.685222 | W77: =Отчеты!Y51 -> -4481.685222 | X77: =Отчеты!Z51 -> -4481.685222 | Y77: =Отчеты!AA51 -> -4481.685222 | Z77: -67225.27833
C78: Операционная прибыль (до субсидий) | D78: млн руб. | F78: =Отчеты!H52 -> 0 | G78: =Отчеты!I52 -> 0 | H78: =Отчеты!J52 -> 0 | I78: =Отчеты!K52 -> 0 | J78: =Отчеты!L52 -> 0 | K78: =Отчеты!M52 -> 10213.87189 | L78: =Отчеты!N52 -> 10188.42037 | M78: =Отчеты!O52 -> 10927.06409 | N78: =Отчеты!P52 -> 11691.30967 | O78: =Отчеты!Q52 -> 12482.1812 | P78: =Отчеты!R52 -> 13300.7437 | Q78: =Отчеты!S52 -> 14148.10482 | R78: =Отчеты!T52 -> 15025.41651 | S78: =Отчеты!U52 -> 15933.87677 | T78: =Отчеты!V52 -> 16874.73157 | U78: =Отчеты!W52 -> 17849.27667 | V78: =Отчеты!X52 -> 18858.85969 | W78: =Отчеты!Y52 -> 19904.88215 | X78: =Отчеты!Z52 -> 20988.80163 | Y78: =Отчеты!AA52 -> 22112.13401 | Z78: 230499.6747
C79: Субсидии | F79: =Отчеты!H54 -> 0 | G79: =Отчеты!I54 -> 0 | H79: =Отчеты!J54 -> 0 | I79: =Отчеты!K54 -> 0 | J79: =Отчеты!L54 -> 0 | K79: =Отчеты!M54 -> 0 | L79: =Отчеты!N54 -> 0 | M79: =Отчеты!O54 -> 0 | N79: =Отчеты!P54 -> 0 | O79: =Отчеты!Q54 -> 0 | P79: =Отчеты!R54 -> 0 | Q79: =Отчеты!S54 -> 0 | R79: =Отчеты!T54 -> 0 | S79: =Отчеты!U54 -> 0 | T79: =Отчеты!V54 -> 0 | U79: =Отчеты!W54 -> 0 | V79: =Отчеты!X54 -> 0 | W79: =Отчеты!Y54 -> 0 | X79: =Отчеты!Z54 -> 0 | Y79: =Отчеты!AA54 -> 0
C80: Операционная прибыль (после субсидий) | D80: млн руб. | F80: =Отчеты!H56 -> 0 | G80: =Отчеты!I56 -> 0 | H80: =Отчеты!J56 -> 0 | I80: =Отчеты!K56 -> 0 | J80: =Отчеты!L56 -> 0 | K80: =Отчеты!M56 -> 10213.87189 | L80: =Отчеты!N56 -> 10188.42037 | M80: =Отчеты!O56 -> 10927.06409 | N80: =Отчеты!P56 -> 11691.30967 | O80: =Отчеты!Q56 -> 12482.1812 | P80: =Отчеты!R56 -> 13300.7437 | Q80: =Отчеты!S56 -> 14148.10482 | R80: =Отчеты!T56 -> 15025.41651 | S80: =Отчеты!U56 -> 15933.87677 | T80: =Отчеты!V56 -> 16874.73157 | U80: =Отчеты!W56 -> 17849.27667 | V80: =Отчеты!X56 -> 18858.85969 | W80: =Отчеты!Y56 -> 19904.88215 | X80: =Отчеты!Z56 -> 20988.80163 | Y80: =Отчеты!AA56 -> 22112.13401 | Z80: 230499.6747
C81: Чистая прибыль | D81: млн руб. | F81: =Отчеты!H63 -> 0 | G81: =Отчеты!I63 -> 0 | H81: =Отчеты!J63 -> 0 | I81: =Отчеты!K63 -> 0 | J81: =Отчеты!L63 -> 0 | K81: =Отчеты!M63 -> 5848.65726 | L81: =Отчеты!N63 -> 6001.530213 | M81: =Отчеты!O63 -> 6778.67192 | N81: =Отчеты!P63 -> 7590.262125 | O81: =Отчеты!Q63 -> 8438.167613 | P81: =Отчеты!R63 -> 9324.366503 | Q81: =Отчеты!S63 -> 10250.95545 | R81: =Отчеты!T63 -> 11220.15736 | S81: =Отчеты!U63 -> 12234.32957 | T81: =Отчеты!V63 -> 13295.97271 | U81: =Отчеты!W63 -> 14279.42133 | V81: =Отчеты!X63 -> 15087.08775 | W81: =Отчеты!Y63 -> 16004.73787 | X81: =Отчеты!Z63 -> 17000.87509 | Y81: =Отчеты!AA63 -> 18027.96615 | Z81: 171383.1589
C83: Балансовые показатели
C84: Активы итого | D84: млн руб. | F84: =Отчеты!H80 -> 3285.969514 | G84: =Отчеты!I80 -> 14112.46218 | H84: =Отчеты!J80 -> 27836.36229 | I84: =Отчеты!K80 -> 48590.25099 | J84: =Отчеты!L80 -> 68076.63766 | K84: =Отчеты!M80 -> 76100.46752 | L84: =Отчеты!N80 -> 72153.05727 | M84: =Отчеты!O80 -> 68187.54591 | N84: =Отчеты!P80 -> 64323.20462 | O84: =Отчеты!Q80 -> 60442.50608 | P84: =Отчеты!R80 -> 56585.84702 | Q84: =Отчеты!S80 -> 52708.0122 | R84: =Отчеты!T80 -> 48948.53206 | S84: =Отчеты!U80 -> 45169.91626 | T84: =Отчеты!V80 -> 41419.42324 | U84: =Отчеты!W80 -> 37644.15758 | V84: =Отчеты!X80 -> 36533.35461 | W84: =Отчеты!Y80 -> 36905.46259 | X84: =Отчеты!Z80 -> 37292.45489 | Y84: =Отчеты!AA80 -> 5.456968211e-11
C85: Долгосрочные кредиты | D85: млн руб. | F85: =Отчеты!H86 -> 1971.581708 | G85: =Отчеты!I86 -> 8467.47731 | H85: =Отчеты!J86 -> 16701.81738 | I85: =Отчеты!K86 -> 29154.15059 | J85: =Отчеты!L86 -> 40845.9826 | K85: =Отчеты!M86 -> 37958.74644 | L85: =Отчеты!N86 -> 34854.96756 | M85: =Отчеты!O86 -> 31518.40527 | N85: =Отчеты!P86 -> 27931.60081 | O85: =Отчеты!Q86 -> 24075.78602 | P85: =Отчеты!R86 -> 19930.78511 | Q85: =Отчеты!S86 -> 15474.90914 | R85: =Отчеты!T86 -> 10684.84247 | S85: =Отчеты!U86 -> 5535.520797 | T85: =Отчеты!V86 -> 0 | U85: =Отчеты!W86 -> 0 | V85: =Отчеты!X86 -> 0 | W85: =Отчеты!Y86 -> 0 | X85: =Отчеты!Z86 -> 0 | Y85: =Отчеты!AA86 -> 0
C86: Акционерный капитал | D86: млн руб. | F86: =Отчеты!H90 -> 1314.387806 | G86: =Отчеты!I90 -> 5644.984874 | H86: =Отчеты!J90 -> 11134.54492 | I86: =Отчеты!K90 -> 19436.1004 | J86: =Отчеты!L90 -> 27230.65507 | K86: =Отчеты!M90 -> 32098.86484 | L86: =Отчеты!N90 -> 31013.51922 | M86: =Отчеты!O90 -> 30151.04512 | N86: =Отчеты!P90 -> 29594.21237 | O86: =Отчеты!Q90 -> 29297.43297 | P86: =Отчеты!R90 -> 29303.00333 | Q86: =Отчеты!S90 -> 29607.85323 | R86: =Отчеты!T90 -> 30311.70304 | S86: =Отчеты!U90 -> 31364.32944 | T86: =Отчеты!V90 -> 32818.55457 | U86: =Отчеты!W90 -> 28723.6938 | V86: =Отчеты!X90 -> 27230.65507 | W86: =Отчеты!Y90 -> 27230.65507 | X86: =Отчеты!Z90 -> 27230.65507 | Y86: =Отчеты!AA90 -> 0
C88: Финансирование
C89: Участие государства в создании инфраструктурных условий | D89: млн руб. | Z89: =SUM(F89:Y89) -> 0
C90: Компенсация части капитальных затрат на реализацию проекта | D90: млн руб. | Z90: 0
C91: Собственный капитал | D91: млн руб. | F91: =Отчеты!H29 -> 1314.387806 | G91: =Отчеты!I29 -> 4330.597068 | H91: =Отчеты!J29 -> 5489.560044 | I91: =Отчеты!K29 -> 8301.555477 | J91: =Отчеты!L29 -> 7794.554671 | K91: =Отчеты!M29 -> 0 | L91: =Отчеты!N29 -> 0 | M91: =Отчеты!O29 -> 0 | N91: =Отчеты!P29 -> 0 | O91: =Отчеты!Q29 -> 0 | P91: =Отчеты!R29 -> 0 | Q91: =Отчеты!S29 -> 0 | R91: =Отчеты!T29 -> 0 | S91: =Отчеты!U29 -> 0 | T91: =Отчеты!V29 -> 0 | U91: =Отчеты!W29 -> 0 | V91: =Отчеты!X29 -> 0 | W91: =Отчеты!Y29 -> 0 | X91: =Отчеты!Z29 -> 0 | Y91: =Отчеты!AA29 -> 0 | Z91: =SUM(F91:Y91) -> 27230.65507
C92: Привлечение кредитов | D92: млн руб. | F92: =Отчеты!H25 + Отчеты!H26 + Отчеты!H27 -> 1971.581708 | G92: =Отчеты!I25 + Отчеты!I26 + Отчеты!I27 -> 6495.895602 | H92: =Отчеты!J25 + Отчеты!J26 + Отчеты!J27 -> 8234.340067 | I92: =Отчеты!K25 + Отчеты!K26 + Отчеты!K27 -> 12452.33322 | J92: =Отчеты!L25 + Отчеты!L26 + Отчеты!L27 -> 11691.83201 | K92: =Отчеты!M25 + Отчеты!M26 + Отчеты!M27 -> 0 | L92: =Отчеты!N25 + Отчеты!N26 + Отчеты!N27 -> 0 | M92: =Отчеты!O25 + Отчеты!O26 + Отчеты!O27 -> 0 | N92: =Отчеты!P25 + Отчеты!P26 + Отчеты!P27 -> 0 | O92: =Отчеты!Q25 + Отчеты!Q26 + Отчеты!Q27 -> 0 | P92: =Отчеты!R25 + Отчеты!R26 + Отчеты!R27 -> 0 | Q92: =Отчеты!S25 + Отчеты!S26 + Отчеты!S27 -> 0 | R92: =Отчеты!T25 + Отчеты!T26 + Отчеты!T27 -> 0 | S92: =Отчеты!U25 + Отчеты!U26 + Отчеты!U27 -> 0 | T92: =Отчеты!V25 + Отчеты!V26 + Отчеты!V27 -> 0 | U92: =Отчеты!W25 + Отчеты!W26 + Отчеты!W27 -> 0 | V92: =Отчеты!X25 + Отчеты!X26 + Отчеты!X27 -> 0 | W92: =Отчеты!Y25 + Отчеты!Y26 + Отчеты!Y27 -> 0 | X92: =Отчеты!Z25 + Отчеты!Z26 + Отчеты!Z27 -> 0 | Y92: =Отчеты!AA25 + Отчеты!AA26 + Отчеты!AA27 -> 0 | Z92: 40845.9826
C93: Выплата кредитов | D93: млн руб. | F93: =Отчеты!H28 -> 0 | G93: =Отчеты!I28 -> 0 | H93: =Отчеты!J28 -> 0 | I93: =Отчеты!K28 -> 0 | J93: =Отчеты!L28 -> 0 | K93: =Отчеты!M28 -> -2887.236162 | L93: =Отчеты!N28 -> -3103.778874 | M93: =Отчеты!O28 -> -3336.562289 | N93: =Отчеты!P28 -> -3586.804461 | O93: =Отчеты!Q28 -> -3855.814796 | P93: =Отчеты!R28 -> -4145.000905 | Q93: =Отчеты!S28 -> -4455.875973 | R93: =Отчеты!T28 -> -4790.066671 | S93: =Отчеты!U28 -> -5149.321671 | T93: =Отчеты!V28 -> -5535.520797 | U93: =Отчеты!W28 -> 0 | V93: =Отчеты!X28 -> 0 | W93: =Отчеты!Y28 -> 0 | X93: =Отчеты!Z28 -> 0 | Y93: =Отчеты!AA28 -> 0 | Z93: -40845.9826
C94: Процентные и комиссионные выплаты | D94: млн руб. | F94: =Отчеты!H13 -> 0 | G94: =Отчеты!I13 -> 0 | H94: =Отчеты!J13 -> 0 | I94: =Отчеты!K13 -> 0 | J94: =Отчеты!L13 -> 0 | K94: =Отчеты!M13 -> -2903.050317 | L94: =Отчеты!N13 -> -2686.507605 | M94: =Отчеты!O13 -> -2453.724189 | N94: =Отчеты!P13 -> -2203.482017 | O94: =Отчеты!Q13 -> -1934.471683 | P94: =Отчеты!R13 -> -1645.285573 | Q94: =Отчеты!S13 -> -1334.410505 | R94: =Отчеты!T13 -> -1000.219807 | S94: =Отчеты!U13 -> -640.964807 | T94: =Отчеты!V13 -> -254.7656817 | U94: =Отчеты!W13 -> 0 | V94: =Отчеты!X13 -> 0 | W94: =Отчеты!Y13 -> 0 | X94: =Отчеты!Z13 -> 0 | Y94: =Отчеты!AA13 -> 0 | Z94: -17056.88219
B97: Ключевые показатели эффективности
F98: =YEAR(Вводные!$E$11) -> 2021 | G98: =F98+1 -> 2022 | H98: 2023 | I98: 2024 | J98: 2025 | K98: 2026 | L98: 2027 | M98: 2028 | N98: 2029 | O98: 2030 | P98: 2031 | Q98: 2032 | R98: 2033 | S98: 2034 | T98: 2035 | U98: 2036 | V98: 2037 | W98: 2038 | X98: 2039 | Y98: 2040
C99: Коэф-ты рентабельности
C100: Валовая рент-ть | D100: % | F100: =IFERROR(F72 / F70, "н/д") -> н/д | G100: =IFERROR(G72 / G70, "н/д") -> н/д | H100: н/д | I100: н/д | J100: н/д | K100: 0.2954545455 | L100: 0.2954545455 | M100: 0.2954545455 | N100: 0.2954545455 | O100: 0.2954545455 | P100: 0.2954545455 | Q100: 0.2954545455 | R100: 0.2954545455 | S100: 0.2954545455 | T100: 0.2954545455 | U100: 0.2954545455 | V100: 0.2954545455 | W100: 0.2954545455 | X100: 0.2954545455 | Y100: 0.2954545455
C101: EBITDA рент-ть | D101: % | F101: =IFERROR( F76 / F70, "н/д") -> н/д | G101: =IFERROR( G76 / G70, "н/д") -> н/д | H101: н/д | I101: н/д | J101: н/д | K101: 0.2644656845 | L101: 0.2538535108 | M101: 0.2563799063 | N101: 0.258746036 | O101: 0.2609604907 | P101: 0.2630314376 | Q101: 0.2649666398 | R101: 0.2667734758 | S101: 0.2684589571 | T101: 0.2700297459 | U101: 0.2714921713 | V101: 0.2728522455 | W101: 0.2741156781 | X101: 0.2752878912 | Y101: 0.2763740327
C102: Чистая рент-ть | D102: % | F102: =IFERROR(F81 / F70, "н/д") -> н/д | G102: =IFERROR(G81 / G70, "н/д") -> н/д | H102: н/д | I102: н/д | J102: н/д | K102: 0.1052542026 | L102: 0.1038512985 | M102: 0.1127875622 | N102: 0.1214339243 | O102: 0.1298069854 | P102: 0.1379227515 | Q102: 0.145796663 | R102: 0.1534436237 | S102: 0.1608780282 | T102: 0.1681137883 | U102: 0.1736043043 | V102: 0.1763688803 | W102: 0.1799002502 | X102: 0.1837473732 | Y102: 0.187354124
C103: ROA (Рентабельность активов) | D103: % | F103: =IF( AND(F84 > acc, ABS(F78) > acc), F78 / F84, "н/д") -> н/д | G103: н/д | H103: н/д | I103: н/д | J103: н/д | K103: 0.1342156261 | L103: 0.1412056641 | M103: 0.1602501446 | N103: 0.1817588185 | O103: 0.2065132968 | P103: 0.2350542477 | Q103: 0.2684241775 | R103: 0.3069635773 | S103: 0.35275418 | T103: 0.4074110706 | U103: 0.4741579522 | V103: 0.5162093625 | W103: 0.5393478568 | X103: 0.5628163041 | Y103: н/д
C104: ROE (Рентабельность собственного капитала) | D104: % | F104: =IF( AND(F86 > acc, ABS(F81) > acc), F81 / F86, "н/д") -> н/д | G104: н/д | H104: н/д | I104: н/д | J104: н/д | K104: 0.1822076042 | L104: 0.1935133568 | M104: 0.2248237795 | N104: 0.2564779231 | O104: 0.2880173025 | P104: 0.3182051478 | Q104: 0.3462242052 | R104: 0.3701592532 | S104: 0.3900714534 | T104: 0.405135841 | U104: 0.4971303982 | V104: 0.5540479183 | W104: 0.587747075 | X104: 0.624328539 | Y104: н/д
C105: ROIC (Рентабельность инвестированного капитала) | D105: % | F105: =IF(AND(SUM(F85:F86) > acc, ABS(F78) > acc), F78 / SUM(F85:F86), "н/д") -> н/д | G105: н/д | H105: н/д | I105: н/д | J105: н/д | K105: 0.1457924657 | L105: 0.1546782212 | M105: 0.1771876354 | N105: 0.2032358871 | O105: 0.2338659994 | P105: 0.2701547885 | Q105: 0.3138251535 | R105: 0.3665044535 | S105: 0.4318141312 | T105: 0.5141826563 | U105: 0.6214129977 | V105: 0.6925598979 | W105: 0.7309733132 | X105: 0.7707784327 | Y105: н/д
C107: Показатели долговой нагрузки
C108: CFADS | D108: млн руб. | F108: =MAX(Расчет!H785, 0) -> 0 | G108: =MAX(Расчет!I785, 0) -> 0 | H108: =MAX(Расчет!J785, 0) -> 0 | I108: =MAX(Расчет!K785, 0) -> 0 | J108: =MAX(Расчет!L785, 0) -> 0 | K108: =MAX(Расчет!M785, 0) -> 6770.73396 | L108: =MAX(Расчет!N785, 0) -> 12877.16231 | M108: =MAX(Расчет!O785, 0) -> 13431.4325 | N108: =MAX(Расчет!P785, 0) -> 13937.38136 | O108: =MAX(Расчет!Q785, 0) -> 14525.23349 | P108: =MAX(Расчет!R785, 0) -> 15109.08263 | Q108: =MAX(Расчет!S785, 0) -> 15736.39202 | R108: =MAX(Расчет!T785, 0) -> 16306.59404 | S108: =MAX(Расчет!U785, 0) -> 16971.98964 | T108: =MAX(Расчет!V785, 0) -> 17632.03405 | U108: =MAX(Расчет!W785, 0) -> 18374.28211 | V108: =MAX(Расчет!X785, 0) -> 19106.13094 | W108: =MAX(Расчет!Y785, 0) -> 19934.99911 | X108: =MAX(Расчет!Z785, 0) -> 20751.86893 | Y108: =MAX(Расчет!AA785, 0) -> 34265.20559
C109: DSCR | F109: =IF( SUM( F93:F94) <> 0, F108 / -SUM(F93:F94), "н/д" ) -> н/д | G109: =IF( SUM( G93:G94) <> 0, G108 / -SUM(G93:G94), "н/д" ) -> н/д | H109: н/д | I109: н/д | J109: н/д | K109: 1.169326247 | L109: 2.223924906 | M109: 2.319649045 | N109: 2.407027944 | O109: 2.508551786 | P109: 2.6093843 | Q109: 2.717722531 | R109: 2.816198144 | S109: 2.93111398 | T109: 3.045105647 | U109: н/д | V109: н/д | W109: н/д | X109: н/д | Y109: н/д
C110: Долг / EBITDA | F110: =IF( F76 = 0, "н/д", IF(F85/F76<0, neg, IF(F85/F76>10, ">10х",F85/F76))) -> н/д | G110: =IF( G76 = 0, "н/д", IF(G85/G76<0, neg, IF(G85/G76>10, ">10х",G85/G76))) -> н/д | H110: =IF( H76 = 0, "н/д", IF(H85/H76<0, neg, IF(H85/H76>10, ">10х",H85/H76))) -> н/д | I110: =IF( I76 = 0, "н/д", IF(I85/I76<0, neg, IF(I85/I76>10, ">10х",I85/I76))) -> н/д | J110: =IF( J76 = 0, "н/д", IF(J85/J76<0, neg, IF(J85/J76>10, ">10х",J85/J76))) -> н/д | K110: =IF( K76 = 0, "н/д", IF(K85/K76<0, neg, IF(K85/K76>10, ">10х",K85/K76))) -> 2.58300833 | L110: =IF( L76 = 0, "н/д", IF(L85/L76<0, neg, IF(L85/L76>10, ">10х",L85/L76))) -> 2.375917974 | M110: =IF( M76 = 0, "н/д", IF(M85/M76<0, neg, IF(M85/M76>10, ">10х",M85/M76))) -> 2.045487576 | N110: =IF( N76 = 0, "н/д", IF(N85/N76<0, neg, IF(N85/N76>10, ">10х",N85/N76))) -> 1.727051854 | O110: =IF( O76 = 0, "н/д", IF(O85/O76<0, neg, IF(O85/O76>10, ">10х",O85/O76))) -> 1.419239307 | P110: =IF( P76 = 0, "н/д", IF(P85/P76<0, neg, IF(P85/P76>10, ">10х",P85/P76))) -> 1.120813428 | Q110: =IF( Q76 = 0, "н/д", IF(Q85/Q76<0, neg, IF(Q85/Q76>10, ">10х",Q85/Q76))) -> 0.8306539742 | R110: =IF( R76 = 0, "н/д", IF(R85/R76<0, neg, IF(R85/R76>10, ">10х",R85/R76))) -> 0.5477411569 | S110: =IF( S76 = 0, "н/д", IF(S85/S76<0, neg, IF(S85/S76>10, ">10х",S85/S76))) -> 0.2711422198 | T110: =IF( T76 = 0, "н/д", IF(T85/T76<0, neg, IF(T85/T76>10, ">10х",T85/T76))) -> 0 | U110: =IF( U76 = 0, "н/д", IF(U85/U76<0, neg, IF(U85/U76>10, ">10х",U85/U76))) -> 0 | V110: =IF( V76 = 0, "н/д", IF(V85/V76<0, neg, IF(V85/V76>10, ">10х",V85/V76))) -> 0 | W110: =IF( W76 = 0, "н/д", IF(W85/W76<0, neg, IF(W85/W76>10, ">10х",W85/W76))) -> 0 | X110: =IF( X76 = 0, "н/д", IF(X85/X76<0, neg, IF(X85/X76>10, ">10х",X85/X76))) -> 0 | Y110: =IF( Y76 = 0, "н/д", IF(Y85/Y76<0, neg, IF(Y85/Y76>10, ">10х",Y85/Y76))) -> 0
C111: Долг / Собственные средства | F111: =IFERROR(F85/F86,"н/д") -> 1.5 | G111: =IFERROR(G85/G86,"н/д") -> 1.5 | H111: 1.5 | I111: 1.5 | J111: 1.5 | K111: 1.182557284 | L111: 1.123863671 | M111: 1.04535034 | N111: 0.9438197059 | O111: 0.8217711784 | P111: 0.6801618555 | Q111: 0.5226623159 | R111: 0.3524989162 | S111: 0.1764909659 | T111: 0 | U111: 0 | V111: 0 | W111: 0 | X111: 0 | Y111: н/д
C115: 2. Оценка бюджетной эффективности проекта
C117: Бюджетная эффективность**
F118: =YEAR(Вводные!$E$11) -> 2021 | G118: =F118+1 -> 2022 | H118: 2023 | I118: 2024 | J118: 2025 | K118: 2026 | L118: 2027 | M118: 2028 | N118: 2029 | O118: 2030 | P118: 2031 | Q118: 2032 | R118: 2033 | S118: 2034 | T118: 2035 | U118: 2036 | V118: 2037 | W118: 2038 | X118: 2039 | Y118: 2040 | Z118: Итого
C119: Всего выплаты в бюджет и внебюджетные фонды | D119: млн руб. | F119: =F120+F133+F137 -> 138.4137754 | G119: =G120+G133+G137 -> 362.6031461 | H119: 130.9039957 | I119: 284.7927631 | J119: -65.35434441 | K119: 4425.527932 | L119: 6080.96823 | M119: 6306.637588 | N119: 6546.118311 | O119: 6800.085065 | P119: 7069.248668 | Q119: 7354.358224 | R119: 7656.203394 | S119: 7975.616812 | T119: 8313.476659 | U119: 8638.629723 | V119: 8926.952755 | W119: 9250.171851 | X119: 9600.708871 | Y119: 9966.988338 | Z119: =SUM(F119:Y119) -> 115763.0518
C120: 1. Всего налоги | D120: млн руб. | F120: =F121+F127 -> 138.4137754 | G120: =G121+G127 -> 362.6031461 | H120: 130.9039957 | I120: 284.7927631 | J120: -65.35434441 | K120: 4425.527932 | L120: 6080.96823 | M120: 6306.637588 | N120: 6546.118311 | O120: 6800.085065 | P120: 7069.248668 | Q120: 7354.358224 | R120: 7656.203394 | S120: 7975.616812 | T120: 8313.476659 | U120: 8638.629723 | V120: 8926.952755 | W120: 9250.171851 | X120: 9600.708871 | Y120: 9966.988338 | Z120: 115763.0518
C121: Федеральный бюджет | D121: млн руб. | F121: =SUM(F122:F126) -> 138.4137754 | G121: =SUM(G122:G126) -> 362.6031461 | H121: 130.9039957 | I121: 284.7927631 | J121: -65.35434441 | K121: 2406.102337 | L121: 3385.733307 | M121: 3534.589652 | N121: 3689.484321 | O121: 3850.671069 | P121: 4018.414716 | Q121: 4192.991662 | R121: 4374.690421 | S121: 4563.812185 | T121: 4760.671422 | U121: 4962.388522 | V121: 5166.796302 | W121: 5381.322319 | X121: 5605.473904 | Y121: 5838.369262 | Z121: 66582.87073
C122: НДС | D122: млн руб. | F122: =Результаты_2!F31 -> 138.4137754 | G122: =Результаты_2!G31 -> 362.6031461 | H122: =Результаты_2!H31 -> 130.9039957 | I122: =Результаты_2!I31 -> 284.7927631 | J122: =Результаты_2!J31 -> -65.35434441 | K122: =Результаты_2!K31 -> 2225.787992 | L122: =Результаты_2!L31 -> 3200.233221 | M122: =Результаты_2!M31 -> 3328.242549 | N122: =Результаты_2!N31 -> 3461.372251 | O122: =Результаты_2!O31 -> 3599.827142 | P122: =Результаты_2!P31 -> 3743.820227 | Q122: =Результаты_2!Q31 -> 3893.573036 | R122: =Результаты_2!R31 -> 4049.315958 | S122: =Результаты_2!S31 -> 4211.288596 | T122: =Результаты_2!T31 -> 4379.74014 | U122: =Результаты_2!U31 -> 4554.929745 | V122: =Результаты_2!V31 -> 4737.126935 | W122: =Результаты_2!W31 -> 4926.612013 | X122: =Результаты_2!X31 -> 5123.676493 | Y122: =Результаты_2!Y31 -> 5328.623553 | Z122: 61615.52919
C123: Акцизы | D123: млн руб. | F123: =Результаты_2!F32 -> 0 | G123: =Результаты_2!G32 -> 0 | H123: =Результаты_2!H32 -> 0 | I123: =Результаты_2!I32 -> 0 | J123: =Результаты_2!J32 -> 0 | K123: =Результаты_2!K32 -> 0 | L123: =Результаты_2!L32 -> 0 | M123: =Результаты_2!M32 -> 0 | N123: =Результаты_2!N32 -> 0 | O123: =Результаты_2!O32 -> 0 | P123: =Результаты_2!P32 -> 0 | Q123: =Результаты_2!Q32 -> 0 | R123: =Результаты_2!R32 -> 0 | S123: =Результаты_2!S32 -> 0 | T123: =Результаты_2!T32 -> 0 | U123: =Результаты_2!U32 -> 0 | V123: =Результаты_2!V32 -> 0 | W123: =Результаты_2!W32 -> 0 | X123: =Результаты_2!X32 -> 0 | Y123: =Результаты_2!Y32 -> 0 | Z123: 0
C124: Налог на прибыль | D124: млн руб. | F124: =Результаты_2!F33 -> 0 | G124: =Результаты_2!G33 -> 0 | H124: =Результаты_2!H33 -> 0 | I124: =Результаты_2!I33 -> 0 | J124: =Результаты_2!J33 -> 0 | K124: =Результаты_2!K33 -> 146.2164315 | L124: =Результаты_2!L33 -> 150.0382553 | M124: =Результаты_2!M33 -> 169.466798 | N124: =Результаты_2!N33 -> 189.7565531 | O124: =Результаты_2!O33 -> 210.9541903 | P124: =Результаты_2!P33 -> 233.1091626 | Q124: =Результаты_2!Q33 -> 256.2738864 | R124: =Результаты_2!R33 -> 280.503934 | S124: =Результаты_2!S33 -> 305.8582393 | T124: =Результаты_2!T33 -> 332.3993177 | U124: =Результаты_2!U33 -> 356.9855334 | V124: =Результаты_2!V33 -> 377.1771938 | W124: =Результаты_2!W33 -> 400.1184466 | X124: =Результаты_2!X33 -> 425.0218773 | Y124: =Результаты_2!Y33 -> 450.6991537 | Z124: 4284.578973
C125: НДПИ | D125: млн руб. | F125: =Результаты_2!F34 -> 0 | G125: =Результаты_2!G34 -> 0 | H125: =Результаты_2!H34 -> 0 | I125: =Результаты_2!I34 -> 0 | J125: =Результаты_2!J34 -> 0 | K125: =Результаты_2!K34 -> 0 | L125: =Результаты_2!L34 -> 0 | M125: =Результаты_2!M34 -> 0 | N125: =Результаты_2!N34 -> 0 | O125: =Результаты_2!O34 -> 0 | P125: =Результаты_2!P34 -> 0 | Q125: =Результаты_2!Q34 -> 0 | R125: =Результаты_2!R34 -> 0 | S125: =Результаты_2!S34 -> 0 | T125: =Результаты_2!T34 -> 0 | U125: =Результаты_2!U34 -> 0 | V125: =Результаты_2!V34 -> 0 | W125: =Результаты_2!W34 -> 0 | X125: =Результаты_2!X34 -> 0 | Y125: =Результаты_2!Y34 -> 0 | Z125: 0
C126: Прочие | D126: млн руб. | F126: =Результаты_2!F35 -> 0 | G126: =Результаты_2!G35 -> 0 | H126: =Результаты_2!H35 -> 0 | I126: =Результаты_2!I35 -> 0 | J126: =Результаты_2!J35 -> 0 | K126: =Результаты_2!K35 -> 34.09791424 | L126: =Результаты_2!L35 -> 35.46183081 | M126: =Результаты_2!M35 -> 36.88030404 | N126: =Результаты_2!N35 -> 38.35551621 | O126: =Результаты_2!O35 -> 39.88973685 | P126: =Результаты_2!P35 -> 41.48532633 | Q126: =Результаты_2!Q35 -> 43.14473938 | R126: =Результаты_2!R35 -> 44.87052896 | S126: =Результаты_2!S35 -> 46.66535012 | T126: =Результаты_2!T35 -> 48.53196412 | U126: =Результаты_2!U35 -> 50.47324269 | V126: =Результаты_2!V35 -> 52.49217239 | W126: =Результаты_2!W35 -> 54.59185929 | X126: =Результаты_2!X35 -> 56.77553366 | Y126: =Результаты_2!Y35 -> 59.04655501 | Z126: 682.7625741
C127: Региональный бюджет | D127: млн руб. | F127: =SUM(F128:F132) -> 0 | G127: =SUM(G128:G132) -> 0 | H127: 0 | I127: 0 | J127: 0 | K127: 2019.425594 | L127: 2695.234923 | M127: 2772.047937 | N127: 2856.633991 | O127: 2949.413997 | P127: 3050.833952 | Q127: 3161.366562 | R127: 3281.512973 | S127: 3411.804627 | T127: 3552.805237 | U127: 3676.241202 | V127: 3760.156454 | W127: 3868.849532 | X127: 3995.234966 | Y127: 4128.619077 | Z127: 49180.18102
C128: Налог на имущество организаций | D128: млн руб. | F128: =Результаты_2!F37 -> 0 | G128: =Результаты_2!G37 -> 0 | H128: =Результаты_2!H37 -> 0 | I128: =Результаты_2!I37 -> 0 | J128: =Результаты_2!J37 -> 0 | K128: =Результаты_2!K37 -> 690.1795242 | L128: =Результаты_2!L37 -> 1331.060511 | M128: =Результаты_2!M37 -> 1232.463436 | N128: =Результаты_2!N37 -> 1133.866361 | O128: =Результаты_2!O37 -> 1035.269286 | P128: =Результаты_2!P37 -> 936.6722114 | Q128: =Результаты_2!Q37 -> 838.0751365 | R128: =Результаты_2!R37 -> 739.4780616 | S128: =Результаты_2!S37 -> 640.8809867 | T128: =Результаты_2!T37 -> 542.2839118 | U128: =Результаты_2!U37 -> 443.686837 | V128: =Результаты_2!V37 -> 345.0897621 | W128: =Результаты_2!W37 -> 246.4926872 | X128: =Результаты_2!X37 -> 147.8956123 | Y128: =Результаты_2!Y37 -> 49.29853744 | Z128: 10352.69286
C129: Налог на прибыль | D129: млн руб. | F129: =Результаты_2!F38 -> 0 | G129: =Результаты_2!G38 -> 0 | H129: =Результаты_2!H38 -> 0 | I129: =Результаты_2!I38 -> 0 | J129: =Результаты_2!J38 -> 0 | K129: =Результаты_2!K38 -> 1315.947883 | L129: =Результаты_2!L38 -> 1350.344298 | M129: =Результаты_2!M38 -> 1525.201182 | N129: =Результаты_2!N38 -> 1707.808978 | O129: =Результаты_2!O38 -> 1898.587713 | P129: =Результаты_2!P38 -> 2097.982463 | Q129: =Результаты_2!Q38 -> 2306.464977 | R129: =Результаты_2!R38 -> 2524.535406 | S129: =Результаты_2!S38 -> 2752.724154 | T129: =Результаты_2!T38 -> 2991.593859 | U129: =Результаты_2!U38 -> 3212.8698 | V129: =Результаты_2!V38 -> 3394.594745 | W129: =Результаты_2!W38 -> 3601.06602 | X129: =Результаты_2!X38 -> 3825.196896 | Y129: =Результаты_2!Y38 -> 4056.292383 | Z129: 38561.21076
C130: НДФЛ | D130: млн руб. | F130: =Результаты_2!F39 -> 0 | G130: =Результаты_2!G39 -> 0 | H130: =Результаты_2!H39 -> 0 | I130: =Результаты_2!I39 -> 0 | J130: =Результаты_2!J39 -> 0 | K130: =Результаты_2!K39 -> 13.29818655 | L130: =Результаты_2!L39 -> 13.83011402 | M130: =Результаты_2!M39 -> 14.38331858 | N130: =Результаты_2!N39 -> 14.95865132 | O130: =Результаты_2!O39 -> 15.55699737 | P130: =Результаты_2!P39 -> 16.17927727 | Q130: =Результаты_2!Q39 -> 16.82644836 | R130: =Результаты_2!R39 -> 17.49950629 | S130: =Результаты_2!S39 -> 18.19948655 | T130: =Результаты_2!T39 -> 18.92746601 | U130: =Результаты_2!U39 -> 19.68456465 | V130: =Результаты_2!V39 -> 20.47194723 | W130: =Результаты_2!W39 -> 21.29082512 | X130: =Результаты_2!X39 -> 22.14245813 | Y130: =Результаты_2!Y39 -> 23.02815645 | Z130: 266.2774039
C131: НДПИ | D131: млн руб. | F131: =Результаты_2!F40 -> 0 | G131: =Результаты_2!G40 -> 0 | H131: =Результаты_2!H40 -> 0 | I131: =Результаты_2!I40 -> 0 | J131: =Результаты_2!J40 -> 0 | K131: =Результаты_2!K40 -> 0 | L131: =Результаты_2!L40 -> 0 | M131: =Результаты_2!M40 -> 0 | N131: =Результаты_2!N40 -> 0 | O131: =Результаты_2!O40 -> 0 | P131: =Результаты_2!P40 -> 0 | Q131: =Результаты_2!Q40 -> 0 | R131: =Результаты_2!R40 -> 0 | S131: =Результаты_2!S40 -> 0 | T131: =Результаты_2!T40 -> 0 | U131: =Результаты_2!U40 -> 0 | V131: =Результаты_2!V40 -> 0 | W131: =Результаты_2!W40 -> 0 | X131: =Результаты_2!X40 -> 0 | Y131: =Результаты_2!Y40 -> 0 | Z131: 0
C132: Прочие | D132: млн руб. | F132: =Результаты_2!F41 -> 0 | G132: =Результаты_2!G41 -> 0 | H132: =Результаты_2!H41 -> 0 | I132: =Результаты_2!I41 -> 0 | J132: =Результаты_2!J41 -> 0 | K132: =Результаты_2!K41 -> 0 | L132: =Результаты_2!L41 -> 0 | M132: =Результаты_2!M41 -> 0 | N132: =Результаты_2!N41 -> 0 | O132: =Результаты_2!O41 -> 0 | P132: =Результаты_2!P41 -> 0 | Q132: =Результаты_2!Q41 -> 0 | R132: =Результаты_2!R41 -> 0 | S132: =Результаты_2!S41 -> 0 | T132: =Результаты_2!T41 -> 0 | U132: =Результаты_2!U41 -> 0 | V132: =Результаты_2!V41 -> 0 | W132: =Результаты_2!W41 -> 0 | X132: =Результаты_2!X41 -> 0 | Y132: =Результаты_2!Y41 -> 0 | Z132: 0
C133: 2. Страховые взносы во внебюджетные фонды | D133: млн руб. | F133: =SUM(F134:F136) -> 0 | G133: =SUM(G134:G136) -> 0 | H133: 0 | I133: 0 | J133: 0 | K133: 0 | L133: 0 | M133: 0 | N133: 0 | O133: 0 | P133: 0 | Q133: 0 | R133: 0 | S133: 0 | T133: 0 | U133: 0 | V133: 0 | W133: 0 | X133: 0 | Y133: 0 | Z133: 0
C134: Пенсионный фонд | D134: млн руб.
C135: Фонд обязательного медицинского страхования | D135: млн руб.
C136: Фонд социального страхования | D136: млн руб.
C137: 3. Иные обязательные платежи в бюджетную систему | D137: млн руб.
C139: Всего поступления из бюджета и внебюджетных фондов | D139: млн руб. | F139: =SUM(F140:F142) -> 0 | G139: =SUM(G140:G142) -> 0 | H139: 0 | I139: 0 | J139: 0 | K139: 0 | L139: 0 | M139: 0 | N139: 0 | O139: 0 | P139: 0 | Q139: 0 | R139: 0 | S139: 2.273736754e-13 | T139: 0 | U139: 0 | V139: 0 | W139: 0 | X139: 0 | Y139: 0
C140: - из федерального бюджета (за исключением возмещения НДС по капитальным затратам) | D140: млн руб. | F140: =Расчет!H845 -> 0 | G140: =Расчет!I845 -> 0 | H140: =Расчет!J845 -> 0 | I140: =Расчет!K845 -> 0 | J140: =Расчет!L845 -> 0 | K140: =Расчет!M845 -> 0 | L140: =Расчет!N845 -> 0 | M140: =Расчет!O845 -> 0 | N140: =Расчет!P845 -> 0 | O140: =Расчет!Q845 -> 0 | P140: =Расчет!R845 -> 0 | Q140: =Расчет!S845 -> 0 | R140: =Расчет!T845 -> 0 | S140: =Расчет!U845 -> 2.273736754e-13 | T140: =Расчет!V845 -> 0 | U140: =Расчет!W845 -> 0 | V140: =Расчет!X845 -> 0 | W140: =Расчет!Y845 -> 0 | X140: =Расчет!Z845 -> 0 | Y140: =Расчет!AA845 -> 0
C141: - из региональных и местных бюджетов | D141: млн руб. | F141: =Расчет!H848 -> 0 | G141: =Расчет!I848 -> 0 | H141: =Расчет!J848 -> 0 | I141: =Расчет!K848 -> 0 | J141: =Расчет!L848 -> 0 | K141: =Расчет!M848 -> 0 | L141: =Расчет!N848 -> 0 | M141: =Расчет!O848 -> 0 | N141: =Расчет!P848 -> 0 | O141: =Расчет!Q848 -> 0 | P141: =Расчет!R848 -> 0 | Q141: =Расчет!S848 -> 0 | R141: =Расчет!T848 -> 0 | S141: =Расчет!U848 -> 0 | T141: =Расчет!V848 -> 0 | U141: =Расчет!W848 -> 0 | V141: =Расчет!X848 -> 0 | W141: =Расчет!Y848 -> 0 | X141: =Расчет!Z848 -> 0 | Y141: =Расчет!AA848 -> 0
C142: - из внебюджетных фондов. | D142: млн руб.
C144: Совокупный бюджетный денежный поток от проекта | D144: млн руб. | F144: =F119 - F139 -> 138.4137754 | G144: =G119 - G139 -> 362.6031461 | H144: 130.9039957 | I144: 284.7927631 | J144: -65.35434441 | K144: 4425.527932 | L144: 6080.96823 | M144: 6306.637588 | N144: 6546.118311 | O144: 6800.085065 | P144: 7069.248668 | Q144: 7354.358224 | R144: 7656.203394 | S144: 7975.616812 | T144: 8313.476659 | U144: 8638.629723 | V144: 8926.952755 | W144: 9250.171851 | X144: 9600.708871 | Y144: 9966.988338 | Z144: =SUM(F144:Y144) -> 115763.0518
C146: Длина периода | D146: год | F146: 1 | G146: 1 | H146: 1 | I146: 1 | J146: 1 | K146: 1 | L146: 1 | M146: 1 | N146: 1 | O146: 1 | P146: 1 | Q146: 1 | R146: 1 | S146: 1 | T146: 1 | U146: 1 | V146: 1 | W146: 1 | X146: 1 | Y146: 1
C147: Ставка дисконтирования (условно безрисковая ставка) | D147: % | F147: =Вводные!$E$218 -> 0.065 | G147: =Вводные!$E$218 -> 0.065 | H147: =Вводные!$E$218 -> 0.065 | I147: =Вводные!$E$218 -> 0.065 | J147: =Вводные!$E$218 -> 0.065 | K147: =Вводные!$E$218 -> 0.065 | L147: =Вводные!$E$218 -> 0.065 | M147: =Вводные!$E$218 -> 0.065 | N147: =Вводные!$E$218 -> 0.065 | O147: =Вводные!$E$218 -> 0.065 | P147: =Вводные!$E$218 -> 0.065 | Q147: =Вводные!$E$218 -> 0.065 | R147: =Вводные!$E$218 -> 0.065 | S147: =Вводные!$E$218 -> 0.065 | T147: =Вводные!$E$218 -> 0.065 | U147: =Вводные!$E$218 -> 0.065 | V147: =Вводные!$E$218 -> 0.065 | W147: =Вводные!$E$218 -> 0.065 | X147: =Вводные!$E$218 -> 0.065 | Y147: =Вводные!$E$218 -> 0.065
C148: Темп роста терминального периода | D148: % | Y148: 0
C149: Терминальная стоимость от проекта | D149: млн руб. | Y149: =IFERROR(Y144 * (1 + Y148) / (Y147 - Y148), 0) * 0 -> 0
C150: Дисконт-фактор по годам | F150: =1/(1+F147)^F146 -> 0.9389671362 | G150: =1/(1+G147)^G146 -> 0.9389671362 | H150: =1/(1+H147)^H146 -> 0.9389671362 | I150: =1/(1+I147)^I146 -> 0.9389671362 | J150: 0.9389671362 | K150: 0.9389671362 | L150: 0.9389671362 | M150: 0.9389671362 | N150: 0.9389671362 | O150: 0.9389671362 | P150: 0.9389671362 | Q150: 0.9389671362 | R150: 0.9389671362 | S150: 0.9389671362 | T150: 0.9389671362 | U150: 0.9389671362 | V150: 0.9389671362 | W150: 0.9389671362 | X150: 0.9389671362 | Y150: 0.9389671362
C151: Итоговый дисконт-фактор | F151: =PRODUCT($F150:F150)/F150^(F146/2) -> 0.9690031662 | G151: =PRODUCT($F150:G150)/G150^(G146/2) -> 0.9098621279 | H151: =PRODUCT($F150:H150)/H150^(H146/2) -> 0.8543306365 | I151: =PRODUCT($F150:I150)/I150^(I146/2) -> 0.8021883911 | J151: =PRODUCT($F150:J150)/J150^(J146/2) -> 0.7532285363 | K151: =PRODUCT($F150:K150)/K150^(K146/2) -> 0.7072568416 | L151: =PRODUCT($F150:L150)/L150^(L146/2) -> 0.664090931 | M151: =PRODUCT($F150:M150)/M150^(M146/2) -> 0.6235595597 | N151: =PRODUCT($F150:N150)/N150^(N146/2) -> 0.585501934 | O151: =PRODUCT($F150:O150)/O150^(O146/2) -> 0.5497670741 | P151: =PRODUCT($F150:P150)/P150^(P146/2) -> 0.5162132151 | Q151: =PRODUCT($F150:Q150)/Q150^(Q146/2) -> 0.4847072443 | R151: =PRODUCT($F150:R150)/R150^(R146/2) -> 0.455124173 | S151: =PRODUCT($F150:S150)/S150^(S146/2) -> 0.4273466413 | T151: =PRODUCT($F150:T150)/T150^(T146/2) -> 0.401264452 | U151: =PRODUCT($F150:U150)/U150^(U146/2) -> 0.3767741333 | V151: =PRODUCT($F150:V150)/V150^(V146/2) -> 0.3537785289 | W151: =PRODUCT($F150:W150)/W150^(W146/2) -> 0.3321864121 | X151: =PRODUCT($F150:X150)/X150^(X146/2) -> 0.3119121241 | Y151: =PRODUCT($F150:Y150)/Y150^(Y146/2) -> 0.2928752339
C152: Совокупный дисконтированный бюджетный денежный поток | D152: млн руб. | F152: =F151 * F144 -> 134.1233866 | G152: =G151 * G144 -> 329.9188701 | H152: 111.8352939 | I152: 228.4574484 | J152: -49.22675718 | K152: 3129.984907 | L152: 4038.315853 | M152: 3932.564157 | N152: 3832.764931 | O152: 3738.46287 | P152: 3649.239584 | Q152: 3564.710708 | R152: 3484.523238 | S152: 3408.353057 | T152: 3335.902655 | U152: 3254.812227 | V152: 3158.164214 | W152: 3072.781399 | X152: 2994.577496 | Y152: 2919.084041
C153: Дисконтированная терминальная стоимость с учетом проекта | D153: млн руб. | Y153: =IFERROR(Y149*Y151, 0) -> 0
C154: Итого приведенный бюджетный эффект (NPV бюдж) | D154: млн руб. | F154: =SUM(F152:Y152) + Y153 -> 52269.34958
C162: **Данные определяются на основании данных бухгалтерского учета | E162: 1
C165: 3. Оценка социально-экономических эффектов от реализации проекта
C167: Оценка эффекта в области занятости
C168: Среднесписочная численность работников | D168: чел.
C169: Фонд оплаты труда | D169: млн руб.
C171: Численность занятых (на момент окончания прогнозного периода) | D171: чел | F171: =Y168 -> 0

Sheet Результаты_2
B1: Налоговые поступления в бюджет (без мер и с мерами поддержки) | E1: К содержанию | G1: Ввести годы прогнозирования по модели | Z1: Указать год окончание прогнозирования модели или расчёта терминальной стоимости сверх выбранного периода
A2: № | B2: ID | C2: Финансовые показатели (млн. руб.) | D2: Описание | E2: Всего | F2: 2021 | G2: 2022 | H2: 2023 | I2: 2024 | J2: 2025 | K2: 2026 | L2: 2027 | M2: 2028 | N2: 2029 | O2: 2030 | P2: 2031 | Q2: 2032 | R2: 2033 | S2: 2034 | T2: 2035 | U2: 2036 | V2: 2037 | W2: 2038 | X2: 2039 | Y2: 2040 | Z2: 2041-20##
A3: =ROW()-ROW(БДДС[#Headers]) -> 1 | B3: 1 | C3: Операционные показатели (без мер)
A4: =ROW()-ROW(БДДС[#Headers]) -> 2 | B4: 2 | C4: Выручка | E4: =SUM(БДДС[[#This Row],[2021]:[2041-20'#'#]]) -> 1112650.121 | F4: =Результаты_1!F70 -> 0 | G4: =Результаты_1!G70 -> 0 | H4: =Результаты_1!H70 -> 0 | I4: =Результаты_1!I70 -> 0 | J4: =Результаты_1!J70 -> 0 | K4: =Результаты_1!K70 -> 55566.97136 | L4: =Результаты_1!L70 -> 57789.65021 | M4: =Результаты_1!M70 -> 60101.23622 | N4: =Результаты_1!N70 -> 62505.28567 | O4: =Результаты_1!O70 -> 65005.4971 | P4: =Результаты_1!P70 -> 67605.71698 | Q4: =Результаты_1!Q70 -> 70309.94566 | R4: =Результаты_1!R70 -> 73122.34349 | S4: =Результаты_1!S70 -> 76047.23723 | T4: =Результаты_1!T70 -> 79089.12671 | U4: =Результаты_1!U70 -> 82252.69178 | V4: =Результаты_1!V70 -> 85542.79945 | W4: =Результаты_1!W70 -> 88964.51143 | X4: =Результаты_1!X70 -> 92523.09189 | Y4: =Результаты_1!Y70 -> 96224.01557
A5: =ROW()-ROW(БДДС[#Headers]) -> 3 | B5: 3 | C5: EBITDA | E5: =SUM(БДДС[[#This Row],[2021]:[2041-20'#'#]]) -> 297724.9531 | F5: =Результаты_1!F76 -> 0 | G5: =Результаты_1!G76 -> 0 | H5: =Результаты_1!H76 -> 0 | I5: =Результаты_1!I76 -> 0 | J5: =Результаты_1!J76 -> 0 | K5: =Результаты_1!K76 -> 14695.55711 | L5: =Результаты_1!L76 -> 14670.10559 | M5: =Результаты_1!M76 -> 15408.74931 | N5: =Результаты_1!N76 -> 16172.9949 | O5: =Результаты_1!O76 -> 16963.86642 | P5: =Результаты_1!P76 -> 17782.42892 | Q5: =Результаты_1!Q76 -> 18629.79004 | R5: =Результаты_1!R76 -> 19507.10173 | S5: =Результаты_1!S76 -> 20415.56199 | T5: =Результаты_1!T76 -> 21356.41679 | U5: =Результаты_1!U76 -> 22330.96189 | V5: =Результаты_1!V76 -> 23340.54491 | W5: =Результаты_1!W76 -> 24386.56738 | X5: =Результаты_1!X76 -> 25470.48685 | Y5: =Результаты_1!Y76 -> 26593.81923
A6: =ROW()-ROW(БДДС[#Headers]) -> 4 | B6: 4 | C6: Доходность по EBITDA (%) | E6: =IFERROR(E5 / E4, 0) -> 0.2675818279 | F6: =IFERROR(F5 / F4, 0) -> 0 | G6: =IFERROR(G5 / G4, 0) -> 0 | H6: 0 | I6: 0 | J6: 0 | K6: 0.2644656845 | L6: 0.2538535108 | M6: 0.2563799063 | N6: 0.258746036 | O6: 0.2609604907 | P6: 0.2630314376 | Q6: 0.2649666398 | R6: 0.2667734758 | S6: 0.2684589571 | T6: 0.2700297459 | U6: 0.2714921713 | V6: 0.2728522455 | W6: 0.2741156781 | X6: 0.2752878912 | Y6: 0.2763740327
A7: =ROW()-ROW(БДДС[#Headers]) -> 5 | B7: 5 | C7: Чистая прибыль | E7: =SUM(БДДС[[#This Row],[2021]:[2041-20'#'#]]) -> 171383.1589 | F7: =Результаты_1!F81 -> 0 | G7: =Результаты_1!G81 -> 0 | H7: =Результаты_1!H81 -> 0 | I7: =Результаты_1!I81 -> 0 | J7: =Результаты_1!J81 -> 0 | K7: =Результаты_1!K81 -> 5848.65726 | L7: =Результаты_1!L81 -> 6001.530213 | M7: =Результаты_1!M81 -> 6778.67192 | N7: =Результаты_1!N81 -> 7590.262125 | O7: =Результаты_1!O81 -> 8438.167613 | P7: =Результаты_1!P81 -> 9324.366503 | Q7: =Результаты_1!Q81 -> 10250.95545 | R7: =Результаты_1!R81 -> 11220.15736 | S7: =Результаты_1!S81 -> 12234.32957 | T7: =Результаты_1!T81 -> 13295.97271 | U7: =Результаты_1!U81 -> 14279.42133 | V7: =Результаты_1!V81 -> 15087.08775 | W7: =Результаты_1!W81 -> 16004.73787 | X7: =Результаты_1!X81 -> 17000.87509 | Y7: =Результаты_1!Y81 -> 18027.96615
A8: =ROW()-ROW(БДДС[#Headers]) -> 6 | B8: 6 | C8: Инвестиционный поток (без мер)
A9: =ROW()-ROW(БДДС[#Headers]) -> 7 | B9: 7 | C9: Капитальные затраты | D9: Капитальные затраты, всего по проекту; Без НДС | E9: =SUM(БДДС[[#This Row],[2021]:[2041-20'#'#]]) -> 61122.48304 | F9: =- Расчет!H11 -> 2763.753978 | G9: =- Расчет!I11 -> 9999.645733 | H9: =- Расчет!J11 -> 12612.31913 | I9: =- Расчет!K11 -> 18754.73981 | J9: =- Расчет!L11 -> 16992.02439 | K9: =- Расчет!M11 -> 0 | L9: =- Расчет!N11 -> 0 | M9: =- Расчет!O11 -> 0 | N9: =- Расчет!P11 -> 0 | O9: =- Расчет!Q11 -> 0 | P9: =- Расчет!R11 -> 0 | Q9: =- Расчет!S11 -> 0 | R9: =- Расчет!T11 -> 0 | S9: =- Расчет!U11 -> 0 | T9: =- Расчет!V11 -> 0 | U9: =- Расчет!W11 -> 0 | V9: =- Расчет!X11 -> 0 | W9: =- Расчет!Y11 -> 0 | X9: =- Расчет!Z11 -> 0 | Y9: =- Расчет!AA11 -> 0
A10: =ROW()-ROW(БДДС[#Headers]) -> 8 | B10: 8 | C10: -на инф-ру по проекту | D10: в том числе затраты на инфраструктуру, учтённую в модели: транспортную, энергетическую, социальную; Без НДС | E10: =SUM(БДДС[[#This Row],[2021]:[2041-20'#'#]]) -> 0 | F10: =SUM(F11:F13) -> 0 | G10: =SUM(G11:G13) -> 0 | H10: 0 | I10: 0 | J10: 0 | K10: 0 | L10: 0 | M10: 0 | N10: 0 | O10: 0 | P10: 0 | Q10: 0 | R10: 0 | S10: 0 | T10: 0 | U10: 0 | V10: 0 | W10: 0 | X10: 0 | Y10: 0
A11: =ROW()-ROW(БДДС[#Headers]) -> 9 | B11: 9 | C11: объект №1 | D11: Указать наименование объекта | E11: =SUM(БДДС[[#This Row],[2021]:[2041-20'#'#]]) -> 0
A12: =ROW()-ROW(БДДС[#Headers]) -> 10 | B12: 10 | C12: объект №2 | D12: Указать наименование объекта | E12: =SUM(БДДС[[#This Row],[2021]:[2041-20'#'#]]) -> 0
A13: =ROW()-ROW(БДДС[#Headers]) -> 11 | B13: 11 | C13: объект №3 | D13: Указать наименование объекта | E13: =SUM(БДДС[[#This Row],[2021]:[2041-20'#'#]]) -> 0
A14: =ROW()-ROW(БДДС[#Headers]) -> 12 | B14: 12 | C14: -на инф-ру за периметром проекта | D14: в том числе затраты на инфраструктуру, НЕ учтённую в модели: транспортную, энергетическую, социальную; Без НДС | E14: =SUM(БДДС[[#This Row],[2021]:[2041-20'#'#]]) -> 0 | F14: =SUM(F15:F17) -> 0 | G14: =SUM(G15:G17) -> 0 | H14: 0 | I14: 0 | J14: 0 | K14: 0 | L14: 0 | M14: 0 | N14: 0 | O14: 0 | P14: 0 | Q14: 0 | R14: 0 | S14: 0 | T14: 0 | U14: 0 | V14: 0 | W14: 0 | X14: 0 | Y14: 0
A15: =ROW()-ROW(БДДС[#Headers]) -> 13 | B15: 13 | C15: объект №4 | D15: Указать наименование объекта | E15: =SUM(БДДС[[#This Row],[2021]:[2041-20'#'#]]) -> 0
A16: =ROW()-ROW(БДДС[#Headers]) -> 14 | B16: 14 | C16: объект №5 | D16: Указать наименование объекта | E16: =SUM(БДДС[[#This Row],[2021]:[2041-20'#'#]]) -> 0
A17: =ROW()-ROW(БДДС[#Headers]) -> 15 | B17: 15 | C17: объект №6 | D17: Указать наименование объекта | E17: =SUM(БДДС[[#This Row],[2021]:[2041-20'#'#]]) -> 0
A18: =ROW()-ROW(БДДС[#Headers]) -> 16 | B18: 16 | C18: Финансовый поток (приход) (без мер) | E18: =SUM(БДДС[[#This Row],[2021]:[2041-20'#'#]]) -> 68076.63766 | F18: =SUM(F19:F21) -> 3285.969514 | G18: =SUM(G19:G21) -> 10826.49267 | H18: 13723.90011 | I18: 20753.88869 | J18: 19486.38668 | K18: 0 | L18: 0 | M18: 0 | N18: 0 | O18: 0 | P18: 0 | Q18: 0 | R18: 0 | S18: 0 | T18: 0 | U18: 0 | V18: 0 | W18: 0 | X18: 0 | Y18: 0 | Z18: 0
A19: =ROW()-ROW(БДДС[#Headers]) -> 17 | B19: 17 | C19: Собственные средства | D19: Вклад в акционерный капитал | E19: =SUM(БДДС[[#This Row],[2021]:[2041-20'#'#]]) -> 27230.65507 | F19: =MAX(Результаты_1!F91, F9 - SUM(F20:F21)) -> 1314.387806 | G19: =MAX(Результаты_1!G91, G9 - SUM(G20:G21)) -> 4330.597068 | H19: =MAX(Результаты_1!H91, H9 - SUM(H20:H21)) -> 5489.560044 | I19: =MAX(Результаты_1!I91, I9 - SUM(I20:I21)) -> 8301.555477 | J19: =MAX(Результаты_1!J91, J9 - SUM(J20:J21)) -> 7794.554671 | K19: =MAX(Результаты_1!K91, K9 - SUM(K20:K21)) -> 0 | L19: =MAX(Результаты_1!L91, L9 - SUM(L20:L21)) -> 0 | M19: =MAX(Результаты_1!M91, M9 - SUM(M20:M21)) -> 0 | N19: =MAX(Результаты_1!N91, N9 - SUM(N20:N21)) -> 0 | O19: =MAX(Результаты_1!O91, O9 - SUM(O20:O21)) -> 0 | P19: =MAX(Результаты_1!P91, P9 - SUM(P20:P21)) -> 0 | Q19: =MAX(Результаты_1!Q91, Q9 - SUM(Q20:Q21)) -> 0 | R19: =MAX(Результаты_1!R91, R9 - SUM(R20:R21)) -> 0 | S19: =MAX(Результаты_1!S91, S9 - SUM(S20:S21)) -> 0 | T19: =MAX(Результаты_1!T91, T9 - SUM(T20:T21)) -> 0 | U19: =MAX(Результаты_1!U91, U9 - SUM(U20:U21)) -> 0 | V19: =MAX(Результаты_1!V91, V9 - SUM(V20:V21)) -> 0 | W19: =MAX(Результаты_1!W91, W9 - SUM(W20:W21)) -> 0 | X19: =MAX(Результаты_1!X91, X9 - SUM(X20:X21)) -> 0 | Y19: =MAX(Результаты_1!Y91, Y9 - SUM(Y20:Y21)) -> 0
A20: =ROW()-ROW(БДДС[#Headers]) -> 18 | B20: 18 | C20: Привлечение заёмных средств | E20: =SUM(БДДС[[#This Row],[2021]:[2041-20'#'#]]) -> 40845.9826 | F20: =Результаты_1!F92 -> 1971.581708 | G20: =Результаты_1!G92 -> 6495.895602 | H20: =Результаты_1!H92 -> 8234.340067 | I20: =Результаты_1!I92 -> 12452.33322 | J20: =Результаты_1!J92 -> 11691.83201 | K20: =Результаты_1!K92 -> 0 | L20: =Результаты_1!L92 -> 0 | M20: =Результаты_1!M92 -> 0 | N20: =Результаты_1!N92 -> 0 | O20: =Результаты_1!O92 -> 0 | P20: =Результаты_1!P92 -> 0 | Q20: =Результаты_1!Q92 -> 0 | R20: =Результаты_1!R92 -> 0 | S20: =Результаты_1!S92 -> 0 | T20: =Результаты_1!T92 -> 0 | U20: =Результаты_1!U92 -> 0 | V20: =Результаты_1!V92 -> 0 | W20: =Результаты_1!W92 -> 0 | X20: =Результаты_1!X92 -> 0 | Y20: =Результаты_1!Y92 -> 0
A21: =ROW()-ROW(БДДС[#Headers]) -> 19 | B21: 19 | C21: Государственные инвестиции | D21: Кап.грант, единоразовые субсидии, вхождение в капитал со стороны гос-ва | E21: =SUM(БДДС[[#This Row],[2021]:[2041-20'#'#]]) -> 0
A22: =ROW()-ROW(БДДС[#Headers]) -> 20 | B22: 20 | C22: Финансовый поток (погашение) | E22: =SUM(БДДС[[#This Row],[2021]:[2041-20'#'#]]) -> 57902.86478 | F22: =SUM(F23:F24) -> 0 | G22: =SUM(G23:G24) -> 0 | H22: 0 | I22: 0 | J22: 0 | K22: 5790.286478 | L22: 5790.286478 | M22: 5790.286478 | N22: 5790.286478 | O22: 5790.286478 | P22: 5790.286478 | Q22: 5790.286478 | R22: 5790.286478 | S22: 5790.286478 | T22: 5790.286478 | U22: 0 | V22: 0 | W22: 0 | X22: 0 | Y22: 0 | Z22: 0
A23: =ROW()-ROW(БДДС[#Headers]) -> 21 | B23: 21 | C23: Погашение заёмных средств | E23: =SUM(БДДС[[#This Row],[2021]:[2041-20'#'#]]) -> 40845.9826 | F23: =- Результаты_1!F93 -> 0 | G23: =- Результаты_1!G93 -> 0 | H23: =- Результаты_1!H93 -> 0 | I23: =- Результаты_1!I93 -> 0 | J23: =- Результаты_1!J93 -> 0 | K23: =- Результаты_1!K93 -> 2887.236162 | L23: =- Результаты_1!L93 -> 3103.778874 | M23: =- Результаты_1!M93 -> 3336.562289 | N23: =- Результаты_1!N93 -> 3586.804461 | O23: =- Результаты_1!O93 -> 3855.814796 | P23: =- Результаты_1!P93 -> 4145.000905 | Q23: =- Результаты_1!Q93 -> 4455.875973 | R23: =- Результаты_1!R93 -> 4790.066671 | S23: =- Результаты_1!S93 -> 5149.321671 | T23: =- Результаты_1!T93 -> 5535.520797 | U23: =- Результаты_1!U93 -> 0 | V23: =- Результаты_1!V93 -> 0 | W23: =- Результаты_1!W93 -> 0 | X23: =- Результаты_1!X93 -> 0 | Y23: =- Результаты_1!Y93 -> 0
A24: =ROW()-ROW(БДДС[#Headers]) -> 22 | B24: 22 | C24: Оплата % по кредиту | E24: =SUM(БДДС[[#This Row],[2021]:[2041-20'#'#]]) -> 17056.88219 | F24: =- Результаты_1!F94 -> 0 | G24: =- Результаты_1!G94 -> 0 | H24: =- Результаты_1!H94 -> 0 | I24: =- Результаты_1!I94 -> 0 | J24: =- Результаты_1!J94 -> 0 | K24: =- Результаты_1!K94 -> 2903.050317 | L24: =- Результаты_1!L94 -> 2686.507605 | M24: =- Результаты_1!M94 -> 2453.724189 | N24: =- Результаты_1!N94 -> 2203.482017 | O24: =- Результаты_1!O94 -> 1934.471683 | P24: =- Результаты_1!P94 -> 1645.285573 | Q24: =- Результаты_1!Q94 -> 1334.410505 | R24: =- Результаты_1!R94 -> 1000.219807 | S24: =- Результаты_1!S94 -> 640.964807 | T24: =- Результаты_1!T94 -> 254.7656817 | U24: =- Результаты_1!U94 -> 0 | V24: =- Результаты_1!V94 -> 0 | W24: =- Результаты_1!W94 -> 0 | X24: =- Результаты_1!X94 -> 0 | Y24: =- Результаты_1!Y94 -> 0
A25: =ROW()-ROW(БДДС[#Headers]) -> 23 | B25: 23 | C25: Начисление % по кредиту | D25: В том числе с учётом капитализации процентов | E25: =SUM(БДДС[[#This Row],[2021]:[2041-20'#'#]]) -> 22653.73438 | F25: =Расчет!H260 -> 78.35462681 | G25: =Расчет!I260 -> 388.1110133 | H25: =Расчет!J260 -> 918.7236203 | I25: =Расчет!K260 -> 1672.614433 | J25: =Расчет!L260 -> 2539.048497 | K25: =Расчет!M260 -> 2903.050317 | L25: =Расчет!N260 -> 2686.507605 | M25: =Расчет!O260 -> 2453.724189 | N25: =Расчет!P260 -> 2203.482017 | O25: =Расчет!Q260 -> 1934.471683 | P25: =Расчет!R260 -> 1645.285573 | Q25: =Расчет!S260 -> 1334.410505 | R25: =Расчет!T260 -> 1000.219807 | S25: =Расчет!U260 -> 640.964807 | T25: =Расчет!V260 -> 254.7656817 | U25: =Расчет!W260 -> 0 | V25: =Расчет!X260 -> 0 | W25: =Расчет!Y260 -> 0 | X25: =Расчет!Z260 -> 0 | Y25: =Расчет!AA260 -> 0
A26: =ROW()-ROW(БДДС[#Headers]) -> 24 | B26: 24 | C26: Финансовые меры поддержки | E26: =SUM(БДДС[[#This Row],[2021]:[2041-20'#'#]]) -> 30085.84372 | F26: =SUM(F27:F28) -> 0 | G26: =SUM(G27:G28) -> 0 | H26: 0 | I26: 0 | J26: 0 | K26: 4821.482178 | L26: 6570.301303 | M26: 6940.557294 | N26: 5781.623085 | O26: 2205.317039 | P26: 1055.127192 | Q26: 910.136429 | R26: 759.3460356 | S26: 602.5240266 | T26: 439.4291372 | U26: 0 | V26: 0 | W26: 0 | X26: 0 | Y26: 0 | Z26: 0
A27: =ROW()-ROW(БДДС[#Headers]) -> 25 | B27: 25 | C27: Субсидии на % по кредиту | D27: Государственная субсидия, возмещение затрат по процентам | E27: =SUM(БДДС[[#This Row],[2021]:[2041-20'#'#]]) -> 11029.21624 | F27: 0 | G27: 0 | H27: 0 | I27: 0 | J27: 0 | K27: 1700.600307 | L27: 1581.428469 | M27: 1457.489758 | N27: 1328.593497 | O27: 1194.541387 | P27: 1055.127192 | Q27: 910.136429 | R27: 759.3460356 | S27: 602.5240266 | T27: 439.4291372 | U27: 0 | V27: 0 | W27: 0 | X27: 0 | Y27: 0 | Z27: 0
A28: =ROW()-ROW(БДДС[#Headers]) -> 26 | B28: 26 | C28: Прочие меры поддержки | D28: Неналоговые меры поддержки по проекту | E28: =SUM(БДДС[[#This Row],[2021]:[2041-20'#'#]]) -> 19056.62748 | F28: 0 | G28: 0 | H28: 0 | I28: 0 | J28: 0 | K28: 3120.88187 | L28: 4988.872833 | M28: 5483.067536 | N28: 4453.029588 | O28: 1010.775652 | P28: 0 | Q28: 0 | R28: 0 | S28: 0 | T28: 0 | U28: 0 | V28: 0 | W28: 0 | X28: 0 | Y28: 0 | Z28: 0
A29: =ROW()-ROW(БДДС[#Headers]) -> 27 | B29: 27 | C29: Налоговые поступления без мер | D29: Налоговые поступления, рассчитанные без учёта мер гос. поддержки | E29: =SUM(БДДС[[#This Row],[2021]:[2041-20'#'#]]) -> 115792.6381 | F29: =F30 + F36 + F42 -> 138.4137754 | G29: =G30 + G36 + G42 -> 362.6031461 | H29: 130.9039957 | I29: 284.7927631 | J29: -65.35434441 | K29: 4427.005508 | L29: 6082.504909 | M29: 6308.235735 | N29: 6547.780384 | O29: 6801.813621 | P29: 7071.046365 | Q29: 7356.227829 | R29: 7658.147784 | S29: 7977.638977 | T29: 8315.57971 | U29: 8640.816897 | V29: 8929.227416 | W29: 9252.537498 | X29: 9603.169144 | Y29: 9969.547022 | Z29: 0
A30: =ROW()-ROW(БДДС[#Headers]) -> 28 | B30: 28 | C30: Федеральный бюджет | E30: =SUM(БДДС[[#This Row],[2021]:[2041-20'#'#]]) -> 66582.87073 | F30: =SUBTOTAL(9,F31:F35) -> 138.4137754 | G30: =SUBTOTAL(9,G31:G35) -> 362.6031461 | H30: 130.9039957 | I30: 284.7927631 | J30: -65.35434441 | K30: 2406.102337 | L30: 3385.733307 | M30: 3534.589652 | N30: 3689.484321 | O30: 3850.671069 | P30: 4018.414716 | Q30: 4192.991662 | R30: 4374.690421 | S30: 4563.812185 | T30: 4760.671422 | U30: 4962.388522 | V30: 5166.796302 | W30: 5381.322319 | X30: 5605.473904 | Y30: 5838.369262 | Z30: 0
A31: =ROW()-ROW(БДДС[#Headers]) -> 29 | B31: 29 | C31: НДС | E31: =SUM(БДДС[[#This Row],[2021]:[2041-20'#'#]]) -> 61615.52919 | F31: =Расчет!H$671 -> 138.4137754 | G31: =Расчет!I$671 -> 362.6031461 | H31: =Расчет!J$671 -> 130.9039957 | I31: =Расчет!K$671 -> 284.7927631 | J31: =Расчет!L$671 -> -65.35434441 | K31: =Расчет!M$671 -> 2225.787992 | L31: =Расчет!N$671 -> 3200.233221 | M31: =Расчет!O$671 -> 3328.242549 | N31: =Расчет!P$671 -> 3461.372251 | O31: =Расчет!Q$671 -> 3599.827142 | P31: =Расчет!R$671 -> 3743.820227 | Q31: =Расчет!S$671 -> 3893.573036 | R31: =Расчет!T$671 -> 4049.315958 | S31: =Расчет!U$671 -> 4211.288596 | T31: =Расчет!V$671 -> 4379.74014 | U31: =Расчет!W$671 -> 4554.929745 | V31: =Расчет!X$671 -> 4737.126935 | W31: =Расчет!Y$671 -> 4926.612013 | X31: =Расчет!Z$671 -> 5123.676493 | Y31: =Расчет!AA$671 -> 5328.623553
A32: =ROW()-ROW(БДДС[#Headers]) -> 30 | B32: 30 | C32: Акцизы | E32: =SUM(БДДС[[#This Row],[2021]:[2041-20'#'#]]) -> 0 | F32: =Расчет!H$672 -> 0 | G32: =Расчет!I$672 -> 0 | H32: =Расчет!J$672 -> 0 | I32: =Расчет!K$672 -> 0 | J32: =Расчет!L$672 -> 0 | K32: =Расчет!M$672 -> 0 | L32: =Расчет!N$672 -> 0 | M32: =Расчет!O$672 -> 0 | N32: =Расчет!P$672 -> 0 | O32: =Расчет!Q$672 -> 0 | P32: =Расчет!R$672 -> 0 | Q32: =Расчет!S$672 -> 0 | R32: =Расчет!T$672 -> 0 | S32: =Расчет!U$672 -> 0 | T32: =Расчет!V$672 -> 0 | U32: =Расчет!W$672 -> 0 | V32: =Расчет!X$672 -> 0 | W32: =Расчет!Y$672 -> 0 | X32: =Расчет!Z$672 -> 0 | Y32: =Расчет!AA$672 -> 0
A33: =ROW()-ROW(БДДС[#Headers]) -> 31 | B33: 31 | C33: Налог на прибыль | E33: =SUM(БДДС[[#This Row],[2021]:[2041-20'#'#]]) -> 4284.578973 | F33: =Расчет!H$673 -> 0 | G33: =Расчет!I$673 -> 0 | H33: =Расчет!J$673 -> 0 | I33: =Расчет!K$673 -> 0 | J33: =Расчет!L$673 -> 0 | K33: =Расчет!M$673 -> 146.2164315 | L33: =Расчет!N$673 -> 150.0382553 | M33: =Расчет!O$673 -> 169.466798 | N33: =Расчет!P$673 -> 189.7565531 | O33: =Расчет!Q$673 -> 210.9541903 | P33: =Расчет!R$673 -> 233.1091626 | Q33: =Расчет!S$673 -> 256.2738864 | R33: =Расчет!T$673 -> 280.503934 | S33: =Расчет!U$673 -> 305.8582393 | T33: =Расчет!V$673 -> 332.3993177 | U33: =Расчет!W$673 -> 356.9855334 | V33: =Расчет!X$673 -> 377.1771938 | W33: =Расчет!Y$673 -> 400.1184466 | X33: =Расчет!Z$673 -> 425.0218773 | Y33: =Расчет!AA$673 -> 450.6991537
A34: =ROW()-ROW(БДДС[#Headers]) -> 32 | B34: 32 | C34: НДПИ | E34: =SUM(БДДС[[#This Row],[2021]:[2041-20'#'#]]) -> 0 | F34: =Расчет!H$674 -> 0 | G34: =Расчет!I$674 -> 0 | H34: =Расчет!J$674 -> 0 | I34: =Расчет!K$674 -> 0 | J34: =Расчет!L$674 -> 0 | K34: =Расчет!M$674 -> 0 | L34: =Расчет!N$674 -> 0 | M34: =Расчет!O$674 -> 0 | N34: =Расчет!P$674 -> 0 | O34: =Расчет!Q$674 -> 0 | P34: =Расчет!R$674 -> 0 | Q34: =Расчет!S$674 -> 0 | R34: =Расчет!T$674 -> 0 | S34: =Расчет!U$674 -> 0 | T34: =Расчет!V$674 -> 0 | U34: =Расчет!W$674 -> 0 | V34: =Расчет!X$674 -> 0 | W34: =Расчет!Y$674 -> 0 | X34: =Расчет!Z$674 -> 0 | Y34: =Расчет!AA$674 -> 0
A35: =ROW()-ROW(БДДС[#Headers]) -> 33 | B35: 33 | C35: Прочие | E35: =SUM(БДДС[[#This Row],[2021]:[2041-20'#'#]]) -> 682.7625741 | F35: =Расчет!H$675 -> 0 | G35: =Расчет!I$675 -> 0 | H35: =Расчет!J$675 -> 0 | I35: =Расчет!K$675 -> 0 | J35: =Расчет!L$675 -> 0 | K35: =Расчет!M$675 -> 34.09791424 | L35: =Расчет!N$675 -> 35.46183081 | M35: =Расчет!O$675 -> 36.88030404 | N35: =Расчет!P$675 -> 38.35551621 | O35: =Расчет!Q$675 -> 39.88973685 | P35: =Расчет!R$675 -> 41.48532633 | Q35: =Расчет!S$675 -> 43.14473938 | R35: =Расчет!T$675 -> 44.87052896 | S35: =Расчет!U$675 -> 46.66535012 | T35: =Расчет!V$675 -> 48.53196412 | U35: =Расчет!W$675 -> 50.47324269 | V35: =Расчет!X$675 -> 52.49217239 | W35: =Расчет!Y$675 -> 54.59185929 | X35: =Расчет!Z$675 -> 56.77553366 | Y35: =Расчет!AA$675 -> 59.04655501
A36: =ROW()-ROW(БДДС[#Headers]) -> 34 | B36: 34 | C36: Региональный бюджет | E36: =SUM(БДДС[[#This Row],[2021]:[2041-20'#'#]]) -> 49180.18102 | F36: =SUBTOTAL(9,F37:F41) -> 0 | G36: =SUBTOTAL(9,G37:G41) -> 0 | H36: 0 | I36: 0 | J36: 0 | K36: 2019.425594 | L36: 2695.234923 | M36: 2772.047937 | N36: 2856.633991 | O36: 2949.413997 | P36: 3050.833952 | Q36: 3161.366562 | R36: 3281.512973 | S36: 3411.804627 | T36: 3552.805237 | U36: 3676.241202 | V36: 3760.156454 | W36: 3868.849532 | X36: 3995.234966 | Y36: 4128.619077 | Z36: 0
A37: =ROW()-ROW(БДДС[#Headers]) -> 35 | B37: 35 | C37: Налог на имущество организаций | E37: =SUM(БДДС[[#This Row],[2021]:[2041-20'#'#]]) -> 10352.69286 | F37: =Расчет!H$679 -> 0 | G37: =Расчет!I$679 -> 0 | H37: =Расчет!J$679 -> 0 | I37: =Расчет!K$679 -> 0 | J37: =Расчет!L$679 -> 0 | K37: =Расчет!M$679 -> 690.1795242 | L37: =Расчет!N$679 -> 1331.060511 | M37: =Расчет!O$679 -> 1232.463436 | N37: =Расчет!P$679 -> 1133.866361 | O37: =Расчет!Q$679 -> 1035.269286 | P37: =Расчет!R$679 -> 936.6722114 | Q37: =Расчет!S$679 -> 838.0751365 | R37: =Расчет!T$679 -> 739.4780616 | S37: =Расчет!U$679 -> 640.8809867 | T37: =Расчет!V$679 -> 542.2839118 | U37: =Расчет!W$679 -> 443.686837 | V37: =Расчет!X$679 -> 345.0897621 | W37: =Расчет!Y$679 -> 246.4926872 | X37: =Расчет!Z$679 -> 147.8956123 | Y37: =Расчет!AA$679 -> 49.29853744
A38: =ROW()-ROW(БДДС[#Headers]) -> 36 | B38: 37 | C38: Налог на прибыль | E38: =SUM(БДДС[[#This Row],[2021]:[2041-20'#'#]]) -> 38561.21076 | F38: =Расчет!H$680 -> 0 | G38: =Расчет!I$680 -> 0 | H38: =Расчет!J$680 -> 0 | I38: =Расчет!K$680 -> 0 | J38: =Расчет!L$680 -> 0 | K38: =Расчет!M$680 -> 1315.947883 | L38: =Расчет!N$680 -> 1350.344298 | M38: =Расчет!O$680 -> 1525.201182 | N38: =Расчет!P$680 -> 1707.808978 | O38: =Расчет!Q$680 -> 1898.587713 | P38: =Расчет!R$680 -> 2097.982463 | Q38: =Расчет!S$680 -> 2306.464977 | R38: =Расчет!T$680 -> 2524.535406 | S38: =Расчет!U$680 -> 2752.724154 | T38: =Расчет!V$680 -> 2991.593859 | U38: =Расчет!W$680 -> 3212.8698 | V38: =Расчет!X$680 -> 3394.594745 | W38: =Расчет!Y$680 -> 3601.06602 | X38: =Расчет!Z$680 -> 3825.196896 | Y38: =Расчет!AA$680 -> 4056.292383
A39: =ROW()-ROW(БДДС[#Headers]) -> 37 | B39: 38 | C39: НДФЛ | E39: =SUM(БДДС[[#This Row],[2021]:[2041-20'#'#]]) -> 266.2774039 | F39: =Расчет!H$681 -> 0 | G39: =Расчет!I$681 -> 0 | H39: =Расчет!J$681 -> 0 | I39: =Расчет!K$681 -> 0 | J39: =Расчет!L$681 -> 0 | K39: =Расчет!M$681 -> 13.29818655 | L39: =Расчет!N$681 -> 13.83011402 | M39: =Расчет!O$681 -> 14.38331858 | N39: =Расчет!P$681 -> 14.95865132 | O39: =Расчет!Q$681 -> 15.55699737 | P39: =Расчет!R$681 -> 16.17927727 | Q39: =Расчет!S$681 -> 16.82644836 | R39: =Расчет!T$681 -> 17.49950629 | S39: =Расчет!U$681 -> 18.19948655 | T39: =Расчет!V$681 -> 18.92746601 | U39: =Расчет!W$681 -> 19.68456465 | V39: =Расчет!X$681 -> 20.47194723 | W39: =Расчет!Y$681 -> 21.29082512 | X39: =Расчет!Z$681 -> 22.14245813 | Y39: =Расчет!AA$681 -> 23.02815645
A40: =ROW()-ROW(БДДС[#Headers]) -> 38 | B40: 39 | C40: НДПИ | E40: =SUM(БДДС[[#This Row],[2021]:[2041-20'#'#]]) -> 0 | F40: =Расчет!H$682 -> 0 | G40: =Расчет!I$682 -> 0 | H40: =Расчет!J$682 -> 0 | I40: =Расчет!K$682 -> 0 | J40: =Расчет!L$682 -> 0 | K40: =Расчет!M$682 -> 0 | L40: =Расчет!N$682 -> 0 | M40: =Расчет!O$682 -> 0 | N40: =Расчет!P$682 -> 0 | O40: =Расчет!Q$682 -> 0 | P40: =Расчет!R$682 -> 0 | Q40: =Расчет!S$682 -> 0 | R40: =Расчет!T$682 -> 0 | S40: =Расчет!U$682 -> 0 | T40: =Расчет!V$682 -> 0 | U40: =Расчет!W$682 -> 0 | V40: =Расчет!X$682 -> 0 | W40: =Расчет!Y$682 -> 0 | X40: =Расчет!Z$682 -> 0 | Y40: =Расчет!AA$682 -> 0
A41: =ROW()-ROW(БДДС[#Headers]) -> 39 | B41: 40 | C41: Прочие | E41: =SUM(БДДС[[#This Row],[2021]:[2041-20'#'#]]) -> 0 | F41: =Расчет!H$683 -> 0 | G41: =Расчет!I$683 -> 0 | H41: =Расчет!J$683 -> 0 | I41: =Расчет!K$683 -> 0 | J41: =Расчет!L$683 -> 0 | K41: =Расчет!M$683 -> 0 | L41: =Расчет!N$683 -> 0 | M41: =Расчет!O$683 -> 0 | N41: =Расчет!P$683 -> 0 | O41: =Расчет!Q$683 -> 0 | P41: =Расчет!R$683 -> 0 | Q41: =Расчет!S$683 -> 0 | R41: =Расчет!T$683 -> 0 | S41: =Расчет!U$683 -> 0 | T41: =Расчет!V$683 -> 0 | U41: =Расчет!W$683 -> 0 | V41: =Расчет!X$683 -> 0 | W41: =Расчет!Y$683 -> 0 | X41: =Расчет!Z$683 -> 0 | Y41: =Расчет!AA$683 -> 0
A42: =ROW()-ROW(БДДС[#Headers]) -> 40 | B42: 41 | C42: Местный бюджет (справочно) | E42: =SUM(БДДС[[#This Row],[2021]:[2041-20'#'#]]) -> 29.58637821 | F42: =Расчет!H689 -> 0 | G42: =Расчет!I689 -> 0 | H42: =Расчет!J689 -> 0 | I42: =Расчет!K689 -> 0 | J42: =Расчет!L689 -> 0 | K42: =Расчет!M689 -> 1.477576284 | L42: =Расчет!N689 -> 1.536679335 | M42: =Расчет!O689 -> 1.598146509 | N42: =Расчет!P689 -> 1.662072369 | O42: =Расчет!Q689 -> 1.728555264 | P42: =Расчет!R689 -> 1.797697474 | Q42: =Расчет!S689 -> 1.869605373 | R42: =Расчет!T689 -> 1.944389588 | S42: =Расчет!U689 -> 2.022165172 | T42: =Расчет!V689 -> 2.103051779 | U42: =Расчет!W689 -> 2.18717385 | V42: =Расчет!X689 -> 2.274660804 | W42: =Расчет!Y689 -> 2.365647236 | X42: =Расчет!Z689 -> 2.460273125 | Y42: =Расчет!AA689 -> 2.55868405
A43: =ROW()-ROW(БДДС[#Headers]) -> 41 | B43: 42 | C43: Налоговые поступления с мерами | D43: Налоговые поступления, рассчитанные с учётом мер гос. поддержки | E43: =SUM(БДДС[[#This Row],[2021]:[2041-20'#'#]]) -> 109750.4802 | F43: =F44 + F50 + F56 -> 138.4137754 | G43: =G44 + G50 + G56 -> 362.6031461 | H43: 130.9039957 | I43: 284.7927631 | J43: -65.35434441 | K43: 4191.135069 | L43: 5316.774293 | M43: 5602.025377 | N43: 5898.686504 | O43: 6207.214077 | P43: 6528.082752 | Q43: 6861.786174 | R43: 7208.837733 | S43: 7569.771355 | T43: 7945.142321 | U43: 8321.340424 | V43: 8688.628603 | W43: 9086.559585 | X43: 9514.649971 | Y43: 9958.48659 | Z43: 0
A44: =ROW()-ROW(БДДС[#Headers]) -> 42 | B44: 43 | C44: Федеральный бюджет | E44: =SUM(БДДС[[#This Row],[2021]:[2041-20'#'#]]) -> 67013.92422 | F44: =SUBTOTAL(9,F45:F49) -> 138.4137754 | G44: =SUBTOTAL(9,G45:G49) -> 362.6031461 | H44: 130.9039957 | I44: 284.7927631 | J44: -65.35434441 | K44: 2451.533246 | L44: 3442.266296 | M44: 3587.214959 | N44: 3737.961569 | O44: 3894.738043 | P44: 4057.785576 | Q44: 4227.35501 | R44: 4403.707222 | S44: 4587.113522 | T44: 4777.856074 | U44: 4974.809558 | V44: 5177.245396 | W44: 5389.373796 | X44: 5611.411548 | Y44: 5842.193072 | Z44: =SUBTOTAL(9,Z45:Z49) -> 0
A45: =ROW()-ROW(БДДС[#Headers]) -> 43 | B45: 44 | C45: НДС | E45: =SUM(БДДС[[#This Row],[2021]:[2041-20'#'#]]) -> 61615.52919 | F45: 138.4137754 | G45: 362.6031461 | H45: 130.9039957 | I45: 284.7927631 | J45: -65.35434441 | K45: 2225.787992 | L45: 3200.233221 | M45: 3328.242549 | N45: 3461.372251 | O45: 3599.827142 | P45: 3743.820227 | Q45: 3893.573036 | R45: 4049.315958 | S45: 4211.288596 | T45: 4379.74014 | U45: 4554.929745 | V45: 4737.126935 | W45: 4926.612013 | X45: 5123.676493 | Y45: 5328.623553
A46: =ROW()-ROW(БДДС[#Headers]) -> 44 | B46: 45 | C46: Акцизы | E46: =SUM(БДДС[[#This Row],[2021]:[2041-20'#'#]]) -> 0 | F46: 0 | G46: 0 | H46: 0 | I46: 0 | J46: 0 | K46: 0 | L46: 0 | M46: 0 | N46: 0 | O46: 0 | P46: 0 | Q46: 0 | R46: 0 | S46: 0 | T46: 0 | U46: 0 | V46: 0 | W46: 0 | X46: 0 | Y46: 0
A47: =ROW()-ROW(БДДС[#Headers]) -> 45 | B47: 46 | C47: Налог на прибыль | E47: =SUM(БДДС[[#This Row],[2021]:[2041-20'#'#]]) -> 4715.632462 | F47: 0 | G47: 0 | H47: 0 | I47: 0 | J47: 0 | K47: 191.64734 | L47: 206.5712448 | M47: 222.0921058 | N47: 238.2338013 | O47: 255.0211646 | P47: 272.4800224 | Q47: 290.6372345 | R47: 309.5207351 | S47: 329.1595757 | T47: 349.58397 | U47: 369.4065698 | V47: 387.6262888 | W47: 408.1699241 | X47: 430.9595213 | Y47: 454.5229641
A48: =ROW()-ROW(БДДС[#Headers]) -> 46 | B48: 47 | C48: НДПИ | E48: =SUM(БДДС[[#This Row],[2021]:[2041-20'#'#]]) -> 0 | F48: 0 | G48: 0 | H48: 0 | I48: 0 | J48: 0 | K48: 0 | L48: 0 | M48: 0 | N48: 0 | O48: 0 | P48: 0 | Q48: 0 | R48: 0 | S48: 0 | T48: 0 | U48: 0 | V48: 0 | W48: 0 | X48: 0 | Y48: 0
A49: =ROW()-ROW(БДДС[#Headers]) -> 47 | B49: 48 | C49: Прочие | E49: =SUM(БДДС[[#This Row],[2021]:[2041-20'#'#]]) -> 682.7625741 | F49: 0 | G49: 0 | H49: 0 | I49: 0 | J49: 0 | K49: 34.09791424 | L49: 35.46183081 | M49: 36.88030404 | N49: 38.35551621 | O49: 39.88973685 | P49: 41.48532633 | Q49: 43.14473938 | R49: 44.87052896 | S49: 46.66535012 | T49: 48.53196412 | U49: 50.47324269 | V49: 52.49217239 | W49: 54.59185929 | X49: 56.77553366 | Y49: 59.04655501
A50: =ROW()-ROW(БДДС[#Headers]) -> 48 | B50: 49 | C50: Региональный бюджет | E50: =SUM(БДДС[[#This Row],[2021]:[2041-20'#'#]]) -> 42706.96956 | F50: =SUBTOTAL(9,F51:F55) -> 0 | G50: =SUBTOTAL(9,G51:G55) -> 0 | H50: 0 | I50: 0 | J50: 0 | K50: 1738.124247 | L50: 1872.971317 | M50: 2013.212271 | N50: 2159.062863 | O50: 2310.747478 | P50: 2468.499479 | Q50: 2632.561559 | R50: 2803.186122 | S50: 2980.635668 | T50: 3165.183196 | U50: 3344.343693 | V50: 3509.108546 | W50: 3694.820142 | X50: 3900.77815 | Y50: 4113.734834 | Z50: =SUBTOTAL(9,Z51:Z55) -> 0
A51: =ROW()-ROW(БДДС[#Headers]) -> 49 | B51: 50 | C51: Налог на имущество организаций | E51: =SUM(БДДС[[#This Row],[2021]:[2041-20'#'#]]) -> 0 | F51: 0 | G51: 0 | H51: 0 | I51: 0 | J51: 0 | K51: 0 | L51: 0 | M51: 0 | N51: 0 | O51: 0 | P51: 0 | Q51: 0 | R51: 0 | S51: 0 | T51: 0 | U51: 0 | V51: 0 | W51: 0 | X51: 0 | Y51: 0
A52: =ROW()-ROW(БДДС[#Headers]) -> 50 | B52: 52 | C52: Налог на прибыль | E52: =SUM(БДДС[[#This Row],[2021]:[2041-20'#'#]]) -> 42440.69216 | F52: 0 | G52: 0 | H52: 0 | I52: 0 | J52: 0 | K52: 1724.82606 | L52: 1859.141203 | M52: 1998.828953 | N52: 2144.104212 | O52: 2295.190481 | P52: 2452.320201 | Q52: 2615.73511 | R52: 2785.686616 | S52: 2962.436181 | T52: 3146.25573 | U52: 3324.659128 | V52: 3488.636599 | W52: 3673.529317 | X52: 3878.635692 | Y52: 4090.706677
A53: =ROW()-ROW(БДДС[#Headers]) -> 51 | B53: 53 | C53: НДФЛ | E53: =SUM(БДДС[[#This Row],[2021]:[2041-20'#'#]]) -> 266.2774039 | F53: 0 | G53: 0 | H53: 0 | I53: 0 | J53: 0 | K53: 13.29818655 | L53: 13.83011402 | M53: 14.38331858 | N53: 14.95865132 | O53: 15.55699737 | P53: 16.17927727 | Q53: 16.82644836 | R53: 17.49950629 | S53: 18.19948655 | T53: 18.92746601 | U53: 19.68456465 | V53: 20.47194723 | W53: 21.29082512 | X53: 22.14245813 | Y53: 23.02815645
A54: =ROW()-ROW(БДДС[#Headers]) -> 52 | B54: 54 | C54: НДПИ | E54: =SUM(БДДС[[#This Row],[2021]:[2041-20'#'#]]) -> 0 | F54: 0 | G54: 0 | H54: 0 | I54: 0 | J54: 0 | K54: 0 | L54: 0 | M54: 0 | N54: 0 | O54: 0 | P54: 0 | Q54: 0 | R54: 0 | S54: 0 | T54: 0 | U54: 0 | V54: 0 | W54: 0 | X54: 0 | Y54: 0
A55: =ROW()-ROW(БДДС[#Headers]) -> 53 | B55: 55 | C55: Прочие | E55: =SUM(БДДС[[#This Row],[2021]:[2041-20'#'#]]) -> 0 | F55: 0 | G55: 0 | H55: 0 | I55: 0 | J55: 0 | K55: 0 | L55: 0 | M55: 0 | N55: 0 | O55: 0 | P55: 0 | Q55: 0 | R55: 0 | S55: 0 | T55: 0 | U55: 0 | V55: 0 | W55: 0 | X55: 0 | Y55: 0
A56: =ROW()-ROW(БДДС[#Headers]) -> 54 | B56: 56 | C56: Местный бюджет (справочно) | E56: =SUM(БДДС[[#This Row],[2021]:[2041-20'#'#]]) -> 29.58637821 | F56: 0 | G56: 0 | H56: 0 | I56: 0 | J56: 0 | K56: 1.477576284 | L56: 1.536679335 | M56: 1.598146509 | N56: 1.662072369 | O56: 1.728555264 | P56: 1.797697474 | Q56: 1.869605373 | R56: 1.944389588 | S56: 2.022165172 | T56: 2.103051779 | U56: 2.18717385 | V56: 2.274660804 | W56: 2.365647236 | X56: 2.460273125 | Y56: 2.55868405
A57: =ROW()-ROW(БДДС[#Headers]) -> 55 | B57: 57 | C57: Разница налоговых поступлений | E57: =SUM(БДДС[[#This Row],[2021]:[2041-20'#'#]]) -> -6042.15797 | F57: =F43 - F29 -> 0 | G57: =G43 - G29 -> 0 | H57: 0 | I57: 0 | J57: 0 | K57: -235.8704392 | L57: -765.7306159 | M57: -706.2103577 | N57: -649.0938796 | O57: -594.5995439 | P57: -542.9636136 | Q57: -494.4416551 | R57: -449.3100503 | S57: -407.8676225 | T57: -370.437389 | U57: -319.4764729 | V57: -240.598813 | W57: -165.9779127 | X57: -88.51917262 | Y57: -11.06043258 | Z57: 0
A58: =ROW()-ROW(БДДС[#Headers]) -> 56 | B58: 58 | C58: Расходная часть бюджета | D58: Сумма всех налоговых и неналоговых мер гос. поддержки и выпадающих налогов уплачиваемых в рамках проекта | E58: =SUM(БДДС[[#This Row],[2021]:[2041-20'#'#]]) -> 36128.00169 | F58: =F26 - F57 -> 0 | G58: =G26 - G57 -> 0 | H58: 0 | I58: 0 | J58: 0 | K58: 5057.352617 | L58: 7336.031918 | M58: 7646.767652 | N58: 6430.716965 | O58: 2799.916583 | P58: 1598.090805 | Q58: 1404.578084 | R58: 1208.656086 | S58: 1010.391649 | T58: 809.8665262 | U58: 319.4764729 | V58: 240.598813 | W58: 165.9779127 | X58: 88.51917262 | Y58: 11.06043258 | Z58: 0
A59: =ROW()-ROW(БДДС[#Headers]) -> 57 | B59: 59 | C59: Чистый бюджетный эффект | E59: =SUM(БДДС[[#This Row],[2021]:[2041-20'#'#]]) -> 79664.63645 | F59: =F29 - F58 -> 138.4137754 | G59: =G29 - G58 -> 362.6031461 | H59: 130.9039957 | I59: 284.7927631 | J59: -65.35434441 | K59: -630.3471091 | L59: -1253.52701 | M59: -1338.531917 | N59: 117.0634191 | O59: 4001.897038 | P59: 5472.95556 | Q59: 5951.649745 | R59: 6449.491698 | S59: 6967.247328 | T59: 7505.713184 | U59: 8321.340424 | V59: 8688.628603 | W59: 9086.559585 | X59: 9514.649971 | Y59: 9958.48659 | Z59: 0
B60: Не изменять
A64: НЕ УДАЛЯТЬ | E64: =БДДС[#Headers] -> Всего | F64: =БДДС[#Headers] -> 2021 | G64: =БДДС[#Headers] -> 2022 | H64: =БДДС[#Headers] -> 2023 | I64: =БДДС[#Headers] -> 2024 | J64: =БДДС[#Headers] -> 2025 | K64: =БДДС[#Headers] -> 2026 | L64: =БДДС[#Headers] -> 2027 | M64: =БДДС[#Headers] -> 2028 | N64: =БДДС[#Headers] -> 2029 | O64: =БДДС[#Headers] -> 2030 | P64: =БДДС[#Headers] -> 2031 | Q64: =БДДС[#Headers] -> 2032 | R64: =БДДС[#Headers] -> 2033 | S64: =БДДС[#Headers] -> 2034 | T64: =БДДС[#Headers] -> 2035 | U64: =БДДС[#Headers] -> 2036 | V64: =БДДС[#Headers] -> 2037 | W64: =БДДС[#Headers] -> 2038 | X64: =БДДС[#Headers] -> 2039 | Y64: =БДДС[#Headers] -> 2040 | Z64: =БДДС[#Headers] -> 2041-20##
B65: 25 | C65: Субсидии на % по кредиту | E65: =SUM(F65:Z65) -> 2.273736754e-13 | F65: =- Расчет!H363 -> 0 | G65: =- Расчет!I363 -> 0 | H65: =- Расчет!J363 -> 0 | I65: =- Расчет!K363 -> 0 | J65: =- Расчет!L363 -> 0 | K65: =- Расчет!M363 -> 0 | L65: =- Расчет!N363 -> 0 | M65: =- Расчет!O363 -> 0 | N65: =- Расчет!P363 -> 0 | O65: =- Расчет!Q363 -> 0 | P65: =- Расчет!R363 -> 0 | Q65: =- Расчет!S363 -> 0 | R65: =- Расчет!T363 -> 0 | S65: =- Расчет!U363 -> 2.273736754e-13 | T65: =- Расчет!V363 -> 0 | U65: =- Расчет!W363 -> 0 | V65: =- Расчет!X363 -> 0 | W65: =- Расчет!Y363 -> 0 | X65: =- Расчет!Z363 -> 0 | Y65: =- Расчет!AA363 -> 0 | Z65: =SUM(Расчет!AB363:AU363) -> 0
C66: Прочие меры поддержки | E66: =SUM(F66:Z66) -> 0 | F66: =Расчет!H26 + Расчет!H27 -> 0 | G66: =Расчет!I26 + Расчет!I27 -> 0 | H66: =Расчет!J26 + Расчет!J27 -> 0 | I66: =Расчет!K26 + Расчет!K27 -> 0 | J66: =Расчет!L26 + Расчет!L27 -> 0 | K66: =Расчет!M26 + Расчет!M27 -> 0 | L66: =Расчет!N26 + Расчет!N27 -> 0 | M66: =Расчет!O26 + Расчет!O27 -> 0 | N66: =Расчет!P26 + Расчет!P27 -> 0 | O66: =Расчет!Q26 + Расчет!Q27 -> 0 | P66: =Расчет!R26 + Расчет!R27 -> 0 | Q66: =Расчет!S26 + Расчет!S27 -> 0 | R66: =Расчет!T26 + Расчет!T27 -> 0 | S66: =Расчет!U26 + Расчет!U27 -> 0 | T66: =Расчет!V26 + Расчет!V27 -> 0 | U66: =Расчет!W26 + Расчет!W27 -> 0 | V66: =Расчет!X26 + Расчет!X27 -> 0 | W66: =Расчет!Y26 + Расчет!Y27 -> 0 | X66: =Расчет!Z26 + Расчет!Z27 -> 0 | Y66: =Расчет!AA26 + Расчет!AA27 -> 0 | Z66: =SUM(Расчет!AB26:AU27) -> 0

Sheet Контроль
B1: Панель управления финансовой моделью | C1: Лист: | D1: =MID(CELL("filename", A1), FIND("]", CELL("filename", A1))+1, 255) -> Контроль | E1: К содержанию
C2: Проверки: | D2: =Расчет!E797 * Отчеты!E93 * Вводные!C130 -> 1 | I2: Основные сценарии
E4: =INDEX(4:4, 1, COLUMN() + $E$5 +3) -> Без мер | I4: Без мер | J4: С мерами
B5: Номер активного сценария | E5: 1 | I5: =COLUMN() - COLUMN($E$5) - 3 -> 1 | J5: =COLUMN() - COLUMN($E$5) - 3 -> 2 | K5: =COLUMN() - COLUMN($E$5) - 3 -> 3 | L5: 4
B6: Альтернативный сценарий | E6: 2
B8: Возмещение инфраструктуры по СЗПК
B9: Механиз возмещения инвестиций | E9: =OFFSET(I9,, $E$5 - 1) -> 0 | I9: 0 | J9: 1 | K9: 1 | L9: 1
B10: Начало возмещения ивестиций с года номер | E10: =OFFSET(I10,, $E$5 - 1) -> 0 | J10: 1 | K10: 2 | L10: 3
B11: Cрок возмещения
B12: обеспечивающая инфраструктура | D12: лет | E12: =OFFSET(I12,, $E$5 - 1) -> 0 | J12: 5 | K12: 5 | L12: 5
B13: сопутствующая инфраструктура | D13: лет | E13: 0 | J13: 10 | K13: 10 | L13: 10
B14: Доля возмещения
B15: обеспечивающая инфраструктура | D15: (%) | E15: =OFFSET(I15,, $E$5 - 1) -> 0 | J15: 0.5 | K15: 0.5 | L15: 0.5
B16: сопутствующая инфраструктура | D16: (%) | E16: 0 | J16: 1 | K16: 1 | L16: 1
B17: Субсидии учитываются в базе по налогу на прибыль? | D17: флаг | E17: =OFFSET(I17,, $E$5 - 1) -> 0 | I17: 0 | J17: 0 | K17: 1 | L17: 0
B18: Прочие льготы
B19: Стоимость долга | D19: (%) | E19: =OFFSET(I19,, $E$5 - 1) -> 0.075 | I19: 0.075 | J19: 0.04 | K19: 0.04 | L19: 0.075
B20: Ставка налога на имущество | D20: (%) | E20: 0.022 | I20: 0.022 | J20: 0 | K20: 0 | L20: 0
A22: [НЕ УДАЛЯТЬ]
B24: Ключевые параметры проекта
B25: ВНД проекта | D25: (%) | E25: =Расчет!E814 -> 0.1603938282 | I25: 0.1603938282 | J25: 0.1914953411 | K25: 0.1854978979 | L25: 0.188486737
B26: ВНД акционерного капитала | D26: (%) | E26: =Расчет!E828 -> 0.2154357851 | I26: 0.2154357851 | J26: 0.2933736384 | K26: 0.2804691851 | L26: 0.2657210886
B27: DSCR min | D27: коэф | E27: =Результаты_1!D52 -> 1.169326247 | I27: 1.169326247 | J27: 2.123967002 | K27: 1.469446232 | L27: 1.264683122
B28: DSCR срзнач | D28: коэф | E28: =Результаты_1!D53 -> 2.474800453 | I28: 2.474800453 | J28: 3.51435357 | K28: 3.4344213 | L28: 2.929921475
B29: Стоимость проекта | D29: =smu -> млн руб. | E29: =Расчет!E811 -> 5192.69501 | I29: 5192.69501 | J29: 14139.82094 | K29: 12533.38751 | L29: 13528.16114
B30: Стоимость акционерного капитала | D30: =smu -> млн руб. | E30: =Расчет!E825 -> 3326.69472 | I30: 3326.69472 | J30: 11916.32711 | K30: 10673.75706 | L30: 9253.54852
B31: Окупаемость проекта | D31: лет | E31: =Расчет!E815 -> 10.19405588 | I31: 10.19405588 | J31: 8.747609984 | K31: 8.954233101 | L31: 8.772909012
B32: Окупаемость акционерных инвестиций | D32: лет | E32: =Расчет!E829 -> 9.386389963 | I32: 9.386389963 | J32: 7.467503649 | K32: 7.666932021 | L32: 7.912379369
B33: ОПиУ
B34: EBITDA | D34: =smu -> млн руб. | E34: =Отчеты!E49 -> 297724.9531 | I34: 297724.9531 | J34: 308077.6459 | K34: 308077.6459 | L34: 308077.6459
B35: Операционная прибыль до субсидий | D35: млн руб. | E35: =Отчеты!E52 -> 230499.6747 | I35: 230499.6747 | J35: 243512.8424 | K35: 243512.8424 | L35: 240852.3676
B36: Операционная прибыль после субсидий | D36: млн руб. | E36: =Отчеты!E56 -> 230499.6747 | I36: 230499.6747 | J36: 262569.4698 | K36: 262569.4698 | L36: 259908.9951
B37: Чистая прибыль | D37: млн руб. | E37: =Отчеты!E63 -> 171383.1589 | I37: 171383.1589 | J37: 207681.926 | K37: 203870.6005 | L37: 198721.9407
B38: Дивиденды | D38: млн руб. | E38: =Отчеты!E66 -> -171383.1589 | I38: -171383.1589 | J38: -207681.926 | K38: -203870.6005 | L38: -198721.9407
B39: Гос поддержка
B40: Субсидии из федерального бюджета | D40: =smu -> млн руб. | E40: =Отчеты!$E$32 -> 0 | I40: 0 | J40: 13074.18051 | K40: 13074.18051 | L40: 12958.86545
B41: Субсидии из регионального бюджета | D41: млн руб. | E41: =Отчеты!$E$33 -> 0 | I41: 0 | J41: 5982.446975 | K41: 5982.446975 | L41: 6097.762032
B42: Приведенный бюджетный эффект (NPV бюдж) | D42: млн руб. | E42: =Результаты_1!F154 -> 52269.34958 | I42: 52269.34958 | J42: 30643.91004 | K42: 33241.67602 | L42: 36333.60029
B43: Чистые дисконтированные расходы средств бюджетов РФ | D43: млн руб. | E43: =Расчет!E838 -> 9.412301112e-14 | I43: 9.412301112e-14 | J43: 17889.63268 | K43: 17718.87156 | L43: 11158.33526
A45: [НЕ УДАЛЯТЬ]

Sheet Графики
B1: Ключевые графики по проекту | C1: Лист: | D1: =MID(CELL("filename", A1), FIND("]", CELL("filename", A1))+1, 255) -> Графики | E1: К содержанию
C2: Проверки: | D2: =Контроль!$D$2 -> 1
B3: ВНД проекта | C3: =Расчет!E814 -> 0.1603938282

Sheet Вводные
B1: Основные допущения и вводные данные | C1: Лист: | D1: =MID(CELL("filename", A1), FIND("]", CELL("filename", A1))+1, 255) -> Вводные | E1: К содержанию
C2: Проверки: | D2: =Контроль!$D$2 -> 1
B4: Дата начала периода | H4: =IF(G5, G5 + 1, Вводные!$E$11) -> 2021-01-01 | I4: =IF(H5, H5 + 1, Вводные!$E$11) -> 2022-01-01 | J4: =IF(I5, I5 + 1, Вводные!$E$11) -> 2023-01-01 | K4: =IF(J5, J5 + 1, Вводные!$E$11) -> 2024-01-01 | L4: =IF(K5, K5 + 1, Вводные!$E$11) -> 2025-01-01 | M4: =IF(L5, L5 + 1, Вводные!$E$11) -> 2026-01-01 | N4: =IF(M5, M5 + 1, Вводные!$E$11) -> 2027-01-01 | O4: =IF(N5, N5 + 1, Вводные!$E$11) -> 2028-01-01 | P4: =IF(O5, O5 + 1, Вводные!$E$11) -> 2029-01-01 | Q4: =IF(P5, P5 + 1, Вводные!$E$11) -> 2030-01-01 | R4: =IF(Q5, Q5 + 1, Вводные!$E$11) -> 2031-01-01 | S4: =IF(R5, R5 + 1, Вводные!$E$11) -> 2032-01-01 | T4: =IF(S5, S5 + 1, Вводные!$E$11) -> 2033-01-01 | U4: =IF(T5, T5 + 1, Вводные!$E$11) -> 2034-01-01 | V4: =IF(U5, U5 + 1, Вводные!$E$11) -> 2035-01-01 | W4: =IF(V5, V5 + 1, Вводные!$E$11) -> 2036-01-01 | X4: =IF(W5, W5 + 1, Вводные!$E$11) -> 2037-01-01 | Y4: =IF(X5, X5 + 1, Вводные!$E$11) -> 2038-01-01 | Z4: =IF(Y5, Y5 + 1, Вводные!$E$11) -> 2039-01-01 | AA4: =IF(Z5, Z5 + 1, Вводные!$E$11) -> 2040-01-01 | AB4: =IF(AA5, AA5 + 1, Вводные!$E$11) -> 2041-01-01 | AC4: =IF(AB5, AB5 + 1, Вводные!$E$11) -> 2042-01-01 | AD4: =IF(AC5, AC5 + 1, Вводные!$E$11) -> 2043-01-01 | AE4: =IF(AD5, AD5 + 1, Вводные!$E$11) -> 2044-01-01 | AF4: =IF(AE5, AE5 + 1, Вводные!$E$11) -> 2045-01-01 | AG4: =IF(AF5, AF5 + 1, Вводные!$E$11) -> 2046-01-01 | AH4: =IF(AG5, AG5 + 1, Вводные!$E$11) -> 2047-01-01 | AI4: =IF(AH5, AH5 + 1, Вводные!$E$11) -> 2048-01-01 | AJ4: =IF(AI5, AI5 + 1, Вводные!$E$11) -> 2049-01-01 | AK4: =IF(AJ5, AJ5 + 1, Вводные!$E$11) -> 2050-01-01 | AL4: =IF(AK5, AK5 + 1, Вводные!$E$11) -> 2051-01-01 | AM4: =IF(AL5, AL5 + 1, Вводные!$E$11) -> 2052-01-01 | AN4: =IF(AM5, AM5 + 1, Вводные!$E$11) -> 2053-01-01 | AO4: =IF(AN5, AN5 + 1, Вводные!$E$11) -> 2054-01-01 | AP4: =IF(AO5, AO5 + 1, Вводные!$E$11) -> 2055-01-01 | AQ4: =IF(AP5, AP5 + 1, Вводные!$E$11) -> 2056-01-01 | AR4: =IF(AQ5, AQ5 + 1, Вводные!$E$11) -> 2057-01-01 | AS4: =IF(AR5, AR5 + 1, Вводные!$E$11) -> 2058-01-01 | AT4: =IF(AS5, AS5 + 1, Вводные!$E$11) -> 2059-01-01 | AU4: =IF(AT5, AT5 + 1, Вводные!$E$11) -> 2060-01-01
B5: Дата конца периода | H5: =EDATE(H4, Вводные!$E$15) - 1 -> 2021-12-31 | I5: =EDATE(I4, Вводные!$E$15) - 1 -> 2022-12-31 | J5: =EDATE(J4, Вводные!$E$15) - 1 -> 2023-12-31 | K5: =EDATE(K4, Вводные!$E$15) - 1 -> 2024-12-31 | L5: =EDATE(L4, Вводные!$E$15) - 1 -> 2025-12-31 | M5: =EDATE(M4, Вводные!$E$15) - 1 -> 2026-12-31 | N5: =EDATE(N4, Вводные!$E$15) - 1 -> 2027-12-31 | O5: =EDATE(O4, Вводные!$E$15) - 1 -> 2028-12-31 | P5: =EDATE(P4, Вводные!$E$15) - 1 -> 2029-12-31 | Q5: =EDATE(Q4, Вводные!$E$15) - 1 -> 2030-12-31 | R5: =EDATE(R4, Вводные!$E$15) - 1 -> 2031-12-31 | S5: =EDATE(S4, Вводные!$E$15) - 1 -> 2032-12-31 | T5: =EDATE(T4, Вводные!$E$15) - 1 -> 2033-12-31 | U5: =EDATE(U4, Вводные!$E$15) - 1 -> 2034-12-31 | V5: =EDATE(V4, Вводные!$E$15) - 1 -> 2035-12-31 | W5: =EDATE(W4, Вводные!$E$15) - 1 -> 2036-12-31 | X5: =EDATE(X4, Вводные!$E$15) - 1 -> 2037-12-31 | Y5: =EDATE(Y4, Вводные!$E$15) - 1 -> 2038-12-31 | Z5: =EDATE(Z4, Вводные!$E$15) - 1 -> 2039-12-31 | AA5: =EDATE(AA4, Вводные!$E$15) - 1 -> 2040-12-31 | AB5: =EDATE(AB4, Вводные!$E$15) - 1 -> 2041-12-31 | AC5: =EDATE(AC4, Вводные!$E$15) - 1 -> 2042-12-31 | AD5: =EDATE(AD4, Вводные!$E$15) - 1 -> 2043-12-31 | AE5: =EDATE(AE4, Вводные!$E$15) - 1 -> 2044-12-31 | AF5: =EDATE(AF4, Вводные!$E$15) - 1 -> 2045-12-31 | AG5: =EDATE(AG4, Вводные!$E$15) - 1 -> 2046-12-31 | AH5: =EDATE(AH4, Вводные!$E$15) - 1 -> 2047-12-31 | AI5: =EDATE(AI4, Вводные!$E$15) - 1 -> 2048-12-31 | AJ5: =EDATE(AJ4, Вводные!$E$15) - 1 -> 2049-12-31 | AK5: =EDATE(AK4, Вводные!$E$15) - 1 -> 2050-12-31 | AL5: =EDATE(AL4, Вводные!$E$15) - 1 -> 2051-12-31 | AM5: =EDATE(AM4, Вводные!$E$15) - 1 -> 2052-12-31 | AN5: =EDATE(AN4, Вводные!$E$15) - 1 -> 2053-12-31 | AO5: =EDATE(AO4, Вводные!$E$15) - 1 -> 2054-12-31 | AP5: =EDATE(AP4, Вводные!$E$15) - 1 -> 2055-12-31 | AQ5: =EDATE(AQ4, Вводные!$E$15) - 1 -> 2056-12-31 | AR5: =EDATE(AR4, Вводные!$E$15) - 1 -> 2057-12-31 | AS5: =EDATE(AS4, Вводные!$E$15) - 1 -> 2058-12-31 | AT5: =EDATE(AT4, Вводные!$E$15) - 1 -> 2059-12-31 | AU5: =EDATE(AU4, Вводные!$E$15) - 1 -> 2060-12-31
B6: Год | H6: =YEAR(H5) -> 2021 | I6: =YEAR(I5) -> 2022 | J6: 2023 | K6: 2024 | L6: 2025 | M6: 2026 | N6: 2027 | O6: 2028 | P6: 2029 | Q6: 2030 | R6: 2031 | S6: 2032 | T6: 2033 | U6: 2034 | V6: 2035 | W6: 2036 | X6: 2037 | Y6: 2038 | Z6: 2039 | AA6: 2040 | AB6: 2041 | AC6: 2042 | AD6: 2043 | AE6: 2044 | AF6: 2045 | AG6: 2046 | AH6: 2047 | AI6: 2048 | AJ6: 2049 | AK6: 2050 | AL6: 2051 | AM6: 2052 | AN6: 2053 | AO6: 2054 | AP6: 2055 | AQ6: 2056 | AR6: 2057 | AS6: 2058 | AT6: 2059 | AU6: 2060
B7: № периода | D7: ед. изм. | E7: итог | F7: имя | H7: =G7 + 1 -> 1 | I7: =H7 + 1 -> 2 | J7: 3 | K7: 4 | L7: 5 | M7: 6 | N7: 7 | O7: 8 | P7: 9 | Q7: 10 | R7: 11 | S7: 12 | T7: 13 | U7: 14 | V7: 15 | W7: 16 | X7: 17 | Y7: 18 | Z7: 19 | AA7: 20 | AB7: 21 | AC7: 22 | AD7: 23 | AE7: 24 | AF7: 25 | AG7: 26 | AH7: 27 | AI7: 28 | AJ7: 29 | AK7: 30 | AL7: 31 | AM7: 32 | AN7: 33 | AO7: 34 | AP7: 35 | AQ7: 36 | AR7: 37 | AS7: 38 | AT7: 39 | AU7: 40
A9: =MAX(A$1:A8) + 1 -> 1 | B9: Базис
B11: Дата старта модели | D11: дата | E11: 2021-01-01
B12: Макроэкономические данные с | D12: год | E12: 2016
B13: Месяцев в году | D13: мес. | E13: 12
B14: Кварталов в году | D14: шт. | E14: 4
B15: Месяцев в периоде | D15: мес. | E15: 12
B16: Длина периода | D16: лет | E16: =E15 / E13 -> 1
B17: Временной фактор (для расчета %% по долгу) | D17: (%) | E17: 0.5
B18: 1 сотня | E18: 100 | F18: hnd
B19: 1 тыс. | E19: 1000 | F19: thn
B20: 1 млн. | E20: 1000000 | F20: mln
B21: Точность | E21: 0.005 | F21: acc
B22: Для округления суммы долга | E22: -3 | F22: D_mat
B23: Стандартная денежная единица | E23: млн руб. | F23: smu
B24: Срок прогнозирования | D24: лет | E24: 20
B25: Срок строительства (реконструкции) | D25: лет | E25: 5
B26: Период эксплуатации | D26: лет | E26: =E24 - E25 -> 15
B27: Окончание периода эксплуатации | D27: год | E27: =MIN(D47:D51, D70:D74, D93:D97, D116:D120) + E24 - 1 -> 2040
A29: =MAX(A$1:A28) + 1 -> 2 | B29: Индексы
B31: ИПЦ | D31: (%) | H31: =IF(SUMIF(Прогнозы!$H$6:$AU$6, H$6, Прогнозы!$H20:$AU20), SUMIF(Прогнозы!$H$6:$AU$6, H$6, Прогнозы!$H20:$AU20) ^ $E$16, G31) -> 3.8 | I31: =IF(SUMIF(Прогнозы!$H$6:$AU$6, I$6, Прогнозы!$H20:$AU20), SUMIF(Прогнозы!$H$6:$AU$6, I$6, Прогнозы!$H20:$AU20) ^ $E$16, H31) -> 4 | J31: =IF(SUMIF(Прогнозы!$H$6:$AU$6, J$6, Прогнозы!$H20:$AU20), SUMIF(Прогнозы!$H$6:$AU$6, J$6, Прогнозы!$H20:$AU20) ^ $E$16, I31) -> 4 | K31: =IF(SUMIF(Прогнозы!$H$6:$AU$6, K$6, Прогнозы!$H20:$AU20), SUMIF(Прогнозы!$H$6:$AU$6, K$6, Прогнозы!$H20:$AU20) ^ $E$16, J31) -> 4 | L31: =IF(SUMIF(Прогнозы!$H$6:$AU$6, L$6, Прогнозы!$H20:$AU20), SUMIF(Прогнозы!$H$6:$AU$6, L$6, Прогнозы!$H20:$AU20) ^ $E$16, K31) -> 4 | M31: =IF(SUMIF(Прогнозы!$H$6:$AU$6, M$6, Прогнозы!$H20:$AU20), SUMIF(Прогнозы!$H$6:$AU$6, M$6, Прогнозы!$H20:$AU20) ^ $E$16, L31) -> 4 | N31: =IF(SUMIF(Прогнозы!$H$6:$AU$6, N$6, Прогнозы!$H20:$AU20), SUMIF(Прогнозы!$H$6:$AU$6, N$6, Прогнозы!$H20:$AU20) ^ $E$16, M31) -> 4 | O31: =IF(SUMIF(Прогнозы!$H$6:$AU$6, O$6, Прогнозы!$H20:$AU20), SUMIF(Прогнозы!$H$6:$AU$6, O$6, Прогнозы!$H20:$AU20) ^ $E$16, N31) -> 4 | P31: =IF(SUMIF(Прогнозы!$H$6:$AU$6, P$6, Прогнозы!$H20:$AU20), SUMIF(Прогнозы!$H$6:$AU$6, P$6, Прогнозы!$H20:$AU20) ^ $E$16, O31) -> 4 | Q31: =IF(SUMIF(Прогнозы!$H$6:$AU$6, Q$6, Прогнозы!$H20:$AU20), SUMIF(Прогнозы!$H$6:$AU$6, Q$6, Прогнозы!$H20:$AU20) ^ $E$16, P31) -> 4 | R31: =IF(SUMIF(Прогнозы!$H$6:$AU$6, R$6, Прогнозы!$H20:$AU20), SUMIF(Прогнозы!$H$6:$AU$6, R$6, Прогнозы!$H20:$AU20) ^ $E$16, Q31) -> 4 | S31: =IF(SUMIF(Прогнозы!$H$6:$AU$6, S$6, Прогнозы!$H20:$AU20), SUMIF(Прогнозы!$H$6:$AU$6, S$6, Прогнозы!$H20:$AU20) ^ $E$16, R31) -> 4 | T31: =IF(SUMIF(Прогнозы!$H$6:$AU$6, T$6, Прогнозы!$H20:$AU20), SUMIF(Прогнозы!$H$6:$AU$6, T$6, Прогнозы!$H20:$AU20) ^ $E$16, S31) -> 4 | U31: =IF(SUMIF(Прогнозы!$H$6:$AU$6, U$6, Прогнозы!$H20:$AU20), SUMIF(Прогнозы!$H$6:$AU$6, U$6, Прогнозы!$H20:$AU20) ^ $E$16, T31) -> 4 | V31: =IF(SUMIF(Прогнозы!$H$6:$AU$6, V$6, Прогнозы!$H20:$AU20), SUMIF(Прогнозы!$H$6:$AU$6, V$6, Прогнозы!$H20:$AU20) ^ $E$16, U31) -> 4 | W31: =IF(SUMIF(Прогнозы!$H$6:$AU$6, W$6, Прогнозы!$H20:$AU20), SUMIF(Прогнозы!$H$6:$AU$6, W$6, Прогнозы!$H20:$AU20) ^ $E$16, V31) -> 4 | X31: =IF(SUMIF(Прогнозы!$H$6:$AU$6, X$6, Прогнозы!$H20:$AU20), SUMIF(Прогнозы!$H$6:$AU$6, X$6, Прогнозы!$H20:$AU20) ^ $E$16, W31) -> 4 | Y31: =IF(SUMIF(Прогнозы!$H$6:$AU$6, Y$6, Прогнозы!$H20:$AU20), SUMIF(Прогнозы!$H$6:$AU$6, Y$6, Прогнозы!$H20:$AU20) ^ $E$16, X31) -> 4 | Z31: =IF(SUMIF(Прогнозы!$H$6:$AU$6, Z$6, Прогнозы!$H20:$AU20), SUMIF(Прогнозы!$H$6:$AU$6, Z$6, Прогнозы!$H20:$AU20) ^ $E$16, Y31) -> 4 | AA31: =IF(SUMIF(Прогнозы!$H$6:$AU$6, AA$6, Прогнозы!$H20:$AU20), SUMIF(Прогнозы!$H$6:$AU$6, AA$6, Прогнозы!$H20:$AU20) ^ $E$16, Z31) -> 4 | AB31: =IF(SUMIF(Прогнозы!$H$6:$AU$6, AB$6, Прогнозы!$H20:$AU20), SUMIF(Прогнозы!$H$6:$AU$6, AB$6, Прогнозы!$H20:$AU20) ^ $E$16, AA31) -> 4 | AC31: =IF(SUMIF(Прогнозы!$H$6:$AU$6, AC$6, Прогнозы!$H20:$AU20), SUMIF(Прогнозы!$H$6:$AU$6, AC$6, Прогнозы!$H20:$AU20) ^ $E$16, AB31) -> 4 | AD31: =IF(SUMIF(Прогнозы!$H$6:$AU$6, AD$6, Прогнозы!$H20:$AU20), SUMIF(Прогнозы!$H$6:$AU$6, AD$6, Прогнозы!$H20:$AU20) ^ $E$16, AC31) -> 4 | AE31: =IF(SUMIF(Прогнозы!$H$6:$AU$6, AE$6, Прогнозы!$H20:$AU20), SUMIF(Прогнозы!$H$6:$AU$6, AE$6, Прогнозы!$H20:$AU20) ^ $E$16, AD31) -> 4 | AF31: =IF(SUMIF(Прогнозы!$H$6:$AU$6, AF$6, Прогнозы!$H20:$AU20), SUMIF(Прогнозы!$H$6:$AU$6, AF$6, Прогнозы!$H20:$AU20) ^ $E$16, AE31) -> 4 | AG31: =IF(SUMIF(Прогнозы!$H$6:$AU$6, AG$6, Прогнозы!$H20:$AU20), SUMIF(Прогнозы!$H$6:$AU$6, AG$6, Прогнозы!$H20:$AU20) ^ $E$16, AF31) -> 4 | AH31: =IF(SUMIF(Прогнозы!$H$6:$AU$6, AH$6, Прогнозы!$H20:$AU20), SUMIF(Прогнозы!$H$6:$AU$6, AH$6, Прогнозы!$H20:$AU20) ^ $E$16, AG31) -> 4 | AI31: =IF(SUMIF(Прогнозы!$H$6:$AU$6, AI$6, Прогнозы!$H20:$AU20), SUMIF(Прогнозы!$H$6:$AU$6, AI$6, Прогнозы!$H20:$AU20) ^ $E$16, AH31) -> 4 | AJ31: =IF(SUMIF(Прогнозы!$H$6:$AU$6, AJ$6, Прогнозы!$H20:$AU20), SUMIF(Прогнозы!$H$6:$AU$6, AJ$6, Прогнозы!$H20:$AU20) ^ $E$16, AI31) -> 4 | AK31: =IF(SUMIF(Прогнозы!$H$6:$AU$6, AK$6, Прогнозы!$H20:$AU20), SUMIF(Прогнозы!$H$6:$AU$6, AK$6, Прогнозы!$H20:$AU20) ^ $E$16, AJ31) -> 4 | AL31: =IF(SUMIF(Прогнозы!$H$6:$AU$6, AL$6, Прогнозы!$H20:$AU20), SUMIF(Прогнозы!$H$6:$AU$6, AL$6, Прогнозы!$H20:$AU20) ^ $E$16, AK31) -> 4 | AM31: =IF(SUMIF(Прогнозы!$H$6:$AU$6, AM$6, Прогнозы!$H20:$AU20), SUMIF(Прогнозы!$H$6:$AU$6, AM$6, Прогнозы!$H20:$AU20) ^ $E$16, AL31) -> 4 | AN31: =IF(SUMIF(Прогнозы!$H$6:$AU$6, AN$6, Прогнозы!$H20:$AU20), SUMIF(Прогнозы!$H$6:$AU$6, AN$6, Прогнозы!$H20:$AU20) ^ $E$16, AM31) -> 4 | AO31: =IF(SUMIF(Прогнозы!$H$6:$AU$6, AO$6, Прогнозы!$H20:$AU20), SUMIF(Прогнозы!$H$6:$AU$6, AO$6, Прогнозы!$H20:$AU20) ^ $E$16, AN31) -> 4 | AP31: =IF(SUMIF(Прогнозы!$H$6:$AU$6, AP$6, Прогнозы!$H20:$AU20), SUMIF(Прогнозы!$H$6:$AU$6, AP$6, Прогнозы!$H20:$AU20) ^ $E$16, AO31) -> 4 | AQ31: =IF(SUMIF(Прогнозы!$H$6:$AU$6, AQ$6, Прогнозы!$H20:$AU20), SUMIF(Прогнозы!$H$6:$AU$6, AQ$6, Прогнозы!$H20:$AU20) ^ $E$16, AP31) -> 4 | AR31: =IF(SUMIF(Прогнозы!$H$6:$AU$6, AR$6, Прогнозы!$H20:$AU20), SUMIF(Прогнозы!$H$6:$AU$6, AR$6, Прогнозы!$H20:$AU20) ^ $E$16, AQ31) -> 4 | AS31: =IF(SUMIF(Прогнозы!$H$6:$AU$6, AS$6, Прогнозы!$H20:$AU20), SUMIF(Прогнозы!$H$6:$AU$6, AS$6, Прогнозы!$H20:$AU20) ^ $E$16, AR31) -> 4 | AT31: =IF(SUMIF(Прогнозы!$H$6:$AU$6, AT$6, Прогнозы!$H20:$AU20), SUMIF(Прогнозы!$H$6:$AU$6, AT$6, Прогнозы!$H20:$AU20) ^ $E$16, AS31) -> 4 | AU31: =IF(SUMIF(Прогнозы!$H$6:$AU$6, AU$6, Прогнозы!$H20:$AU20), SUMIF(Прогнозы!$H$6:$AU$6, AU$6, Прогнозы!$H20:$AU20) ^ $E$16, AT31) -> 4
B32: Накопленный ИПЦ | H32: =IF(G32, G32, 1) * (1 + H31%) -> 1.038 | I32: =IF(H32, H32, 1) * (1 + I31%) -> 1.07952 | J32: 1.1227008 | K32: 1.167608832 | L32: 1.214313185 | M32: 1.262885713 | N32: 1.313401141 | O32: 1.365937187 | P32: 1.420574674 | Q32: 1.477397661 | R32: 1.536493568 | S32: 1.59795331 | T32: 1.661871443 | U32: 1.728346301 | V32: 1.797480153 | W32: 1.869379359 | X32: 1.944154533 | Y32: 2.021920714 | Z32: 2.102797543 | AA32: 2.186909445 | AB32: 2.274385822 | AC32: 2.365361255 | AD32: 2.459975706 | AE32: 2.558374734 | AF32: 2.660709723 | AG32: 2.767138112 | AH32: 2.877823637 | AI32: 2.992936582 | AJ32: 3.112654045 | AK32: 3.237160207 | AL32: 3.366646615 | AM32: 3.50131248 | AN32: 3.641364979 | AO32: 3.787019578 | AP32: 3.938500362 | AQ32: 4.096040376 | AR32: 4.259881991 | AS32: 4.430277271 | AT32: 4.607488361 | AU32: 4.791787896
A34: =MAX(A$1:A33) + 1 -> 3 | B34: Строительство (реконструкция)
B36: Источник оценок - проектная документация
B38: Оборудование
B39: Расход-1 | E39: 15000
B40: Расход-2 | E40: 5000
B41: Расход-3 | E41: 0
B42: Расход-4 | E42: 0
B43: Итого капитальные затраты | D43: =smu -> млн руб. | E43: =SUM(E39:E42) -> 20000
B44: Срок полезного использования созданного актива | D44: лет | E44: =E26 -> 15
B45: План реконструкции
B46: График затрат (годовой) | D46: Годы | E46: Оценка
B47: =IF(ISNUMBER(B46), B46 + 1, YEAR($E$11)) -> 2021 | D47: =IF(E47 > 0, B47, "") ->  | E47: 0
B48: =IF(ISNUMBER(B47), B47 + 1, YEAR($E$11)) -> 2022 | D48: =IF(E48 > 0, B48, "") -> 2022 | E48: 0.2
B49: =IF(ISNUMBER(B48), B48 + 1, YEAR($E$11)) -> 2023 | D49: =IF(E49 > 0, B49, "") -> 2023 | E49: 0.2
B50: =IF(ISNUMBER(B49), B49 + 1, YEAR($E$11)) -> 2024 | D50: =IF(E50 > 0, B50, "") -> 2024 | E50: 0.2
B51: =IF(ISNUMBER(B50), B50 + 1, YEAR($E$11)) -> 2025 | D51: =IF(E51 > 0, B51, "") -> 2025 | E51: 0.4
B52: Контрольная сумма | C52: =D52 = E52 -> TRUE | D52: 1 | E52: =SUM(E47:E51) -> 1
B54: График затрат (квартальный)
B55: 1 | H55: 0.1 | I55: 0.1 | J55: 0.1 | K55: 0.1 | L55: 0.1
B56: =B55 + 1 -> 2 | H56: 0.4 | I56: 0.4 | J56: 0.4 | K56: 0.4 | L56: 0.4
B57: =B56 + 1 -> 3 | H57: 0.4 | I57: 0.4 | J57: 0.4 | K57: 0.4 | L57: 0.4
B58: 4 | H58: 0.1 | I58: 0.1 | J58: 0.1 | K58: 0.1 | L58: 0.1
C59: =D59 = E59 -> TRUE | D59: 1 | E59: =AVERAGE(H59:L59) -> 1 | H59: =SUM(H55:H58) -> 1 | I59: =SUM(I55:I58) -> 1 | J59: 1 | K59: 1 | L59: 1
B61: Реконструкция и невозмещаемая инфраструктура
B62: Расход-1 | E62: 3000
B63: Расход-2 | E63: 2000
B64: Расход-3 | E64: 2000
B65: Расход-4 | E65: 0
B66: Итого капитальные затраты | D66: =smu -> млн руб. | E66: =SUM(E62:E65) -> 7000
B67: Срок полезного использования созданного актива | D67: лет | E67: =E44 -> 15
B68: План реконструкции
B69: График затрат | D69: Годы | E69: Оценка
B70: =IF(ISNUMBER(B69), B69 + 1, YEAR($E$11)) -> 2021 | D70: =IF(E70 > 0, B70, "") ->  | E70: 0
B71: =IF(ISNUMBER(B70), B70 + 1, YEAR($E$11)) -> 2022 | D71: =IF(E71 > 0, B71, "") -> 2022 | E71: 0.1
B72: =IF(ISNUMBER(B71), B71 + 1, YEAR($E$11)) -> 2023 | D72: =IF(E72 > 0, B72, "") -> 2023 | E72: 0.1
B73: =IF(ISNUMBER(B72), B72 + 1, YEAR($E$11)) -> 2024 | D73: =IF(E73 > 0, B73, "") -> 2024 | E73: 0.4
B74: =IF(ISNUMBER(B73), B73 + 1, YEAR($E$11)) -> 2025 | D74: =IF(E74 > 0, B74, "") -> 2025 | E74: =1 - SUM(E70:E73) -> 0.4
B75: Контрольная сумма | C75: =D75 = E75 -> TRUE | D75: 1 | E75: =SUM(E70:E74) -> 1
B77: График затрат (квартальный)
B78: 1 | H78: 0.1 | I78: 0.1 | J78: 0.1 | K78: 0.1 | L78: 0.1
B79: =B78 + 1 -> 2 | H79: 0.4 | I79: 0.4 | J79: 0.4 | K79: 0.4 | L79: 0.4
B80: =B79 + 1 -> 3 | H80: 0.4 | I80: 0.4 | J80: 0.4 | K80: 0.4 | L80: 0.4
B81: 4 | H81: 0.1 | I81: 0.1 | J81: 0.1 | K81: 0.1 | L81: 0.1
C82: =D82 = E82 -> TRUE | D82: 1 | E82: =AVERAGE(H82:L82) -> 1 | H82: =SUM(H78:H81) -> 1 | I82: =SUM(I78:I81) -> 1 | J82: =SUM(J78:J81) -> 1 | K82: =SUM(K78:K81) -> 1 | L82: =SUM(L78:L81) -> 1
B84: Обеспечивающая инфраструктура
B85: Расход-1 | E85: 5000
B86: Расход-2 | E86: 10000
B87: Расход-3 | E87: 5000
B88: Расход-4 | E88: 0
B89: Итого капитальные затраты | D89: =smu -> млн руб. | E89: =SUM(E85:E88) -> 20000
B90: Срок полезного использования созданного актива | D90: лет | E90: =E67 -> 15
B91: График затрат
B92: Год | D92: Годы | E92: Оценка
B93: =IF(ISNUMBER(B92), B92 + 1, YEAR($E$11)) -> 2021 | D93: =IF(E93 > 0, B93, "") -> 2021 | E93: 0.1
B94: =IF(ISNUMBER(B93), B93 + 1, YEAR($E$11)) -> 2022 | D94: =IF(E94 > 0, B94, "") -> 2022 | E94: 0.2
B95: =IF(ISNUMBER(B94), B94 + 1, YEAR($E$11)) -> 2023 | D95: =IF(E95 > 0, B95, "") -> 2023 | E95: 0.3
B96: =IF(ISNUMBER(B95), B95 + 1, YEAR($E$11)) -> 2024 | D96: =IF(E96 > 0, B96, "") -> 2024 | E96: 0.3
B97: =IF(ISNUMBER(B96), B96 + 1, YEAR($E$11)) -> 2025 | D97: =IF(E97 > 0, B97, "") -> 2025 | E97: 0.1
B98: Контрольная сумма | C98: =D98 = E98 -> TRUE | D98: 1 | E98: =SUM(E93:E97) -> 1
B100: График затрат (квартальный)
B101: 1 | H101: 0.1 | I101: 0.1 | J101: 0.1 | K101: 0.1 | L101: 0.1
B102: =B101 + 1 -> 2 | H102: 0.4 | I102: 0.4 | J102: 0.4 | K102: 0.4 | L102: 0.4
B103: =B102 + 1 -> 3 | H103: 0.4 | I103: 0.4 | J103: 0.4 | K103: 0.4 | L103: 0.4
B104: 4 | H104: 0.1 | I104: 0.1 | J104: 0.1 | K104: 0.1 | L104: 0.1
C105: =D105 = E105 -> TRUE | D105: 1 | E105: =AVERAGE(H105:L105) -> 1 | H105: =SUM(H101:H104) -> 1 | I105: =SUM(I101:I104) -> 1 | J105: =SUM(J101:J104) -> 1 | K105: =SUM(K101:K104) -> 1 | L105: =SUM(L101:L104) -> 1
B107: Сопутствующая инфраструктура
B108: Расход-1 | E108: 2000
B109: Расход-2 | E109: 5000
B110: Расход-3 | E110: 0
B111: Расход-4 | E111: 0
B112: Итого капитальные затраты | D112: =smu -> млн руб. | E112: =SUM(E108:E111) -> 7000
B113: Срок полезного использования созданного актива | D113: лет | E113: =E90 -> 15
B114: График затрат
B115: Год | D115: Годы | E115: Оценка
B116: =IF(ISNUMBER(B115), B115 + 1, YEAR($E$11)) -> 2021 | D116: =IF(E116 > 0, B116, "") -> 2021 | E116: 0.1
B117: =IF(ISNUMBER(B116), B116 + 1, YEAR($E$11)) -> 2022 | D117: =IF(E117 > 0, B117, "") -> 2022 | E117: 0.1
B118: =IF(ISNUMBER(B117), B117 + 1, YEAR($E$11)) -> 2023 | D118: =IF(E118 > 0, B118, "") -> 2023 | E118: 0.1
B119: =IF(ISNUMBER(B118), B118 + 1, YEAR($E$11)) -> 2024 | D119: =IF(E119 > 0, B119, "") -> 2024 | E119: 0.5
B120: =IF(ISNUMBER(B119), B119 + 1, YEAR($E$11)) -> 2025 | D120: =IF(E120 > 0, B120, "") -> 2025 | E120: 0.2
B121: Контрольная сумма | C121: =D121 = E121 -> TRUE | D121: 1 | E121: =SUM(E116:E120) -> 1
B123: График затрат (квартальный)
B124: 1 | H124: 0.1 | I124: 0.1 | J124: 0.1 | K124: 0.1 | L124: 0.1
B125: =B124 + 1 -> 2 | H125: 0.4 | I125: 0.4 | J125: 0.4 | K125: 0.4 | L125: 0.4
B126: =B125 + 1 -> 3 | H126: 0.4 | I126: 0.4 | J126: 0.4 | K126: 0.4 | L126: 0.4
B127: 4 | H127: 0.1 | I127: 0.1 | J127: 0.1 | K127: 0.1 | L127: 0.1
C128: =D128 = E128 -> TRUE | D128: 1 | E128: =AVERAGE(H128:L128) -> 1 | H128: =SUM(H124:H127) -> 1 | I128: =SUM(I124:I127) -> 1 | J128: =SUM(J124:J127) -> 1 | K128: =SUM(K124:K127) -> 1 | L128: =SUM(L124:L127) -> 1
B130: Итого проверки | C130: =D130 = E130 -> TRUE | D130: 1 | E130: =(E52 = 1) * (E59 = 1) * (E75 = 1) * (E82 = 1) * (E98 = 1) * (E105 = 1) * (E121 = 1) * (E128 = 1) -> 1
A132: =MAX(A$1:A131) + 1 -> 4 | B132: Эксплуатация
B134: Источник оценок - проектная документация
B136: Объемы
B137: Продукция 1 | D137: млн т. в год | E137: 80
B138: Продукция 2 | D138: млн т. в год | E138: 20
B140: Цены
B141: Продукция 1 | D141: руб/т. | E141: 500
B142: Продукция 2 | D142: руб/т. | E142: 200
B144: Себестоимость
B145: Продукция 1 | D145: руб/т. | E145: 350
B146: Продукция 2 | D146: руб/т. | E146: 150
B148: Постоянные производственные затраты | D148: =smu -> млн руб. | E148: 300
B150: Прочие непроизводственные затраты | D150: =smu -> млн руб. | E150: 400
B152: Затраты на персонал
B153: Количество сотрудников | D153: числ. | E153: 100
B154: Средняя месячная заработная плата (до налогов) | D154: тыс руб. | E154: 75
B156: Показатели оборачиваемости
B157: Дебиторская задолженность | D157: дни | E157: 30
B158: Кредиторская задолженность | D158: дни | E158: 30
B159: Запасы | D159: дни | E159: 45
B160: Субсидии | D160: дни | E160: 90
A162: =MAX(A$1:A160) + 1 -> 5 | B162: Финансирование
B164: Источник оценок - индикативные предложения от банков
B166: Стоимость долга | D166: (%) | E166: =Контроль!$E$19 -> 0.075
B167: Рыночная стоимость долга | D167: (%) | E167: 0.075
B169: Структура финансирования
B170: Акционерный капитал | D170: (%) | E170: =1 - E171 -> 0.4
B171: Долг | D171: (%) | E171: 0.6
B173: Front-end fee | D173: (%) | E173: 0.005
B174: Комиссия за обязательство | D174: (%) | E174: 0.002
B175: Срок кредита | D175: лет | E175: 15
B177: Для расчета структуры финансирования капитализ. проценты | E177: 1
B178: 1 | C178: учитываются
B179: 2 | C179: не учитываются
B181: Ставка по депозитам | D181: (%) | E181: 0.04
B183: Расчет требуемой доходности проекта
B184: Cost of Equity
B185: Risk Free (USD) | C185: Источник | E185: 0.0192
B186: ERP (Local) | C186: Источник | E186: 0.0695
B187: Beta (Unleverd) | C187: Источник | E187: 0.8816166634
B188: Country Risk | C188: Источник | E188: 0.0323
B189: Cost of Equity | C189: Источник | E189: =E185 + E187 * E186 + E188 -> 0.1127723581
B190: Green field prem | C190: Источник | E190: 0.075
B191: Total Cost of Equity (RUB) | E191: =E189 + E190 -> 0.1877723581
B192: Cost of Debt
B193: Cost of Debt (RUB) | C193: Источник | E193: =E167 -> 0.075
B194: Tax Rate | C194: НК РФ | E194: =E233 -> 0.2
B195: After-tax Cost of Debt | E195: =E193 * (1 - E194) -> 0.06
B196: WACC
B197: D/(D+E) | E197: 0.35
B198: WACC | E198: =E191 * (1 - E197) + E195 * E197 -> 0.1430520328
B200: Расчет ставки дисконтирования расходов и поступлений средств бюджетов
B202: Базовый вариант
B203: Доходность к погашению по ОФЗ | C203: Источник | D203: (%) | E203: 0.065
B204: Доходность к погашению по облигациям субъекта РФ | C204: Источник | D204: (%) | E204: 0.065
B205: % ставка по займам для публичного партнера | C205: Источник | D205: (%)
B206: Средства федерального бюджета РФ | D206: =smu -> млн руб. | E206: =Расчет!E845 -> 2.273736754e-13
B207: Средства регионального бюджета РФ | D207: =smu -> млн руб. | E207: =Расчет!E848 -> 0
B208: Заемные средства, привлекаемые публичным партнером | D208: =smu -> млн руб. | E208: 0
B209: Общий расход бюджета плюс займы | D209: =smu -> млн руб. | E209: =SUM(E206:E208) -> 2.273736754e-13
B210: Ставка дисконтирования | D210: (%) | E210: =(E203 * E206 + E204 * E207 + E205 * E208) / E209 -> 0.065
B212: Расчет при отсутствии расходов бюджета
B213: Налоговый поток в региональный бюджет | D213: =smu -> млн руб. | E213: =Расчет!E858 -> 66582.87073
B214: Налоговый поток в федеральный бюджет | D214: =smu -> млн руб. | E214: =Расчет!E865 -> 49180.18102
B215: Общие поступления в бюджет плюс займы | D215: =smu -> млн руб. | E215: =SUM(E213:E214) + E208 -> 115763.0518
B216: Ставка дисконтирования | D216: (%) | E216: =(E203 * E213 + E204 * E214 + E205 * E208) / E215 -> 0.065
B218: Ставка дисконтирования | D218: (%) | E218: =MAX(E206 + E207 > 0, 0) * E210 + MAX(E206 + E207 = 0, 0) * E216 -> 0.065
A220: =MAX(A$1:A182) + 1 -> 6 | B220: Налогообложение
B222: Источник параметров - НК РФ
B224: НДС
B225: Ставка НДС по капитальным вложениям | D225: (%) | E225: 0.2
B226: Ставка входящего НДС | D226: (%) | E226: 0.2
B227: Ставка исходящего НДС | D227: (%) | E227: 0.2
B228: Оборачиваемость НДС к получению (до эксплуатации) | D228: дней | E228: 122
B229: Оборачиваемость НДС к получению (в период эксплуатации) | D229: дней | E229: 180
B230: Оборачиваемость НДС к уплате | D230: дней | E230: 90
B232: Налог на прибыль
B233: Ставка налога на прибыль | D233: (%) | E233: =SUM(E234:E236) -> 0.2
B234: ФБ | D234: (%) | E234: 0.02
B235: РБ | D235: (%) | E235: 0.18
B236: МБ | D236: (%) | E236: 0
B237: Зачет убытка, % от накопленного | D237: (%) | E237: 0.5
B238: Выбытие убытка для целей налога на прибыль, через | D238: лет | E238: 10
B239: Выбытие убытка применяется? | E239: 0
B241: Прочие налоги
B242: Ставка налога на имущество | D242: (%) | E242: =Контроль!E20 -> 0.022
... 9 more rows

Sheet Расчет
B1: Расчет основных показателей | C1: Лист: | D1: =MID(CELL("filename", A1), FIND("]", CELL("filename", A1))+1, 255) -> Расчет | E1: К содержанию
C2: Проверки: | D2: =Контроль!$D$2 -> 1
B4: Дата начала периода | H4: =IF(G5, G5 + 1, Вводные!$E$11) -> 2021-01-01 | I4: =IF(H5, H5 + 1, Вводные!$E$11) -> 2022-01-01 | J4: =IF(I5, I5 + 1, Вводные!$E$11) -> 2023-01-01 | K4: =IF(J5, J5 + 1, Вводные!$E$11) -> 2024-01-01 | L4: =IF(K5, K5 + 1, Вводные!$E$11) -> 2025-01-01 | M4: =IF(L5, L5 + 1, Вводные!$E$11) -> 2026-01-01 | N4: =IF(M5, M5 + 1, Вводные!$E$11) -> 2027-01-01 | O4: =IF(N5, N5 + 1, Вводные!$E$11) -> 2028-01-01 | P4: =IF(O5, O5 + 1, Вводные!$E$11) -> 2029-01-01 | Q4: =IF(P5, P5 + 1, Вводные!$E$11) -> 2030-01-01 | R4: =IF(Q5, Q5 + 1, Вводные!$E$11) -> 2031-01-01 | S4: =IF(R5, R5 + 1, Вводные!$E$11) -> 2032-01-01 | T4: =IF(S5, S5 + 1, Вводные!$E$11) -> 2033-01-01 | U4: =IF(T5, T5 + 1, Вводные!$E$11) -> 2034-01-01 | V4: =IF(U5, U5 + 1, Вводные!$E$11) -> 2035-01-01 | W4: =IF(V5, V5 + 1, Вводные!$E$11) -> 2036-01-01 | X4: =IF(W5, W5 + 1, Вводные!$E$11) -> 2037-01-01 | Y4: =IF(X5, X5 + 1, Вводные!$E$11) -> 2038-01-01 | Z4: =IF(Y5, Y5 + 1, Вводные!$E$11) -> 2039-01-01 | AA4: =IF(Z5, Z5 + 1, Вводные!$E$11) -> 2040-01-01 | AB4: =IF(AA5, AA5 + 1, Вводные!$E$11) -> 2041-01-01 | AC4: =IF(AB5, AB5 + 1, Вводные!$E$11) -> 2042-01-01 | AD4: =IF(AC5, AC5 + 1, Вводные!$E$11) -> 2043-01-01 | AE4: =IF(AD5, AD5 + 1, Вводные!$E$11) -> 2044-01-01 | AF4: =IF(AE5, AE5 + 1, Вводные!$E$11) -> 2045-01-01 | AG4: =IF(AF5, AF5 + 1, Вводные!$E$11) -> 2046-01-01 | AH4: =IF(AG5, AG5 + 1, Вводные!$E$11) -> 2047-01-01 | AI4: =IF(AH5, AH5 + 1, Вводные!$E$11) -> 2048-01-01 | AJ4: =IF(AI5, AI5 + 1, Вводные!$E$11) -> 2049-01-01 | AK4: =IF(AJ5, AJ5 + 1, Вводные!$E$11) -> 2050-01-01 | AL4: =IF(AK5, AK5 + 1, Вводные!$E$11) -> 2051-01-01 | AM4: =IF(AL5, AL5 + 1, Вводные!$E$11) -> 2052-01-01 | AN4: =IF(AM5, AM5 + 1, Вводные!$E$11) -> 2053-01-01 | AO4: =IF(AN5, AN5 + 1, Вводные!$E$11) -> 2054-01-01 | AP4: =IF(AO5, AO5 + 1, Вводные!$E$11) -> 2055-01-01 | AQ4: =IF(AP5, AP5 + 1, Вводные!$E$11) -> 2056-01-01 | AR4: =IF(AQ5, AQ5 + 1, Вводные!$E$11) -> 2057-01-01 | AS4: =IF(AR5, AR5 + 1, Вводные!$E$11) -> 2058-01-01 | AT4: =IF(AS5, AS5 + 1, Вводные!$E$11) -> 2059-01-01 | AU4: =IF(AT5, AT5 + 1, Вводные!$E$11) -> 2060-01-01
B5: Дата конца периода | H5: =EDATE(H4, Вводные!$E$15) - 1 -> 2021-12-31 | I5: =EDATE(I4, Вводные!$E$15) - 1 -> 2022-12-31 | J5: =EDATE(J4, Вводные!$E$15) - 1 -> 2023-12-31 | K5: =EDATE(K4, Вводные!$E$15) - 1 -> 2024-12-31 | L5: =EDATE(L4, Вводные!$E$15) - 1 -> 2025-12-31 | M5: =EDATE(M4, Вводные!$E$15) - 1 -> 2026-12-31 | N5: =EDATE(N4, Вводные!$E$15) - 1 -> 2027-12-31 | O5: =EDATE(O4, Вводные!$E$15) - 1 -> 2028-12-31 | P5: =EDATE(P4, Вводные!$E$15) - 1 -> 2029-12-31 | Q5: =EDATE(Q4, Вводные!$E$15) - 1 -> 2030-12-31 | R5: =EDATE(R4, Вводные!$E$15) - 1 -> 2031-12-31 | S5: =EDATE(S4, Вводные!$E$15) - 1 -> 2032-12-31 | T5: =EDATE(T4, Вводные!$E$15) - 1 -> 2033-12-31 | U5: =EDATE(U4, Вводные!$E$15) - 1 -> 2034-12-31 | V5: =EDATE(V4, Вводные!$E$15) - 1 -> 2035-12-31 | W5: =EDATE(W4, Вводные!$E$15) - 1 -> 2036-12-31 | X5: =EDATE(X4, Вводные!$E$15) - 1 -> 2037-12-31 | Y5: =EDATE(Y4, Вводные!$E$15) - 1 -> 2038-12-31 | Z5: =EDATE(Z4, Вводные!$E$15) - 1 -> 2039-12-31 | AA5: =EDATE(AA4, Вводные!$E$15) - 1 -> 2040-12-31 | AB5: =EDATE(AB4, Вводные!$E$15) - 1 -> 2041-12-31 | AC5: =EDATE(AC4, Вводные!$E$15) - 1 -> 2042-12-31 | AD5: =EDATE(AD4, Вводные!$E$15) - 1 -> 2043-12-31 | AE5: =EDATE(AE4, Вводные!$E$15) - 1 -> 2044-12-31 | AF5: =EDATE(AF4, Вводные!$E$15) - 1 -> 2045-12-31 | AG5: =EDATE(AG4, Вводные!$E$15) - 1 -> 2046-12-31 | AH5: =EDATE(AH4, Вводные!$E$15) - 1 -> 2047-12-31 | AI5: =EDATE(AI4, Вводные!$E$15) - 1 -> 2048-12-31 | AJ5: =EDATE(AJ4, Вводные!$E$15) - 1 -> 2049-12-31 | AK5: =EDATE(AK4, Вводные!$E$15) - 1 -> 2050-12-31 | AL5: =EDATE(AL4, Вводные!$E$15) - 1 -> 2051-12-31 | AM5: =EDATE(AM4, Вводные!$E$15) - 1 -> 2052-12-31 | AN5: =EDATE(AN4, Вводные!$E$15) - 1 -> 2053-12-31 | AO5: =EDATE(AO4, Вводные!$E$15) - 1 -> 2054-12-31 | AP5: =EDATE(AP4, Вводные!$E$15) - 1 -> 2055-12-31 | AQ5: =EDATE(AQ4, Вводные!$E$15) - 1 -> 2056-12-31 | AR5: =EDATE(AR4, Вводные!$E$15) - 1 -> 2057-12-31 | AS5: =EDATE(AS4, Вводные!$E$15) - 1 -> 2058-12-31 | AT5: =EDATE(AT4, Вводные!$E$15) - 1 -> 2059-12-31 | AU5: =EDATE(AU4, Вводные!$E$15) - 1 -> 2060-12-31
B6: Год | H6: =YEAR(H5) -> 2021 | I6: =YEAR(I5) -> 2022 | J6: 2023 | K6: 2024 | L6: 2025 | M6: 2026 | N6: 2027 | O6: 2028 | P6: 2029 | Q6: 2030 | R6: 2031 | S6: 2032 | T6: 2033 | U6: 2034 | V6: 2035 | W6: 2036 | X6: 2037 | Y6: 2038 | Z6: 2039 | AA6: 2040 | AB6: 2041 | AC6: 2042 | AD6: 2043 | AE6: 2044 | AF6: 2045 | AG6: 2046 | AH6: 2047 | AI6: 2048 | AJ6: 2049 | AK6: 2050 | AL6: 2051 | AM6: 2052 | AN6: 2053 | AO6: 2054 | AP6: 2055 | AQ6: 2056 | AR6: 2057 | AS6: 2058 | AT6: 2059 | AU6: 2060
B7: № периода | D7: ед. изм. | E7: итог | H7: =G7 + 1 -> 1 | I7: =H7 + 1 -> 2 | J7: 3 | K7: 4 | L7: 5 | M7: 6 | N7: 7 | O7: 8 | P7: 9 | Q7: 10 | R7: 11 | S7: 12 | T7: 13 | U7: 14 | V7: 15 | W7: 16 | X7: 17 | Y7: 18 | Z7: 19 | AA7: 20 | AB7: 21 | AC7: 22 | AD7: 23 | AE7: 24 | AF7: 25 | AG7: 26 | AH7: 27 | AI7: 28 | AJ7: 29 | AK7: 30 | AL7: 31 | AM7: 32 | AN7: 33 | AO7: 34 | AP7: 35 | AQ7: 36 | AR7: 37 | AS7: 38 | AT7: 39 | AU7: 40
A9: =MAX(A$1:A8) + 1 -> 1 | B9: Основные показатели (свод)
B11: Капитальные затраты | D11: =smu -> млн руб. | E11: =SUM(H11:AU11) -> -61122.48304 | H11: =H774 -> -2763.753978 | I11: =I774 -> -9999.645733 | J11: -12612.31913 | K11: -18754.73981 | L11: -16992.02439 | M11: 0 | N11: 0 | O11: 0 | P11: 0 | Q11: 0 | R11: 0 | S11: 0 | T11: 0 | U11: 0 | V11: 0 | W11: 0 | X11: 0 | Y11: 0 | Z11: 0 | AA11: 0 | AB11: 0 | AC11: 0 | AD11: 0 | AE11: 0 | AF11: 0 | AG11: 0 | AH11: 0 | AI11: 0 | AJ11: 0 | AK11: 0 | AL11: 0 | AM11: 0 | AN11: 0 | AO11: 0 | AP11: 0 | AQ11: 0 | AR11: 0 | AS11: 0 | AT11: 0 | AU11: 0
B12: Выручка | D12: млн руб. | E12: =SUM(H12:AU12) -> 1112650.121 | H12: =H775 -> 0 | I12: =I775 -> 0 | J12: 0 | K12: 0 | L12: 0 | M12: 55566.97136 | N12: 57789.65021 | O12: 60101.23622 | P12: 62505.28567 | Q12: 65005.4971 | R12: 67605.71698 | S12: 70309.94566 | T12: 73122.34349 | U12: 76047.23723 | V12: 79089.12671 | W12: 82252.69178 | X12: 85542.79945 | Y12: 88964.51143 | Z12: 92523.09189 | AA12: 96224.01557 | AB12: 0 | AC12: 0 | AD12: 0 | AE12: 0 | AF12: 0 | AG12: 0 | AH12: 0 | AI12: 0 | AJ12: 0 | AK12: 0 | AL12: 0 | AM12: 0 | AN12: 0 | AO12: 0 | AP12: 0 | AQ12: 0 | AR12: 0 | AS12: 0 | AT12: 0 | AU12: 0
B13: Расходы | D13: млн руб. | E13: -804572.4748 | H13: =H776 -> 0 | I13: =I776 -> 0 | J13: 0 | K13: 0 | L13: 0 | M13: -40181.23472 | N13: -41788.48411 | O13: -43460.02347 | P13: -45198.42441 | Q13: -47006.36139 | R13: -48886.61584 | S13: -50842.08048 | T13: -52875.7637 | U13: -54990.79425 | V13: -57190.42602 | W13: -59478.04306 | X13: -61857.16478 | Y13: -64331.45137 | Z13: -66904.70942 | AA13: -69580.8978 | AB13: 0 | AC13: 0 | AD13: 0 | AE13: 0 | AF13: 0 | AG13: 0 | AH13: 0 | AI13: 0 | AJ13: 0 | AK13: 0 | AL13: 0 | AM13: 0 | AN13: 0 | AO13: 0 | AP13: 0 | AQ13: 0 | AR13: 0 | AS13: 0 | AT13: 0 | AU13: 0
B14: Налог на имущество | D14: млн руб. | E14: -10352.69286 | H14: =H778 -> 0 | I14: =I778 -> 0 | J14: 0 | K14: 0 | L14: 0 | M14: -690.1795242 | N14: -1331.060511 | O14: -1232.463436 | P14: -1133.866361 | Q14: -1035.269286 | R14: -936.6722114 | S14: -838.0751365 | T14: -739.4780616 | U14: -640.8809867 | V14: -542.2839118 | W14: -443.686837 | X14: -345.0897621 | Y14: -246.4926872 | Z14: -147.8956123 | AA14: -49.29853744 | AB14: 0 | AC14: 0 | AD14: 0 | AE14: 0 | AF14: 0 | AG14: 0 | AH14: 0 | AI14: 0 | AJ14: 0 | AK14: 0 | AL14: 0 | AM14: 0 | AN14: 0 | AO14: 0 | AP14: 0 | AQ14: 0 | AR14: 0 | AS14: 0 | AT14: 0 | AU14: 0
B15: Оборотный капитал | D15: млн руб. | E15: 1.818989404e-12 | H15: =H777 + H779 -> -138.4137754 | I15: =I777 + I779 -> -362.6031461 | J15: -130.9039957 | K15: -284.7927631 | L15: 65.35434441 | M15: -6462.658839 | N15: -292.560727 | O15: -282.6488335 | P15: -338.0480049 | Q15: -329.0910296 | R15: -342.2546708 | S15: -330.6591574 | T15: -395.4683522 | U15: -384.989958 | V15: -400.3895563 | W15: -386.8244457 | X15: -462.642037 | Y15: -450.3837979 | Z15: -468.3991498 | AA15: 12178.37789 | AB15: 0 | AC15: 0 | AD15: 0 | AE15: 0 | AF15: 0 | AG15: 0 | AH15: 0 | AI15: 0 | AJ15: 0 | AK15: 0 | AL15: 0 | AM15: 0 | AN15: 0 | AO15: 0 | AP15: 0 | AQ15: 0 | AR15: 0 | AS15: 0 | AT15: 0 | AU15: 0
B16: Проценты по кассовым остаткам | D16: млн руб. | E16: 786.1560911 | H16: =H788 -> 0 | I16: =I788 -> 0 | J16: 0 | K16: 0 | L16: 0 | M16: 0 | N16: 0 | O16: 0 | P16: 0 | Q16: 0 | R16: 0 | S16: 0 | T16: 0 | U16: 0 | V16: 0 | W16: 0 | X16: 0 | Y16: 101.0401781 | Z16: 262.2922351 | AA16: 422.823678 | AB16: 2.182787284e-12 | AC16: 2.252636477e-12 | AD16: 2.324720845e-12 | AE16: 2.399111912e-12 | AF16: 2.475883493e-12 | AG16: 2.555111765e-12 | AH16: 2.636875341e-12 | AI16: 2.721255352e-12 | AJ16: 2.808335523e-12 | AK16: 2.89820226e-12 | AL16: 2.990944732e-12 | AM16: 3.086654964e-12 | AN16: 3.185427923e-12 | AO16: 3.287361616e-12 | AP16: 3.392557188e-12 | AQ16: 3.501119018e-12 | AR16: 3.613154826e-12 | AS16: 3.728775781e-12 | AT16: 3.848096606e-12 | AU16: 3.971235697e-12
B18: Налог на прибыль | D18: млн руб. | E18: -42845.78973 | H18: =H784 -> 0 | I18: =I784 -> 0 | J18: 0 | K18: 0 | L18: 0 | M18: -1462.164315 | N18: -1500.382553 | O18: -1694.66798 | P18: -1897.565531 | Q18: -2109.541903 | R18: -2331.091626 | S18: -2562.738864 | T18: -2805.03934 | U18: -3058.582393 | V18: -3323.993177 | W18: -3569.855334 | X18: -3771.771938 | Y18: -4001.184466 | Z18: -4250.218773 | AA18: -4506.991537 | AB18: -4.365574569e-13 | AC18: -4.505272955e-13 | AD18: -4.649441689e-13 | AE18: -4.798223823e-13 | AF18: -4.951766986e-13 | AG18: -5.110223529e-13 | AH18: -5.273750682e-13 | AI18: -5.442510704e-13 | AJ18: -5.616671046e-13 | AK18: -5.79640452e-13 | AL18: -5.981889465e-13 | AM18: -6.173309927e-13 | AN18: -6.370855845e-13 | AO18: -6.574723232e-13 | AP18: -6.785114376e-13 | AQ18: -7.002238036e-13 | AR18: -7.226309653e-13 | AS18: -7.457551562e-13 | AT18: -7.696193212e-13 | AU18: -7.942471394e-13
B20: Финанасирование за счет акционерного капитала | D20: млн руб. | E20: =SUM(H20:AU20) -> 27230.65507 | H20: =H786 -> 1314.387806 | I20: =I786 -> 4330.597068 | J20: 5489.560044 | K20: 8301.555477 | L20: 7794.554671 | M20: 0 | N20: 0 | O20: 0 | P20: 0 | Q20: 0 | R20: 0 | S20: 0 | T20: 0 | U20: 0 | V20: 0 | W20: 0 | X20: 0 | Y20: 0 | Z20: 0 | AA20: 0 | AB20: 0 | AC20: 0 | AD20: 0 | AE20: 0 | AF20: 0 | AG20: 0 | AH20: 0 | AI20: 0 | AJ20: 0 | AK20: 0 | AL20: 0 | AM20: 0 | AN20: 0 | AO20: 0 | AP20: 0 | AQ20: 0 | AR20: 0 | AS20: 0 | AT20: 0 | AU20: 0
B21: Финанасирование за счет долга | D21: млн руб. | E21: 34743.18731 | H21: =H787 -> 1587.779948 | I21: =I787 -> 6031.651811 | J21: 7253.66308 | K21: 10737.9771 | L21: 9132.115375 | M21: 0 | N21: 0 | O21: 0 | P21: 0 | Q21: 0 | R21: 0 | S21: 0 | T21: 0 | U21: 0 | V21: 0 | W21: 0 | X21: 0 | Y21: 0 | Z21: 0 | AA21: 0 | AB21: 0 | AC21: 0 | AD21: 0 | AE21: 0 | AF21: 0 | AG21: 0 | AH21: 0 | AI21: 0 | AJ21: 0 | AK21: 0 | AL21: 0 | AM21: 0 | AN21: 0 | AO21: 0 | AP21: 0 | AQ21: 0 | AR21: 0 | AS21: 0 | AT21: 0 | AU21: 0
B23: Выплаты по долгу | D23: млн руб. | E23: -57902.86478 | H23: =H789 + H790 -> 0 | I23: =I789 + I790 -> 0 | J23: 0 | K23: 0 | L23: 0 | M23: -5790.286478 | N23: -5790.286478 | O23: -5790.286478 | P23: -5790.286478 | Q23: -5790.286478 | R23: -5790.286478 | S23: -5790.286478 | T23: -5790.286478 | U23: -5790.286478 | V23: -5790.286478 | W23: 0 | X23: 0 | Y23: 0 | Z23: 0 | AA23: 0 | AB23: 0 | AC23: 0 | AD23: 0 | AE23: 0 | AF23: 0 | AG23: 0 | AH23: 0 | AI23: 0 | AJ23: 0 | AK23: 0 | AL23: 0 | AM23: 0 | AN23: 0 | AO23: 0 | AP23: 0 | AQ23: 0 | AR23: 0 | AS23: 0 | AT23: 0 | AU23: 0
B24: Выплаты акционерам | D24: млн руб. | E24: -198613.814 | H24: =H792 + H793 -> 0 | I24: =I792 + I793 -> 0 | J24: 0 | K24: 0 | L24: 0 | M24: -980.4474812 | N24: -7086.875834 | O24: -7641.146019 | P24: -8147.094881 | Q24: -8734.94701 | R24: -9318.796149 | S24: -9946.105545 | T24: -10516.30756 | U24: -11181.70316 | V24: -11841.74758 | W24: -18374.28211 | X24: -16580.12649 | Y24: -16004.73787 | Z24: -17000.87509 | AA24: -45258.62121 | AB24: 0 | AC24: 0 | AD24: 0 | AE24: 0 | AF24: 0 | AG24: 0 | AH24: 0 | AI24: 0 | AJ24: 0 | AK24: 0 | AL24: 0 | AM24: 0 | AN24: 0 | AO24: 0 | AP24: 0 | AQ24: 0 | AR24: 0 | AS24: 0 | AT24: 0 | AU24: 0
B26: Субсидии из федерального бюджета | D26: млн руб. | E26: 0 | H26: =H781 -> 0 | I26: =I781 -> 0 | J26: 0 | K26: 0 | L26: 0 | M26: 0 | N26: 0 | O26: 0 | P26: 0 | Q26: 0 | R26: 0 | S26: 0 | T26: 0 | U26: 0 | V26: 0 | W26: 0 | X26: 0 | Y26: 0 | Z26: 0 | AA26: 0 | AB26: 0 | AC26: 0 | AD26: 0 | AE26: 0 | AF26: 0 | AG26: 0 | AH26: 0 | AI26: 0 | AJ26: 0 | AK26: 0 | AL26: 0 | AM26: 0 | AN26: 0 | AO26: 0 | AP26: 0 | AQ26: 0 | AR26: 0 | AS26: 0 | AT26: 0 | AU26: 0
B27: Субсидии из регионального бюджета | D27: млн руб. | E27: =SUM(H27:AU27) -> 0 | H27: =H782 -> 0 | I27: =I782 -> 0 | J27: 0 | K27: 0 | L27: 0 | M27: 0 | N27: 0 | O27: 0 | P27: 0 | Q27: 0 | R27: 0 | S27: 0 | T27: 0 | U27: 0 | V27: 0 | W27: 0 | X27: 0 | Y27: 0 | Z27: 0 | AA27: 0 | AB27: 0 | AC27: 0 | AD27: 0 | AE27: 0 | AF27: 0 | AG27: 0 | AH27: 0 | AI27: 0 | AJ27: 0 | AK27: 0 | AL27: 0 | AM27: 0 | AN27: 0 | AO27: 0 | AP27: 0 | AQ27: 0 | AR27: 0 | AS27: 0 | AT27: 0 | AU27: 0
B29: Денежный поток | D29: млн руб. | E29: 1.060958598e-10 | H29: =SUM(H11:H27) -> 2.273736754e-13 | I29: =SUM(I11:I27) -> -2.728484105e-12 | J29: -2.728484105e-12 | K29: 3.637978807e-12 | L29: 0 | M29: 0 | N29: 0 | O29: -2.728484105e-12 | P29: 9.094947018e-13 | Q29: 0 | R29: 1.818989404e-12 | S29: 1.818989404e-12 | T29: 0 | U29: -3.637978807e-12 | V29: 7.275957614e-12 | W29: 3.637978807e-12 | X29: 2526.004453 | Y29: 4031.301424 | Z29: 4013.286072 | AA29: -10570.59195 | AB29: 1.746229827e-12 | AC29: 1.802109182e-12 | AD29: 1.859776676e-12 | AE29: 1.919289529e-12 | AF29: 1.980706794e-12 | AG29: 2.044089412e-12 | AH29: 2.109500273e-12 | AI29: 2.177004282e-12 | AJ29: 2.246668419e-12 | AK29: 2.318561808e-12 | AL29: 2.392755786e-12 | AM29: 2.469323971e-12 | AN29: 2.548342338e-12 | AO29: 2.629889293e-12 | AP29: 2.71404575e-12 | AQ29: 2.800895214e-12 | AR29: 2.890523861e-12 | AS29: 2.983020625e-12 | AT29: 3.078477285e-12 | AU29: 3.176988558e-12
B31: Проверка | E31: =SUMSQ(H31:AU31) < acc -> TRUE | H31: =H29 - H796 -> 2.273736754e-13 | I31: -2.728484105e-12 | J31: -2.728484105e-12 | K31: 3.637978807e-12 | L31: 0 | M31: 0 | N31: 0 | O31: -2.728484105e-12 | P31: 9.094947018e-13 | Q31: 0 | R31: 1.818989404e-12 | S31: 1.818989404e-12 | T31: 0 | U31: -3.637978807e-12 | V31: 7.275957614e-12 | W31: 3.637978807e-12 | X31: 0 | Y31: -3.637978807e-12 | Z31: 0 | AA31: 0 | AB31: 0 | AC31: 0 | AD31: 0 | AE31: 0 | AF31: 0 | AG31: 0 | AH31: 0 | AI31: 0 | AJ31: 0 | AK31: 0 | AL31: 0 | AM31: 0 | AN31: 0 | AO31: 0 | AP31: 0 | AQ31: 0 | AR31: 0 | AS31: 0 | AT31: 0 | AU31: 0
A33: =MAX(A$1:A32) + 1 -> 2 | B33: Индексы и флаги
B35: Период строительства (реконструкции) | D35: флаг | E35: =SUM(H35:AU35) -> 5 | H35: =(H$6 >= MIN(Вводные!$D$47:$D$51, Вводные!$D$70:$D$74, Вводные!$D$93:$D$97, Вводные!$D$116:$D$120)) * (H$6 <= MAX(Вводные!$D$47:$D$51, Вводные!$D$70:$D$74, Вводные!$D$93:$D$97, Вводные!$D$116:$D$120)) -> 1 | I35: =(I$6 >= MIN(Вводные!$D$47:$D$51, Вводные!$D$70:$D$74, Вводные!$D$93:$D$97, Вводные!$D$116:$D$120)) * (I$6 <= MAX(Вводные!$D$47:$D$51, Вводные!$D$70:$D$74, Вводные!$D$93:$D$97, Вводные!$D$116:$D$120)) -> 1 | J35: =(J$6 >= MIN(Вводные!$D$47:$D$51, Вводные!$D$70:$D$74, Вводные!$D$93:$D$97, Вводные!$D$116:$D$120)) * (J$6 <= MAX(Вводные!$D$47:$D$51, Вводные!$D$70:$D$74, Вводные!$D$93:$D$97, Вводные!$D$116:$D$120)) -> 1 | K35: =(K$6 >= MIN(Вводные!$D$47:$D$51, Вводные!$D$70:$D$74, Вводные!$D$93:$D$97, Вводные!$D$116:$D$120)) * (K$6 <= MAX(Вводные!$D$47:$D$51, Вводные!$D$70:$D$74, Вводные!$D$93:$D$97, Вводные!$D$116:$D$120)) -> 1 | L35: =(L$6 >= MIN(Вводные!$D$47:$D$51, Вводные!$D$70:$D$74, Вводные!$D$93:$D$97, Вводные!$D$116:$D$120)) * (L$6 <= MAX(Вводные!$D$47:$D$51, Вводные!$D$70:$D$74, Вводные!$D$93:$D$97, Вводные!$D$116:$D$120)) -> 1 | M35: =(M$6 >= MIN(Вводные!$D$47:$D$51, Вводные!$D$70:$D$74, Вводные!$D$93:$D$97, Вводные!$D$116:$D$120)) * (M$6 <= MAX(Вводные!$D$47:$D$51, Вводные!$D$70:$D$74, Вводные!$D$93:$D$97, Вводные!$D$116:$D$120)) -> 0 | N35: =(N$6 >= MIN(Вводные!$D$47:$D$51, Вводные!$D$70:$D$74, Вводные!$D$93:$D$97, Вводные!$D$116:$D$120)) * (N$6 <= MAX(Вводные!$D$47:$D$51, Вводные!$D$70:$D$74, Вводные!$D$93:$D$97, Вводные!$D$116:$D$120)) -> 0 | O35: =(O$6 >= MIN(Вводные!$D$47:$D$51, Вводные!$D$70:$D$74, Вводные!$D$93:$D$97, Вводные!$D$116:$D$120)) * (O$6 <= MAX(Вводные!$D$47:$D$51, Вводные!$D$70:$D$74, Вводные!$D$93:$D$97, Вводные!$D$116:$D$120)) -> 0 | P35: =(P$6 >= MIN(Вводные!$D$47:$D$51, Вводные!$D$70:$D$74, Вводные!$D$93:$D$97, Вводные!$D$116:$D$120)) * (P$6 <= MAX(Вводные!$D$47:$D$51, Вводные!$D$70:$D$74, Вводные!$D$93:$D$97, Вводные!$D$116:$D$120)) -> 0 | Q35: =(Q$6 >= MIN(Вводные!$D$47:$D$51, Вводные!$D$70:$D$74, Вводные!$D$93:$D$97, Вводные!$D$116:$D$120)) * (Q$6 <= MAX(Вводные!$D$47:$D$51, Вводные!$D$70:$D$74, Вводные!$D$93:$D$97, Вводные!$D$116:$D$120)) -> 0 | R35: =(R$6 >= MIN(Вводные!$D$47:$D$51, Вводные!$D$70:$D$74, Вводные!$D$93:$D$97, Вводные!$D$116:$D$120)) * (R$6 <= MAX(Вводные!$D$47:$D$51, Вводные!$D$70:$D$74, Вводные!$D$93:$D$97, Вводные!$D$116:$D$120)) -> 0 | S35: =(S$6 >= MIN(Вводные!$D$47:$D$51, Вводные!$D$70:$D$74, Вводные!$D$93:$D$97, Вводные!$D$116:$D$120)) * (S$6 <= MAX(Вводные!$D$47:$D$51, Вводные!$D$70:$D$74, Вводные!$D$93:$D$97, Вводные!$D$116:$D$120)) -> 0 | T35: =(T$6 >= MIN(Вводные!$D$47:$D$51, Вводные!$D$70:$D$74, Вводные!$D$93:$D$97, Вводные!$D$116:$D$120)) * (T$6 <= MAX(Вводные!$D$47:$D$51, Вводные!$D$70:$D$74, Вводные!$D$93:$D$97, Вводные!$D$116:$D$120)) -> 0 | U35: =(U$6 >= MIN(Вводные!$D$47:$D$51, Вводные!$D$70:$D$74, Вводные!$D$93:$D$97, Вводные!$D$116:$D$120)) * (U$6 <= MAX(Вводные!$D$47:$D$51, Вводные!$D$70:$D$74, Вводные!$D$93:$D$97, Вводные!$D$116:$D$120)) -> 0 | V35: =(V$6 >= MIN(Вводные!$D$47:$D$51, Вводные!$D$70:$D$74, Вводные!$D$93:$D$97, Вводные!$D$116:$D$120)) * (V$6 <= MAX(Вводные!$D$47:$D$51, Вводные!$D$70:$D$74, Вводные!$D$93:$D$97, Вводные!$D$116:$D$120)) -> 0 | W35: =(W$6 >= MIN(Вводные!$D$47:$D$51, Вводные!$D$70:$D$74, Вводные!$D$93:$D$97, Вводные!$D$116:$D$120)) * (W$6 <= MAX(Вводные!$D$47:$D$51, Вводные!$D$70:$D$74, Вводные!$D$93:$D$97, Вводные!$D$116:$D$120)) -> 0 | X35: =(X$6 >= MIN(Вводные!$D$47:$D$51, Вводные!$D$70:$D$74, Вводные!$D$93:$D$97, Вводные!$D$116:$D$120)) * (X$6 <= MAX(Вводные!$D$47:$D$51, Вводные!$D$70:$D$74, Вводные!$D$93:$D$97, Вводные!$D$116:$D$120)) -> 0 | Y35: =(Y$6 >= MIN(Вводные!$D$47:$D$51, Вводные!$D$70:$D$74, Вводные!$D$93:$D$97, Вводные!$D$116:$D$120)) * (Y$6 <= MAX(Вводные!$D$47:$D$51, Вводные!$D$70:$D$74, Вводные!$D$93:$D$97, Вводные!$D$116:$D$120)) -> 0 | Z35: =(Z$6 >= MIN(Вводные!$D$47:$D$51, Вводные!$D$70:$D$74, Вводные!$D$93:$D$97, Вводные!$D$116:$D$120)) * (Z$6 <= MAX(Вводные!$D$47:$D$51, Вводные!$D$70:$D$74, Вводные!$D$93:$D$97, Вводные!$D$116:$D$120)) -> 0 | AA35: =(AA$6 >= MIN(Вводные!$D$47:$D$51, Вводные!$D$70:$D$74, Вводные!$D$93:$D$97, Вводные!$D$116:$D$120)) * (AA$6 <= MAX(Вводные!$D$47:$D$51, Вводные!$D$70:$D$74, Вводные!$D$93:$D$97, Вводные!$D$116:$D$120)) -> 0 | AB35: =(AB$6 >= MIN(Вводные!$D$47:$D$51, Вводные!$D$70:$D$74, Вводные!$D$93:$D$97, Вводные!$D$116:$D$120)) * (AB$6 <= MAX(Вводные!$D$47:$D$51, Вводные!$D$70:$D$74, Вводные!$D$93:$D$97, Вводные!$D$116:$D$120)) -> 0 | AC35: =(AC$6 >= MIN(Вводные!$D$47:$D$51, Вводные!$D$70:$D$74, Вводные!$D$93:$D$97, Вводные!$D$116:$D$120)) * (AC$6 <= MAX(Вводные!$D$47:$D$51, Вводные!$D$70:$D$74, Вводные!$D$93:$D$97, Вводные!$D$116:$D$120)) -> 0 | AD35: =(AD$6 >= MIN(Вводные!$D$47:$D$51, Вводные!$D$70:$D$74, Вводные!$D$93:$D$97, Вводные!$D$116:$D$120)) * (AD$6 <= MAX(Вводные!$D$47:$D$51, Вводные!$D$70:$D$74, Вводные!$D$93:$D$97, Вводные!$D$116:$D$120)) -> 0 | AE35: =(AE$6 >= MIN(Вводные!$D$47:$D$51, Вводные!$D$70:$D$74, Вводные!$D$93:$D$97, Вводные!$D$116:$D$120)) * (AE$6 <= MAX(Вводные!$D$47:$D$51, Вводные!$D$70:$D$74, Вводные!$D$93:$D$97, Вводные!$D$116:$D$120)) -> 0 | AF35: =(AF$6 >= MIN(Вводные!$D$47:$D$51, Вводные!$D$70:$D$74, Вводные!$D$93:$D$97, Вводные!$D$116:$D$120)) * (AF$6 <= MAX(Вводные!$D$47:$D$51, Вводные!$D$70:$D$74, Вводные!$D$93:$D$97, Вводные!$D$116:$D$120)) -> 0 | AG35: =(AG$6 >= MIN(Вводные!$D$47:$D$51, Вводные!$D$70:$D$74, Вводные!$D$93:$D$97, Вводные!$D$116:$D$120)) * (AG$6 <= MAX(Вводные!$D$47:$D$51, Вводные!$D$70:$D$74, Вводные!$D$93:$D$97, Вводные!$D$116:$D$120)) -> 0 | AH35: =(AH$6 >= MIN(Вводные!$D$47:$D$51, Вводные!$D$70:$D$74, Вводные!$D$93:$D$97, Вводные!$D$116:$D$120)) * (AH$6 <= MAX(Вводные!$D$47:$D$51, Вводные!$D$70:$D$74, Вводные!$D$93:$D$97, Вводные!$D$116:$D$120)) -> 0 | AI35: =(AI$6 >= MIN(Вводные!$D$47:$D$51, Вводные!$D$70:$D$74, Вводные!$D$93:$D$97, Вводные!$D$116:$D$120)) * (AI$6 <= MAX(Вводные!$D$47:$D$51, Вводные!$D$70:$D$74, Вводные!$D$93:$D$97, Вводные!$D$116:$D$120)) -> 0 | AJ35: =(AJ$6 >= MIN(Вводные!$D$47:$D$51, Вводные!$D$70:$D$74, Вводные!$D$93:$D$97, Вводные!$D$116:$D$120)) * (AJ$6 <= MAX(Вводные!$D$47:$D$51, Вводные!$D$70:$D$74, Вводные!$D$93:$D$97, Вводные!$D$116:$D$120)) -> 0 | AK35: =(AK$6 >= MIN(Вводные!$D$47:$D$51, Вводные!$D$70:$D$74, Вводные!$D$93:$D$97, Вводные!$D$116:$D$120)) * (AK$6 <= MAX(Вводные!$D$47:$D$51, Вводные!$D$70:$D$74, Вводные!$D$93:$D$97, Вводные!$D$116:$D$120)) -> 0 | AL35: =(AL$6 >= MIN(Вводные!$D$47:$D$51, Вводные!$D$70:$D$74, Вводные!$D$93:$D$97, Вводные!$D$116:$D$120)) * (AL$6 <= MAX(Вводные!$D$47:$D$51, Вводные!$D$70:$D$74, Вводные!$D$93:$D$97, Вводные!$D$116:$D$120)) -> 0 | AM35: =(AM$6 >= MIN(Вводные!$D$47:$D$51, Вводные!$D$70:$D$74, Вводные!$D$93:$D$97, Вводные!$D$116:$D$120)) * (AM$6 <= MAX(Вводные!$D$47:$D$51, Вводные!$D$70:$D$74, Вводные!$D$93:$D$97, Вводные!$D$116:$D$120)) -> 0 | AN35: =(AN$6 >= MIN(Вводные!$D$47:$D$51, Вводные!$D$70:$D$74, Вводные!$D$93:$D$97, Вводные!$D$116:$D$120)) * (AN$6 <= MAX(Вводные!$D$47:$D$51, Вводные!$D$70:$D$74, Вводные!$D$93:$D$97, Вводные!$D$116:$D$120)) -> 0 | AO35: =(AO$6 >= MIN(Вводные!$D$47:$D$51, Вводные!$D$70:$D$74, Вводные!$D$93:$D$97, Вводные!$D$116:$D$120)) * (AO$6 <= MAX(Вводные!$D$47:$D$51, Вводные!$D$70:$D$74, Вводные!$D$93:$D$97, Вводные!$D$116:$D$120)) -> 0 | AP35: =(AP$6 >= MIN(Вводные!$D$47:$D$51, Вводные!$D$70:$D$74, Вводные!$D$93:$D$97, Вводные!$D$116:$D$120)) * (AP$6 <= MAX(Вводные!$D$47:$D$51, Вводные!$D$70:$D$74, Вводные!$D$93:$D$97, Вводные!$D$116:$D$120)) -> 0 | AQ35: =(AQ$6 >= MIN(Вводные!$D$47:$D$51, Вводные!$D$70:$D$74, Вводные!$D$93:$D$97, Вводные!$D$116:$D$120)) * (AQ$6 <= MAX(Вводные!$D$47:$D$51, Вводные!$D$70:$D$74, Вводные!$D$93:$D$97, Вводные!$D$116:$D$120)) -> 0 | AR35: =(AR$6 >= MIN(Вводные!$D$47:$D$51, Вводные!$D$70:$D$74, Вводные!$D$93:$D$97, Вводные!$D$116:$D$120)) * (AR$6 <= MAX(Вводные!$D$47:$D$51, Вводные!$D$70:$D$74, Вводные!$D$93:$D$97, Вводные!$D$116:$D$120)) -> 0 | AS35: =(AS$6 >= MIN(Вводные!$D$47:$D$51, Вводные!$D$70:$D$74, Вводные!$D$93:$D$97, Вводные!$D$116:$D$120)) * (AS$6 <= MAX(Вводные!$D$47:$D$51, Вводные!$D$70:$D$74, Вводные!$D$93:$D$97, Вводные!$D$116:$D$120)) -> 0 | AT35: =(AT$6 >= MIN(Вводные!$D$47:$D$51, Вводные!$D$70:$D$74, Вводные!$D$93:$D$97, Вводные!$D$116:$D$120)) * (AT$6 <= MAX(Вводные!$D$47:$D$51, Вводные!$D$70:$D$74, Вводные!$D$93:$D$97, Вводные!$D$116:$D$120)) -> 0 | AU35: =(AU$6 >= MIN(Вводные!$D$47:$D$51, Вводные!$D$70:$D$74, Вводные!$D$93:$D$97, Вводные!$D$116:$D$120)) * (AU$6 <= MAX(Вводные!$D$47:$D$51, Вводные!$D$70:$D$74, Вводные!$D$93:$D$97, Вводные!$D$116:$D$120)) -> 0
B36: Начало периода строительства (реконструкции) | D36: флаг | E36: =SUM(H36:AU36) -> 1 | H36: =(G35 = 0) * (H35 = 1) -> 1 | I36: =(H35 = 0) * (I35 = 1) -> 0 | J36: 0 | K36: 0 | L36: 0 | M36: 0 | N36: 0 | O36: 0 | P36: 0 | Q36: 0 | R36: 0 | S36: 0 | T36: 0 | U36: 0 | V36: 0 | W36: 0 | X36: 0 | Y36: 0 | Z36: 0 | AA36: 0 | AB36: 0 | AC36: 0 | AD36: 0 | AE36: 0 | AF36: 0 | AG36: 0 | AH36: 0 | AI36: 0 | AJ36: 0 | AK36: 0 | AL36: 0 | AM36: 0 | AN36: 0 | AO36: 0 | AP36: 0 | AQ36: 0 | AR36: 0 | AS36: 0 | AT36: 0 | AU36: 0
B38: Период эксплуатации | D38: флаг | E38: =SUM(H38:AU38) -> 15 | H38: =(H$6 > MAX(Вводные!$D$47:$D$51, Вводные!$D$70:$D$74, Вводные!$D$93:$D$97, Вводные!$D$116:$D$120)) * (H$6 <= Вводные!$E$27) -> 0 | I38: =(I$6 > MAX(Вводные!$D$47:$D$51, Вводные!$D$70:$D$74, Вводные!$D$93:$D$97, Вводные!$D$116:$D$120)) * (I$6 <= Вводные!$E$27) -> 0 | J38: =(J$6 > MAX(Вводные!$D$47:$D$51, Вводные!$D$70:$D$74, Вводные!$D$93:$D$97, Вводные!$D$116:$D$120)) * (J$6 <= Вводные!$E$27) -> 0 | K38: =(K$6 > MAX(Вводные!$D$47:$D$51, Вводные!$D$70:$D$74, Вводные!$D$93:$D$97, Вводные!$D$116:$D$120)) * (K$6 <= Вводные!$E$27) -> 0 | L38: =(L$6 > MAX(Вводные!$D$47:$D$51, Вводные!$D$70:$D$74, Вводные!$D$93:$D$97, Вводные!$D$116:$D$120)) * (L$6 <= Вводные!$E$27) -> 0 | M38: =(M$6 > MAX(Вводные!$D$47:$D$51, Вводные!$D$70:$D$74, Вводные!$D$93:$D$97, Вводные!$D$116:$D$120)) * (M$6 <= Вводные!$E$27) -> 1 | N38: =(N$6 > MAX(Вводные!$D$47:$D$51, Вводные!$D$70:$D$74, Вводные!$D$93:$D$97, Вводные!$D$116:$D$120)) * (N$6 <= Вводные!$E$27) -> 1 | O38: =(O$6 > MAX(Вводные!$D$47:$D$51, Вводные!$D$70:$D$74, Вводные!$D$93:$D$97, Вводные!$D$116:$D$120)) * (O$6 <= Вводные!$E$27) -> 1 | P38: =(P$6 > MAX(Вводные!$D$47:$D$51, Вводные!$D$70:$D$74, Вводные!$D$93:$D$97, Вводные!$D$116:$D$120)) * (P$6 <= Вводные!$E$27) -> 1 | Q38: =(Q$6 > MAX(Вводные!$D$47:$D$51, Вводные!$D$70:$D$74, Вводные!$D$93:$D$97, Вводные!$D$116:$D$120)) * (Q$6 <= Вводные!$E$27) -> 1 | R38: =(R$6 > MAX(Вводные!$D$47:$D$51, Вводные!$D$70:$D$74, Вводные!$D$93:$D$97, Вводные!$D$116:$D$120)) * (R$6 <= Вводные!$E$27) -> 1 | S38: =(S$6 > MAX(Вводные!$D$47:$D$51, Вводные!$D$70:$D$74, Вводные!$D$93:$D$97, Вводные!$D$116:$D$120)) * (S$6 <= Вводные!$E$27) -> 1 | T38: =(T$6 > MAX(Вводные!$D$47:$D$51, Вводные!$D$70:$D$74, Вводные!$D$93:$D$97, Вводные!$D$116:$D$120)) * (T$6 <= Вводные!$E$27) -> 1 | U38: =(U$6 > MAX(Вводные!$D$47:$D$51, Вводные!$D$70:$D$74, Вводные!$D$93:$D$97, Вводные!$D$116:$D$120)) * (U$6 <= Вводные!$E$27) -> 1 | V38: =(V$6 > MAX(Вводные!$D$47:$D$51, Вводные!$D$70:$D$74, Вводные!$D$93:$D$97, Вводные!$D$116:$D$120)) * (V$6 <= Вводные!$E$27) -> 1 | W38: =(W$6 > MAX(Вводные!$D$47:$D$51, Вводные!$D$70:$D$74, Вводные!$D$93:$D$97, Вводные!$D$116:$D$120)) * (W$6 <= Вводные!$E$27) -> 1 | X38: =(X$6 > MAX(Вводные!$D$47:$D$51, Вводные!$D$70:$D$74, Вводные!$D$93:$D$97, Вводные!$D$116:$D$120)) * (X$6 <= Вводные!$E$27) -> 1 | Y38: =(Y$6 > MAX(Вводные!$D$47:$D$51, Вводные!$D$70:$D$74, Вводные!$D$93:$D$97, Вводные!$D$116:$D$120)) * (Y$6 <= Вводные!$E$27) -> 1 | Z38: =(Z$6 > MAX(Вводные!$D$47:$D$51, Вводные!$D$70:$D$74, Вводные!$D$93:$D$97, Вводные!$D$116:$D$120)) * (Z$6 <= Вводные!$E$27) -> 1 | AA38: =(AA$6 > MAX(Вводные!$D$47:$D$51, Вводные!$D$70:$D$74, Вводные!$D$93:$D$97, Вводные!$D$116:$D$120)) * (AA$6 <= Вводные!$E$27) -> 1 | AB38: =(AB$6 > MAX(Вводные!$D$47:$D$51, Вводные!$D$70:$D$74, Вводные!$D$93:$D$97, Вводные!$D$116:$D$120)) * (AB$6 <= Вводные!$E$27) -> 0 | AC38: =(AC$6 > MAX(Вводные!$D$47:$D$51, Вводные!$D$70:$D$74, Вводные!$D$93:$D$97, Вводные!$D$116:$D$120)) * (AC$6 <= Вводные!$E$27) -> 0 | AD38: =(AD$6 > MAX(Вводные!$D$47:$D$51, Вводные!$D$70:$D$74, Вводные!$D$93:$D$97, Вводные!$D$116:$D$120)) * (AD$6 <= Вводные!$E$27) -> 0 | AE38: =(AE$6 > MAX(Вводные!$D$47:$D$51, Вводные!$D$70:$D$74, Вводные!$D$93:$D$97, Вводные!$D$116:$D$120)) * (AE$6 <= Вводные!$E$27) -> 0 | AF38: =(AF$6 > MAX(Вводные!$D$47:$D$51, Вводные!$D$70:$D$74, Вводные!$D$93:$D$97, Вводные!$D$116:$D$120)) * (AF$6 <= Вводные!$E$27) -> 0 | AG38: =(AG$6 > MAX(Вводные!$D$47:$D$51, Вводные!$D$70:$D$74, Вводные!$D$93:$D$97, Вводные!$D$116:$D$120)) * (AG$6 <= Вводные!$E$27) -> 0 | AH38: =(AH$6 > MAX(Вводные!$D$47:$D$51, Вводные!$D$70:$D$74, Вводные!$D$93:$D$97, Вводные!$D$116:$D$120)) * (AH$6 <= Вводные!$E$27) -> 0 | AI38: =(AI$6 > MAX(Вводные!$D$47:$D$51, Вводные!$D$70:$D$74, Вводные!$D$93:$D$97, Вводные!$D$116:$D$120)) * (AI$6 <= Вводные!$E$27) -> 0 | AJ38: =(AJ$6 > MAX(Вводные!$D$47:$D$51, Вводные!$D$70:$D$74, Вводные!$D$93:$D$97, Вводные!$D$116:$D$120)) * (AJ$6 <= Вводные!$E$27) -> 0 | AK38: =(AK$6 > MAX(Вводные!$D$47:$D$51, Вводные!$D$70:$D$74, Вводные!$D$93:$D$97, Вводные!$D$116:$D$120)) * (AK$6 <= Вводные!$E$27) -> 0 | AL38: =(AL$6 > MAX(Вводные!$D$47:$D$51, Вводные!$D$70:$D$74, Вводные!$D$93:$D$97, Вводные!$D$116:$D$120)) * (AL$6 <= Вводные!$E$27) -> 0 | AM38: =(AM$6 > MAX(Вводные!$D$47:$D$51, Вводные!$D$70:$D$74, Вводные!$D$93:$D$97, Вводные!$D$116:$D$120)) * (AM$6 <= Вводные!$E$27) -> 0 | AN38: =(AN$6 > MAX(Вводные!$D$47:$D$51, Вводные!$D$70:$D$74, Вводные!$D$93:$D$97, Вводные!$D$116:$D$120)) * (AN$6 <= Вводные!$E$27) -> 0 | AO38: =(AO$6 > MAX(Вводные!$D$47:$D$51, Вводные!$D$70:$D$74, Вводные!$D$93:$D$97, Вводные!$D$116:$D$120)) * (AO$6 <= Вводные!$E$27) -> 0 | AP38: =(AP$6 > MAX(Вводные!$D$47:$D$51, Вводные!$D$70:$D$74, Вводные!$D$93:$D$97, Вводные!$D$116:$D$120)) * (AP$6 <= Вводные!$E$27) -> 0 | AQ38: =(AQ$6 > MAX(Вводные!$D$47:$D$51, Вводные!$D$70:$D$74, Вводные!$D$93:$D$97, Вводные!$D$116:$D$120)) * (AQ$6 <= Вводные!$E$27) -> 0 | AR38: =(AR$6 > MAX(Вводные!$D$47:$D$51, Вводные!$D$70:$D$74, Вводные!$D$93:$D$97, Вводные!$D$116:$D$120)) * (AR$6 <= Вводные!$E$27) -> 0 | AS38: =(AS$6 > MAX(Вводные!$D$47:$D$51, Вводные!$D$70:$D$74, Вводные!$D$93:$D$97, Вводные!$D$116:$D$120)) * (AS$6 <= Вводные!$E$27) -> 0 | AT38: =(AT$6 > MAX(Вводные!$D$47:$D$51, Вводные!$D$70:$D$74, Вводные!$D$93:$D$97, Вводные!$D$116:$D$120)) * (AT$6 <= Вводные!$E$27) -> 0 | AU38: =(AU$6 > MAX(Вводные!$D$47:$D$51, Вводные!$D$70:$D$74, Вводные!$D$93:$D$97, Вводные!$D$116:$D$120)) * (AU$6 <= Вводные!$E$27) -> 0
B39: Начало периода эксплуатации | D39: флаг | E39: =SUM(H39:AU39) -> 1 | F39: =SUMPRODUCT($H$39:$AU$39, $H$6:$AU$6) -> 2026 | H39: =(G38 = 0) * (H38 = 1) -> 0 | I39: 0 | J39: 0 | K39: 0 | L39: 0 | M39: 1 | N39: 0 | O39: 0 | P39: 0 | Q39: 0 | R39: 0 | S39: 0 | T39: 0 | U39: 0 | V39: 0 | W39: 0 | X39: 0 | Y39: 0 | Z39: 0 | AA39: 0 | AB39: 0 | AC39: 0 | AD39: 0 | AE39: 0 | AF39: 0 | AG39: 0 | AH39: 0 | AI39: 0 | AJ39: 0 | AK39: 0 | AL39: 0 | AM39: 0 | AN39: 0 | AO39: 0 | AP39: 0 | AQ39: 0 | AR39: 0 | AS39: 0 | AT39: 0 | AU39: 0
B40: Окончание периода эксплуатации | D40: флаг | E40: =SUM(H40:AU40) -> 1 | H40: =(H38 = 1) * (I38 = 0) -> 0 | I40: =(I38 = 1) * (J38 = 0) -> 0 | J40: 0 | K40: 0 | L40: 0 | M40: 0 | N40: 0 | O40: 0 | P40: 0 | Q40: 0 | R40: 0 | S40: 0 | T40: 0 | U40: 0 | V40: 0 | W40: 0 | X40: 0 | Y40: 0 | Z40: 0 | AA40: 1 | AB40: 0 | AC40: 0 | AD40: 0 | AE40: 0 | AF40: 0 | AG40: 0 | AH40: 0 | AI40: 0 | AJ40: 0 | AK40: 0 | AL40: 0 | AM40: 0 | AN40: 0 | AO40: 0 | AP40: 0 | AQ40: 0 | AR40: 0 | AS40: 0 | AT40: 0 | AU40: 0
B41: Период эксплуатации | D41: номер | H41: =SUM($H38:H38) -> 0 | I41: =SUM($H38:I38) -> 0 | J41: =SUM($H38:J38) -> 0 | K41: =SUM($H38:K38) -> 0 | L41: =SUM($H38:L38) -> 0 | M41: =SUM($H38:M38) -> 1 | N41: =SUM($H38:N38) -> 2 | O41: =SUM($H38:O38) -> 3 | P41: =SUM($H38:P38) -> 4 | Q41: =SUM($H38:Q38) -> 5 | R41: =SUM($H38:R38) -> 6 | S41: =SUM($H38:S38) -> 7 | T41: =SUM($H38:T38) -> 8 | U41: =SUM($H38:U38) -> 9 | V41: =SUM($H38:V38) -> 10 | W41: =SUM($H38:W38) -> 11 | X41: =SUM($H38:X38) -> 12 | Y41: =SUM($H38:Y38) -> 13 | Z41: =SUM($H38:Z38) -> 14 | AA41: =SUM($H38:AA38) -> 15 | AB41: =SUM($H38:AB38) -> 15 | AC41: =SUM($H38:AC38) -> 15 | AD41: =SUM($H38:AD38) -> 15 | AE41: =SUM($H38:AE38) -> 15 | AF41: =SUM($H38:AF38) -> 15 | AG41: =SUM($H38:AG38) -> 15 | AH41: =SUM($H38:AH38) -> 15 | AI41: =SUM($H38:AI38) -> 15 | AJ41: =SUM($H38:AJ38) -> 15 | AK41: =SUM($H38:AK38) -> 15 | AL41: =SUM($H38:AL38) -> 15 | AM41: =SUM($H38:AM38) -> 15 | AN41: =SUM($H38:AN38) -> 15 | AO41: =SUM($H38:AO38) -> 15 | AP41: =SUM($H38:AP38) -> 15 | AQ41: =SUM($H38:AQ38) -> 15 | AR41: =SUM($H38:AR38) -> 15 | AS41: =SUM($H38:AS38) -> 15 | AT41: =SUM($H38:AT38) -> 15 | AU41: =SUM($H38:AU38) -> 15
B43: ИПЦ | D43: (%) | H43: =Вводные!H31 / hnd -> 0.038 | I43: =Вводные!I31 / hnd -> 0.04 | J43: =Вводные!J31 / hnd -> 0.04 | K43: =Вводные!K31 / hnd -> 0.04 | L43: =Вводные!L31 / hnd -> 0.04 | M43: =Вводные!M31 / hnd -> 0.04 | N43: =Вводные!N31 / hnd -> 0.04 | O43: =Вводные!O31 / hnd -> 0.04 | P43: =Вводные!P31 / hnd -> 0.04 | Q43: =Вводные!Q31 / hnd -> 0.04 | R43: =Вводные!R31 / hnd -> 0.04 | S43: =Вводные!S31 / hnd -> 0.04 | T43: =Вводные!T31 / hnd -> 0.04 | U43: =Вводные!U31 / hnd -> 0.04 | V43: =Вводные!V31 / hnd -> 0.04 | W43: =Вводные!W31 / hnd -> 0.04 | X43: =Вводные!X31 / hnd -> 0.04 | Y43: =Вводные!Y31 / hnd -> 0.04 | Z43: =Вводные!Z31 / hnd -> 0.04 | AA43: =Вводные!AA31 / hnd -> 0.04 | AB43: =Вводные!AB31 / hnd -> 0.04 | AC43: =Вводные!AC31 / hnd -> 0.04 | AD43: =Вводные!AD31 / hnd -> 0.04 | AE43: =Вводные!AE31 / hnd -> 0.04 | AF43: =Вводные!AF31 / hnd -> 0.04 | AG43: =Вводные!AG31 / hnd -> 0.04 | AH43: =Вводные!AH31 / hnd -> 0.04 | AI43: =Вводные!AI31 / hnd -> 0.04 | AJ43: =Вводные!AJ31 / hnd -> 0.04 | AK43: =Вводные!AK31 / hnd -> 0.04 | AL43: =Вводные!AL31 / hnd -> 0.04 | AM43: =Вводные!AM31 / hnd -> 0.04 | AN43: =Вводные!AN31 / hnd -> 0.04 | AO43: =Вводные!AO31 / hnd -> 0.04 | AP43: =Вводные!AP31 / hnd -> 0.04 | AQ43: =Вводные!AQ31 / hnd -> 0.04 | AR43: =Вводные!AR31 / hnd -> 0.04 | AS43: =Вводные!AS31 / hnd -> 0.04 | AT43: =Вводные!AT31 / hnd -> 0.04 | AU43: =Вводные!AU31 / hnd -> 0.04
B44: Накопленный ИПЦ | D44: индекс | H44: =IF(G44, G44, 1) * (1 + H43) -> 1.038 | I44: =IF(H44, H44, 1) * (1 + I43) -> 1.07952 | J44: 1.1227008 | K44: 1.167608832 | L44: 1.214313185 | M44: 1.262885713 | N44: 1.313401141 | O44: 1.365937187 | P44: 1.420574674 | Q44: 1.477397661 | R44: 1.536493568 | S44: 1.59795331 | T44: 1.661871443 | U44: 1.728346301 | V44: 1.797480153 | W44: 1.869379359 | X44: 1.944154533 | Y44: 2.021920714 | Z44: 2.102797543 | AA44: 2.186909445 | AB44: 2.274385822 | AC44: 2.365361255 | AD44: 2.459975706 | AE44: 2.558374734 | AF44: 2.660709723 | AG44: 2.767138112 | AH44: 2.877823637 | AI44: 2.992936582 | AJ44: 3.112654045 | AK44: 3.237160207 | AL44: 3.366646615 | AM44: 3.50131248 | AN44: 3.641364979 | AO44: 3.787019578 | AP44: 3.938500362 | AQ44: 4.096040376 | AR44: 4.259881991 | AS44: 4.430277271 | AT44: 4.607488361 | AU44: 4.791787896
B46: Квартальный дефлятор
B47: 1 | D47: индекс | H47: =IF(AND(ISBLANK(G$50), ISBLANK(H46)), 1, IF(ISBLANK(H46), G$50, H46) * (1 + H$43) ^ (1 / COUNTA($B$47:$B$50))) -> 1.00936755 | I47: =IF(AND(ISBLANK(H$50), ISBLANK(I46)), 1, IF(ISBLANK(I46), H$50, I46) * (1 + I$43) ^ (1 / COUNTA($B$47:$B$50))) -> 1.048227836 | J47: 1.090156949 | K47: 1.133763227 | L47: 1.179113757 | M47: 1.226278307 | N47: 1.275329439 | O47: 1.326342617 | P47: 1.379396321 | Q47: 1.434572174 | R47: 1.491955061 | S47: 1.551633264 | T47: 1.613698594 | U47: 1.678246538 | V47: 1.745376399 | W47: 1.815191455 | X47: 1.887799114 | Y47: 1.963311078 | Z47: 2.041843521 | AA47: 2.123517262 | AB47: 2.208457953 | AC47: 2.296796271 | AD47: 2.388668121 | AE47: 2.484214846 | AF47: 2.58358344 | AG47: 2.686926778 | AH47: 2.794403849 | AI47: 2.906180003 | AJ47: 3.022427203 | AK47: 3.143324291 | AL47: 3.269057263 | AM47: 3.399819553 | AN47: 3.535812335 | AO47: 3.677244829 | AP47: 3.824334622 | AQ47: 3.977308007 | AR47: 4.136400327 | AS47: 4.30185634 | AT47: 4.473930594 | AU47: 4.652887817
B48: =B47 + 1 -> 2 | D48: индекс | H48: =IF(AND(ISBLANK(G$50), ISBLANK(H47)), 1, IF(ISBLANK(H47), G$50, H47) * (1 + H$43) ^ (1 / COUNTA($B$47:$B$50))) -> 1.01882285 | I48: 1.058556451 | J48: 1.100898709 | K48: 1.144934657 | L48: 1.190732044 | M48: 1.238361325 | N48: 1.287895778 | O48: 1.33941161 | P48: 1.392988074 | Q48: 1.448707597 | R48: 1.506655901 | S48: 1.566922137 | T48: 1.629599022 | U48: 1.694782983 | V48: 1.762574303 | W48: 1.833077275 | X48: 1.906400366 | Y48: 1.98265638 | Z48: 2.061962636 | AA48: 2.144441141 | AB48: 2.230218787 | AC48: 2.319427538 | AD48: 2.41220464 | AE48: 2.508692825 | AF48: 2.609040538 | AG48: 2.71340216 | AH48: 2.821938246 | AI48: 2.934815776 | AJ48: 3.052208407 | AK48: 3.174296743 | AL48: 3.301268613 | AM48: 3.433319357 | AN48: 3.570652132 | AO48: 3.713478217 | AP48: 3.862017346 | AQ48: 4.01649804 | AR48: 4.177157961 | AS48: 4.34424428 | AT48: 4.518014051 | AU48: 4.698734613
B49: =B48 + 1 -> 3 | D49: индекс | H49: 1.028366724 | I49: 1.068986838 | J49: 1.111746312 | K49: 1.156216164 | L49: 1.202464811 | M49: 1.250563403 | N49: 1.300585939 | O49: 1.352609377 | P49: 1.406713752 | Q49: 1.462982302 | R49: 1.521501594 | S49: 1.582361658 | T49: 1.645656124 | U49: 1.711482369 | V49: 1.779941664 | W49: 1.85113933 | X49: 1.925184904 | Y49: 2.0021923 | Z49: 2.082279992 | AA49: 2.165571191 | AB49: 2.252194039 | AC49: 2.342281801 | AD49: 2.435973073 | AE49: 2.533411995 | AF49: 2.634748475 | AG49: 2.740138414 | AH49: 2.849743951 | AI49: 2.963733709 | AJ49: 3.082283057 | AK49: 3.20557438 | AL49: 3.333797355 | AM49: 3.467149249 | AN49: 3.605835219 | AO49: 3.750068628 | AP49: 3.900071373 | AQ49: 4.056074228 | AR49: 4.218317197 | AS49: 4.387049885 | AT49: 4.56253188 | AU49: 4.745033155
B50: 4 | D50: индекс | G50: 1 | H50: 1.038 | I50: 1.07952 | J50: 1.1227008 | K50: 1.167608832 | L50: 1.214313185 | M50: 1.262885713 | N50: 1.313401141 | O50: 1.365937187 | P50: 1.420574674 | Q50: 1.477397661 | R50: 1.536493568 | S50: 1.59795331 | T50: 1.661871443 | U50: 1.728346301 | V50: 1.797480153 | W50: 1.869379359 | X50: 1.944154533 | Y50: 2.021920714 | Z50: 2.102797543 | AA50: 2.186909445 | AB50: 2.274385822 | AC50: 2.365361255 | AD50: 2.459975706 | AE50: 2.558374734 | AF50: 2.660709723 | AG50: 2.767138112 | AH50: 2.877823637 | AI50: 2.992936582 | AJ50: 3.112654045 | AK50: 3.237160207 | AL50: 3.366646615 | AM50: 3.50131248 | AN50: 3.641364979 | AO50: 3.787019578 | AP50: 3.938500362 | AQ50: 4.096040376 | AR50: 4.259881991 | AS50: 4.430277271 | AT50: 4.607488361 | AU50: 4.791787896
A52: =MAX(A$1:A45) + 1 -> 3 | B52: Основные средства
B54: Оборудование
B55: Капитальные затраты в периоде, от общего объема | D55: (%) | E55: =SUM(H55:AU55) -> 1 | H55: =SUMIF(Вводные!$B$47:$B$51, H$6, Вводные!$E$47:$E$51) * Вводные!$E$16 -> 0 | I55: =SUMIF(Вводные!$B$47:$B$51, I$6, Вводные!$E$47:$E$51) * Вводные!$E$16 -> 0.2 | J55: =SUMIF(Вводные!$B$47:$B$51, J$6, Вводные!$E$47:$E$51) * Вводные!$E$16 -> 0.2 | K55: =SUMIF(Вводные!$B$47:$B$51, K$6, Вводные!$E$47:$E$51) * Вводные!$E$16 -> 0.2 | L55: =SUMIF(Вводные!$B$47:$B$51, L$6, Вводные!$E$47:$E$51) * Вводные!$E$16 -> 0.4 | M55: =SUMIF(Вводные!$B$47:$B$51, M$6, Вводные!$E$47:$E$51) * Вводные!$E$16 -> 0 | N55: =SUMIF(Вводные!$B$47:$B$51, N$6, Вводные!$E$47:$E$51) * Вводные!$E$16 -> 0 | O55: =SUMIF(Вводные!$B$47:$B$51, O$6, Вводные!$E$47:$E$51) * Вводные!$E$16 -> 0 | P55: =SUMIF(Вводные!$B$47:$B$51, P$6, Вводные!$E$47:$E$51) * Вводные!$E$16 -> 0 | Q55: =SUMIF(Вводные!$B$47:$B$51, Q$6, Вводные!$E$47:$E$51) * Вводные!$E$16 -> 0 | R55: =SUMIF(Вводные!$B$47:$B$51, R$6, Вводные!$E$47:$E$51) * Вводные!$E$16 -> 0 | S55: =SUMIF(Вводные!$B$47:$B$51, S$6, Вводные!$E$47:$E$51) * Вводные!$E$16 -> 0 | T55: =SUMIF(Вводные!$B$47:$B$51, T$6, Вводные!$E$47:$E$51) * Вводные!$E$16 -> 0 | U55: =SUMIF(Вводные!$B$47:$B$51, U$6, Вводные!$E$47:$E$51) * Вводные!$E$16 -> 0 | V55: =SUMIF(Вводные!$B$47:$B$51, V$6, Вводные!$E$47:$E$51) * Вводные!$E$16 -> 0 | W55: =SUMIF(Вводные!$B$47:$B$51, W$6, Вводные!$E$47:$E$51) * Вводные!$E$16 -> 0 | X55: =SUMIF(Вводные!$B$47:$B$51, X$6, Вводные!$E$47:$E$51) * Вводные!$E$16 -> 0 | Y55: =SUMIF(Вводные!$B$47:$B$51, Y$6, Вводные!$E$47:$E$51) * Вводные!$E$16 -> 0 | Z55: =SUMIF(Вводные!$B$47:$B$51, Z$6, Вводные!$E$47:$E$51) * Вводные!$E$16 -> 0 | AA55: =SUMIF(Вводные!$B$47:$B$51, AA$6, Вводные!$E$47:$E$51) * Вводные!$E$16 -> 0 | AB55: =SUMIF(Вводные!$B$47:$B$51, AB$6, Вводные!$E$47:$E$51) * Вводные!$E$16 -> 0 | AC55: =SUMIF(Вводные!$B$47:$B$51, AC$6, Вводные!$E$47:$E$51) * Вводные!$E$16 -> 0 | AD55: =SUMIF(Вводные!$B$47:$B$51, AD$6, Вводные!$E$47:$E$51) * Вводные!$E$16 -> 0 | AE55: =SUMIF(Вводные!$B$47:$B$51, AE$6, Вводные!$E$47:$E$51) * Вводные!$E$16 -> 0 | AF55: =SUMIF(Вводные!$B$47:$B$51, AF$6, Вводные!$E$47:$E$51) * Вводные!$E$16 -> 0 | AG55: =SUMIF(Вводные!$B$47:$B$51, AG$6, Вводные!$E$47:$E$51) * Вводные!$E$16 -> 0 | AH55: =SUMIF(Вводные!$B$47:$B$51, AH$6, Вводные!$E$47:$E$51) * Вводные!$E$16 -> 0 | AI55: =SUMIF(Вводные!$B$47:$B$51, AI$6, Вводные!$E$47:$E$51) * Вводные!$E$16 -> 0 | AJ55: =SUMIF(Вводные!$B$47:$B$51, AJ$6, Вводные!$E$47:$E$51) * Вводные!$E$16 -> 0 | AK55: =SUMIF(Вводные!$B$47:$B$51, AK$6, Вводные!$E$47:$E$51) * Вводные!$E$16 -> 0 | AL55: =SUMIF(Вводные!$B$47:$B$51, AL$6, Вводные!$E$47:$E$51) * Вводные!$E$16 -> 0 | AM55: =SUMIF(Вводные!$B$47:$B$51, AM$6, Вводные!$E$47:$E$51) * Вводные!$E$16 -> 0 | AN55: =SUMIF(Вводные!$B$47:$B$51, AN$6, Вводные!$E$47:$E$51) * Вводные!$E$16 -> 0 | AO55: =SUMIF(Вводные!$B$47:$B$51, AO$6, Вводные!$E$47:$E$51) * Вводные!$E$16 -> 0 | AP55: =SUMIF(Вводные!$B$47:$B$51, AP$6, Вводные!$E$47:$E$51) * Вводные!$E$16 -> 0 | AQ55: =SUMIF(Вводные!$B$47:$B$51, AQ$6, Вводные!$E$47:$E$51) * Вводные!$E$16 -> 0 | AR55: =SUMIF(Вводные!$B$47:$B$51, AR$6, Вводные!$E$47:$E$51) * Вводные!$E$16 -> 0 | AS55: =SUMIF(Вводные!$B$47:$B$51, AS$6, Вводные!$E$47:$E$51) * Вводные!$E$16 -> 0 | AT55: =SUMIF(Вводные!$B$47:$B$51, AT$6, Вводные!$E$47:$E$51) * Вводные!$E$16 -> 0 | AU55: =SUMIF(Вводные!$B$47:$B$51, AU$6, Вводные!$E$47:$E$51) * Вводные!$E$16 -> 0
B56: Капитальные затраты в периоде | D56: =smu -> млн руб. | E56: =SUM(H56:AU56) -> 22855.90516 | H56: =SUM(H57:H60) -> 0 | I56: =SUM(I57:I60) -> 4255.168397 | J56: 4425.375133 | K56: 4602.390138 | L56: 9572.971487 | M56: 0 | N56: 0 | O56: 0 | P56: 0 | Q56: 0 | R56: 0 | S56: 0 | T56: 0 | U56: 0 | V56: 0 | W56: 0 | X56: 0 | Y56: 0 | Z56: 0 | AA56: 0 | AB56: 0 | AC56: 0 | AD56: 0 | AE56: 0 | AF56: 0 | AG56: 0 | AH56: 0 | AI56: 0 | AJ56: 0 | AK56: 0 | AL56: 0 | AM56: 0 | AN56: 0 | AO56: 0 | AP56: 0 | AQ56: 0 | AR56: 0 | AS56: 0 | AT56: 0 | AU56: 0
B57: 1 | D57: млн руб. | E57: =SUM(H57:AU57) -> 2252.15021 | H57: =Вводные!$E$43 * H$55 * Вводные!H55 * H47 -> 0 | I57: =Вводные!$E$43 * I$55 * Вводные!I55 * I47 -> 419.2911344 | J57: =Вводные!$E$43 * J$55 * Вводные!J55 * J47 -> 436.0627798 | K57: =Вводные!$E$43 * K$55 * Вводные!K55 * K47 -> 453.505291 | L57: =Вводные!$E$43 * L$55 * Вводные!L55 * L47 -> 943.2910052 | M57: =Вводные!$E$43 * M$55 * Вводные!M55 * M47 -> 0 | N57: =Вводные!$E$43 * N$55 * Вводные!N55 * N47 -> 0 | O57: =Вводные!$E$43 * O$55 * Вводные!O55 * O47 -> 0 | P57: =Вводные!$E$43 * P$55 * Вводные!P55 * P47 -> 0 | Q57: =Вводные!$E$43 * Q$55 * Вводные!Q55 * Q47 -> 0 | R57: =Вводные!$E$43 * R$55 * Вводные!R55 * R47 -> 0 | S57: =Вводные!$E$43 * S$55 * Вводные!S55 * S47 -> 0 | T57: =Вводные!$E$43 * T$55 * Вводные!T55 * T47 -> 0 | U57: =Вводные!$E$43 * U$55 * Вводные!U55 * U47 -> 0 | V57: =Вводные!$E$43 * V$55 * Вводные!V55 * V47 -> 0 | W57: =Вводные!$E$43 * W$55 * Вводные!W55 * W47 -> 0 | X57: =Вводные!$E$43 * X$55 * Вводные!X55 * X47 -> 0 | Y57: =Вводные!$E$43 * Y$55 * Вводные!Y55 * Y47 -> 0 | Z57: =Вводные!$E$43 * Z$55 * Вводные!Z55 * Z47 -> 0 | AA57: =Вводные!$E$43 * AA$55 * Вводные!AA55 * AA47 -> 0 | AB57: =Вводные!$E$43 * AB$55 * Вводные!AB55 * AB47 -> 0 | AC57: =Вводные!$E$43 * AC$55 * Вводные!AC55 * AC47 -> 0 | AD57: =Вводные!$E$43 * AD$55 * Вводные!AD55 * AD47 -> 0 | AE57: =Вводные!$E$43 * AE$55 * Вводные!AE55 * AE47 -> 0 | AF57: =Вводные!$E$43 * AF$55 * Вводные!AF55 * AF47 -> 0 | AG57: =Вводные!$E$43 * AG$55 * Вводные!AG55 * AG47 -> 0 | AH57: =Вводные!$E$43 * AH$55 * Вводные!AH55 * AH47 -> 0 | AI57: =Вводные!$E$43 * AI$55 * Вводные!AI55 * AI47 -> 0 | AJ57: =Вводные!$E$43 * AJ$55 * Вводные!AJ55 * AJ47 -> 0 | AK57: =Вводные!$E$43 * AK$55 * Вводные!AK55 * AK47 -> 0 | AL57: =Вводные!$E$43 * AL$55 * Вводные!AL55 * AL47 -> 0 | AM57: =Вводные!$E$43 * AM$55 * Вводные!AM55 * AM47 -> 0 | AN57: =Вводные!$E$43 * AN$55 * Вводные!AN55 * AN47 -> 0 | AO57: =Вводные!$E$43 * AO$55 * Вводные!AO55 * AO47 -> 0 | AP57: =Вводные!$E$43 * AP$55 * Вводные!AP55 * AP47 -> 0 | AQ57: =Вводные!$E$43 * AQ$55 * Вводные!AQ55 * AQ47 -> 0 | AR57: =Вводные!$E$43 * AR$55 * Вводные!AR55 * AR47 -> 0 | AS57: =Вводные!$E$43 * AS$55 * Вводные!AS55 * AS47 -> 0 | AT57: =Вводные!$E$43 * AT$55 * Вводные!AT55 * AT47 -> 0 | AU57: =Вводные!$E$43 * AU$55 * Вводные!AU55 * AU47 -> 0
B58: =B57 + 1 -> 2 | D58: млн руб. | E58: 9097.366248 | H58: =Вводные!$E$43 * H$55 * Вводные!H56 * H48 -> 0 | I58: =Вводные!$E$43 * I$55 * Вводные!I56 * I48 -> 1693.690322 | J58: =Вводные!$E$43 * J$55 * Вводные!J56 * J48 -> 1761.437935 | K58: =Вводные!$E$43 * K$55 * Вводные!K56 * K48 -> 1831.895452 | L58: =Вводные!$E$43 * L$55 * Вводные!L56 * L48 -> 3810.34254 | M58: =Вводные!$E$43 * M$55 * Вводные!M56 * M48 -> 0 | N58: =Вводные!$E$43 * N$55 * Вводные!N56 * N48 -> 0 | O58: =Вводные!$E$43 * O$55 * Вводные!O56 * O48 -> 0 | P58: =Вводные!$E$43 * P$55 * Вводные!P56 * P48 -> 0 | Q58: =Вводные!$E$43 * Q$55 * Вводные!Q56 * Q48 -> 0 | R58: =Вводные!$E$43 * R$55 * Вводные!R56 * R48 -> 0 | S58: =Вводные!$E$43 * S$55 * Вводные!S56 * S48 -> 0 | T58: =Вводные!$E$43 * T$55 * Вводные!T56 * T48 -> 0 | U58: =Вводные!$E$43 * U$55 * Вводные!U56 * U48 -> 0 | V58: =Вводные!$E$43 * V$55 * Вводные!V56 * V48 -> 0 | W58: =Вводные!$E$43 * W$55 * Вводные!W56 * W48 -> 0 | X58: =Вводные!$E$43 * X$55 * Вводные!X56 * X48 -> 0 | Y58: =Вводные!$E$43 * Y$55 * Вводные!Y56 * Y48 -> 0 | Z58: =Вводные!$E$43 * Z$55 * Вводные!Z56 * Z48 -> 0 | AA58: =Вводные!$E$43 * AA$55 * Вводные!AA56 * AA48 -> 0 | AB58: =Вводные!$E$43 * AB$55 * Вводные!AB56 * AB48 -> 0 | AC58: =Вводные!$E$43 * AC$55 * Вводные!AC56 * AC48 -> 0 | AD58: =Вводные!$E$43 * AD$55 * Вводные!AD56 * AD48 -> 0 | AE58: =Вводные!$E$43 * AE$55 * Вводные!AE56 * AE48 -> 0 | AF58: =Вводные!$E$43 * AF$55 * Вводные!AF56 * AF48 -> 0 | AG58: =Вводные!$E$43 * AG$55 * Вводные!AG56 * AG48 -> 0 | AH58: =Вводные!$E$43 * AH$55 * Вводные!AH56 * AH48 -> 0 | AI58: =Вводные!$E$43 * AI$55 * Вводные!AI56 * AI48 -> 0 | AJ58: =Вводные!$E$43 * AJ$55 * Вводные!AJ56 * AJ48 -> 0 | AK58: =Вводные!$E$43 * AK$55 * Вводные!AK56 * AK48 -> 0 | AL58: =Вводные!$E$43 * AL$55 * Вводные!AL56 * AL48 -> 0 | AM58: =Вводные!$E$43 * AM$55 * Вводные!AM56 * AM48 -> 0 | AN58: =Вводные!$E$43 * AN$55 * Вводные!AN56 * AN48 -> 0 | AO58: =Вводные!$E$43 * AO$55 * Вводные!AO56 * AO48 -> 0 | AP58: =Вводные!$E$43 * AP$55 * Вводные!AP56 * AP48 -> 0 | AQ58: =Вводные!$E$43 * AQ$55 * Вводные!AQ56 * AQ48 -> 0 | AR58: =Вводные!$E$43 * AR$55 * Вводные!AR56 * AR48 -> 0 | AS58: =Вводные!$E$43 * AS$55 * Вводные!AS56 * AS48 -> 0 | AT58: =Вводные!$E$43 * AT$55 * Вводные!AT56 * AT48 -> 0 | AU58: =Вводные!$E$43 * AU$55 * Вводные!AU56 * AU48 -> 0
B59: =B58 + 1 -> 3 | D59: млн руб. | E59: 9187.006296 | H59: =Вводные!$E$43 * H$55 * Вводные!H57 * H49 -> 0 | I59: =Вводные!$E$43 * I$55 * Вводные!I57 * I49 -> 1710.378941 | J59: =Вводные!$E$43 * J$55 * Вводные!J57 * J49 -> 1778.794099 | K59: =Вводные!$E$43 * K$55 * Вводные!K57 * K49 -> 1849.945863 | L59: =Вводные!$E$43 * L$55 * Вводные!L57 * L49 -> 3847.887394 | M59: =Вводные!$E$43 * M$55 * Вводные!M57 * M49 -> 0 | N59: =Вводные!$E$43 * N$55 * Вводные!N57 * N49 -> 0 | O59: =Вводные!$E$43 * O$55 * Вводные!O57 * O49 -> 0 | P59: =Вводные!$E$43 * P$55 * Вводные!P57 * P49 -> 0 | Q59: =Вводные!$E$43 * Q$55 * Вводные!Q57 * Q49 -> 0 | R59: =Вводные!$E$43 * R$55 * Вводные!R57 * R49 -> 0 | S59: =Вводные!$E$43 * S$55 * Вводные!S57 * S49 -> 0 | T59: =Вводные!$E$43 * T$55 * Вводные!T57 * T49 -> 0 | U59: =Вводные!$E$43 * U$55 * Вводные!U57 * U49 -> 0 | V59: =Вводные!$E$43 * V$55 * Вводные!V57 * V49 -> 0 | W59: =Вводные!$E$43 * W$55 * Вводные!W57 * W49 -> 0 | X59: =Вводные!$E$43 * X$55 * Вводные!X57 * X49 -> 0 | Y59: =Вводные!$E$43 * Y$55 * Вводные!Y57 * Y49 -> 0 | Z59: =Вводные!$E$43 * Z$55 * Вводные!Z57 * Z49 -> 0 | AA59: =Вводные!$E$43 * AA$55 * Вводные!AA57 * AA49 -> 0 | AB59: =Вводные!$E$43 * AB$55 * Вводные!AB57 * AB49 -> 0 | AC59: =Вводные!$E$43 * AC$55 * Вводные!AC57 * AC49 -> 0 | AD59: =Вводные!$E$43 * AD$55 * Вводные!AD57 * AD49 -> 0 | AE59: =Вводные!$E$43 * AE$55 * Вводные!AE57 * AE49 -> 0 | AF59: =Вводные!$E$43 * AF$55 * Вводные!AF57 * AF49 -> 0 | AG59: =Вводные!$E$43 * AG$55 * Вводные!AG57 * AG49 -> 0 | AH59: =Вводные!$E$43 * AH$55 * Вводные!AH57 * AH49 -> 0 | AI59: =Вводные!$E$43 * AI$55 * Вводные!AI57 * AI49 -> 0 | AJ59: =Вводные!$E$43 * AJ$55 * Вводные!AJ57 * AJ49 -> 0 | AK59: =Вводные!$E$43 * AK$55 * Вводные!AK57 * AK49 -> 0 | AL59: =Вводные!$E$43 * AL$55 * Вводные!AL57 * AL49 -> 0 | AM59: =Вводные!$E$43 * AM$55 * Вводные!AM57 * AM49 -> 0 | AN59: =Вводные!$E$43 * AN$55 * Вводные!AN57 * AN49 -> 0 | AO59: =Вводные!$E$43 * AO$55 * Вводные!AO57 * AO49 -> 0 | AP59: =Вводные!$E$43 * AP$55 * Вводные!AP57 * AP49 -> 0 | AQ59: =Вводные!$E$43 * AQ$55 * Вводные!AQ57 * AQ49 -> 0 | AR59: =Вводные!$E$43 * AR$55 * Вводные!AR57 * AR49 -> 0 | AS59: =Вводные!$E$43 * AS$55 * Вводные!AS57 * AS49 -> 0 | AT59: =Вводные!$E$43 * AT$55 * Вводные!AT57 * AT49 -> 0 | AU59: =Вводные!$E$43 * AU$55 * Вводные!AU57 * AU49 -> 0
B60: 4 | D60: млн руб. | E60: 2319.382401 | H60: =Вводные!$E$43 * H$55 * Вводные!H58 * H50 -> 0 | I60: =Вводные!$E$43 * I$55 * Вводные!I58 * I50 -> 431.808 | J60: =Вводные!$E$43 * J$55 * Вводные!J58 * J50 -> 449.08032 | K60: =Вводные!$E$43 * K$55 * Вводные!K58 * K50 -> 467.0435328 | L60: =Вводные!$E$43 * L$55 * Вводные!L58 * L50 -> 971.4505482 | M60: =Вводные!$E$43 * M$55 * Вводные!M58 * M50 -> 0 | N60: =Вводные!$E$43 * N$55 * Вводные!N58 * N50 -> 0 | O60: =Вводные!$E$43 * O$55 * Вводные!O58 * O50 -> 0 | P60: =Вводные!$E$43 * P$55 * Вводные!P58 * P50 -> 0 | Q60: =Вводные!$E$43 * Q$55 * Вводные!Q58 * Q50 -> 0 | R60: =Вводные!$E$43 * R$55 * Вводные!R58 * R50 -> 0 | S60: =Вводные!$E$43 * S$55 * Вводные!S58 * S50 -> 0 | T60: =Вводные!$E$43 * T$55 * Вводные!T58 * T50 -> 0 | U60: =Вводные!$E$43 * U$55 * Вводные!U58 * U50 -> 0 | V60: =Вводные!$E$43 * V$55 * Вводные!V58 * V50 -> 0 | W60: =Вводные!$E$43 * W$55 * Вводные!W58 * W50 -> 0 | X60: =Вводные!$E$43 * X$55 * Вводные!X58 * X50 -> 0 | Y60: =Вводные!$E$43 * Y$55 * Вводные!Y58 * Y50 -> 0 | Z60: =Вводные!$E$43 * Z$55 * Вводные!Z58 * Z50 -> 0 | AA60: =Вводные!$E$43 * AA$55 * Вводные!AA58 * AA50 -> 0 | AB60: =Вводные!$E$43 * AB$55 * Вводные!AB58 * AB50 -> 0 | AC60: =Вводные!$E$43 * AC$55 * Вводные!AC58 * AC50 -> 0 | AD60: =Вводные!$E$43 * AD$55 * Вводные!AD58 * AD50 -> 0 | AE60: =Вводные!$E$43 * AE$55 * Вводные!AE58 * AE50 -> 0 | AF60: =Вводные!$E$43 * AF$55 * Вводные!AF58 * AF50 -> 0 | AG60: =Вводные!$E$43 * AG$55 * Вводные!AG58 * AG50 -> 0 | AH60: =Вводные!$E$43 * AH$55 * Вводные!AH58 * AH50 -> 0 | AI60: =Вводные!$E$43 * AI$55 * Вводные!AI58 * AI50 -> 0 | AJ60: =Вводные!$E$43 * AJ$55 * Вводные!AJ58 * AJ50 -> 0 | AK60: =Вводные!$E$43 * AK$55 * Вводные!AK58 * AK50 -> 0 | AL60: =Вводные!$E$43 * AL$55 * Вводные!AL58 * AL50 -> 0 | AM60: =Вводные!$E$43 * AM$55 * Вводные!AM58 * AM50 -> 0 | AN60: =Вводные!$E$43 * AN$55 * Вводные!AN58 * AN50 -> 0 | AO60: =Вводные!$E$43 * AO$55 * Вводные!AO58 * AO50 -> 0 | AP60: =Вводные!$E$43 * AP$55 * Вводные!AP58 * AP50 -> 0 | AQ60: =Вводные!$E$43 * AQ$55 * Вводные!AQ58 * AQ50 -> 0 | AR60: =Вводные!$E$43 * AR$55 * Вводные!AR58 * AR50 -> 0 | AS60: =Вводные!$E$43 * AS$55 * Вводные!AS58 * AS50 -> 0 | AT60: =Вводные!$E$43 * AT$55 * Вводные!AT58 * AT50 -> 0 | AU60: =Вводные!$E$43 * AU$55 * Вводные!AU58 * AU50 -> 0
B61: НЗС, к.п. | D61: млн руб. | H61: =G61 + H56 - SUM($G56:G56) * (SUM($G55:G55) = 1) * (G55 > 0) -> 0 | I61: =H61 + I56 - SUM($G56:H56) * (SUM($G55:H55) = 1) * (H55 > 0) -> 4255.168397 | J61: =I61 + J56 - SUM($G56:I56) * (SUM($G55:I55) = 1) * (I55 > 0) -> 8680.54353 | K61: =J61 + K56 - SUM($G56:J56) * (SUM($G55:J55) = 1) * (J55 > 0) -> 13282.93367 | L61: =K61 + L56 - SUM($G56:K56) * (SUM($G55:K55) = 1) * (K55 > 0) -> 22855.90516 | M61: =L61 + M56 - SUM($G56:L56) * (SUM($G55:L55) = 1) * (L55 > 0) -> 0 | N61: =M61 + N56 - SUM($G56:M56) * (SUM($G55:M55) = 1) * (M55 > 0) -> 0 | O61: =N61 + O56 - SUM($G56:N56) * (SUM($G55:N55) = 1) * (N55 > 0) -> 0 | P61: =O61 + P56 - SUM($G56:O56) * (SUM($G55:O55) = 1) * (O55 > 0) -> 0 | Q61: =P61 + Q56 - SUM($G56:P56) * (SUM($G55:P55) = 1) * (P55 > 0) -> 0 | R61: =Q61 + R56 - SUM($G56:Q56) * (SUM($G55:Q55) = 1) * (Q55 > 0) -> 0 | S61: =R61 + S56 - SUM($G56:R56) * (SUM($G55:R55) = 1) * (R55 > 0) -> 0 | T61: =S61 + T56 - SUM($G56:S56) * (SUM($G55:S55) = 1) * (S55 > 0) -> 0 | U61: =T61 + U56 - SUM($G56:T56) * (SUM($G55:T55) = 1) * (T55 > 0) -> 0 | V61: =U61 + V56 - SUM($G56:U56) * (SUM($G55:U55) = 1) * (U55 > 0) -> 0 | W61: =V61 + W56 - SUM($G56:V56) * (SUM($G55:V55) = 1) * (V55 > 0) -> 0 | X61: =W61 + X56 - SUM($G56:W56) * (SUM($G55:W55) = 1) * (W55 > 0) -> 0 | Y61: =X61 + Y56 - SUM($G56:X56) * (SUM($G55:X55) = 1) * (X55 > 0) -> 0 | Z61: =Y61 + Z56 - SUM($G56:Y56) * (SUM($G55:Y55) = 1) * (Y55 > 0) -> 0 | AA61: =Z61 + AA56 - SUM($G56:Z56) * (SUM($G55:Z55) = 1) * (Z55 > 0) -> 0 | AB61: =AA61 + AB56 - SUM($G56:AA56) * (SUM($G55:AA55) = 1) * (AA55 > 0) -> 0 | AC61: =AB61 + AC56 - SUM($G56:AB56) * (SUM($G55:AB55) = 1) * (AB55 > 0) -> 0 | AD61: =AC61 + AD56 - SUM($G56:AC56) * (SUM($G55:AC55) = 1) * (AC55 > 0) -> 0 | AE61: =AD61 + AE56 - SUM($G56:AD56) * (SUM($G55:AD55) = 1) * (AD55 > 0) -> 0 | AF61: =AE61 + AF56 - SUM($G56:AE56) * (SUM($G55:AE55) = 1) * (AE55 > 0) -> 0 | AG61: =AF61 + AG56 - SUM($G56:AF56) * (SUM($G55:AF55) = 1) * (AF55 > 0) -> 0 | AH61: =AG61 + AH56 - SUM($G56:AG56) * (SUM($G55:AG55) = 1) * (AG55 > 0) -> 0 | AI61: =AH61 + AI56 - SUM($G56:AH56) * (SUM($G55:AH55) = 1) * (AH55 > 0) -> 0 | AJ61: =AI61 + AJ56 - SUM($G56:AI56) * (SUM($G55:AI55) = 1) * (AI55 > 0) -> 0 | AK61: =AJ61 + AK56 - SUM($G56:AJ56) * (SUM($G55:AJ55) = 1) * (AJ55 > 0) -> 0 | AL61: =AK61 + AL56 - SUM($G56:AK56) * (SUM($G55:AK55) = 1) * (AK55 > 0) -> 0 | AM61: =AL61 + AM56 - SUM($G56:AL56) * (SUM($G55:AL55) = 1) * (AL55 > 0) -> 0 | AN61: =AM61 + AN56 - SUM($G56:AM56) * (SUM($G55:AM55) = 1) * (AM55 > 0) -> 0 | AO61: =AN61 + AO56 - SUM($G56:AN56) * (SUM($G55:AN55) = 1) * (AN55 > 0) -> 0 | AP61: =AO61 + AP56 - SUM($G56:AO56) * (SUM($G55:AO55) = 1) * (AO55 > 0) -> 0 | AQ61: =AP61 + AQ56 - SUM($G56:AP56) * (SUM($G55:AP55) = 1) * (AP55 > 0) -> 0 | AR61: =AQ61 + AR56 - SUM($G56:AQ56) * (SUM($G55:AQ55) = 1) * (AQ55 > 0) -> 0 | AS61: =AR61 + AS56 - SUM($G56:AR56) * (SUM($G55:AR55) = 1) * (AR55 > 0) -> 0 | AT61: =AS61 + AT56 - SUM($G56:AS56) * (SUM($G55:AS55) = 1) * (AS55 > 0) -> 0 | AU61: =AT61 + AU56 - SUM($G56:AT56) * (SUM($G55:AT55) = 1) * (AT55 > 0) -> 0
B62: ОС, к.п. | D62: млн руб. | H62: =SUM($H56:H56) - H61 -> 0 | I62: =SUM($H56:I56) - I61 -> 0 | J62: =SUM($H56:J56) - J61 -> 0 | K62: =SUM($H56:K56) - K61 -> 0 | L62: =SUM($H56:L56) - L61 -> 0 | M62: =SUM($H56:M56) - M61 -> 22855.90516 | N62: =SUM($H56:N56) - N61 -> 22855.90516 | O62: =SUM($H56:O56) - O61 -> 22855.90516 | P62: =SUM($H56:P56) - P61 -> 22855.90516 | Q62: =SUM($H56:Q56) - Q61 -> 22855.90516 | R62: =SUM($H56:R56) - R61 -> 22855.90516 | S62: =SUM($H56:S56) - S61 -> 22855.90516 | T62: =SUM($H56:T56) - T61 -> 22855.90516 | U62: =SUM($H56:U56) - U61 -> 22855.90516 | V62: =SUM($H56:V56) - V61 -> 22855.90516 | W62: =SUM($H56:W56) - W61 -> 22855.90516 | X62: =SUM($H56:X56) - X61 -> 22855.90516 | Y62: =SUM($H56:Y56) - Y61 -> 22855.90516 | Z62: =SUM($H56:Z56) - Z61 -> 22855.90516 | AA62: =SUM($H56:AA56) - AA61 -> 22855.90516 | AB62: =SUM($H56:AB56) - AB61 -> 22855.90516 | AC62: =SUM($H56:AC56) - AC61 -> 22855.90516 | AD62: =SUM($H56:AD56) - AD61 -> 22855.90516 | AE62: =SUM($H56:AE56) - AE61 -> 22855.90516 | AF62: =SUM($H56:AF56) - AF61 -> 22855.90516 | AG62: =SUM($H56:AG56) - AG61 -> 22855.90516 | AH62: =SUM($H56:AH56) - AH61 -> 22855.90516 | AI62: =SUM($H56:AI56) - AI61 -> 22855.90516 | AJ62: =SUM($H56:AJ56) - AJ61 -> 22855.90516 | AK62: =SUM($H56:AK56) - AK61 -> 22855.90516 | AL62: =SUM($H56:AL56) - AL61 -> 22855.90516 | AM62: =SUM($H56:AM56) - AM61 -> 22855.90516 | AN62: =SUM($H56:AN56) - AN61 -> 22855.90516 | AO62: =SUM($H56:AO56) - AO61 -> 22855.90516 | AP62: =SUM($H56:AP56) - AP61 -> 22855.90516 | AQ62: =SUM($H56:AQ56) - AQ61 -> 22855.90516 | AR62: =SUM($H56:AR56) - AR61 -> 22855.90516 | AS62: =SUM($H56:AS56) - AS61 -> 22855.90516 | AT62: =SUM($H56:AT56) - AT61 -> 22855.90516 | AU62: =SUM($H56:AU56) - AU61 -> 22855.90516
B63: Амортизация (линейным методом) | D63: млн руб. | E63: =SUM(H63:AU63) -> -22855.90516 | H63: =- MIN((G65 + G61), H62 / Вводные!$E$44) -> 0 | I63: =- MIN((H65 + H61), I62 / Вводные!$E$44) -> 0 | J63: =- MIN((I65 + I61), J62 / Вводные!$E$44) -> 0 | K63: =- MIN((J65 + J61), K62 / Вводные!$E$44) -> 0 | L63: =- MIN((K65 + K61), L62 / Вводные!$E$44) -> 0 | M63: =- MIN((L65 + L61), M62 / Вводные!$E$44) -> -1523.72701 | N63: =- MIN((M65 + M61), N62 / Вводные!$E$44) -> -1523.72701 | O63: =- MIN((N65 + N61), O62 / Вводные!$E$44) -> -1523.72701 | P63: =- MIN((O65 + O61), P62 / Вводные!$E$44) -> -1523.72701 | Q63: =- MIN((P65 + P61), Q62 / Вводные!$E$44) -> -1523.72701 | R63: =- MIN((Q65 + Q61), R62 / Вводные!$E$44) -> -1523.72701 | S63: =- MIN((R65 + R61), S62 / Вводные!$E$44) -> -1523.72701 | T63: =- MIN((S65 + S61), T62 / Вводные!$E$44) -> -1523.72701 | U63: =- MIN((T65 + T61), U62 / Вводные!$E$44) -> -1523.72701 | V63: =- MIN((U65 + U61), V62 / Вводные!$E$44) -> -1523.72701 | W63: =- MIN((V65 + V61), W62 / Вводные!$E$44) -> -1523.72701 | X63: =- MIN((W65 + W61), X62 / Вводные!$E$44) -> -1523.72701 | Y63: =- MIN((X65 + X61), Y62 / Вводные!$E$44) -> -1523.72701 | Z63: =- MIN((Y65 + Y61), Z62 / Вводные!$E$44) -> -1523.72701 | AA63: =- MIN((Z65 + Z61), AA62 / Вводные!$E$44) -> -1523.72701 | AB63: =- MIN((AA65 + AA61), AB62 / Вводные!$E$44) -> 0 | AC63: =- MIN((AB65 + AB61), AC62 / Вводные!$E$44) -> 0 | AD63: =- MIN((AC65 + AC61), AD62 / Вводные!$E$44) -> 0 | AE63: =- MIN((AD65 + AD61), AE62 / Вводные!$E$44) -> 0 | AF63: =- MIN((AE65 + AE61), AF62 / Вводные!$E$44) -> 0 | AG63: =- MIN((AF65 + AF61), AG62 / Вводные!$E$44) -> 0 | AH63: =- MIN((AG65 + AG61), AH62 / Вводные!$E$44) -> 0 | AI63: =- MIN((AH65 + AH61), AI62 / Вводные!$E$44) -> 0 | AJ63: =- MIN((AI65 + AI61), AJ62 / Вводные!$E$44) -> 0 | AK63: =- MIN((AJ65 + AJ61), AK62 / Вводные!$E$44) -> 0 | AL63: =- MIN((AK65 + AK61), AL62 / Вводные!$E$44) -> 0 | AM63: =- MIN((AL65 + AL61), AM62 / Вводные!$E$44) -> 0 | AN63: =- MIN((AM65 + AM61), AN62 / Вводные!$E$44) -> 0 | AO63: =- MIN((AN65 + AN61), AO62 / Вводные!$E$44) -> 0 | AP63: =- MIN((AO65 + AO61), AP62 / Вводные!$E$44) -> 0 | AQ63: =- MIN((AP65 + AP61), AQ62 / Вводные!$E$44) -> 0 | AR63: =- MIN((AQ65 + AQ61), AR62 / Вводные!$E$44) -> 0 | AS63: =- MIN((AR65 + AR61), AS62 / Вводные!$E$44) -> 0 | AT63: =- MIN((AS65 + AS61), AT62 / Вводные!$E$44) -> 0 | AU63: =- MIN((AT65 + AT61), AU62 / Вводные!$E$44) -> 0
B64: Накопленная амортизация | D64: млн руб. | H64: =SUM($H63:H63) -> 0 | I64: =SUM($H63:I63) -> 0 | J64: =SUM($H63:J63) -> 0 | K64: =SUM($H63:K63) -> 0 | L64: =SUM($H63:L63) -> 0 | M64: =SUM($H63:M63) -> -1523.72701 | N64: =SUM($H63:N63) -> -3047.454021 | O64: =SUM($H63:O63) -> -4571.181031 | P64: =SUM($H63:P63) -> -6094.908041 | Q64: =SUM($H63:Q63) -> -7618.635052 | R64: =SUM($H63:R63) -> -9142.362062 | S64: =SUM($H63:S63) -> -10666.08907 | T64: =SUM($H63:T63) -> -12189.81608 | U64: =SUM($H63:U63) -> -13713.54309 | V64: =SUM($H63:V63) -> -15237.2701 | W64: =SUM($H63:W63) -> -16760.99711 | X64: =SUM($H63:X63) -> -18284.72412 | Y64: =SUM($H63:Y63) -> -19808.45113 | Z64: =SUM($H63:Z63) -> -21332.17815 | AA64: =SUM($H63:AA63) -> -22855.90516 | AB64: =SUM($H63:AB63) -> -22855.90516 | AC64: =SUM($H63:AC63) -> -22855.90516 | AD64: =SUM($H63:AD63) -> -22855.90516 | AE64: =SUM($H63:AE63) -> -22855.90516 | AF64: =SUM($H63:AF63) -> -22855.90516 | AG64: =SUM($H63:AG63) -> -22855.90516 | AH64: =SUM($H63:AH63) -> -22855.90516 | AI64: =SUM($H63:AI63) -> -22855.90516 | AJ64: =SUM($H63:AJ63) -> -22855.90516 | AK64: =SUM($H63:AK63) -> -22855.90516 | AL64: =SUM($H63:AL63) -> -22855.90516 | AM64: =SUM($H63:AM63) -> -22855.90516 | AN64: =SUM($H63:AN63) -> -22855.90516 | AO64: =SUM($H63:AO63) -> -22855.90516 | AP64: =SUM($H63:AP63) -> -22855.90516 | AQ64: =SUM($H63:AQ63) -> -22855.90516 | AR64: =SUM($H63:AR63) -> -22855.90516 | AS64: =SUM($H63:AS63) -> -22855.90516 | AT64: =SUM($H63:AT63) -> -22855.90516 | AU64: =SUM($H63:AU63) -> -22855.90516
B65: Чистая балансовая стоимость актива | D65: млн руб. | H65: =MAX(H62 + SUM($H63:H63), 0) -> 0 | I65: =MAX(I62 + SUM($H63:I63), 0) -> 0 | J65: =MAX(J62 + SUM($H63:J63), 0) -> 0 | K65: =MAX(K62 + SUM($H63:K63), 0) -> 0 | L65: =MAX(L62 + SUM($H63:L63), 0) -> 0 | M65: =MAX(M62 + SUM($H63:M63), 0) -> 21332.17815 | N65: =MAX(N62 + SUM($H63:N63), 0) -> 19808.45113 | O65: =MAX(O62 + SUM($H63:O63), 0) -> 18284.72412 | P65: =MAX(P62 + SUM($H63:P63), 0) -> 16760.99711 | Q65: =MAX(Q62 + SUM($H63:Q63), 0) -> 15237.2701 | R65: =MAX(R62 + SUM($H63:R63), 0) -> 13713.54309 | S65: =MAX(S62 + SUM($H63:S63), 0) -> 12189.81608 | T65: =MAX(T62 + SUM($H63:T63), 0) -> 10666.08907 | U65: =MAX(U62 + SUM($H63:U63), 0) -> 9142.362062 | V65: =MAX(V62 + SUM($H63:V63), 0) -> 7618.635052 | W65: =MAX(W62 + SUM($H63:W63), 0) -> 6094.908041 | X65: =MAX(X62 + SUM($H63:X63), 0) -> 4571.181031 | Y65: =MAX(Y62 + SUM($H63:Y63), 0) -> 3047.454021 | Z65: =MAX(Z62 + SUM($H63:Z63), 0) -> 1523.72701 | AA65: =MAX(AA62 + SUM($H63:AA63), 0) -> 0 | AB65: =MAX(AB62 + SUM($H63:AB63), 0) -> 0 | AC65: =MAX(AC62 + SUM($H63:AC63), 0) -> 0 | AD65: =MAX(AD62 + SUM($H63:AD63), 0) -> 0 | AE65: =MAX(AE62 + SUM($H63:AE63), 0) -> 0 | AF65: =MAX(AF62 + SUM($H63:AF63), 0) -> 0 | AG65: =MAX(AG62 + SUM($H63:AG63), 0) -> 0 | AH65: =MAX(AH62 + SUM($H63:AH63), 0) -> 0 | AI65: =MAX(AI62 + SUM($H63:AI63), 0) -> 0 | AJ65: =MAX(AJ62 + SUM($H63:AJ63), 0) -> 0 | AK65: =MAX(AK62 + SUM($H63:AK63), 0) -> 0 | AL65: =MAX(AL62 + SUM($H63:AL63), 0) -> 0 | AM65: =MAX(AM62 + SUM($H63:AM63), 0) -> 0 | AN65: =MAX(AN62 + SUM($H63:AN63), 0) -> 0 | AO65: =MAX(AO62 + SUM($H63:AO63), 0) -> 0 | AP65: =MAX(AP62 + SUM($H63:AP63), 0) -> 0 | AQ65: =MAX(AQ62 + SUM($H63:AQ63), 0) -> 0 | AR65: =MAX(AR62 + SUM($H63:AR63), 0) -> 0 | AS65: =MAX(AS62 + SUM($H63:AS63), 0) -> 0 | AT65: =MAX(AT62 + SUM($H63:AT63), 0) -> 0 | AU65: =MAX(AU62 + SUM($H63:AU63), 0) -> 0
B67: Реконструкция и невозмещаемая инфраструктура
B68: Капитальные затраты в периоде, от общего объема | D68: (%) | E68: =SUM(H68:AU68) -> 1 | H68: =SUMIF(Вводные!$B$70:$B$74, H$6, Вводные!$E$70:$E$74) * Вводные!$E$16 -> 0 | I68: =SUMIF(Вводные!$B$70:$B$74, I$6, Вводные!$E$70:$E$74) * Вводные!$E$16 -> 0.1 | J68: =SUMIF(Вводные!$B$70:$B$74, J$6, Вводные!$E$70:$E$74) * Вводные!$E$16 -> 0.1 | K68: =SUMIF(Вводные!$B$70:$B$74, K$6, Вводные!$E$70:$E$74) * Вводные!$E$16 -> 0.4 | L68: =SUMIF(Вводные!$B$70:$B$74, L$6, Вводные!$E$70:$E$74) * Вводные!$E$16 -> 0.4 | M68: =SUMIF(Вводные!$B$70:$B$74, M$6, Вводные!$E$70:$E$74) * Вводные!$E$16 -> 0 | N68: =SUMIF(Вводные!$B$70:$B$74, N$6, Вводные!$E$70:$E$74) * Вводные!$E$16 -> 0 | O68: =SUMIF(Вводные!$B$70:$B$74, O$6, Вводные!$E$70:$E$74) * Вводные!$E$16 -> 0 | P68: =SUMIF(Вводные!$B$70:$B$74, P$6, Вводные!$E$70:$E$74) * Вводные!$E$16 -> 0 | Q68: =SUMIF(Вводные!$B$70:$B$74, Q$6, Вводные!$E$70:$E$74) * Вводные!$E$16 -> 0 | R68: =SUMIF(Вводные!$B$70:$B$74, R$6, Вводные!$E$70:$E$74) * Вводные!$E$16 -> 0 | S68: =SUMIF(Вводные!$B$70:$B$74, S$6, Вводные!$E$70:$E$74) * Вводные!$E$16 -> 0 | T68: =SUMIF(Вводные!$B$70:$B$74, T$6, Вводные!$E$70:$E$74) * Вводные!$E$16 -> 0 | U68: =SUMIF(Вводные!$B$70:$B$74, U$6, Вводные!$E$70:$E$74) * Вводные!$E$16 -> 0 | V68: =SUMIF(Вводные!$B$70:$B$74, V$6, Вводные!$E$70:$E$74) * Вводные!$E$16 -> 0 | W68: =SUMIF(Вводные!$B$70:$B$74, W$6, Вводные!$E$70:$E$74) * Вводные!$E$16 -> 0 | X68: =SUMIF(Вводные!$B$70:$B$74, X$6, Вводные!$E$70:$E$74) * Вводные!$E$16 -> 0 | Y68: =SUMIF(Вводные!$B$70:$B$74, Y$6, Вводные!$E$70:$E$74) * Вводные!$E$16 -> 0 | Z68: =SUMIF(Вводные!$B$70:$B$74, Z$6, Вводные!$E$70:$E$74) * Вводные!$E$16 -> 0 | AA68: =SUMIF(Вводные!$B$70:$B$74, AA$6, Вводные!$E$70:$E$74) * Вводные!$E$16 -> 0 | AB68: =SUMIF(Вводные!$B$70:$B$74, AB$6, Вводные!$E$70:$E$74) * Вводные!$E$16 -> 0 | AC68: =SUMIF(Вводные!$B$70:$B$74, AC$6, Вводные!$E$70:$E$74) * Вводные!$E$16 -> 0 | AD68: =SUMIF(Вводные!$B$70:$B$74, AD$6, Вводные!$E$70:$E$74) * Вводные!$E$16 -> 0 | AE68: =SUMIF(Вводные!$B$70:$B$74, AE$6, Вводные!$E$70:$E$74) * Вводные!$E$16 -> 0 | AF68: =SUMIF(Вводные!$B$70:$B$74, AF$6, Вводные!$E$70:$E$74) * Вводные!$E$16 -> 0 | AG68: =SUMIF(Вводные!$B$70:$B$74, AG$6, Вводные!$E$70:$E$74) * Вводные!$E$16 -> 0 | AH68: =SUMIF(Вводные!$B$70:$B$74, AH$6, Вводные!$E$70:$E$74) * Вводные!$E$16 -> 0 | AI68: =SUMIF(Вводные!$B$70:$B$74, AI$6, Вводные!$E$70:$E$74) * Вводные!$E$16 -> 0 | AJ68: =SUMIF(Вводные!$B$70:$B$74, AJ$6, Вводные!$E$70:$E$74) * Вводные!$E$16 -> 0 | AK68: =SUMIF(Вводные!$B$70:$B$74, AK$6, Вводные!$E$70:$E$74) * Вводные!$E$16 -> 0 | AL68: =SUMIF(Вводные!$B$70:$B$74, AL$6, Вводные!$E$70:$E$74) * Вводные!$E$16 -> 0 | AM68: =SUMIF(Вводные!$B$70:$B$74, AM$6, Вводные!$E$70:$E$74) * Вводные!$E$16 -> 0 | AN68: =SUMIF(Вводные!$B$70:$B$74, AN$6, Вводные!$E$70:$E$74) * Вводные!$E$16 -> 0 | AO68: =SUMIF(Вводные!$B$70:$B$74, AO$6, Вводные!$E$70:$E$74) * Вводные!$E$16 -> 0 | AP68: =SUMIF(Вводные!$B$70:$B$74, AP$6, Вводные!$E$70:$E$74) * Вводные!$E$16 -> 0 | AQ68: =SUMIF(Вводные!$B$70:$B$74, AQ$6, Вводные!$E$70:$E$74) * Вводные!$E$16 -> 0 | AR68: =SUMIF(Вводные!$B$70:$B$74, AR$6, Вводные!$E$70:$E$74) * Вводные!$E$16 -> 0 | AS68: =SUMIF(Вводные!$B$70:$B$74, AS$6, Вводные!$E$70:$E$74) * Вводные!$E$16 -> 0 | AT68: =SUMIF(Вводные!$B$70:$B$74, AT$6, Вводные!$E$70:$E$74) * Вводные!$E$16 -> 0 | AU68: =SUMIF(Вводные!$B$70:$B$74, AU$6, Вводные!$E$70:$E$74) * Вводные!$E$16 -> 0
B69: Капитальные затраты в периоде | D69: =smu -> млн руб. | E69: =SUM(H69:AU69) -> 8091.308235 | H69: =SUM(H70:H73) -> 0 | I69: =SUM(I70:I73) -> 744.6544695 | J69: =SUM(J70:J73) -> 774.4406482 | K69: =SUM(K70:K73) -> 3221.673097 | L69: =SUM(L70:L73) -> 3350.540021 | M69: =SUM(M70:M73) -> 0 | N69: =SUM(N70:N73) -> 0 | O69: =SUM(O70:O73) -> 0 | P69: =SUM(P70:P73) -> 0 | Q69: =SUM(Q70:Q73) -> 0 | R69: =SUM(R70:R73) -> 0 | S69: =SUM(S70:S73) -> 0 | T69: =SUM(T70:T73) -> 0 | U69: =SUM(U70:U73) -> 0 | V69: =SUM(V70:V73) -> 0 | W69: =SUM(W70:W73) -> 0 | X69: =SUM(X70:X73) -> 0 | Y69: =SUM(Y70:Y73) -> 0 | Z69: =SUM(Z70:Z73) -> 0 | AA69: =SUM(AA70:AA73) -> 0 | AB69: =SUM(AB70:AB73) -> 0 | AC69: =SUM(AC70:AC73) -> 0 | AD69: =SUM(AD70:AD73) -> 0 | AE69: =SUM(AE70:AE73) -> 0 | AF69: =SUM(AF70:AF73) -> 0 | AG69: =SUM(AG70:AG73) -> 0 | AH69: =SUM(AH70:AH73) -> 0 | AI69: =SUM(AI70:AI73) -> 0 | AJ69: =SUM(AJ70:AJ73) -> 0 | AK69: =SUM(AK70:AK73) -> 0 | AL69: =SUM(AL70:AL73) -> 0 | AM69: =SUM(AM70:AM73) -> 0 | AN69: =SUM(AN70:AN73) -> 0 | AO69: =SUM(AO70:AO73) -> 0 | AP69: =SUM(AP70:AP73) -> 0 | AQ69: =SUM(AQ70:AQ73) -> 0 | AR69: =SUM(AR70:AR73) -> 0 | AS69: =SUM(AS70:AS73) -> 0 | AT69: =SUM(AT70:AT73) -> 0 | AU69: =SUM(AU70:AU73) -> 0
B70: 1 | D70: =smu -> млн руб. | E70: =SUM(H70:AU70) -> 797.2924905 | H70: =Вводные!$E$66 * H$68 * Вводные!H78 * H47 -> 0 | I70: =Вводные!$E$66 * I$68 * Вводные!I78 * I47 -> 73.37594852 | J70: =Вводные!$E$66 * J$68 * Вводные!J78 * J47 -> 76.31098646 | K70: =Вводные!$E$66 * K$68 * Вводные!K78 * K47 -> 317.4537037 | L70: =Вводные!$E$66 * L$68 * Вводные!L78 * L47 -> 330.1518518 | M70: =Вводные!$E$66 * M$68 * Вводные!M78 * M47 -> 0 | N70: =Вводные!$E$66 * N$68 * Вводные!N78 * N47 -> 0 | O70: =Вводные!$E$66 * O$68 * Вводные!O78 * O47 -> 0 | P70: =Вводные!$E$66 * P$68 * Вводные!P78 * P47 -> 0 | Q70: =Вводные!$E$66 * Q$68 * Вводные!Q78 * Q47 -> 0 | R70: =Вводные!$E$66 * R$68 * Вводные!R78 * R47 -> 0 | S70: =Вводные!$E$66 * S$68 * Вводные!S78 * S47 -> 0 | T70: =Вводные!$E$66 * T$68 * Вводные!T78 * T47 -> 0 | U70: =Вводные!$E$66 * U$68 * Вводные!U78 * U47 -> 0 | V70: =Вводные!$E$66 * V$68 * Вводные!V78 * V47 -> 0 | W70: =Вводные!$E$66 * W$68 * Вводные!W78 * W47 -> 0 | X70: =Вводные!$E$66 * X$68 * Вводные!X78 * X47 -> 0 | Y70: =Вводные!$E$66 * Y$68 * Вводные!Y78 * Y47 -> 0 | Z70: =Вводные!$E$66 * Z$68 * Вводные!Z78 * Z47 -> 0 | AA70: =Вводные!$E$66 * AA$68 * Вводные!AA78 * AA47 -> 0 | AB70: =Вводные!$E$66 * AB$68 * Вводные!AB78 * AB47 -> 0 | AC70: =Вводные!$E$66 * AC$68 * Вводные!AC78 * AC47 -> 0 | AD70: =Вводные!$E$66 * AD$68 * Вводные!AD78 * AD47 -> 0 | AE70: =Вводные!$E$66 * AE$68 * Вводные!AE78 * AE47 -> 0 | AF70: =Вводные!$E$66 * AF$68 * Вводные!AF78 * AF47 -> 0 | AG70: =Вводные!$E$66 * AG$68 * Вводные!AG78 * AG47 -> 0 | AH70: =Вводные!$E$66 * AH$68 * Вводные!AH78 * AH47 -> 0 | AI70: =Вводные!$E$66 * AI$68 * Вводные!AI78 * AI47 -> 0 | AJ70: =Вводные!$E$66 * AJ$68 * Вводные!AJ78 * AJ47 -> 0 | AK70: =Вводные!$E$66 * AK$68 * Вводные!AK78 * AK47 -> 0 | AL70: =Вводные!$E$66 * AL$68 * Вводные!AL78 * AL47 -> 0 | AM70: =Вводные!$E$66 * AM$68 * Вводные!AM78 * AM47 -> 0 | AN70: =Вводные!$E$66 * AN$68 * Вводные!AN78 * AN47 -> 0 | AO70: =Вводные!$E$66 * AO$68 * Вводные!AO78 * AO47 -> 0 | AP70: =Вводные!$E$66 * AP$68 * Вводные!AP78 * AP47 -> 0 | AQ70: =Вводные!$E$66 * AQ$68 * Вводные!AQ78 * AQ47 -> 0 | AR70: =Вводные!$E$66 * AR$68 * Вводные!AR78 * AR47 -> 0 | AS70: =Вводные!$E$66 * AS$68 * Вводные!AS78 * AS47 -> 0 | AT70: =Вводные!$E$66 * AT$68 * Вводные!AT78 * AT47 -> 0 | AU70: =Вводные!$E$66 * AU$68 * Вводные!AU78 * AU47 -> 0
B71: =B70 + 1 -> 2 | D71: млн руб. | E71: 3220.59415 | H71: =Вводные!$E$66 * H$68 * Вводные!H79 * H48 -> 0 | I71: =Вводные!$E$66 * I$68 * Вводные!I79 * I48 -> 296.3958063 | J71: =Вводные!$E$66 * J$68 * Вводные!J79 * J48 -> 308.2516385 | K71: =Вводные!$E$66 * K$68 * Вводные!K79 * K48 -> 1282.326816 | L71: =Вводные!$E$66 * L$68 * Вводные!L79 * L48 -> 1333.619889 | M71: =Вводные!$E$66 * M$68 * Вводные!M79 * M48 -> 0 | N71: =Вводные!$E$66 * N$68 * Вводные!N79 * N48 -> 0 | O71: =Вводные!$E$66 * O$68 * Вводные!O79 * O48 -> 0 | P71: =Вводные!$E$66 * P$68 * Вводные!P79 * P48 -> 0 | Q71: =Вводные!$E$66 * Q$68 * Вводные!Q79 * Q48 -> 0 | R71: =Вводные!$E$66 * R$68 * Вводные!R79 * R48 -> 0 | S71: =Вводные!$E$66 * S$68 * Вводные!S79 * S48 -> 0 | T71: =Вводные!$E$66 * T$68 * Вводные!T79 * T48 -> 0 | U71: =Вводные!$E$66 * U$68 * Вводные!U79 * U48 -> 0 | V71: =Вводные!$E$66 * V$68 * Вводные!V79 * V48 -> 0 | W71: =Вводные!$E$66 * W$68 * Вводные!W79 * W48 -> 0 | X71: =Вводные!$E$66 * X$68 * Вводные!X79 * X48 -> 0 | Y71: =Вводные!$E$66 * Y$68 * Вводные!Y79 * Y48 -> 0 | Z71: =Вводные!$E$66 * Z$68 * Вводные!Z79 * Z48 -> 0 | AA71: =Вводные!$E$66 * AA$68 * Вводные!AA79 * AA48 -> 0 | AB71: =Вводные!$E$66 * AB$68 * Вводные!AB79 * AB48 -> 0 | AC71: =Вводные!$E$66 * AC$68 * Вводные!AC79 * AC48 -> 0 | AD71: =Вводные!$E$66 * AD$68 * Вводные!AD79 * AD48 -> 0 | AE71: =Вводные!$E$66 * AE$68 * Вводные!AE79 * AE48 -> 0 | AF71: =Вводные!$E$66 * AF$68 * Вводные!AF79 * AF48 -> 0 | AG71: =Вводные!$E$66 * AG$68 * Вводные!AG79 * AG48 -> 0 | AH71: =Вводные!$E$66 * AH$68 * Вводные!AH79 * AH48 -> 0 | AI71: =Вводные!$E$66 * AI$68 * Вводные!AI79 * AI48 -> 0 | AJ71: =Вводные!$E$66 * AJ$68 * Вводные!AJ79 * AJ48 -> 0 | AK71: =Вводные!$E$66 * AK$68 * Вводные!AK79 * AK48 -> 0 | AL71: =Вводные!$E$66 * AL$68 * Вводные!AL79 * AL48 -> 0 | AM71: =Вводные!$E$66 * AM$68 * Вводные!AM79 * AM48 -> 0 | AN71: =Вводные!$E$66 * AN$68 * Вводные!AN79 * AN48 -> 0 | AO71: =Вводные!$E$66 * AO$68 * Вводные!AO79 * AO48 -> 0 | AP71: =Вводные!$E$66 * AP$68 * Вводные!AP79 * AP48 -> 0 | AQ71: =Вводные!$E$66 * AQ$68 * Вводные!AQ79 * AQ48 -> 0 | AR71: =Вводные!$E$66 * AR$68 * Вводные!AR79 * AR48 -> 0 | AS71: =Вводные!$E$66 * AS$68 * Вводные!AS79 * AS48 -> 0 | AT71: =Вводные!$E$66 * AT$68 * Вводные!AT79 * AT48 -> 0 | AU71: =Вводные!$E$66 * AU$68 * Вводные!AU79 * AU48 -> 0
B72: =B71 + 1 -> 3 | D72: млн руб. | E72: 3252.327974 | H72: =Вводные!$E$66 * H$68 * Вводные!H80 * H49 -> 0 | I72: =Вводные!$E$66 * I$68 * Вводные!I80 * I49 -> 299.3163147 | J72: =Вводные!$E$66 * J$68 * Вводные!J80 * J49 -> 311.2889673 | K72: =Вводные!$E$66 * K$68 * Вводные!K80 * K49 -> 1294.962104 | L72: =Вводные!$E$66 * L$68 * Вводные!L80 * L49 -> 1346.760588 | M72: =Вводные!$E$66 * M$68 * Вводные!M80 * M49 -> 0 | N72: =Вводные!$E$66 * N$68 * Вводные!N80 * N49 -> 0 | O72: =Вводные!$E$66 * O$68 * Вводные!O80 * O49 -> 0 | P72: =Вводные!$E$66 * P$68 * Вводные!P80 * P49 -> 0 | Q72: =Вводные!$E$66 * Q$68 * Вводные!Q80 * Q49 -> 0 | R72: =Вводные!$E$66 * R$68 * Вводные!R80 * R49 -> 0 | S72: =Вводные!$E$66 * S$68 * Вводные!S80 * S49 -> 0 | T72: =Вводные!$E$66 * T$68 * Вводные!T80 * T49 -> 0 | U72: =Вводные!$E$66 * U$68 * Вводные!U80 * U49 -> 0 | V72: =Вводные!$E$66 * V$68 * Вводные!V80 * V49 -> 0 | W72: =Вводные!$E$66 * W$68 * Вводные!W80 * W49 -> 0 | X72: =Вводные!$E$66 * X$68 * Вводные!X80 * X49 -> 0 | Y72: =Вводные!$E$66 * Y$68 * Вводные!Y80 * Y49 -> 0 | Z72: =Вводные!$E$66 * Z$68 * Вводные!Z80 * Z49 -> 0 | AA72: =Вводные!$E$66 * AA$68 * Вводные!AA80 * AA49 -> 0 | AB72: =Вводные!$E$66 * AB$68 * Вводные!AB80 * AB49 -> 0 | AC72: =Вводные!$E$66 * AC$68 * Вводные!AC80 * AC49 -> 0 | AD72: =Вводные!$E$66 * AD$68 * Вводные!AD80 * AD49 -> 0 | AE72: =Вводные!$E$66 * AE$68 * Вводные!AE80 * AE49 -> 0 | AF72: =Вводные!$E$66 * AF$68 * Вводные!AF80 * AF49 -> 0 | AG72: =Вводные!$E$66 * AG$68 * Вводные!AG80 * AG49 -> 0 | AH72: =Вводные!$E$66 * AH$68 * Вводные!AH80 * AH49 -> 0 | AI72: =Вводные!$E$66 * AI$68 * Вводные!AI80 * AI49 -> 0 | AJ72: =Вводные!$E$66 * AJ$68 * Вводные!AJ80 * AJ49 -> 0 | AK72: =Вводные!$E$66 * AK$68 * Вводные!AK80 * AK49 -> 0 | AL72: =Вводные!$E$66 * AL$68 * Вводные!AL80 * AL49 -> 0 | AM72: =Вводные!$E$66 * AM$68 * Вводные!AM80 * AM49 -> 0 | AN72: =Вводные!$E$66 * AN$68 * Вводные!AN80 * AN49 -> 0 | AO72: =Вводные!$E$66 * AO$68 * Вводные!AO80 * AO49 -> 0 | AP72: =Вводные!$E$66 * AP$68 * Вводные!AP80 * AP49 -> 0 | AQ72: =Вводные!$E$66 * AQ$68 * Вводные!AQ80 * AQ49 -> 0 | AR72: =Вводные!$E$66 * AR$68 * Вводные!AR80 * AR49 -> 0 | AS72: =Вводные!$E$66 * AS$68 * Вводные!AS80 * AS49 -> 0 | AT72: =Вводные!$E$66 * AT$68 * Вводные!AT80 * AT49 -> 0 | AU72: =Вводные!$E$66 * AU$68 * Вводные!AU80 * AU49 -> 0
B73: 4 | D73: млн руб. | E73: 821.0936208 | H73: =Вводные!$E$66 * H$68 * Вводные!H81 * H50 -> 0 | I73: =Вводные!$E$66 * I$68 * Вводные!I81 * I50 -> 75.5664 | J73: =Вводные!$E$66 * J$68 * Вводные!J81 * J50 -> 78.589056 | K73: =Вводные!$E$66 * K$68 * Вводные!K81 * K50 -> 326.930473 | L73: =Вводные!$E$66 * L$68 * Вводные!L81 * L50 -> 340.0076919 | M73: =Вводные!$E$66 * M$68 * Вводные!M81 * M50 -> 0 | N73: =Вводные!$E$66 * N$68 * Вводные!N81 * N50 -> 0 | O73: =Вводные!$E$66 * O$68 * Вводные!O81 * O50 -> 0 | P73: =Вводные!$E$66 * P$68 * Вводные!P81 * P50 -> 0 | Q73: =Вводные!$E$66 * Q$68 * Вводные!Q81 * Q50 -> 0 | R73: =Вводные!$E$66 * R$68 * Вводные!R81 * R50 -> 0 | S73: =Вводные!$E$66 * S$68 * Вводные!S81 * S50 -> 0 | T73: =Вводные!$E$66 * T$68 * Вводные!T81 * T50 -> 0 | U73: =Вводные!$E$66 * U$68 * Вводные!U81 * U50 -> 0 | V73: =Вводные!$E$66 * V$68 * Вводные!V81 * V50 -> 0 | W73: =Вводные!$E$66 * W$68 * Вводные!W81 * W50 -> 0 | X73: =Вводные!$E$66 * X$68 * Вводные!X81 * X50 -> 0 | Y73: =Вводные!$E$66 * Y$68 * Вводные!Y81 * Y50 -> 0 | Z73: =Вводные!$E$66 * Z$68 * Вводные!Z81 * Z50 -> 0 | AA73: =Вводные!$E$66 * AA$68 * Вводные!AA81 * AA50 -> 0 | AB73: =Вводные!$E$66 * AB$68 * Вводные!AB81 * AB50 -> 0 | AC73: =Вводные!$E$66 * AC$68 * Вводные!AC81 * AC50 -> 0 | AD73: =Вводные!$E$66 * AD$68 * Вводные!AD81 * AD50 -> 0 | AE73: =Вводные!$E$66 * AE$68 * Вводные!AE81 * AE50 -> 0 | AF73: =Вводные!$E$66 * AF$68 * Вводные!AF81 * AF50 -> 0 | AG73: =Вводные!$E$66 * AG$68 * Вводные!AG81 * AG50 -> 0 | AH73: =Вводные!$E$66 * AH$68 * Вводные!AH81 * AH50 -> 0 | AI73: =Вводные!$E$66 * AI$68 * Вводные!AI81 * AI50 -> 0 | AJ73: =Вводные!$E$66 * AJ$68 * Вводные!AJ81 * AJ50 -> 0 | AK73: =Вводные!$E$66 * AK$68 * Вводные!AK81 * AK50 -> 0 | AL73: =Вводные!$E$66 * AL$68 * Вводные!AL81 * AL50 -> 0 | AM73: =Вводные!$E$66 * AM$68 * Вводные!AM81 * AM50 -> 0 | AN73: =Вводные!$E$66 * AN$68 * Вводные!AN81 * AN50 -> 0 | AO73: =Вводные!$E$66 * AO$68 * Вводные!AO81 * AO50 -> 0 | AP73: =Вводные!$E$66 * AP$68 * Вводные!AP81 * AP50 -> 0 | AQ73: =Вводные!$E$66 * AQ$68 * Вводные!AQ81 * AQ50 -> 0 | AR73: =Вводные!$E$66 * AR$68 * Вводные!AR81 * AR50 -> 0 | AS73: =Вводные!$E$66 * AS$68 * Вводные!AS81 * AS50 -> 0 | AT73: =Вводные!$E$66 * AT$68 * Вводные!AT81 * AT50 -> 0 | AU73: =Вводные!$E$66 * AU$68 * Вводные!AU81 * AU50 -> 0
B74: НЗС, к.п. | D74: млн руб. | H74: =G74 + H69 - SUM($G69:G69) * (SUM($G68:G68) = 1) * (G68 > 0) -> 0 | I74: =H74 + I69 - SUM($G69:H69) * (SUM($G68:H68) = 1) * (H68 > 0) -> 744.6544695 | J74: =I74 + J69 - SUM($G69:I69) * (SUM($G68:I68) = 1) * (I68 > 0) -> 1519.095118 | K74: =J74 + K69 - SUM($G69:J69) * (SUM($G68:J68) = 1) * (J68 > 0) -> 4740.768214 | L74: =K74 + L69 - SUM($G69:K69) * (SUM($G68:K68) = 1) * (K68 > 0) -> 8091.308235 | M74: =L74 + M69 - SUM($G69:L69) * (SUM($G68:L68) = 1) * (L68 > 0) -> 0 | N74: =M74 + N69 - SUM($G69:M69) * (SUM($G68:M68) = 1) * (M68 > 0) -> 0 | O74: =N74 + O69 - SUM($G69:N69) * (SUM($G68:N68) = 1) * (N68 > 0) -> 0 | P74: =O74 + P69 - SUM($G69:O69) * (SUM($G68:O68) = 1) * (O68 > 0) -> 0 | Q74: =P74 + Q69 - SUM($G69:P69) * (SUM($G68:P68) = 1) * (P68 > 0) -> 0 | R74: =Q74 + R69 - SUM($G69:Q69) * (SUM($G68:Q68) = 1) * (Q68 > 0) -> 0 | S74: =R74 + S69 - SUM($G69:R69) * (SUM($G68:R68) = 1) * (R68 > 0) -> 0 | T74: =S74 + T69 - SUM($G69:S69) * (SUM($G68:S68) = 1) * (S68 > 0) -> 0 | U74: =T74 + U69 - SUM($G69:T69) * (SUM($G68:T68) = 1) * (T68 > 0) -> 0 | V74: =U74 + V69 - SUM($G69:U69) * (SUM($G68:U68) = 1) * (U68 > 0) -> 0 | W74: =V74 + W69 - SUM($G69:V69) * (SUM($G68:V68) = 1) * (V68 > 0) -> 0 | X74: =W74 + X69 - SUM($G69:W69) * (SUM($G68:W68) = 1) * (W68 > 0) -> 0 | Y74: =X74 + Y69 - SUM($G69:X69) * (SUM($G68:X68) = 1) * (X68 > 0) -> 0 | Z74: =Y74 + Z69 - SUM($G69:Y69) * (SUM($G68:Y68) = 1) * (Y68 > 0) -> 0 | AA74: =Z74 + AA69 - SUM($G69:Z69) * (SUM($G68:Z68) = 1) * (Z68 > 0) -> 0 | AB74: =AA74 + AB69 - SUM($G69:AA69) * (SUM($G68:AA68) = 1) * (AA68 > 0) -> 0 | AC74: =AB74 + AC69 - SUM($G69:AB69) * (SUM($G68:AB68) = 1) * (AB68 > 0) -> 0 | AD74: =AC74 + AD69 - SUM($G69:AC69) * (SUM($G68:AC68) = 1) * (AC68 > 0) -> 0 | AE74: =AD74 + AE69 - SUM($G69:AD69) * (SUM($G68:AD68) = 1) * (AD68 > 0) -> 0 | AF74: =AE74 + AF69 - SUM($G69:AE69) * (SUM($G68:AE68) = 1) * (AE68 > 0) -> 0 | AG74: =AF74 + AG69 - SUM($G69:AF69) * (SUM($G68:AF68) = 1) * (AF68 > 0) -> 0 | AH74: =AG74 + AH69 - SUM($G69:AG69) * (SUM($G68:AG68) = 1) * (AG68 > 0) -> 0 | AI74: =AH74 + AI69 - SUM($G69:AH69) * (SUM($G68:AH68) = 1) * (AH68 > 0) -> 0 | AJ74: =AI74 + AJ69 - SUM($G69:AI69) * (SUM($G68:AI68) = 1) * (AI68 > 0) -> 0 | AK74: =AJ74 + AK69 - SUM($G69:AJ69) * (SUM($G68:AJ68) = 1) * (AJ68 > 0) -> 0 | AL74: =AK74 + AL69 - SUM($G69:AK69) * (SUM($G68:AK68) = 1) * (AK68 > 0) -> 0 | AM74: =AL74 + AM69 - SUM($G69:AL69) * (SUM($G68:AL68) = 1) * (AL68 > 0) -> 0 | AN74: =AM74 + AN69 - SUM($G69:AM69) * (SUM($G68:AM68) = 1) * (AM68 > 0) -> 0 | AO74: =AN74 + AO69 - SUM($G69:AN69) * (SUM($G68:AN68) = 1) * (AN68 > 0) -> 0 | AP74: =AO74 + AP69 - SUM($G69:AO69) * (SUM($G68:AO68) = 1) * (AO68 > 0) -> 0 | AQ74: =AP74 + AQ69 - SUM($G69:AP69) * (SUM($G68:AP68) = 1) * (AP68 > 0) -> 0 | AR74: =AQ74 + AR69 - SUM($G69:AQ69) * (SUM($G68:AQ68) = 1) * (AQ68 > 0) -> 0 | AS74: =AR74 + AS69 - SUM($G69:AR69) * (SUM($G68:AR68) = 1) * (AR68 > 0) -> 0 | AT74: =AS74 + AT69 - SUM($G69:AS69) * (SUM($G68:AS68) = 1) * (AS68 > 0) -> 0 | AU74: =AT74 + AU69 - SUM($G69:AT69) * (SUM($G68:AT68) = 1) * (AT68 > 0) -> 0
B75: ОС, к.п. | D75: млн руб. | H75: =SUM($H69:H69) - H74 -> 0 | I75: =SUM($H69:I69) - I74 -> 0 | J75: =SUM($H69:J69) - J74 -> 0 | K75: =SUM($H69:K69) - K74 -> 0 | L75: =SUM($H69:L69) - L74 -> 0 | M75: =SUM($H69:M69) - M74 -> 8091.308235 | N75: =SUM($H69:N69) - N74 -> 8091.308235 | O75: =SUM($H69:O69) - O74 -> 8091.308235 | P75: =SUM($H69:P69) - P74 -> 8091.308235 | Q75: =SUM($H69:Q69) - Q74 -> 8091.308235 | R75: =SUM($H69:R69) - R74 -> 8091.308235 | S75: =SUM($H69:S69) - S74 -> 8091.308235 | T75: =SUM($H69:T69) - T74 -> 8091.308235 | U75: =SUM($H69:U69) - U74 -> 8091.308235 | V75: =SUM($H69:V69) - V74 -> 8091.308235 | W75: =SUM($H69:W69) - W74 -> 8091.308235 | X75: =SUM($H69:X69) - X74 -> 8091.308235 | Y75: =SUM($H69:Y69) - Y74 -> 8091.308235 | Z75: =SUM($H69:Z69) - Z74 -> 8091.308235 | AA75: =SUM($H69:AA69) - AA74 -> 8091.308235 | AB75: =SUM($H69:AB69) - AB74 -> 8091.308235 | AC75: =SUM($H69:AC69) - AC74 -> 8091.308235 | AD75: =SUM($H69:AD69) - AD74 -> 8091.308235 | AE75: =SUM($H69:AE69) - AE74 -> 8091.308235 | AF75: =SUM($H69:AF69) - AF74 -> 8091.308235 | AG75: =SUM($H69:AG69) - AG74 -> 8091.308235 | AH75: =SUM($H69:AH69) - AH74 -> 8091.308235 | AI75: =SUM($H69:AI69) - AI74 -> 8091.308235 | AJ75: =SUM($H69:AJ69) - AJ74 -> 8091.308235 | AK75: =SUM($H69:AK69) - AK74 -> 8091.308235 | AL75: =SUM($H69:AL69) - AL74 -> 8091.308235 | AM75: =SUM($H69:AM69) - AM74 -> 8091.308235 | AN75: =SUM($H69:AN69) - AN74 -> 8091.308235 | AO75: =SUM($H69:AO69) - AO74 -> 8091.308235 | AP75: =SUM($H69:AP69) - AP74 -> 8091.308235 | AQ75: =SUM($H69:AQ69) - AQ74 -> 8091.308235 | AR75: =SUM($H69:AR69) - AR74 -> 8091.308235 | AS75: =SUM($H69:AS69) - AS74 -> 8091.308235 | AT75: =SUM($H69:AT69) - AT74 -> 8091.308235 | AU75: =SUM($H69:AU69) - AU74 -> 8091.308235
B76: Амортизация (линейным методом) | D76: млн руб. | E76: =SUM(H76:AU76) -> -8091.308235 | H76: =- MIN((G78 + G74) * H$38, H75 / Вводные!$E$67) -> 0 | I76: =- MIN((H78 + H74) * I$38, I75 / Вводные!$E$67) -> 0 | J76: =- MIN((I78 + I74) * J$38, J75 / Вводные!$E$67) -> 0 | K76: =- MIN((J78 + J74) * K$38, K75 / Вводные!$E$67) -> 0 | L76: =- MIN((K78 + K74) * L$38, L75 / Вводные!$E$67) -> 0 | M76: =- MIN((L78 + L74) * M$38, M75 / Вводные!$E$67) -> -539.420549 | N76: =- MIN((M78 + M74) * N$38, N75 / Вводные!$E$67) -> -539.420549 | O76: =- MIN((N78 + N74) * O$38, O75 / Вводные!$E$67) -> -539.420549 | P76: =- MIN((O78 + O74) * P$38, P75 / Вводные!$E$67) -> -539.420549 | Q76: =- MIN((P78 + P74) * Q$38, Q75 / Вводные!$E$67) -> -539.420549 | R76: =- MIN((Q78 + Q74) * R$38, R75 / Вводные!$E$67) -> -539.420549 | S76: =- MIN((R78 + R74) * S$38, S75 / Вводные!$E$67) -> -539.420549 | T76: =- MIN((S78 + S74) * T$38, T75 / Вводные!$E$67) -> -539.420549 | U76: =- MIN((T78 + T74) * U$38, U75 / Вводные!$E$67) -> -539.420549 | V76: =- MIN((U78 + U74) * V$38, V75 / Вводные!$E$67) -> -539.420549 | W76: =- MIN((V78 + V74) * W$38, W75 / Вводные!$E$67) -> -539.420549 | X76: =- MIN((W78 + W74) * X$38, X75 / Вводные!$E$67) -> -539.420549 | Y76: =- MIN((X78 + X74) * Y$38, Y75 / Вводные!$E$67) -> -539.420549 | Z76: =- MIN((Y78 + Y74) * Z$38, Z75 / Вводные!$E$67) -> -539.420549 | AA76: =- MIN((Z78 + Z74) * AA$38, AA75 / Вводные!$E$67) -> -539.420549 | AB76: =- MIN((AA78 + AA74) * AB$38, AB75 / Вводные!$E$67) -> 0 | AC76: =- MIN((AB78 + AB74) * AC$38, AC75 / Вводные!$E$67) -> 0 | AD76: =- MIN((AC78 + AC74) * AD$38, AD75 / Вводные!$E$67) -> 0 | AE76: =- MIN((AD78 + AD74) * AE$38, AE75 / Вводные!$E$67) -> 0 | AF76: =- MIN((AE78 + AE74) * AF$38, AF75 / Вводные!$E$67) -> 0 | AG76: =- MIN((AF78 + AF74) * AG$38, AG75 / Вводные!$E$67) -> 0 | AH76: =- MIN((AG78 + AG74) * AH$38, AH75 / Вводные!$E$67) -> 0 | AI76: =- MIN((AH78 + AH74) * AI$38, AI75 / Вводные!$E$67) -> 0 | AJ76: =- MIN((AI78 + AI74) * AJ$38, AJ75 / Вводные!$E$67) -> 0 | AK76: =- MIN((AJ78 + AJ74) * AK$38, AK75 / Вводные!$E$67) -> 0 | AL76: =- MIN((AK78 + AK74) * AL$38, AL75 / Вводные!$E$67) -> 0 | AM76: =- MIN((AL78 + AL74) * AM$38, AM75 / Вводные!$E$67) -> 0 | AN76: =- MIN((AM78 + AM74) * AN$38, AN75 / Вводные!$E$67) -> 0 | AO76: =- MIN((AN78 + AN74) * AO$38, AO75 / Вводные!$E$67) -> 0 | AP76: =- MIN((AO78 + AO74) * AP$38, AP75 / Вводные!$E$67) -> 0 | AQ76: =- MIN((AP78 + AP74) * AQ$38, AQ75 / Вводные!$E$67) -> 0 | AR76: =- MIN((AQ78 + AQ74) * AR$38, AR75 / Вводные!$E$67) -> 0 | AS76: =- MIN((AR78 + AR74) * AS$38, AS75 / Вводные!$E$67) -> 0 | AT76: =- MIN((AS78 + AS74) * AT$38, AT75 / Вводные!$E$67) -> 0 | AU76: =- MIN((AT78 + AT74) * AU$38, AU75 / Вводные!$E$67) -> 0
B77: Накопленная амортизация | D77: млн руб. | H77: =SUM($H76:H76) -> 0 | I77: =SUM($H76:I76) -> 0 | J77: =SUM($H76:J76) -> 0 | K77: =SUM($H76:K76) -> 0 | L77: =SUM($H76:L76) -> 0 | M77: =SUM($H76:M76) -> -539.420549 | N77: =SUM($H76:N76) -> -1078.841098 | O77: =SUM($H76:O76) -> -1618.261647 | P77: =SUM($H76:P76) -> -2157.682196 | Q77: =SUM($H76:Q76) -> -2697.102745 | R77: =SUM($H76:R76) -> -3236.523294 | S77: =SUM($H76:S76) -> -3775.943843 | T77: =SUM($H76:T76) -> -4315.364392 | U77: =SUM($H76:U76) -> -4854.784941 | V77: =SUM($H76:V76) -> -5394.20549 | W77: =SUM($H76:W76) -> -5933.626039 | X77: =SUM($H76:X76) -> -6473.046588 | Y77: =SUM($H76:Y76) -> -7012.467137 | Z77: =SUM($H76:Z76) -> -7551.887686 | AA77: =SUM($H76:AA76) -> -8091.308235 | AB77: =SUM($H76:AB76) -> -8091.308235 | AC77: =SUM($H76:AC76) -> -8091.308235 | AD77: =SUM($H76:AD76) -> -8091.308235 | AE77: =SUM($H76:AE76) -> -8091.308235 | AF77: =SUM($H76:AF76) -> -8091.308235 | AG77: =SUM($H76:AG76) -> -8091.308235 | AH77: =SUM($H76:AH76) -> -8091.308235 | AI77: =SUM($H76:AI76) -> -8091.308235 | AJ77: =SUM($H76:AJ76) -> -8091.308235 | AK77: =SUM($H76:AK76) -> -8091.308235 | AL77: =SUM($H76:AL76) -> -8091.308235 | AM77: =SUM($H76:AM76) -> -8091.308235 | AN77: =SUM($H76:AN76) -> -8091.308235 | AO77: =SUM($H76:AO76) -> -8091.308235 | AP77: =SUM($H76:AP76) -> -8091.308235 | AQ77: =SUM($H76:AQ76) -> -8091.308235 | AR77: =SUM($H76:AR76) -> -8091.308235 | AS77: =SUM($H76:AS76) -> -8091.308235 | AT77: =SUM($H76:AT76) -> -8091.308235 | AU77: =SUM($H76:AU76) -> -8091.308235
B78: Чистая балансовая стоимость актива | D78: млн руб. | H78: =MAX(H75 + SUM($H76:H76), 0) -> 0 | I78: =MAX(I75 + SUM($H76:I76), 0) -> 0 | J78: =MAX(J75 + SUM($H76:J76), 0) -> 0 | K78: =MAX(K75 + SUM($H76:K76), 0) -> 0 | L78: =MAX(L75 + SUM($H76:L76), 0) -> 0 | M78: =MAX(M75 + SUM($H76:M76), 0) -> 7551.887686 | N78: =MAX(N75 + SUM($H76:N76), 0) -> 7012.467137 | O78: =MAX(O75 + SUM($H76:O76), 0) -> 6473.046588 | P78: =MAX(P75 + SUM($H76:P76), 0) -> 5933.626039 | Q78: =MAX(Q75 + SUM($H76:Q76), 0) -> 5394.20549 | R78: =MAX(R75 + SUM($H76:R76), 0) -> 4854.784941 | S78: =MAX(S75 + SUM($H76:S76), 0) -> 4315.364392 | T78: =MAX(T75 + SUM($H76:T76), 0) -> 3775.943843 | U78: =MAX(U75 + SUM($H76:U76), 0) -> 3236.523294 | V78: =MAX(V75 + SUM($H76:V76), 0) -> 2697.102745 | W78: =MAX(W75 + SUM($H76:W76), 0) -> 2157.682196 | X78: =MAX(X75 + SUM($H76:X76), 0) -> 1618.261647 | Y78: =MAX(Y75 + SUM($H76:Y76), 0) -> 1078.841098 | Z78: =MAX(Z75 + SUM($H76:Z76), 0) -> 539.420549 | AA78: =MAX(AA75 + SUM($H76:AA76), 0) -> 2.728484105e-12 | AB78: =MAX(AB75 + SUM($H76:AB76), 0) -> 2.728484105e-12 | AC78: =MAX(AC75 + SUM($H76:AC76), 0) -> 2.728484105e-12 | AD78: =MAX(AD75 + SUM($H76:AD76), 0) -> 2.728484105e-12 | AE78: =MAX(AE75 + SUM($H76:AE76), 0) -> 2.728484105e-12 | AF78: =MAX(AF75 + SUM($H76:AF76), 0) -> 2.728484105e-12 | AG78: =MAX(AG75 + SUM($H76:AG76), 0) -> 2.728484105e-12 | AH78: =MAX(AH75 + SUM($H76:AH76), 0) -> 2.728484105e-12 | AI78: =MAX(AI75 + SUM($H76:AI76), 0) -> 2.728484105e-12 | AJ78: =MAX(AJ75 + SUM($H76:AJ76), 0) -> 2.728484105e-12 | AK78: =MAX(AK75 + SUM($H76:AK76), 0) -> 2.728484105e-12 | AL78: =MAX(AL75 + SUM($H76:AL76), 0) -> 2.728484105e-12 | AM78: =MAX(AM75 + SUM($H76:AM76), 0) -> 2.728484105e-12 | AN78: =MAX(AN75 + SUM($H76:AN76), 0) -> 2.728484105e-12 | AO78: =MAX(AO75 + SUM($H76:AO76), 0) -> 2.728484105e-12 | AP78: =MAX(AP75 + SUM($H76:AP76), 0) -> 2.728484105e-12 | AQ78: =MAX(AQ75 + SUM($H76:AQ76), 0) -> 2.728484105e-12 | AR78: =MAX(AR75 + SUM($H76:AR76), 0) -> 2.728484105e-12 | AS78: =MAX(AS75 + SUM($H76:AS76), 0) -> 2.728484105e-12 | AT78: =MAX(AT75 + SUM($H76:AT76), 0) -> 2.728484105e-12 | AU78: =MAX(AU75 + SUM($H76:AU76), 0) -> 2.728484105e-12
B80: Обеспечивающая инфраструктура
B81: Капитальные затраты в периоде, от общего объема | D81: (%) | E81: =SUM(H81:AU81) -> 1 | H81: =SUMIF(Вводные!$B$70:$B$74, H$6, Вводные!$E$93:$E$94) * Вводные!$E$16 -> 0.1 | I81: =SUMIF(Вводные!$B$70:$B$74, I$6, Вводные!$E$93:$E$94) * Вводные!$E$16 -> 0.2 | J81: =SUMIF(Вводные!$B$70:$B$74, J$6, Вводные!$E$93:$E$94) * Вводные!$E$16 -> 0.3 | K81: =SUMIF(Вводные!$B$70:$B$74, K$6, Вводные!$E$93:$E$94) * Вводные!$E$16 -> 0.3 | L81: =SUMIF(Вводные!$B$70:$B$74, L$6, Вводные!$E$93:$E$94) * Вводные!$E$16 -> 0.1 | M81: =SUMIF(Вводные!$B$70:$B$74, M$6, Вводные!$E$93:$E$94) * Вводные!$E$16 -> 0 | N81: =SUMIF(Вводные!$B$70:$B$74, N$6, Вводные!$E$93:$E$94) * Вводные!$E$16 -> 0 | O81: =SUMIF(Вводные!$B$70:$B$74, O$6, Вводные!$E$93:$E$94) * Вводные!$E$16 -> 0 | P81: =SUMIF(Вводные!$B$70:$B$74, P$6, Вводные!$E$93:$E$94) * Вводные!$E$16 -> 0 | Q81: =SUMIF(Вводные!$B$70:$B$74, Q$6, Вводные!$E$93:$E$94) * Вводные!$E$16 -> 0 | R81: =SUMIF(Вводные!$B$70:$B$74, R$6, Вводные!$E$93:$E$94) * Вводные!$E$16 -> 0 | S81: =SUMIF(Вводные!$B$70:$B$74, S$6, Вводные!$E$93:$E$94) * Вводные!$E$16 -> 0 | T81: =SUMIF(Вводные!$B$70:$B$74, T$6, Вводные!$E$93:$E$94) * Вводные!$E$16 -> 0 | U81: =SUMIF(Вводные!$B$70:$B$74, U$6, Вводные!$E$93:$E$94) * Вводные!$E$16 -> 0 | V81: =SUMIF(Вводные!$B$70:$B$74, V$6, Вводные!$E$93:$E$94) * Вводные!$E$16 -> 0 | W81: =SUMIF(Вводные!$B$70:$B$74, W$6, Вводные!$E$93:$E$94) * Вводные!$E$16 -> 0 | X81: =SUMIF(Вводные!$B$70:$B$74, X$6, Вводные!$E$93:$E$94) * Вводные!$E$16 -> 0 | Y81: =SUMIF(Вводные!$B$70:$B$74, Y$6, Вводные!$E$93:$E$94) * Вводные!$E$16 -> 0 | Z81: =SUMIF(Вводные!$B$70:$B$74, Z$6, Вводные!$E$93:$E$94) * Вводные!$E$16 -> 0 | AA81: =SUMIF(Вводные!$B$70:$B$74, AA$6, Вводные!$E$93:$E$94) * Вводные!$E$16 -> 0 | AB81: =SUMIF(Вводные!$B$70:$B$74, AB$6, Вводные!$E$93:$E$94) * Вводные!$E$16 -> 0 | AC81: =SUMIF(Вводные!$B$70:$B$74, AC$6, Вводные!$E$93:$E$94) * Вводные!$E$16 -> 0 | AD81: =SUMIF(Вводные!$B$70:$B$74, AD$6, Вводные!$E$93:$E$94) * Вводные!$E$16 -> 0 | AE81: =SUMIF(Вводные!$B$70:$B$74, AE$6, Вводные!$E$93:$E$94) * Вводные!$E$16 -> 0 | AF81: =SUMIF(Вводные!$B$70:$B$74, AF$6, Вводные!$E$93:$E$94) * Вводные!$E$16 -> 0 | AG81: =SUMIF(Вводные!$B$70:$B$74, AG$6, Вводные!$E$93:$E$94) * Вводные!$E$16 -> 0 | AH81: =SUMIF(Вводные!$B$70:$B$74, AH$6, Вводные!$E$93:$E$94) * Вводные!$E$16 -> 0 | AI81: =SUMIF(Вводные!$B$70:$B$74, AI$6, Вводные!$E$93:$E$94) * Вводные!$E$16 -> 0 | AJ81: =SUMIF(Вводные!$B$70:$B$74, AJ$6, Вводные!$E$93:$E$94) * Вводные!$E$16 -> 0 | AK81: =SUMIF(Вводные!$B$70:$B$74, AK$6, Вводные!$E$93:$E$94) * Вводные!$E$16 -> 0 | AL81: =SUMIF(Вводные!$B$70:$B$74, AL$6, Вводные!$E$93:$E$94) * Вводные!$E$16 -> 0 | AM81: =SUMIF(Вводные!$B$70:$B$74, AM$6, Вводные!$E$93:$E$94) * Вводные!$E$16 -> 0 | AN81: =SUMIF(Вводные!$B$70:$B$74, AN$6, Вводные!$E$93:$E$94) * Вводные!$E$16 -> 0 | AO81: =SUMIF(Вводные!$B$70:$B$74, AO$6, Вводные!$E$93:$E$94) * Вводные!$E$16 -> 0 | AP81: =SUMIF(Вводные!$B$70:$B$74, AP$6, Вводные!$E$93:$E$94) * Вводные!$E$16 -> 0 | AQ81: =SUMIF(Вводные!$B$70:$B$74, AQ$6, Вводные!$E$93:$E$94) * Вводные!$E$16 -> 0 | AR81: =SUMIF(Вводные!$B$70:$B$74, AR$6, Вводные!$E$93:$E$94) * Вводные!$E$16 -> 0 | AS81: =SUMIF(Вводные!$B$70:$B$74, AS$6, Вводные!$E$93:$E$94) * Вводные!$E$16 -> 0 | AT81: =SUMIF(Вводные!$B$70:$B$74, AT$6, Вводные!$E$93:$E$94) * Вводные!$E$16 -> 0 | AU81: =SUMIF(Вводные!$B$70:$B$74, AU$6, Вводные!$E$93:$E$94) * Вводные!$E$16 -> 0
B82: Капитальные затраты в периоде | D82: =smu -> млн руб. | E82: =SUM(H82:AU82) -> 22237.28434 | H82: =SUM(H83:H86) -> 2047.225169 | I82: =SUM(I83:I86) -> 4255.168397 | J82: =SUM(J83:J86) -> 6638.062699 | K82: =SUM(K83:K86) -> 6903.585207 | L82: =SUM(L83:L86) -> 2393.242872 | M82: =SUM(M83:M86) -> 0 | N82: =SUM(N83:N86) -> 0 | O82: =SUM(O83:O86) -> 0 | P82: =SUM(P83:P86) -> 0 | Q82: =SUM(Q83:Q86) -> 0 | R82: =SUM(R83:R86) -> 0 | S82: =SUM(S83:S86) -> 0 | T82: =SUM(T83:T86) -> 0 | U82: =SUM(U83:U86) -> 0 | V82: =SUM(V83:V86) -> 0 | W82: =SUM(W83:W86) -> 0 | X82: =SUM(X83:X86) -> 0 | Y82: =SUM(Y83:Y86) -> 0 | Z82: =SUM(Z83:Z86) -> 0 | AA82: =SUM(AA83:AA86) -> 0 | AB82: =SUM(AB83:AB86) -> 0 | AC82: =SUM(AC83:AC86) -> 0 | AD82: =SUM(AD83:AD86) -> 0 | AE82: =SUM(AE83:AE86) -> 0 | AF82: =SUM(AF83:AF86) -> 0 | AG82: =SUM(AG83:AG86) -> 0 | AH82: =SUM(AH83:AH86) -> 0 | AI82: =SUM(AI83:AI86) -> 0 | AJ82: =SUM(AJ83:AJ86) -> 0 | AK82: =SUM(AK83:AK86) -> 0 | AL82: =SUM(AL83:AL86) -> 0 | AM82: =SUM(AM83:AM86) -> 0 | AN82: =SUM(AN83:AN86) -> 0 | AO82: =SUM(AO83:AO86) -> 0 | AP82: =SUM(AP83:AP86) -> 0 | AQ82: =SUM(AQ83:AQ86) -> 0 | AR82: =SUM(AR83:AR86) -> 0 | AS82: =SUM(AS83:AS86) -> 0 | AT82: =SUM(AT83:AT86) -> 0 | AU82: =SUM(AU83:AU86) -> 0
B83: 1 | D83: =smu -> млн руб. | E83: =SUM(H83:AU83) -> 2191.339502 | H83: =Вводные!$E$89 * H$81 * Вводные!H101 * H47 -> 201.8735099 | I83: =Вводные!$E$89 * I$81 * Вводные!I101 * I47 -> 419.2911344 | J83: =Вводные!$E$89 * J$81 * Вводные!J101 * J47 -> 654.0941697 | K83: =Вводные!$E$89 * K$81 * Вводные!K101 * K47 -> 680.2579364 | L83: =Вводные!$E$89 * L$81 * Вводные!L101 * L47 -> 235.8227513 | M83: =Вводные!$E$89 * M$81 * Вводные!M101 * M47 -> 0 | N83: =Вводные!$E$89 * N$81 * Вводные!N101 * N47 -> 0 | O83: =Вводные!$E$89 * O$81 * Вводные!O101 * O47 -> 0 | P83: =Вводные!$E$89 * P$81 * Вводные!P101 * P47 -> 0 | Q83: =Вводные!$E$89 * Q$81 * Вводные!Q101 * Q47 -> 0 | R83: =Вводные!$E$89 * R$81 * Вводные!R101 * R47 -> 0 | S83: =Вводные!$E$89 * S$81 * Вводные!S101 * S47 -> 0 | T83: =Вводные!$E$89 * T$81 * Вводные!T101 * T47 -> 0 | U83: =Вводные!$E$89 * U$81 * Вводные!U101 * U47 -> 0 | V83: =Вводные!$E$89 * V$81 * Вводные!V101 * V47 -> 0 | W83: =Вводные!$E$89 * W$81 * Вводные!W101 * W47 -> 0 | X83: =Вводные!$E$89 * X$81 * Вводные!X101 * X47 -> 0 | Y83: =Вводные!$E$89 * Y$81 * Вводные!Y101 * Y47 -> 0 | Z83: =Вводные!$E$89 * Z$81 * Вводные!Z101 * Z47 -> 0 | AA83: =Вводные!$E$89 * AA$81 * Вводные!AA101 * AA47 -> 0 | AB83: =Вводные!$E$89 * AB$81 * Вводные!AB101 * AB47 -> 0 | AC83: =Вводные!$E$89 * AC$81 * Вводные!AC101 * AC47 -> 0 | AD83: =Вводные!$E$89 * AD$81 * Вводные!AD101 * AD47 -> 0 | AE83: =Вводные!$E$89 * AE$81 * Вводные!AE101 * AE47 -> 0 | AF83: =Вводные!$E$89 * AF$81 * Вводные!AF101 * AF47 -> 0 | AG83: =Вводные!$E$89 * AG$81 * Вводные!AG101 * AG47 -> 0 | AH83: =Вводные!$E$89 * AH$81 * Вводные!AH101 * AH47 -> 0 | AI83: =Вводные!$E$89 * AI$81 * Вводные!AI101 * AI47 -> 0 | AJ83: =Вводные!$E$89 * AJ$81 * Вводные!AJ101 * AJ47 -> 0 | AK83: =Вводные!$E$89 * AK$81 * Вводные!AK101 * AK47 -> 0 | AL83: =Вводные!$E$89 * AL$81 * Вводные!AL101 * AL47 -> 0 | AM83: =Вводные!$E$89 * AM$81 * Вводные!AM101 * AM47 -> 0 | AN83: =Вводные!$E$89 * AN$81 * Вводные!AN101 * AN47 -> 0 | AO83: =Вводные!$E$89 * AO$81 * Вводные!AO101 * AO47 -> 0 | AP83: =Вводные!$E$89 * AP$81 * Вводные!AP101 * AP47 -> 0 | AQ83: =Вводные!$E$89 * AQ$81 * Вводные!AQ101 * AQ47 -> 0 | AR83: =Вводные!$E$89 * AR$81 * Вводные!AR101 * AR47 -> 0 | AS83: =Вводные!$E$89 * AS$81 * Вводные!AS101 * AS47 -> 0 | AT83: =Вводные!$E$89 * AT$81 * Вводные!AT101 * AT47 -> 0 | AU83: =Вводные!$E$89 * AU$81 * Вводные!AU101 * AU47 -> 0
B84: =B83 + 1 -> 2 | D84: млн руб. | E84: 8851.334316 | H84: =Вводные!$E$89 * H$81 * Вводные!H102 * H48 -> 815.0582801 | I84: =Вводные!$E$89 * I$81 * Вводные!I102 * I48 -> 1693.690322 | J84: =Вводные!$E$89 * J$81 * Вводные!J102 * J48 -> 2642.156902 | K84: =Вводные!$E$89 * K$81 * Вводные!K102 * K48 -> 2747.843178 | L84: =Вводные!$E$89 * L$81 * Вводные!L102 * L48 -> 952.585635 | M84: =Вводные!$E$89 * M$81 * Вводные!M102 * M48 -> 0 | N84: =Вводные!$E$89 * N$81 * Вводные!N102 * N48 -> 0 | O84: =Вводные!$E$89 * O$81 * Вводные!O102 * O48 -> 0 | P84: =Вводные!$E$89 * P$81 * Вводные!P102 * P48 -> 0 | Q84: =Вводные!$E$89 * Q$81 * Вводные!Q102 * Q48 -> 0 | R84: =Вводные!$E$89 * R$81 * Вводные!R102 * R48 -> 0 | S84: =Вводные!$E$89 * S$81 * Вводные!S102 * S48 -> 0 | T84: =Вводные!$E$89 * T$81 * Вводные!T102 * T48 -> 0 | U84: =Вводные!$E$89 * U$81 * Вводные!U102 * U48 -> 0 | V84: =Вводные!$E$89 * V$81 * Вводные!V102 * V48 -> 0 | W84: =Вводные!$E$89 * W$81 * Вводные!W102 * W48 -> 0 | X84: =Вводные!$E$89 * X$81 * Вводные!X102 * X48 -> 0 | Y84: =Вводные!$E$89 * Y$81 * Вводные!Y102 * Y48 -> 0 | Z84: =Вводные!$E$89 * Z$81 * Вводные!Z102 * Z48 -> 0 | AA84: =Вводные!$E$89 * AA$81 * Вводные!AA102 * AA48 -> 0 | AB84: =Вводные!$E$89 * AB$81 * Вводные!AB102 * AB48 -> 0 | AC84: =Вводные!$E$89 * AC$81 * Вводные!AC102 * AC48 -> 0 | AD84: =Вводные!$E$89 * AD$81 * Вводные!AD102 * AD48 -> 0 | AE84: =Вводные!$E$89 * AE$81 * Вводные!AE102 * AE48 -> 0 | AF84: =Вводные!$E$89 * AF$81 * Вводные!AF102 * AF48 -> 0 | AG84: =Вводные!$E$89 * AG$81 * Вводные!AG102 * AG48 -> 0 | AH84: =Вводные!$E$89 * AH$81 * Вводные!AH102 * AH48 -> 0 | AI84: =Вводные!$E$89 * AI$81 * Вводные!AI102 * AI48 -> 0 | AJ84: =Вводные!$E$89 * AJ$81 * Вводные!AJ102 * AJ48 -> 0 | AK84: =Вводные!$E$89 * AK$81 * Вводные!AK102 * AK48 -> 0 | AL84: =Вводные!$E$89 * AL$81 * Вводные!AL102 * AL48 -> 0 | AM84: =Вводные!$E$89 * AM$81 * Вводные!AM102 * AM48 -> 0 | AN84: =Вводные!$E$89 * AN$81 * Вводные!AN102 * AN48 -> 0 | AO84: =Вводные!$E$89 * AO$81 * Вводные!AO102 * AO48 -> 0 | AP84: =Вводные!$E$89 * AP$81 * Вводные!AP102 * AP48 -> 0 | AQ84: =Вводные!$E$89 * AQ$81 * Вводные!AQ102 * AQ48 -> 0 | AR84: =Вводные!$E$89 * AR$81 * Вводные!AR102 * AR48 -> 0 | AS84: =Вводные!$E$89 * AS$81 * Вводные!AS102 * AS48 -> 0 | AT84: =Вводные!$E$89 * AT$81 * Вводные!AT102 * AT48 -> 0 | AU84: =Вводные!$E$89 * AU$81 * Вводные!AU102 * AU48 -> 0
B85: =B84 + 1 -> 3 | D85: млн руб. | E85: 8938.15411 | H85: =Вводные!$E$89 * H$81 * Вводные!H103 * H49 -> 822.693379 | I85: =Вводные!$E$89 * I$81 * Вводные!I103 * I49 -> 1710.378941 | J85: =Вводные!$E$89 * J$81 * Вводные!J103 * J49 -> 2668.191148 | K85: =Вводные!$E$89 * K$81 * Вводные!K103 * K49 -> 2774.918794 | L85: =Вводные!$E$89 * L$81 * Вводные!L103 * L49 -> 961.9718485 | M85: =Вводные!$E$89 * M$81 * Вводные!M103 * M49 -> 0 | N85: =Вводные!$E$89 * N$81 * Вводные!N103 * N49 -> 0 | O85: =Вводные!$E$89 * O$81 * Вводные!O103 * O49 -> 0 | P85: =Вводные!$E$89 * P$81 * Вводные!P103 * P49 -> 0 | Q85: =Вводные!$E$89 * Q$81 * Вводные!Q103 * Q49 -> 0 | R85: =Вводные!$E$89 * R$81 * Вводные!R103 * R49 -> 0 | S85: =Вводные!$E$89 * S$81 * Вводные!S103 * S49 -> 0 | T85: =Вводные!$E$89 * T$81 * Вводные!T103 * T49 -> 0 | U85: =Вводные!$E$89 * U$81 * Вводные!U103 * U49 -> 0 | V85: =Вводные!$E$89 * V$81 * Вводные!V103 * V49 -> 0 | W85: =Вводные!$E$89 * W$81 * Вводные!W103 * W49 -> 0 | X85: =Вводные!$E$89 * X$81 * Вводные!X103 * X49 -> 0 | Y85: =Вводные!$E$89 * Y$81 * Вводные!Y103 * Y49 -> 0 | Z85: =Вводные!$E$89 * Z$81 * Вводные!Z103 * Z49 -> 0 | AA85: =Вводные!$E$89 * AA$81 * Вводные!AA103 * AA49 -> 0 | AB85: =Вводные!$E$89 * AB$81 * Вводные!AB103 * AB49 -> 0 | AC85: =Вводные!$E$89 * AC$81 * Вводные!AC103 * AC49 -> 0 | AD85: =Вводные!$E$89 * AD$81 * Вводные!AD103 * AD49 -> 0 | AE85: =Вводные!$E$89 * AE$81 * Вводные!AE103 * AE49 -> 0 | AF85: =Вводные!$E$89 * AF$81 * Вводные!AF103 * AF49 -> 0 | AG85: =Вводные!$E$89 * AG$81 * Вводные!AG103 * AG49 -> 0 | AH85: =Вводные!$E$89 * AH$81 * Вводные!AH103 * AH49 -> 0 | AI85: =Вводные!$E$89 * AI$81 * Вводные!AI103 * AI49 -> 0 | AJ85: =Вводные!$E$89 * AJ$81 * Вводные!AJ103 * AJ49 -> 0 | AK85: =Вводные!$E$89 * AK$81 * Вводные!AK103 * AK49 -> 0 | AL85: =Вводные!$E$89 * AL$81 * Вводные!AL103 * AL49 -> 0 | AM85: =Вводные!$E$89 * AM$81 * Вводные!AM103 * AM49 -> 0 | AN85: =Вводные!$E$89 * AN$81 * Вводные!AN103 * AN49 -> 0 | AO85: =Вводные!$E$89 * AO$81 * Вводные!AO103 * AO49 -> 0 | AP85: =Вводные!$E$89 * AP$81 * Вводные!AP103 * AP49 -> 0 | AQ85: =Вводные!$E$89 * AQ$81 * Вводные!AQ103 * AQ49 -> 0 | AR85: =Вводные!$E$89 * AR$81 * Вводные!AR103 * AR49 -> 0 | AS85: =Вводные!$E$89 * AS$81 * Вводные!AS103 * AS49 -> 0 | AT85: =Вводные!$E$89 * AT$81 * Вводные!AT103 * AT49 -> 0 | AU85: =Вводные!$E$89 * AU$81 * Вводные!AU103 * AU49 -> 0
B86: 4 | D86: млн руб. | E86: 2256.456416 | H86: =Вводные!$E$89 * H$81 * Вводные!H104 * H50 -> 207.6 | I86: =Вводные!$E$89 * I$81 * Вводные!I104 * I50 -> 431.808 | J86: =Вводные!$E$89 * J$81 * Вводные!J104 * J50 -> 673.62048 | K86: =Вводные!$E$89 * K$81 * Вводные!K104 * K50 -> 700.5652992 | L86: =Вводные!$E$89 * L$81 * Вводные!L104 * L50 -> 242.8626371 | M86: =Вводные!$E$89 * M$81 * Вводные!M104 * M50 -> 0 | N86: =Вводные!$E$89 * N$81 * Вводные!N104 * N50 -> 0 | O86: =Вводные!$E$89 * O$81 * Вводные!O104 * O50 -> 0 | P86: =Вводные!$E$89 * P$81 * Вводные!P104 * P50 -> 0 | Q86: =Вводные!$E$89 * Q$81 * Вводные!Q104 * Q50 -> 0 | R86: =Вводные!$E$89 * R$81 * Вводные!R104 * R50 -> 0 | S86: =Вводные!$E$89 * S$81 * Вводные!S104 * S50 -> 0 | T86: =Вводные!$E$89 * T$81 * Вводные!T104 * T50 -> 0 | U86: =Вводные!$E$89 * U$81 * Вводные!U104 * U50 -> 0 | V86: =Вводные!$E$89 * V$81 * Вводные!V104 * V50 -> 0 | W86: =Вводные!$E$89 * W$81 * Вводные!W104 * W50 -> 0 | X86: =Вводные!$E$89 * X$81 * Вводные!X104 * X50 -> 0 | Y86: =Вводные!$E$89 * Y$81 * Вводные!Y104 * Y50 -> 0 | Z86: =Вводные!$E$89 * Z$81 * Вводные!Z104 * Z50 -> 0 | AA86: =Вводные!$E$89 * AA$81 * Вводные!AA104 * AA50 -> 0 | AB86: =Вводные!$E$89 * AB$81 * Вводные!AB104 * AB50 -> 0 | AC86: =Вводные!$E$89 * AC$81 * Вводные!AC104 * AC50 -> 0 | AD86: =Вводные!$E$89 * AD$81 * Вводные!AD104 * AD50 -> 0 | AE86: =Вводные!$E$89 * AE$81 * Вводные!AE104 * AE50 -> 0 | AF86: =Вводные!$E$89 * AF$81 * Вводные!AF104 * AF50 -> 0 | AG86: =Вводные!$E$89 * AG$81 * Вводные!AG104 * AG50 -> 0 | AH86: =Вводные!$E$89 * AH$81 * Вводные!AH104 * AH50 -> 0 | AI86: =Вводные!$E$89 * AI$81 * Вводные!AI104 * AI50 -> 0 | AJ86: =Вводные!$E$89 * AJ$81 * Вводные!AJ104 * AJ50 -> 0 | AK86: =Вводные!$E$89 * AK$81 * Вводные!AK104 * AK50 -> 0 | AL86: =Вводные!$E$89 * AL$81 * Вводные!AL104 * AL50 -> 0 | AM86: =Вводные!$E$89 * AM$81 * Вводные!AM104 * AM50 -> 0 | AN86: =Вводные!$E$89 * AN$81 * Вводные!AN104 * AN50 -> 0 | AO86: =Вводные!$E$89 * AO$81 * Вводные!AO104 * AO50 -> 0 | AP86: =Вводные!$E$89 * AP$81 * Вводные!AP104 * AP50 -> 0 | AQ86: =Вводные!$E$89 * AQ$81 * Вводные!AQ104 * AQ50 -> 0 | AR86: =Вводные!$E$89 * AR$81 * Вводные!AR104 * AR50 -> 0 | AS86: =Вводные!$E$89 * AS$81 * Вводные!AS104 * AS50 -> 0 | AT86: =Вводные!$E$89 * AT$81 * Вводные!AT104 * AT50 -> 0 | AU86: =Вводные!$E$89 * AU$81 * Вводные!AU104 * AU50 -> 0
B87: НЗС, к.п. | D87: млн руб. | H87: =G87 + H82 - SUM($G82:G82) * (SUM($G81:G81) = 1) * (G81 > 0) -> 2047.225169 | I87: =H87 + I82 - SUM($G82:H82) * (SUM($G81:H81) = 1) * (H81 > 0) -> 6302.393566 | J87: =I87 + J82 - SUM($G82:I82) * (SUM($G81:I81) = 1) * (I81 > 0) -> 12940.45627 | K87: =J87 + K82 - SUM($G82:J82) * (SUM($G81:J81) = 1) * (J81 > 0) -> 19844.04147 | L87: =K87 + L82 - SUM($G82:K82) * (SUM($G81:K81) = 1) * (K81 > 0) -> 22237.28434 | M87: =L87 + M82 - SUM($G82:L82) * (SUM($G81:L81) = 1) * (L81 > 0) -> 0 | N87: =M87 + N82 - SUM($G82:M82) * (SUM($G81:M81) = 1) * (M81 > 0) -> 0 | O87: =N87 + O82 - SUM($G82:N82) * (SUM($G81:N81) = 1) * (N81 > 0) -> 0 | P87: =O87 + P82 - SUM($G82:O82) * (SUM($G81:O81) = 1) * (O81 > 0) -> 0 | Q87: =P87 + Q82 - SUM($G82:P82) * (SUM($G81:P81) = 1) * (P81 > 0) -> 0 | R87: =Q87 + R82 - SUM($G82:Q82) * (SUM($G81:Q81) = 1) * (Q81 > 0) -> 0 | S87: =R87 + S82 - SUM($G82:R82) * (SUM($G81:R81) = 1) * (R81 > 0) -> 0 | T87: =S87 + T82 - SUM($G82:S82) * (SUM($G81:S81) = 1) * (S81 > 0) -> 0 | U87: =T87 + U82 - SUM($G82:T82) * (SUM($G81:T81) = 1) * (T81 > 0) -> 0 | V87: =U87 + V82 - SUM($G82:U82) * (SUM($G81:U81) = 1) * (U81 > 0) -> 0 | W87: =V87 + W82 - SUM($G82:V82) * (SUM($G81:V81) = 1) * (V81 > 0) -> 0 | X87: =W87 + X82 - SUM($G82:W82) * (SUM($G81:W81) = 1) * (W81 > 0) -> 0 | Y87: =X87 + Y82 - SUM($G82:X82) * (SUM($G81:X81) = 1) * (X81 > 0) -> 0 | Z87: =Y87 + Z82 - SUM($G82:Y82) * (SUM($G81:Y81) = 1) * (Y81 > 0) -> 0 | AA87: =Z87 + AA82 - SUM($G82:Z82) * (SUM($G81:Z81) = 1) * (Z81 > 0) -> 0 | AB87: =AA87 + AB82 - SUM($G82:AA82) * (SUM($G81:AA81) = 1) * (AA81 > 0) -> 0 | AC87: =AB87 + AC82 - SUM($G82:AB82) * (SUM($G81:AB81) = 1) * (AB81 > 0) -> 0 | AD87: =AC87 + AD82 - SUM($G82:AC82) * (SUM($G81:AC81) = 1) * (AC81 > 0) -> 0 | AE87: =AD87 + AE82 - SUM($G82:AD82) * (SUM($G81:AD81) = 1) * (AD81 > 0) -> 0 | AF87: =AE87 + AF82 - SUM($G82:AE82) * (SUM($G81:AE81) = 1) * (AE81 > 0) -> 0 | AG87: =AF87 + AG82 - SUM($G82:AF82) * (SUM($G81:AF81) = 1) * (AF81 > 0) -> 0 | AH87: =AG87 + AH82 - SUM($G82:AG82) * (SUM($G81:AG81) = 1) * (AG81 > 0) -> 0 | AI87: =AH87 + AI82 - SUM($G82:AH82) * (SUM($G81:AH81) = 1) * (AH81 > 0) -> 0 | AJ87: =AI87 + AJ82 - SUM($G82:AI82) * (SUM($G81:AI81) = 1) * (AI81 > 0) -> 0 | AK87: =AJ87 + AK82 - SUM($G82:AJ82) * (SUM($G81:AJ81) = 1) * (AJ81 > 0) -> 0 | AL87: =AK87 + AL82 - SUM($G82:AK82) * (SUM($G81:AK81) = 1) * (AK81 > 0) -> 0 | AM87: =AL87 + AM82 - SUM($G82:AL82) * (SUM($G81:AL81) = 1) * (AL81 > 0) -> 0 | AN87: =AM87 + AN82 - SUM($G82:AM82) * (SUM($G81:AM81) = 1) * (AM81 > 0) -> 0 | AO87: =AN87 + AO82 - SUM($G82:AN82) * (SUM($G81:AN81) = 1) * (AN81 > 0) -> 0 | AP87: =AO87 + AP82 - SUM($G82:AO82) * (SUM($G81:AO81) = 1) * (AO81 > 0) -> 0 | AQ87: =AP87 + AQ82 - SUM($G82:AP82) * (SUM($G81:AP81) = 1) * (AP81 > 0) -> 0 | AR87: =AQ87 + AR82 - SUM($G82:AQ82) * (SUM($G81:AQ81) = 1) * (AQ81 > 0) -> 0 | AS87: =AR87 + AS82 - SUM($G82:AR82) * (SUM($G81:AR81) = 1) * (AR81 > 0) -> 0 | AT87: =AS87 + AT82 - SUM($G82:AS82) * (SUM($G81:AS81) = 1) * (AS81 > 0) -> 0 | AU87: =AT87 + AU82 - SUM($G82:AT82) * (SUM($G81:AT81) = 1) * (AT81 > 0) -> 0
B88: ОС, к.п. | D88: млн руб. | H88: =SUM($H82:H82) - H87 -> 0 | I88: =SUM($H82:I82) - I87 -> 0 | J88: =SUM($H82:J82) - J87 -> 0 | K88: =SUM($H82:K82) - K87 -> 0 | L88: =SUM($H82:L82) - L87 -> 0 | M88: =SUM($H82:M82) - M87 -> 22237.28434 | N88: =SUM($H82:N82) - N87 -> 22237.28434 | O88: =SUM($H82:O82) - O87 -> 22237.28434 | P88: =SUM($H82:P82) - P87 -> 22237.28434 | Q88: =SUM($H82:Q82) - Q87 -> 22237.28434 | R88: =SUM($H82:R82) - R87 -> 22237.28434 | S88: =SUM($H82:S82) - S87 -> 22237.28434 | T88: =SUM($H82:T82) - T87 -> 22237.28434 | U88: =SUM($H82:U82) - U87 -> 22237.28434 | V88: =SUM($H82:V82) - V87 -> 22237.28434 | W88: =SUM($H82:W82) - W87 -> 22237.28434 | X88: =SUM($H82:X82) - X87 -> 22237.28434 | Y88: =SUM($H82:Y82) - Y87 -> 22237.28434 | Z88: =SUM($H82:Z82) - Z87 -> 22237.28434 | AA88: =SUM($H82:AA82) - AA87 -> 22237.28434 | AB88: =SUM($H82:AB82) - AB87 -> 22237.28434 | AC88: =SUM($H82:AC82) - AC87 -> 22237.28434 | AD88: =SUM($H82:AD82) - AD87 -> 22237.28434 | AE88: =SUM($H82:AE82) - AE87 -> 22237.28434 | AF88: =SUM($H82:AF82) - AF87 -> 22237.28434 | AG88: =SUM($H82:AG82) - AG87 -> 22237.28434 | AH88: =SUM($H82:AH82) - AH87 -> 22237.28434 | AI88: =SUM($H82:AI82) - AI87 -> 22237.28434 | AJ88: =SUM($H82:AJ82) - AJ87 -> 22237.28434 | AK88: =SUM($H82:AK82) - AK87 -> 22237.28434 | AL88: =SUM($H82:AL82) - AL87 -> 22237.28434 | AM88: =SUM($H82:AM82) - AM87 -> 22237.28434 | AN88: =SUM($H82:AN82) - AN87 -> 22237.28434 | AO88: =SUM($H82:AO82) - AO87 -> 22237.28434 | AP88: =SUM($H82:AP82) - AP87 -> 22237.28434 | AQ88: =SUM($H82:AQ82) - AQ87 -> 22237.28434 | AR88: =SUM($H82:AR82) - AR87 -> 22237.28434 | AS88: =SUM($H82:AS82) - AS87 -> 22237.28434 | AT88: =SUM($H82:AT82) - AT87 -> 22237.28434 | AU88: =SUM($H82:AU82) - AU87 -> 22237.28434
B89: Амортизация (линейным методом) | D89: млн руб. | E89: =SUM(H89:AU89) -> -22237.28434 | H89: =- MIN((G91 + G87) * H$38, H88 / Вводные!$E$90) -> 0 | I89: =- MIN((H91 + H87) * I$38, I88 / Вводные!$E$90) -> 0 | J89: =- MIN((I91 + I87) * J$38, J88 / Вводные!$E$90) -> 0 | K89: =- MIN((J91 + J87) * K$38, K88 / Вводные!$E$90) -> 0 | L89: =- MIN((K91 + K87) * L$38, L88 / Вводные!$E$90) -> 0 | M89: =- MIN((L91 + L87) * M$38, M88 / Вводные!$E$90) -> -1482.485623 | N89: =- MIN((M91 + M87) * N$38, N88 / Вводные!$E$90) -> -1482.485623 | O89: =- MIN((N91 + N87) * O$38, O88 / Вводные!$E$90) -> -1482.485623 | P89: =- MIN((O91 + O87) * P$38, P88 / Вводные!$E$90) -> -1482.485623 | Q89: =- MIN((P91 + P87) * Q$38, Q88 / Вводные!$E$90) -> -1482.485623 | R89: =- MIN((Q91 + Q87) * R$38, R88 / Вводные!$E$90) -> -1482.485623 | S89: =- MIN((R91 + R87) * S$38, S88 / Вводные!$E$90) -> -1482.485623 | T89: =- MIN((S91 + S87) * T$38, T88 / Вводные!$E$90) -> -1482.485623 | U89: =- MIN((T91 + T87) * U$38, U88 / Вводные!$E$90) -> -1482.485623 | V89: =- MIN((U91 + U87) * V$38, V88 / Вводные!$E$90) -> -1482.485623 | W89: =- MIN((V91 + V87) * W$38, W88 / Вводные!$E$90) -> -1482.485623 | X89: =- MIN((W91 + W87) * X$38, X88 / Вводные!$E$90) -> -1482.485623 | Y89: =- MIN((X91 + X87) * Y$38, Y88 / Вводные!$E$90) -> -1482.485623 | Z89: =- MIN((Y91 + Y87) * Z$38, Z88 / Вводные!$E$90) -> -1482.485623 | AA89: =- MIN((Z91 + Z87) * AA$38, AA88 / Вводные!$E$90) -> -1482.485623 | AB89: =- MIN((AA91 + AA87) * AB$38, AB88 / Вводные!$E$90) -> 0 | AC89: =- MIN((AB91 + AB87) * AC$38, AC88 / Вводные!$E$90) -> 0 | AD89: =- MIN((AC91 + AC87) * AD$38, AD88 / Вводные!$E$90) -> 0 | AE89: =- MIN((AD91 + AD87) * AE$38, AE88 / Вводные!$E$90) -> 0 | AF89: =- MIN((AE91 + AE87) * AF$38, AF88 / Вводные!$E$90) -> 0 | AG89: =- MIN((AF91 + AF87) * AG$38, AG88 / Вводные!$E$90) -> 0 | AH89: =- MIN((AG91 + AG87) * AH$38, AH88 / Вводные!$E$90) -> 0 | AI89: =- MIN((AH91 + AH87) * AI$38, AI88 / Вводные!$E$90) -> 0 | AJ89: =- MIN((AI91 + AI87) * AJ$38, AJ88 / Вводные!$E$90) -> 0 | AK89: =- MIN((AJ91 + AJ87) * AK$38, AK88 / Вводные!$E$90) -> 0 | AL89: =- MIN((AK91 + AK87) * AL$38, AL88 / Вводные!$E$90) -> 0 | AM89: =- MIN((AL91 + AL87) * AM$38, AM88 / Вводные!$E$90) -> 0 | AN89: =- MIN((AM91 + AM87) * AN$38, AN88 / Вводные!$E$90) -> 0 | AO89: =- MIN((AN91 + AN87) * AO$38, AO88 / Вводные!$E$90) -> 0 | AP89: =- MIN((AO91 + AO87) * AP$38, AP88 / Вводные!$E$90) -> 0 | AQ89: =- MIN((AP91 + AP87) * AQ$38, AQ88 / Вводные!$E$90) -> 0 | AR89: =- MIN((AQ91 + AQ87) * AR$38, AR88 / Вводные!$E$90) -> 0 | AS89: =- MIN((AR91 + AR87) * AS$38, AS88 / Вводные!$E$90) -> 0 | AT89: =- MIN((AS91 + AS87) * AT$38, AT88 / Вводные!$E$90) -> 0 | AU89: =- MIN((AT91 + AT87) * AU$38, AU88 / Вводные!$E$90) -> 0
B90: Накопленная амортизация | D90: млн руб. | H90: =SUM($H89:H89) -> 0 | I90: =SUM($H89:I89) -> 0 | J90: =SUM($H89:J89) -> 0 | K90: =SUM($H89:K89) -> 0 | L90: =SUM($H89:L89) -> 0 | M90: =SUM($H89:M89) -> -1482.485623 | N90: =SUM($H89:N89) -> -2964.971246 | O90: =SUM($H89:O89) -> -4447.456869 | P90: =SUM($H89:P89) -> -5929.942492 | Q90: =SUM($H89:Q89) -> -7412.428115 | R90: =SUM($H89:R89) -> -8894.913738 | S90: =SUM($H89:S89) -> -10377.39936 | T90: =SUM($H89:T89) -> -11859.88498 | U90: =SUM($H89:U89) -> -13342.37061 | V90: =SUM($H89:V89) -> -14824.85623 | W90: =SUM($H89:W89) -> -16307.34185 | X90: =SUM($H89:X89) -> -17789.82748 | Y90: =SUM($H89:Y89) -> -19272.3131 | Z90: =SUM($H89:Z89) -> -20754.79872 | AA90: =SUM($H89:AA89) -> -22237.28434 | AB90: =SUM($H89:AB89) -> -22237.28434 | AC90: =SUM($H89:AC89) -> -22237.28434 | AD90: =SUM($H89:AD89) -> -22237.28434 | AE90: =SUM($H89:AE89) -> -22237.28434 | AF90: =SUM($H89:AF89) -> -22237.28434 | AG90: =SUM($H89:AG89) -> -22237.28434 | AH90: =SUM($H89:AH89) -> -22237.28434 | AI90: =SUM($H89:AI89) -> -22237.28434 | AJ90: =SUM($H89:AJ89) -> -22237.28434 | AK90: =SUM($H89:AK89) -> -22237.28434 | AL90: =SUM($H89:AL89) -> -22237.28434 | AM90: =SUM($H89:AM89) -> -22237.28434 | AN90: =SUM($H89:AN89) -> -22237.28434 | AO90: =SUM($H89:AO89) -> -22237.28434 | AP90: =SUM($H89:AP89) -> -22237.28434 | AQ90: =SUM($H89:AQ89) -> -22237.28434 | AR90: =SUM($H89:AR89) -> -22237.28434 | AS90: =SUM($H89:AS89) -> -22237.28434 | AT90: =SUM($H89:AT89) -> -22237.28434 | AU90: =SUM($H89:AU89) -> -22237.28434
B91: Чистая балансовая стоимость актива | D91: млн руб. | H91: =MAX(H88 + SUM($H89:H89), 0) -> 0 | I91: =MAX(I88 + SUM($H89:I89), 0) -> 0 | J91: =MAX(J88 + SUM($H89:J89), 0) -> 0 | K91: =MAX(K88 + SUM($H89:K89), 0) -> 0 | L91: =MAX(L88 + SUM($H89:L89), 0) -> 0 | M91: =MAX(M88 + SUM($H89:M89), 0) -> 20754.79872 | N91: =MAX(N88 + SUM($H89:N89), 0) -> 19272.3131 | O91: =MAX(O88 + SUM($H89:O89), 0) -> 17789.82748 | P91: =MAX(P88 + SUM($H89:P89), 0) -> 16307.34185 | Q91: =MAX(Q88 + SUM($H89:Q89), 0) -> 14824.85623 | R91: =MAX(R88 + SUM($H89:R89), 0) -> 13342.37061 | S91: =MAX(S88 + SUM($H89:S89), 0) -> 11859.88498 | T91: =MAX(T88 + SUM($H89:T89), 0) -> 10377.39936 | U91: =MAX(U88 + SUM($H89:U89), 0) -> 8894.913738 | V91: =MAX(V88 + SUM($H89:V89), 0) -> 7412.428115 | W91: =MAX(W88 + SUM($H89:W89), 0) -> 5929.942492 | X91: =MAX(X88 + SUM($H89:X89), 0) -> 4447.456869 | Y91: =MAX(Y88 + SUM($H89:Y89), 0) -> 2964.971246 | Z91: =MAX(Z88 + SUM($H89:Z89), 0) -> 1482.485623 | AA91: =MAX(AA88 + SUM($H89:AA89), 0) -> 0 | AB91: =MAX(AB88 + SUM($H89:AB89), 0) -> 0 | AC91: =MAX(AC88 + SUM($H89:AC89), 0) -> 0 | AD91: =MAX(AD88 + SUM($H89:AD89), 0) -> 0 | AE91: =MAX(AE88 + SUM($H89:AE89), 0) -> 0 | AF91: =MAX(AF88 + SUM($H89:AF89), 0) -> 0 | AG91: =MAX(AG88 + SUM($H89:AG89), 0) -> 0 | AH91: =MAX(AH88 + SUM($H89:AH89), 0) -> 0 | AI91: =MAX(AI88 + SUM($H89:AI89), 0) -> 0 | AJ91: =MAX(AJ88 + SUM($H89:AJ89), 0) -> 0 | AK91: =MAX(AK88 + SUM($H89:AK89), 0) -> 0 | AL91: =MAX(AL88 + SUM($H89:AL89), 0) -> 0 | AM91: =MAX(AM88 + SUM($H89:AM89), 0) -> 0 | AN91: =MAX(AN88 + SUM($H89:AN89), 0) -> 0 | AO91: =MAX(AO88 + SUM($H89:AO89), 0) -> 0 | AP91: =MAX(AP88 + SUM($H89:AP89), 0) -> 0 | AQ91: =MAX(AQ88 + SUM($H89:AQ89), 0) -> 0 | AR91: =MAX(AR88 + SUM($H89:AR89), 0) -> 0 | AS91: =MAX(AS88 + SUM($H89:AS89), 0) -> 0 | AT91: =MAX(AT88 + SUM($H89:AT89), 0) -> 0 | AU91: =MAX(AU88 + SUM($H89:AU89), 0) -> 0
B93: Сопутствующая инфраструктура
B94: Капитальные затраты в периоде, от общего объема | D94: (%) | E94: =SUM(H94:AU94) -> 1 | H94: =SUMIF(Вводные!$B$70:$B$74, H$6, Вводные!$E$116:$E$120) * Вводные!$E$16 -> 0.1 | I94: =SUMIF(Вводные!$B$70:$B$74, I$6, Вводные!$E$116:$E$120) * Вводные!$E$16 -> 0.1 | J94: =SUMIF(Вводные!$B$70:$B$74, J$6, Вводные!$E$116:$E$120) * Вводные!$E$16 -> 0.1 | K94: =SUMIF(Вводные!$B$70:$B$74, K$6, Вводные!$E$116:$E$120) * Вводные!$E$16 -> 0.5 | L94: =SUMIF(Вводные!$B$70:$B$74, L$6, Вводные!$E$116:$E$120) * Вводные!$E$16 -> 0.2 | M94: =SUMIF(Вводные!$B$70:$B$74, M$6, Вводные!$E$116:$E$120) * Вводные!$E$16 -> 0 | N94: =SUMIF(Вводные!$B$70:$B$74, N$6, Вводные!$E$116:$E$120) * Вводные!$E$16 -> 0 | O94: =SUMIF(Вводные!$B$70:$B$74, O$6, Вводные!$E$116:$E$120) * Вводные!$E$16 -> 0 | P94: =SUMIF(Вводные!$B$70:$B$74, P$6, Вводные!$E$116:$E$120) * Вводные!$E$16 -> 0 | Q94: =SUMIF(Вводные!$B$70:$B$74, Q$6, Вводные!$E$116:$E$120) * Вводные!$E$16 -> 0 | R94: =SUMIF(Вводные!$B$70:$B$74, R$6, Вводные!$E$116:$E$120) * Вводные!$E$16 -> 0 | S94: =SUMIF(Вводные!$B$70:$B$74, S$6, Вводные!$E$116:$E$120) * Вводные!$E$16 -> 0 | T94: =SUMIF(Вводные!$B$70:$B$74, T$6, Вводные!$E$116:$E$120) * Вводные!$E$16 -> 0 | U94: =SUMIF(Вводные!$B$70:$B$74, U$6, Вводные!$E$116:$E$120) * Вводные!$E$16 -> 0 | V94: =SUMIF(Вводные!$B$70:$B$74, V$6, Вводные!$E$116:$E$120) * Вводные!$E$16 -> 0 | W94: =SUMIF(Вводные!$B$70:$B$74, W$6, Вводные!$E$116:$E$120) * Вводные!$E$16 -> 0 | X94: =SUMIF(Вводные!$B$70:$B$74, X$6, Вводные!$E$116:$E$120) * Вводные!$E$16 -> 0 | Y94: =SUMIF(Вводные!$B$70:$B$74, Y$6, Вводные!$E$116:$E$120) * Вводные!$E$16 -> 0 | Z94: =SUMIF(Вводные!$B$70:$B$74, Z$6, Вводные!$E$116:$E$120) * Вводные!$E$16 -> 0 | AA94: =SUMIF(Вводные!$B$70:$B$74, AA$6, Вводные!$E$116:$E$120) * Вводные!$E$16 -> 0 | AB94: =SUMIF(Вводные!$B$70:$B$74, AB$6, Вводные!$E$116:$E$120) * Вводные!$E$16 -> 0 | AC94: =SUMIF(Вводные!$B$70:$B$74, AC$6, Вводные!$E$116:$E$120) * Вводные!$E$16 -> 0 | AD94: =SUMIF(Вводные!$B$70:$B$74, AD$6, Вводные!$E$116:$E$120) * Вводные!$E$16 -> 0 | AE94: =SUMIF(Вводные!$B$70:$B$74, AE$6, Вводные!$E$116:$E$120) * Вводные!$E$16 -> 0 | AF94: =SUMIF(Вводные!$B$70:$B$74, AF$6, Вводные!$E$116:$E$120) * Вводные!$E$16 -> 0 | AG94: =SUMIF(Вводные!$B$70:$B$74, AG$6, Вводные!$E$116:$E$120) * Вводные!$E$16 -> 0 | AH94: =SUMIF(Вводные!$B$70:$B$74, AH$6, Вводные!$E$116:$E$120) * Вводные!$E$16 -> 0 | AI94: =SUMIF(Вводные!$B$70:$B$74, AI$6, Вводные!$E$116:$E$120) * Вводные!$E$16 -> 0 | AJ94: =SUMIF(Вводные!$B$70:$B$74, AJ$6, Вводные!$E$116:$E$120) * Вводные!$E$16 -> 0 | AK94: =SUMIF(Вводные!$B$70:$B$74, AK$6, Вводные!$E$116:$E$120) * Вводные!$E$16 -> 0 | AL94: =SUMIF(Вводные!$B$70:$B$74, AL$6, Вводные!$E$116:$E$120) * Вводные!$E$16 -> 0 | AM94: =SUMIF(Вводные!$B$70:$B$74, AM$6, Вводные!$E$116:$E$120) * Вводные!$E$16 -> 0 | AN94: =SUMIF(Вводные!$B$70:$B$74, AN$6, Вводные!$E$116:$E$120) * Вводные!$E$16 -> 0 | AO94: =SUMIF(Вводные!$B$70:$B$74, AO$6, Вводные!$E$116:$E$120) * Вводные!$E$16 -> 0 | AP94: =SUMIF(Вводные!$B$70:$B$74, AP$6, Вводные!$E$116:$E$120) * Вводные!$E$16 -> 0 | AQ94: =SUMIF(Вводные!$B$70:$B$74, AQ$6, Вводные!$E$116:$E$120) * Вводные!$E$16 -> 0 | AR94: =SUMIF(Вводные!$B$70:$B$74, AR$6, Вводные!$E$116:$E$120) * Вводные!$E$16 -> 0 | AS94: =SUMIF(Вводные!$B$70:$B$74, AS$6, Вводные!$E$116:$E$120) * Вводные!$E$16 -> 0 | AT94: =SUMIF(Вводные!$B$70:$B$74, AT$6, Вводные!$E$116:$E$120) * Вводные!$E$16 -> 0 | AU94: =SUMIF(Вводные!$B$70:$B$74, AU$6, Вводные!$E$116:$E$120) * Вводные!$E$16 -> 0
B95: Капитальные затраты в периоде | D95: =smu -> млн руб. | E95: =SUM(H95:AU95) -> 7937.985308 | H95: =SUM(H96:H99) -> 716.5288092 | I95: =SUM(I96:I99) -> 744.6544695 | J95: =SUM(J96:J99) -> 774.4406482 | K95: =SUM(K96:K99) -> 4027.091371 | L95: =SUM(L96:L99) -> 1675.27001 | M95: =SUM(M96:M99) -> 0 | N95: =SUM(N96:N99) -> 0 | O95: =SUM(O96:O99) -> 0 | P95: =SUM(P96:P99) -> 0 | Q95: =SUM(Q96:Q99) -> 0 | R95: =SUM(R96:R99) -> 0 | S95: =SUM(S96:S99) -> 0 | T95: =SUM(T96:T99) -> 0 | U95: =SUM(U96:U99) -> 0 | V95: =SUM(V96:V99) -> 0 | W95: =SUM(W96:W99) -> 0 | X95: =SUM(X96:X99) -> 0 | Y95: =SUM(Y96:Y99) -> 0 | Z95: =SUM(Z96:Z99) -> 0 | AA95: =SUM(AA96:AA99) -> 0 | AB95: =SUM(AB96:AB99) -> 0 | AC95: =SUM(AC96:AC99) -> 0 | AD95: =SUM(AD96:AD99) -> 0 | AE95: =SUM(AE96:AE99) -> 0 | AF95: =SUM(AF96:AF99) -> 0 | AG95: =SUM(AG96:AG99) -> 0 | AH95: =SUM(AH96:AH99) -> 0 | AI95: =SUM(AI96:AI99) -> 0 | AJ95: =SUM(AJ96:AJ99) -> 0 | AK95: =SUM(AK96:AK99) -> 0 | AL95: =SUM(AL96:AL99) -> 0 | AM95: =SUM(AM96:AM99) -> 0 | AN95: =SUM(AN96:AN99) -> 0 | AO95: =SUM(AO96:AO99) -> 0 | AP95: =SUM(AP96:AP99) -> 0 | AQ95: =SUM(AQ96:AQ99) -> 0 | AR95: =SUM(AR96:AR99) -> 0 | AS95: =SUM(AS96:AS99) -> 0 | AT95: =SUM(AT96:AT99) -> 0 | AU95: =SUM(AU96:AU99) -> 0
B96: 1 | D96: =smu -> млн руб. | E96: =SUM(H96:AU96) -> 782.235719 | H96: =Вводные!$E$112 * H$94 * Вводные!H124 * H47 -> 70.65572847 | I96: =Вводные!$E$112 * I$94 * Вводные!I124 * I47 -> 73.37594852 | J96: =Вводные!$E$112 * J$94 * Вводные!J124 * J47 -> 76.31098646 | K96: =Вводные!$E$112 * K$94 * Вводные!K124 * K47 -> 396.8171296 | L96: =Вводные!$E$112 * L$94 * Вводные!L124 * L47 -> 165.0759259 | M96: =Вводные!$E$112 * M$94 * Вводные!M124 * M47 -> 0 | N96: =Вводные!$E$112 * N$94 * Вводные!N124 * N47 -> 0 | O96: =Вводные!$E$112 * O$94 * Вводные!O124 * O47 -> 0 | P96: =Вводные!$E$112 * P$94 * Вводные!P124 * P47 -> 0 | Q96: =Вводные!$E$112 * Q$94 * Вводные!Q124 * Q47 -> 0 | R96: =Вводные!$E$112 * R$94 * Вводные!R124 * R47 -> 0 | S96: =Вводные!$E$112 * S$94 * Вводные!S124 * S47 -> 0 | T96: =Вводные!$E$112 * T$94 * Вводные!T124 * T47 -> 0 | U96: =Вводные!$E$112 * U$94 * Вводные!U124 * U47 -> 0 | V96: =Вводные!$E$112 * V$94 * Вводные!V124 * V47 -> 0 | W96: =Вводные!$E$112 * W$94 * Вводные!W124 * W47 -> 0 | X96: =Вводные!$E$112 * X$94 * Вводные!X124 * X47 -> 0 | Y96: =Вводные!$E$112 * Y$94 * Вводные!Y124 * Y47 -> 0 | Z96: =Вводные!$E$112 * Z$94 * Вводные!Z124 * Z47 -> 0 | AA96: =Вводные!$E$112 * AA$94 * Вводные!AA124 * AA47 -> 0 | AB96: =Вводные!$E$112 * AB$94 * Вводные!AB124 * AB47 -> 0 | AC96: =Вводные!$E$112 * AC$94 * Вводные!AC124 * AC47 -> 0 | AD96: =Вводные!$E$112 * AD$94 * Вводные!AD124 * AD47 -> 0 | AE96: =Вводные!$E$112 * AE$94 * Вводные!AE124 * AE47 -> 0 | AF96: =Вводные!$E$112 * AF$94 * Вводные!AF124 * AF47 -> 0 | AG96: =Вводные!$E$112 * AG$94 * Вводные!AG124 * AG47 -> 0 | AH96: =Вводные!$E$112 * AH$94 * Вводные!AH124 * AH47 -> 0 | AI96: =Вводные!$E$112 * AI$94 * Вводные!AI124 * AI47 -> 0 | AJ96: =Вводные!$E$112 * AJ$94 * Вводные!AJ124 * AJ47 -> 0 | AK96: =Вводные!$E$112 * AK$94 * Вводные!AK124 * AK47 -> 0 | AL96: =Вводные!$E$112 * AL$94 * Вводные!AL124 * AL47 -> 0 | AM96: =Вводные!$E$112 * AM$94 * Вводные!AM124 * AM47 -> 0 | AN96: =Вводные!$E$112 * AN$94 * Вводные!AN124 * AN47 -> 0 | AO96: =Вводные!$E$112 * AO$94 * Вводные!AO124 * AO47 -> 0 | AP96: =Вводные!$E$112 * AP$94 * Вводные!AP124 * AP47 -> 0 | AQ96: =Вводные!$E$112 * AQ$94 * Вводные!AQ124 * AQ47 -> 0 | AR96: =Вводные!$E$112 * AR$94 * Вводные!AR124 * AR47 -> 0 | AS96: =Вводные!$E$112 * AS$94 * Вводные!AS124 * AS47 -> 0 | AT96: =Вводные!$E$112 * AT$94 * Вводные!AT124 * AT47 -> 0 | AU96: =Вводные!$E$112 * AU$94 * Вводные!AU124 * AU47 -> 0
B97: =B96 + 1 -> 2 | D97: млн руб. | E97: 3159.636308 | H97: =Вводные!$E$112 * H$94 * Вводные!H125 * H48 -> 285.270398 | I97: =Вводные!$E$112 * I$94 * Вводные!I125 * I48 -> 296.3958063 | J97: =Вводные!$E$112 * J$94 * Вводные!J125 * J48 -> 308.2516385 | K97: =Вводные!$E$112 * K$94 * Вводные!K125 * K48 -> 1602.90852 | L97: =Вводные!$E$112 * L$94 * Вводные!L125 * L48 -> 666.8099445 | M97: =Вводные!$E$112 * M$94 * Вводные!M125 * M48 -> 0 | N97: =Вводные!$E$112 * N$94 * Вводные!N125 * N48 -> 0 | O97: =Вводные!$E$112 * O$94 * Вводные!O125 * O48 -> 0 | P97: =Вводные!$E$112 * P$94 * Вводные!P125 * P48 -> 0 | Q97: =Вводные!$E$112 * Q$94 * Вводные!Q125 * Q48 -> 0 | R97: =Вводные!$E$112 * R$94 * Вводные!R125 * R48 -> 0 | S97: =Вводные!$E$112 * S$94 * Вводные!S125 * S48 -> 0 | T97: =Вводные!$E$112 * T$94 * Вводные!T125 * T48 -> 0 | U97: =Вводные!$E$112 * U$94 * Вводные!U125 * U48 -> 0 | V97: =Вводные!$E$112 * V$94 * Вводные!V125 * V48 -> 0 | W97: =Вводные!$E$112 * W$94 * Вводные!W125 * W48 -> 0 | X97: =Вводные!$E$112 * X$94 * Вводные!X125 * X48 -> 0 | Y97: =Вводные!$E$112 * Y$94 * Вводные!Y125 * Y48 -> 0 | Z97: =Вводные!$E$112 * Z$94 * Вводные!Z125 * Z48 -> 0 | AA97: =Вводные!$E$112 * AA$94 * Вводные!AA125 * AA48 -> 0 | AB97: =Вводные!$E$112 * AB$94 * Вводные!AB125 * AB48 -> 0 | AC97: =Вводные!$E$112 * AC$94 * Вводные!AC125 * AC48 -> 0 | AD97: =Вводные!$E$112 * AD$94 * Вводные!AD125 * AD48 -> 0 | AE97: =Вводные!$E$112 * AE$94 * Вводные!AE125 * AE48 -> 0 | AF97: =Вводные!$E$112 * AF$94 * Вводные!AF125 * AF48 -> 0 | AG97: =Вводные!$E$112 * AG$94 * Вводные!AG125 * AG48 -> 0 | AH97: =Вводные!$E$112 * AH$94 * Вводные!AH125 * AH48 -> 0 | AI97: =Вводные!$E$112 * AI$94 * Вводные!AI125 * AI48 -> 0 | AJ97: =Вводные!$E$112 * AJ$94 * Вводные!AJ125 * AJ48 -> 0 | AK97: =Вводные!$E$112 * AK$94 * Вводные!AK125 * AK48 -> 0 | AL97: =Вводные!$E$112 * AL$94 * Вводные!AL125 * AL48 -> 0 | AM97: =Вводные!$E$112 * AM$94 * Вводные!AM125 * AM48 -> 0 | AN97: =Вводные!$E$112 * AN$94 * Вводные!AN125 * AN48 -> 0 | AO97: =Вводные!$E$112 * AO$94 * Вводные!AO125 * AO48 -> 0 | AP97: =Вводные!$E$112 * AP$94 * Вводные!AP125 * AP48 -> 0 | AQ97: =Вводные!$E$112 * AQ$94 * Вводные!AQ125 * AQ48 -> 0 | AR97: =Вводные!$E$112 * AR$94 * Вводные!AR125 * AR48 -> 0 | AS97: =Вводные!$E$112 * AS$94 * Вводные!AS125 * AS48 -> 0 | AT97: =Вводные!$E$112 * AT$94 * Вводные!AT125 * AT48 -> 0 | AU97: =Вводные!$E$112 * AU$94 * Вводные!AU125 * AU48 -> 0
B98: =B97 + 1 -> 3 | D98: млн руб. | E98: 3190.630888 | H98: =Вводные!$E$112 * H$94 * Вводные!H126 * H49 -> 287.9426826 | I98: =Вводные!$E$112 * I$94 * Вводные!I126 * I49 -> 299.3163147 | J98: =Вводные!$E$112 * J$94 * Вводные!J126 * J49 -> 311.2889673 | K98: =Вводные!$E$112 * K$94 * Вводные!K126 * K49 -> 1618.70263 | L98: =Вводные!$E$112 * L$94 * Вводные!L126 * L49 -> 673.380294 | M98: =Вводные!$E$112 * M$94 * Вводные!M126 * M49 -> 0 | N98: =Вводные!$E$112 * N$94 * Вводные!N126 * N49 -> 0 | O98: =Вводные!$E$112 * O$94 * Вводные!O126 * O49 -> 0 | P98: =Вводные!$E$112 * P$94 * Вводные!P126 * P49 -> 0 | Q98: =Вводные!$E$112 * Q$94 * Вводные!Q126 * Q49 -> 0 | R98: =Вводные!$E$112 * R$94 * Вводные!R126 * R49 -> 0 | S98: =Вводные!$E$112 * S$94 * Вводные!S126 * S49 -> 0 | T98: =Вводные!$E$112 * T$94 * Вводные!T126 * T49 -> 0 | U98: =Вводные!$E$112 * U$94 * Вводные!U126 * U49 -> 0 | V98: =Вводные!$E$112 * V$94 * Вводные!V126 * V49 -> 0 | W98: =Вводные!$E$112 * W$94 * Вводные!W126 * W49 -> 0 | X98: =Вводные!$E$112 * X$94 * Вводные!X126 * X49 -> 0 | Y98: =Вводные!$E$112 * Y$94 * Вводные!Y126 * Y49 -> 0 | Z98: =Вводные!$E$112 * Z$94 * Вводные!Z126 * Z49 -> 0 | AA98: =Вводные!$E$112 * AA$94 * Вводные!AA126 * AA49 -> 0 | AB98: =Вводные!$E$112 * AB$94 * Вводные!AB126 * AB49 -> 0 | AC98: =Вводные!$E$112 * AC$94 * Вводные!AC126 * AC49 -> 0 | AD98: =Вводные!$E$112 * AD$94 * Вводные!AD126 * AD49 -> 0 | AE98: =Вводные!$E$112 * AE$94 * Вводные!AE126 * AE49 -> 0 | AF98: =Вводные!$E$112 * AF$94 * Вводные!AF126 * AF49 -> 0 | AG98: =Вводные!$E$112 * AG$94 * Вводные!AG126 * AG49 -> 0 | AH98: =Вводные!$E$112 * AH$94 * Вводные!AH126 * AH49 -> 0 | AI98: =Вводные!$E$112 * AI$94 * Вводные!AI126 * AI49 -> 0 | AJ98: =Вводные!$E$112 * AJ$94 * Вводные!AJ126 * AJ49 -> 0 | AK98: =Вводные!$E$112 * AK$94 * Вводные!AK126 * AK49 -> 0 | AL98: =Вводные!$E$112 * AL$94 * Вводные!AL126 * AL49 -> 0 | AM98: =Вводные!$E$112 * AM$94 * Вводные!AM126 * AM49 -> 0 | AN98: =Вводные!$E$112 * AN$94 * Вводные!AN126 * AN49 -> 0 | AO98: =Вводные!$E$112 * AO$94 * Вводные!AO126 * AO49 -> 0 | AP98: =Вводные!$E$112 * AP$94 * Вводные!AP126 * AP49 -> 0 | AQ98: =Вводные!$E$112 * AQ$94 * Вводные!AQ126 * AQ49 -> 0 | AR98: =Вводные!$E$112 * AR$94 * Вводные!AR126 * AR49 -> 0 | AS98: =Вводные!$E$112 * AS$94 * Вводные!AS126 * AS49 -> 0 | AT98: =Вводные!$E$112 * AT$94 * Вводные!AT126 * AT49 -> 0 | AU98: =Вводные!$E$112 * AU$94 * Вводные!AU126 * AU49 -> 0
B99: 4 | D99: млн руб. | E99: 805.4823931 | H99: =Вводные!$E$112 * H$94 * Вводные!H127 * H50 -> 72.66 | I99: =Вводные!$E$112 * I$94 * Вводные!I127 * I50 -> 75.5664 | J99: =Вводные!$E$112 * J$94 * Вводные!J127 * J50 -> 78.589056 | K99: =Вводные!$E$112 * K$94 * Вводные!K127 * K50 -> 408.6630912 | L99: =Вводные!$E$112 * L$94 * Вводные!L127 * L50 -> 170.0038459 | M99: =Вводные!$E$112 * M$94 * Вводные!M127 * M50 -> 0 | N99: =Вводные!$E$112 * N$94 * Вводные!N127 * N50 -> 0 | O99: =Вводные!$E$112 * O$94 * Вводные!O127 * O50 -> 0 | P99: =Вводные!$E$112 * P$94 * Вводные!P127 * P50 -> 0 | Q99: =Вводные!$E$112 * Q$94 * Вводные!Q127 * Q50 -> 0 | R99: =Вводные!$E$112 * R$94 * Вводные!R127 * R50 -> 0 | S99: =Вводные!$E$112 * S$94 * Вводные!S127 * S50 -> 0 | T99: =Вводные!$E$112 * T$94 * Вводные!T127 * T50 -> 0 | U99: =Вводные!$E$112 * U$94 * Вводные!U127 * U50 -> 0 | V99: =Вводные!$E$112 * V$94 * Вводные!V127 * V50 -> 0 | W99: =Вводные!$E$112 * W$94 * Вводные!W127 * W50 -> 0 | X99: =Вводные!$E$112 * X$94 * Вводные!X127 * X50 -> 0 | Y99: =Вводные!$E$112 * Y$94 * Вводные!Y127 * Y50 -> 0 | Z99: =Вводные!$E$112 * Z$94 * Вводные!Z127 * Z50 -> 0 | AA99: =Вводные!$E$112 * AA$94 * Вводные!AA127 * AA50 -> 0 | AB99: =Вводные!$E$112 * AB$94 * Вводные!AB127 * AB50 -> 0 | AC99: =Вводные!$E$112 * AC$94 * Вводные!AC127 * AC50 -> 0 | AD99: =Вводные!$E$112 * AD$94 * Вводные!AD127 * AD50 -> 0 | AE99: =Вводные!$E$112 * AE$94 * Вводные!AE127 * AE50 -> 0 | AF99: =Вводные!$E$112 * AF$94 * Вводные!AF127 * AF50 -> 0 | AG99: =Вводные!$E$112 * AG$94 * Вводные!AG127 * AG50 -> 0 | AH99: =Вводные!$E$112 * AH$94 * Вводные!AH127 * AH50 -> 0 | AI99: =Вводные!$E$112 * AI$94 * Вводные!AI127 * AI50 -> 0 | AJ99: =Вводные!$E$112 * AJ$94 * Вводные!AJ127 * AJ50 -> 0 | AK99: =Вводные!$E$112 * AK$94 * Вводные!AK127 * AK50 -> 0 | AL99: =Вводные!$E$112 * AL$94 * Вводные!AL127 * AL50 -> 0 | AM99: =Вводные!$E$112 * AM$94 * Вводные!AM127 * AM50 -> 0 | AN99: =Вводные!$E$112 * AN$94 * Вводные!AN127 * AN50 -> 0 | AO99: =Вводные!$E$112 * AO$94 * Вводные!AO127 * AO50 -> 0 | AP99: =Вводные!$E$112 * AP$94 * Вводные!AP127 * AP50 -> 0 | AQ99: =Вводные!$E$112 * AQ$94 * Вводные!AQ127 * AQ50 -> 0 | AR99: =Вводные!$E$112 * AR$94 * Вводные!AR127 * AR50 -> 0 | AS99: =Вводные!$E$112 * AS$94 * Вводные!AS127 * AS50 -> 0 | AT99: =Вводные!$E$112 * AT$94 * Вводные!AT127 * AT50 -> 0 | AU99: =Вводные!$E$112 * AU$94 * Вводные!AU127 * AU50 -> 0
B100: НЗС, к.п. | D100: млн руб. | H100: =G100 + H95 - SUM($G95:G95) * (SUM($G94:G94) = 1) * (G94 > 0) -> 716.5288092 | I100: =H100 + I95 - SUM($G95:H95) * (SUM($G94:H94) = 1) * (H94 > 0) -> 1461.183279 | J100: =I100 + J95 - SUM($G95:I95) * (SUM($G94:I94) = 1) * (I94 > 0) -> 2235.623927 | K100: =J100 + K95 - SUM($G95:J95) * (SUM($G94:J94) = 1) * (J94 > 0) -> 6262.715298 | L100: =K100 + L95 - SUM($G95:K95) * (SUM($G94:K94) = 1) * (K94 > 0) -> 7937.985308 | M100: =L100 + M95 - SUM($G95:L95) * (SUM($G94:L94) = 1) * (L94 > 0) -> 0 | N100: =M100 + N95 - SUM($G95:M95) * (SUM($G94:M94) = 1) * (M94 > 0) -> 0 | O100: =N100 + O95 - SUM($G95:N95) * (SUM($G94:N94) = 1) * (N94 > 0) -> 0 | P100: =O100 + P95 - SUM($G95:O95) * (SUM($G94:O94) = 1) * (O94 > 0) -> 0 | Q100: =P100 + Q95 - SUM($G95:P95) * (SUM($G94:P94) = 1) * (P94 > 0) -> 0 | R100: =Q100 + R95 - SUM($G95:Q95) * (SUM($G94:Q94) = 1) * (Q94 > 0) -> 0 | S100: =R100 + S95 - SUM($G95:R95) * (SUM($G94:R94) = 1) * (R94 > 0) -> 0 | T100: =S100 + T95 - SUM($G95:S95) * (SUM($G94:S94) = 1) * (S94 > 0) -> 0 | U100: =T100 + U95 - SUM($G95:T95) * (SUM($G94:T94) = 1) * (T94 > 0) -> 0 | V100: =U100 + V95 - SUM($G95:U95) * (SUM($G94:U94) = 1) * (U94 > 0) -> 0 | W100: =V100 + W95 - SUM($G95:V95) * (SUM($G94:V94) = 1) * (V94 > 0) -> 0 | X100: =W100 + X95 - SUM($G95:W95) * (SUM($G94:W94) = 1) * (W94 > 0) -> 0 | Y100: =X100 + Y95 - SUM($G95:X95) * (SUM($G94:X94) = 1) * (X94 > 0) -> 0 | Z100: =Y100 + Z95 - SUM($G95:Y95) * (SUM($G94:Y94) = 1) * (Y94 > 0) -> 0 | AA100: =Z100 + AA95 - SUM($G95:Z95) * (SUM($G94:Z94) = 1) * (Z94 > 0) -> 0 | AB100: =AA100 + AB95 - SUM($G95:AA95) * (SUM($G94:AA94) = 1) * (AA94 > 0) -> 0 | AC100: =AB100 + AC95 - SUM($G95:AB95) * (SUM($G94:AB94) = 1) * (AB94 > 0) -> 0 | AD100: =AC100 + AD95 - SUM($G95:AC95) * (SUM($G94:AC94) = 1) * (AC94 > 0) -> 0 | AE100: =AD100 + AE95 - SUM($G95:AD95) * (SUM($G94:AD94) = 1) * (AD94 > 0) -> 0 | AF100: =AE100 + AF95 - SUM($G95:AE95) * (SUM($G94:AE94) = 1) * (AE94 > 0) -> 0 | AG100: =AF100 + AG95 - SUM($G95:AF95) * (SUM($G94:AF94) = 1) * (AF94 > 0) -> 0 | AH100: =AG100 + AH95 - SUM($G95:AG95) * (SUM($G94:AG94) = 1) * (AG94 > 0) -> 0 | AI100: =AH100 + AI95 - SUM($G95:AH95) * (SUM($G94:AH94) = 1) * (AH94 > 0) -> 0 | AJ100: =AI100 + AJ95 - SUM($G95:AI95) * (SUM($G94:AI94) = 1) * (AI94 > 0) -> 0 | AK100: =AJ100 + AK95 - SUM($G95:AJ95) * (SUM($G94:AJ94) = 1) * (AJ94 > 0) -> 0 | AL100: =AK100 + AL95 - SUM($G95:AK95) * (SUM($G94:AK94) = 1) * (AK94 > 0) -> 0 | AM100: =AL100 + AM95 - SUM($G95:AL95) * (SUM($G94:AL94) = 1) * (AL94 > 0) -> 0 | AN100: =AM100 + AN95 - SUM($G95:AM95) * (SUM($G94:AM94) = 1) * (AM94 > 0) -> 0 | AO100: =AN100 + AO95 - SUM($G95:AN95) * (SUM($G94:AN94) = 1) * (AN94 > 0) -> 0 | AP100: =AO100 + AP95 - SUM($G95:AO95) * (SUM($G94:AO94) = 1) * (AO94 > 0) -> 0 | AQ100: =AP100 + AQ95 - SUM($G95:AP95) * (SUM($G94:AP94) = 1) * (AP94 > 0) -> 0 | AR100: =AQ100 + AR95 - SUM($G95:AQ95) * (SUM($G94:AQ94) = 1) * (AQ94 > 0) -> 0 | AS100: =AR100 + AS95 - SUM($G95:AR95) * (SUM($G94:AR94) = 1) * (AR94 > 0) -> 0 | AT100: =AS100 + AT95 - SUM($G95:AS95) * (SUM($G94:AS94) = 1) * (AS94 > 0) -> 0 | AU100: =AT100 + AU95 - SUM($G95:AT95) * (SUM($G94:AT94) = 1) * (AT94 > 0) -> 0
B101: ОС, к.п. | D101: млн руб. | H101: =SUM($H95:H95) - H100 -> 0 | I101: =SUM($H95:I95) - I100 -> 0 | J101: =SUM($H95:J95) - J100 -> 0 | K101: =SUM($H95:K95) - K100 -> 0 | L101: =SUM($H95:L95) - L100 -> 0 | M101: =SUM($H95:M95) - M100 -> 7937.985308 | N101: =SUM($H95:N95) - N100 -> 7937.985308 | O101: =SUM($H95:O95) - O100 -> 7937.985308 | P101: =SUM($H95:P95) - P100 -> 7937.985308 | Q101: =SUM($H95:Q95) - Q100 -> 7937.985308 | R101: =SUM($H95:R95) - R100 -> 7937.985308 | S101: =SUM($H95:S95) - S100 -> 7937.985308 | T101: =SUM($H95:T95) - T100 -> 7937.985308 | U101: =SUM($H95:U95) - U100 -> 7937.985308 | V101: =SUM($H95:V95) - V100 -> 7937.985308 | W101: =SUM($H95:W95) - W100 -> 7937.985308 | X101: =SUM($H95:X95) - X100 -> 7937.985308 | Y101: =SUM($H95:Y95) - Y100 -> 7937.985308 | Z101: =SUM($H95:Z95) - Z100 -> 7937.985308 | AA101: =SUM($H95:AA95) - AA100 -> 7937.985308 | AB101: =SUM($H95:AB95) - AB100 -> 7937.985308 | AC101: =SUM($H95:AC95) - AC100 -> 7937.985308 | AD101: =SUM($H95:AD95) - AD100 -> 7937.985308 | AE101: =SUM($H95:AE95) - AE100 -> 7937.985308 | AF101: =SUM($H95:AF95) - AF100 -> 7937.985308 | AG101: =SUM($H95:AG95) - AG100 -> 7937.985308 | AH101: =SUM($H95:AH95) - AH100 -> 7937.985308 | AI101: =SUM($H95:AI95) - AI100 -> 7937.985308 | AJ101: =SUM($H95:AJ95) - AJ100 -> 7937.985308 | AK101: =SUM($H95:AK95) - AK100 -> 7937.985308 | AL101: =SUM($H95:AL95) - AL100 -> 7937.985308 | AM101: =SUM($H95:AM95) - AM100 -> 7937.985308 | AN101: =SUM($H95:AN95) - AN100 -> 7937.985308 | AO101: =SUM($H95:AO95) - AO100 -> 7937.985308 | AP101: =SUM($H95:AP95) - AP100 -> 7937.985308 | AQ101: =SUM($H95:AQ95) - AQ100 -> 7937.985308 | AR101: =SUM($H95:AR95) - AR100 -> 7937.985308 | AS101: =SUM($H95:AS95) - AS100 -> 7937.985308 | AT101: =SUM($H95:AT95) - AT100 -> 7937.985308 | AU101: =SUM($H95:AU95) - AU100 -> 7937.985308
B102: Амортизация (линейным методом) | D102: млн руб. | E102: =SUM(H102:AU102) -> -7937.985308 | H102: =- MIN((G104 + G100) * H$38, H101 / Вводные!$E$113) -> 0 | I102: =- MIN((H104 + H100) * I$38, I101 / Вводные!$E$113) -> 0 | J102: =- MIN((I104 + I100) * J$38, J101 / Вводные!$E$113) -> 0 | K102: =- MIN((J104 + J100) * K$38, K101 / Вводные!$E$113) -> 0 | L102: =- MIN((K104 + K100) * L$38, L101 / Вводные!$E$113) -> 0 | M102: =- MIN((L104 + L100) * M$38, M101 / Вводные!$E$113) -> -529.1990205 | N102: =- MIN((M104 + M100) * N$38, N101 / Вводные!$E$113) -> -529.1990205 | O102: =- MIN((N104 + N100) * O$38, O101 / Вводные!$E$113) -> -529.1990205 | P102: =- MIN((O104 + O100) * P$38, P101 / Вводные!$E$113) -> -529.1990205 | Q102: =- MIN((P104 + P100) * Q$38, Q101 / Вводные!$E$113) -> -529.1990205 | R102: =- MIN((Q104 + Q100) * R$38, R101 / Вводные!$E$113) -> -529.1990205 | S102: =- MIN((R104 + R100) * S$38, S101 / Вводные!$E$113) -> -529.1990205 | T102: =- MIN((S104 + S100) * T$38, T101 / Вводные!$E$113) -> -529.1990205 | U102: =- MIN((T104 + T100) * U$38, U101 / Вводные!$E$113) -> -529.1990205 | V102: =- MIN((U104 + U100) * V$38, V101 / Вводные!$E$113) -> -529.1990205 | W102: =- MIN((V104 + V100) * W$38, W101 / Вводные!$E$113) -> -529.1990205 | X102: =- MIN((W104 + W100) * X$38, X101 / Вводные!$E$113) -> -529.1990205 | Y102: =- MIN((X104 + X100) * Y$38, Y101 / Вводные!$E$113) -> -529.1990205 | Z102: =- MIN((Y104 + Y100) * Z$38, Z101 / Вводные!$E$113) -> -529.1990205 | AA102: =- MIN((Z104 + Z100) * AA$38, AA101 / Вводные!$E$113) -> -529.1990205 | AB102: =- MIN((AA104 + AA100) * AB$38, AB101 / Вводные!$E$113) -> 0 | AC102: =- MIN((AB104 + AB100) * AC$38, AC101 / Вводные!$E$113) -> 0 | AD102: =- MIN((AC104 + AC100) * AD$38, AD101 / Вводные!$E$113) -> 0 | AE102: =- MIN((AD104 + AD100) * AE$38, AE101 / Вводные!$E$113) -> 0 | AF102: =- MIN((AE104 + AE100) * AF$38, AF101 / Вводные!$E$113) -> 0 | AG102: =- MIN((AF104 + AF100) * AG$38, AG101 / Вводные!$E$113) -> 0 | AH102: =- MIN((AG104 + AG100) * AH$38, AH101 / Вводные!$E$113) -> 0 | AI102: =- MIN((AH104 + AH100) * AI$38, AI101 / Вводные!$E$113) -> 0 | AJ102: =- MIN((AI104 + AI100) * AJ$38, AJ101 / Вводные!$E$113) -> 0 | AK102: =- MIN((AJ104 + AJ100) * AK$38, AK101 / Вводные!$E$113) -> 0 | AL102: =- MIN((AK104 + AK100) * AL$38, AL101 / Вводные!$E$113) -> 0 | AM102: =- MIN((AL104 + AL100) * AM$38, AM101 / Вводные!$E$113) -> 0 | AN102: =- MIN((AM104 + AM100) * AN$38, AN101 / Вводные!$E$113) -> 0 | AO102: =- MIN((AN104 + AN100) * AO$38, AO101 / Вводные!$E$113) -> 0 | AP102: =- MIN((AO104 + AO100) * AP$38, AP101 / Вводные!$E$113) -> 0 | AQ102: =- MIN((AP104 + AP100) * AQ$38, AQ101 / Вводные!$E$113) -> 0 | AR102: =- MIN((AQ104 + AQ100) * AR$38, AR101 / Вводные!$E$113) -> 0 | AS102: =- MIN((AR104 + AR100) * AS$38, AS101 / Вводные!$E$113) -> 0 | AT102: =- MIN((AS104 + AS100) * AT$38, AT101 / Вводные!$E$113) -> 0 | AU102: =- MIN((AT104 + AT100) * AU$38, AU101 / Вводные!$E$113) -> 0
B103: Накопленная амортизация | D103: млн руб. | H103: =SUM($H102:H102) -> 0 | I103: =SUM($H102:I102) -> 0 | J103: =SUM($H102:J102) -> 0 | K103: =SUM($H102:K102) -> 0 | L103: =SUM($H102:L102) -> 0 | M103: =SUM($H102:M102) -> -529.1990205 | N103: =SUM($H102:N102) -> -1058.398041 | O103: =SUM($H102:O102) -> -1587.597062 | P103: =SUM($H102:P102) -> -2116.796082 | Q103: =SUM($H102:Q102) -> -2645.995103 | R103: =SUM($H102:R102) -> -3175.194123 | S103: =SUM($H102:S102) -> -3704.393144 | T103: =SUM($H102:T102) -> -4233.592164 | U103: =SUM($H102:U102) -> -4762.791185 | V103: =SUM($H102:V102) -> -5291.990205 | W103: =SUM($H102:W102) -> -5821.189226 | X103: =SUM($H102:X102) -> -6350.388246 | Y103: =SUM($H102:Y102) -> -6879.587267 | Z103: =SUM($H102:Z102) -> -7408.786288 | AA103: =SUM($H102:AA102) -> -7937.985308 | AB103: =SUM($H102:AB102) -> -7937.985308 | AC103: =SUM($H102:AC102) -> -7937.985308 | AD103: =SUM($H102:AD102) -> -7937.985308 | AE103: =SUM($H102:AE102) -> -7937.985308 | AF103: =SUM($H102:AF102) -> -7937.985308 | AG103: =SUM($H102:AG102) -> -7937.985308 | AH103: =SUM($H102:AH102) -> -7937.985308 | AI103: =SUM($H102:AI102) -> -7937.985308 | AJ103: =SUM($H102:AJ102) -> -7937.985308 | AK103: =SUM($H102:AK102) -> -7937.985308 | AL103: =SUM($H102:AL102) -> -7937.985308 | AM103: =SUM($H102:AM102) -> -7937.985308 | AN103: =SUM($H102:AN102) -> -7937.985308 | AO103: =SUM($H102:AO102) -> -7937.985308 | AP103: =SUM($H102:AP102) -> -7937.985308 | AQ103: =SUM($H102:AQ102) -> -7937.985308 | AR103: =SUM($H102:AR102) -> -7937.985308 | AS103: =SUM($H102:AS102) -> -7937.985308 | AT103: =SUM($H102:AT102) -> -7937.985308 | AU103: =SUM($H102:AU102) -> -7937.985308
B104: Чистая балансовая стоимость актива | D104: млн руб. | H104: =MAX(H101 + SUM($H102:H102), 0) -> 0 | I104: =MAX(I101 + SUM($H102:I102), 0) -> 0 | J104: =MAX(J101 + SUM($H102:J102), 0) -> 0 | K104: =MAX(K101 + SUM($H102:K102), 0) -> 0 | L104: =MAX(L101 + SUM($H102:L102), 0) -> 0 | M104: =MAX(M101 + SUM($H102:M102), 0) -> 7408.786288 | N104: =MAX(N101 + SUM($H102:N102), 0) -> 6879.587267 | O104: =MAX(O101 + SUM($H102:O102), 0) -> 6350.388246 | P104: =MAX(P101 + SUM($H102:P102), 0) -> 5821.189226 | Q104: =MAX(Q101 + SUM($H102:Q102), 0) -> 5291.990205 | R104: =MAX(R101 + SUM($H102:R102), 0) -> 4762.791185 | S104: =MAX(S101 + SUM($H102:S102), 0) -> 4233.592164 | T104: =MAX(T101 + SUM($H102:T102), 0) -> 3704.393144 | U104: =MAX(U101 + SUM($H102:U102), 0) -> 3175.194123 | V104: =MAX(V101 + SUM($H102:V102), 0) -> 2645.995103 | W104: =MAX(W101 + SUM($H102:W102), 0) -> 2116.796082 | X104: =MAX(X101 + SUM($H102:X102), 0) -> 1587.597062 | Y104: =MAX(Y101 + SUM($H102:Y102), 0) -> 1058.398041 | Z104: =MAX(Z101 + SUM($H102:Z102), 0) -> 529.1990205 | AA104: =MAX(AA101 + SUM($H102:AA102), 0) -> 0 | AB104: =MAX(AB101 + SUM($H102:AB102), 0) -> 0 | AC104: =MAX(AC101 + SUM($H102:AC102), 0) -> 0 | AD104: =MAX(AD101 + SUM($H102:AD102), 0) -> 0 | AE104: =MAX(AE101 + SUM($H102:AE102), 0) -> 0 | AF104: =MAX(AF101 + SUM($H102:AF102), 0) -> 0 | AG104: =MAX(AG101 + SUM($H102:AG102), 0) -> 0 | AH104: =MAX(AH101 + SUM($H102:AH102), 0) -> 0 | AI104: =MAX(AI101 + SUM($H102:AI102), 0) -> 0 | AJ104: =MAX(AJ101 + SUM($H102:AJ102), 0) -> 0 | AK104: =MAX(AK101 + SUM($H102:AK102), 0) -> 0 | AL104: =MAX(AL101 + SUM($H102:AL102), 0) -> 0 | AM104: =MAX(AM101 + SUM($H102:AM102), 0) -> 0 | AN104: =MAX(AN101 + SUM($H102:AN102), 0) -> 0 | AO104: =MAX(AO101 + SUM($H102:AO102), 0) -> 0 | AP104: =MAX(AP101 + SUM($H102:AP102), 0) -> 0 | AQ104: =MAX(AQ101 + SUM($H102:AQ102), 0) -> 0 | AR104: =MAX(AR101 + SUM($H102:AR102), 0) -> 0 | AS104: =MAX(AS101 + SUM($H102:AS102), 0) -> 0 | AT104: =MAX(AT101 + SUM($H102:AT102), 0) -> 0 | AU104: =MAX(AU101 + SUM($H102:AU102), 0) -> 0
B106: Капитализиированный процент
B107: Капитализированный процент в периоде | D107: =smu -> млн руб. | E107: =SUM(H107:AU107) -> 6102.795286 | H107: =H234 + H415 -> 383.8017603 | I107: 464.2437911 | J107: 980.6769866 | K107: 1714.356117 | L107: 2559.716631 | M107: 0 | N107: 0 | O107: 0 | P107: 0 | Q107: 0 | R107: 0 | S107: 0 | T107: 0 | U107: 0 | V107: 0 | W107: 0 | X107: 0 | Y107: 0 | Z107: 0 | AA107: 0 | AB107: 0 | AC107: 0 | AD107: 0 | AE107: 0 | AF107: 0 | AG107: 0 | AH107: 0 | AI107: 0 | AJ107: 0 | AK107: 0 | AL107: 0 | AM107: 0 | AN107: 0 | AO107: 0 | AP107: 0 | AQ107: 0 | AR107: 0 | AS107: 0 | AT107: 0 | AU107: 0
B108: НЗС, к.п. | D108: млн руб. | H108: =G108 + H107 - SUM($G107:G107) * H39 -> 383.8017603 | I108: =H108 + I107 - SUM($G107:H107) * I39 -> 848.0455514 | J108: =I108 + J107 - SUM($G107:I107) * J39 -> 1828.722538 | K108: =J108 + K107 - SUM($G107:J107) * K39 -> 3543.078655 | L108: =K108 + L107 - SUM($G107:K107) * L39 -> 6102.795286 | M108: =L108 + M107 - SUM($G107:L107) * M39 -> 0 | N108: =M108 + N107 - SUM($G107:M107) * N39 -> 0 | O108: =N108 + O107 - SUM($G107:N107) * O39 -> 0 | P108: =O108 + P107 - SUM($G107:O107) * P39 -> 0 | Q108: =P108 + Q107 - SUM($G107:P107) * Q39 -> 0 | R108: =Q108 + R107 - SUM($G107:Q107) * R39 -> 0 | S108: =R108 + S107 - SUM($G107:R107) * S39 -> 0 | T108: =S108 + T107 - SUM($G107:S107) * T39 -> 0 | U108: =T108 + U107 - SUM($G107:T107) * U39 -> 0 | V108: =U108 + V107 - SUM($G107:U107) * V39 -> 0 | W108: =V108 + W107 - SUM($G107:V107) * W39 -> 0 | X108: =W108 + X107 - SUM($G107:W107) * X39 -> 0 | Y108: =X108 + Y107 - SUM($G107:X107) * Y39 -> 0 | Z108: =Y108 + Z107 - SUM($G107:Y107) * Z39 -> 0 | AA108: =Z108 + AA107 - SUM($G107:Z107) * AA39 -> 0 | AB108: =AA108 + AB107 - SUM($G107:AA107) * AB39 -> 0 | AC108: =AB108 + AC107 - SUM($G107:AB107) * AC39 -> 0 | AD108: =AC108 + AD107 - SUM($G107:AC107) * AD39 -> 0 | AE108: =AD108 + AE107 - SUM($G107:AD107) * AE39 -> 0 | AF108: =AE108 + AF107 - SUM($G107:AE107) * AF39 -> 0 | AG108: =AF108 + AG107 - SUM($G107:AF107) * AG39 -> 0 | AH108: =AG108 + AH107 - SUM($G107:AG107) * AH39 -> 0 | AI108: =AH108 + AI107 - SUM($G107:AH107) * AI39 -> 0 | AJ108: =AI108 + AJ107 - SUM($G107:AI107) * AJ39 -> 0 | AK108: =AJ108 + AK107 - SUM($G107:AJ107) * AK39 -> 0 | AL108: =AK108 + AL107 - SUM($G107:AK107) * AL39 -> 0 | AM108: =AL108 + AM107 - SUM($G107:AL107) * AM39 -> 0 | AN108: =AM108 + AN107 - SUM($G107:AM107) * AN39 -> 0 | AO108: =AN108 + AO107 - SUM($G107:AN107) * AO39 -> 0 | AP108: =AO108 + AP107 - SUM($G107:AO107) * AP39 -> 0 | AQ108: =AP108 + AQ107 - SUM($G107:AP107) * AQ39 -> 0 | AR108: =AQ108 + AR107 - SUM($G107:AQ107) * AR39 -> 0 | AS108: =AR108 + AS107 - SUM($G107:AR107) * AS39 -> 0 | AT108: =AS108 + AT107 - SUM($G107:AS107) * AT39 -> 0 | AU108: =AT108 + AU107 - SUM($G107:AT107) * AU39 -> 0
B109: ОС, к.п. | D109: млн руб. | H109: =SUM($H107:H107) - H108 -> 0 | I109: =SUM($H107:I107) - I108 -> 0 | J109: =SUM($H107:J107) - J108 -> 0 | K109: =SUM($H107:K107) - K108 -> 0 | L109: =SUM($H107:L107) - L108 -> 0 | M109: =SUM($H107:M107) - M108 -> 6102.795286 | N109: =SUM($H107:N107) - N108 -> 6102.795286 | O109: =SUM($H107:O107) - O108 -> 6102.795286 | P109: =SUM($H107:P107) - P108 -> 6102.795286 | Q109: =SUM($H107:Q107) - Q108 -> 6102.795286 | R109: =SUM($H107:R107) - R108 -> 6102.795286 | S109: =SUM($H107:S107) - S108 -> 6102.795286 | T109: =SUM($H107:T107) - T108 -> 6102.795286 | U109: =SUM($H107:U107) - U108 -> 6102.795286 | V109: =SUM($H107:V107) - V108 -> 6102.795286 | W109: =SUM($H107:W107) - W108 -> 6102.795286 | X109: =SUM($H107:X107) - X108 -> 6102.795286 | Y109: =SUM($H107:Y107) - Y108 -> 6102.795286 | Z109: =SUM($H107:Z107) - Z108 -> 6102.795286 | AA109: =SUM($H107:AA107) - AA108 -> 6102.795286 | AB109: =SUM($H107:AB107) - AB108 -> 6102.795286 | AC109: =SUM($H107:AC107) - AC108 -> 6102.795286 | AD109: =SUM($H107:AD107) - AD108 -> 6102.795286 | AE109: =SUM($H107:AE107) - AE108 -> 6102.795286 | AF109: =SUM($H107:AF107) - AF108 -> 6102.795286 | AG109: =SUM($H107:AG107) - AG108 -> 6102.795286 | AH109: =SUM($H107:AH107) - AH108 -> 6102.795286 | AI109: =SUM($H107:AI107) - AI108 -> 6102.795286 | AJ109: =SUM($H107:AJ107) - AJ108 -> 6102.795286 | AK109: =SUM($H107:AK107) - AK108 -> 6102.795286 | AL109: =SUM($H107:AL107) - AL108 -> 6102.795286 | AM109: =SUM($H107:AM107) - AM108 -> 6102.795286 | AN109: =SUM($H107:AN107) - AN108 -> 6102.795286 | AO109: =SUM($H107:AO107) - AO108 -> 6102.795286 | AP109: =SUM($H107:AP107) - AP108 -> 6102.795286 | AQ109: =SUM($H107:AQ107) - AQ108 -> 6102.795286 | AR109: =SUM($H107:AR107) - AR108 -> 6102.795286 | AS109: =SUM($H107:AS107) - AS108 -> 6102.795286 | AT109: =SUM($H107:AT107) - AT108 -> 6102.795286 | AU109: =SUM($H107:AU107) - AU108 -> 6102.795286
B110: Амортизация (линейным методом) | D110: млн руб. | E110: =SUM(H110:AU110) -> -6102.795286 | H110: =- MIN((G112 + G108) * H$38, H109 / Вводные!$E$67) -> 0 | I110: =- MIN((H112 + H108) * I$38, I109 / Вводные!$E$67) -> 0 | J110: =- MIN((I112 + I108) * J$38, J109 / Вводные!$E$67) -> 0 | K110: =- MIN((J112 + J108) * K$38, K109 / Вводные!$E$67) -> 0 | L110: =- MIN((K112 + K108) * L$38, L109 / Вводные!$E$67) -> 0 | M110: =- MIN((L112 + L108) * M$38, M109 / Вводные!$E$67) -> -406.853019 | N110: =- MIN((M112 + M108) * N$38, N109 / Вводные!$E$67) -> -406.853019 | O110: =- MIN((N112 + N108) * O$38, O109 / Вводные!$E$67) -> -406.853019 | P110: =- MIN((O112 + O108) * P$38, P109 / Вводные!$E$67) -> -406.853019 | Q110: =- MIN((P112 + P108) * Q$38, Q109 / Вводные!$E$67) -> -406.853019 | R110: =- MIN((Q112 + Q108) * R$38, R109 / Вводные!$E$67) -> -406.853019 | S110: =- MIN((R112 + R108) * S$38, S109 / Вводные!$E$67) -> -406.853019 | T110: =- MIN((S112 + S108) * T$38, T109 / Вводные!$E$67) -> -406.853019 | U110: =- MIN((T112 + T108) * U$38, U109 / Вводные!$E$67) -> -406.853019 | V110: =- MIN((U112 + U108) * V$38, V109 / Вводные!$E$67) -> -406.853019 | W110: =- MIN((V112 + V108) * W$38, W109 / Вводные!$E$67) -> -406.853019 | X110: =- MIN((W112 + W108) * X$38, X109 / Вводные!$E$67) -> -406.853019 | Y110: =- MIN((X112 + X108) * Y$38, Y109 / Вводные!$E$67) -> -406.853019 | Z110: =- MIN((Y112 + Y108) * Z$38, Z109 / Вводные!$E$67) -> -406.853019 | AA110: =- MIN((Z112 + Z108) * AA$38, AA109 / Вводные!$E$67) -> -406.853019 | AB110: =- MIN((AA112 + AA108) * AB$38, AB109 / Вводные!$E$67) -> 0 | AC110: =- MIN((AB112 + AB108) * AC$38, AC109 / Вводные!$E$67) -> 0 | AD110: =- MIN((AC112 + AC108) * AD$38, AD109 / Вводные!$E$67) -> 0 | AE110: =- MIN((AD112 + AD108) * AE$38, AE109 / Вводные!$E$67) -> 0 | AF110: =- MIN((AE112 + AE108) * AF$38, AF109 / Вводные!$E$67) -> 0 | AG110: =- MIN((AF112 + AF108) * AG$38, AG109 / Вводные!$E$67) -> 0 | AH110: =- MIN((AG112 + AG108) * AH$38, AH109 / Вводные!$E$67) -> 0 | AI110: =- MIN((AH112 + AH108) * AI$38, AI109 / Вводные!$E$67) -> 0 | AJ110: =- MIN((AI112 + AI108) * AJ$38, AJ109 / Вводные!$E$67) -> 0 | AK110: =- MIN((AJ112 + AJ108) * AK$38, AK109 / Вводные!$E$67) -> 0 | AL110: =- MIN((AK112 + AK108) * AL$38, AL109 / Вводные!$E$67) -> 0 | AM110: =- MIN((AL112 + AL108) * AM$38, AM109 / Вводные!$E$67) -> 0 | AN110: =- MIN((AM112 + AM108) * AN$38, AN109 / Вводные!$E$67) -> 0 | AO110: =- MIN((AN112 + AN108) * AO$38, AO109 / Вводные!$E$67) -> 0 | AP110: =- MIN((AO112 + AO108) * AP$38, AP109 / Вводные!$E$67) -> 0 | AQ110: =- MIN((AP112 + AP108) * AQ$38, AQ109 / Вводные!$E$67) -> 0 | AR110: =- MIN((AQ112 + AQ108) * AR$38, AR109 / Вводные!$E$67) -> 0 | AS110: =- MIN((AR112 + AR108) * AS$38, AS109 / Вводные!$E$67) -> 0 | AT110: =- MIN((AS112 + AS108) * AT$38, AT109 / Вводные!$E$67) -> 0 | AU110: =- MIN((AT112 + AT108) * AU$38, AU109 / Вводные!$E$67) -> 0
B111: Накопленная амортизация | D111: млн руб. | H111: =SUM($H110:H110) -> 0 | I111: =SUM($H110:I110) -> 0 | J111: =SUM($H110:J110) -> 0 | K111: =SUM($H110:K110) -> 0 | L111: =SUM($H110:L110) -> 0 | M111: =SUM($H110:M110) -> -406.853019 | N111: =SUM($H110:N110) -> -813.7060381 | O111: =SUM($H110:O110) -> -1220.559057 | P111: =SUM($H110:P110) -> -1627.412076 | Q111: =SUM($H110:Q110) -> -2034.265095 | R111: =SUM($H110:R110) -> -2441.118114 | S111: =SUM($H110:S110) -> -2847.971133 | T111: =SUM($H110:T110) -> -3254.824152 | U111: =SUM($H110:U110) -> -3661.677171 | V111: =SUM($H110:V110) -> -4068.53019 | W111: =SUM($H110:W110) -> -4475.383209 | X111: =SUM($H110:X110) -> -4882.236228 | Y111: =SUM($H110:Y110) -> -5289.089247 | Z111: =SUM($H110:Z110) -> -5695.942267 | AA111: =SUM($H110:AA110) -> -6102.795286 | AB111: =SUM($H110:AB110) -> -6102.795286 | AC111: =SUM($H110:AC110) -> -6102.795286 | AD111: =SUM($H110:AD110) -> -6102.795286 | AE111: =SUM($H110:AE110) -> -6102.795286 | AF111: =SUM($H110:AF110) -> -6102.795286 | AG111: =SUM($H110:AG110) -> -6102.795286 | AH111: =SUM($H110:AH110) -> -6102.795286 | AI111: =SUM($H110:AI110) -> -6102.795286 | AJ111: =SUM($H110:AJ110) -> -6102.795286 | AK111: =SUM($H110:AK110) -> -6102.795286 | AL111: =SUM($H110:AL110) -> -6102.795286 | AM111: =SUM($H110:AM110) -> -6102.795286 | AN111: =SUM($H110:AN110) -> -6102.795286 | AO111: =SUM($H110:AO110) -> -6102.795286 | AP111: =SUM($H110:AP110) -> -6102.795286 | AQ111: =SUM($H110:AQ110) -> -6102.795286 | AR111: =SUM($H110:AR110) -> -6102.795286 | AS111: =SUM($H110:AS110) -> -6102.795286 | AT111: =SUM($H110:AT110) -> -6102.795286 | AU111: =SUM($H110:AU110) -> -6102.795286
B112: Чистая балансовая стоимость актива | D112: млн руб. | H112: =MAX(H109 + SUM($H110:H110), 0) -> 0 | I112: =MAX(I109 + SUM($H110:I110), 0) -> 0 | J112: =MAX(J109 + SUM($H110:J110), 0) -> 0 | K112: =MAX(K109 + SUM($H110:K110), 0) -> 0 | L112: =MAX(L109 + SUM($H110:L110), 0) -> 0 | M112: =MAX(M109 + SUM($H110:M110), 0) -> 5695.942267 | N112: =MAX(N109 + SUM($H110:N110), 0) -> 5289.089247 | O112: =MAX(O109 + SUM($H110:O110), 0) -> 4882.236228 | P112: =MAX(P109 + SUM($H110:P110), 0) -> 4475.383209 | Q112: =MAX(Q109 + SUM($H110:Q110), 0) -> 4068.53019 | R112: =MAX(R109 + SUM($H110:R110), 0) -> 3661.677171 | S112: =MAX(S109 + SUM($H110:S110), 0) -> 3254.824152 | T112: =MAX(T109 + SUM($H110:T110), 0) -> 2847.971133 | U112: =MAX(U109 + SUM($H110:U110), 0) -> 2441.118114 | V112: =MAX(V109 + SUM($H110:V110), 0) -> 2034.265095 | W112: =MAX(W109 + SUM($H110:W110), 0) -> 1627.412076 | X112: =MAX(X109 + SUM($H110:X110), 0) -> 1220.559057 | Y112: =MAX(Y109 + SUM($H110:Y110), 0) -> 813.7060381 | Z112: =MAX(Z109 + SUM($H110:Z110), 0) -> 406.853019 | AA112: =MAX(AA109 + SUM($H110:AA110), 0) -> 1.818989404e-12 | AB112: =MAX(AB109 + SUM($H110:AB110), 0) -> 1.818989404e-12 | AC112: =MAX(AC109 + SUM($H110:AC110), 0) -> 1.818989404e-12 | AD112: =MAX(AD109 + SUM($H110:AD110), 0) -> 1.818989404e-12 | AE112: =MAX(AE109 + SUM($H110:AE110), 0) -> 1.818989404e-12 | AF112: =MAX(AF109 + SUM($H110:AF110), 0) -> 1.818989404e-12 | AG112: =MAX(AG109 + SUM($H110:AG110), 0) -> 1.818989404e-12 | AH112: =MAX(AH109 + SUM($H110:AH110), 0) -> 1.818989404e-12 | AI112: =MAX(AI109 + SUM($H110:AI110), 0) -> 1.818989404e-12 | AJ112: =MAX(AJ109 + SUM($H110:AJ110), 0) -> 1.818989404e-12 | AK112: =MAX(AK109 + SUM($H110:AK110), 0) -> 1.818989404e-12 | AL112: =MAX(AL109 + SUM($H110:AL110), 0) -> 1.818989404e-12 | AM112: =MAX(AM109 + SUM($H110:AM110), 0) -> 1.818989404e-12 | AN112: =MAX(AN109 + SUM($H110:AN110), 0) -> 1.818989404e-12 | AO112: =MAX(AO109 + SUM($H110:AO110), 0) -> 1.818989404e-12 | AP112: =MAX(AP109 + SUM($H110:AP110), 0) -> 1.818989404e-12 | AQ112: =MAX(AQ109 + SUM($H110:AQ110), 0) -> 1.818989404e-12 | AR112: =MAX(AR109 + SUM($H110:AR110), 0) -> 1.818989404e-12 | AS112: =MAX(AS109 + SUM($H110:AS110), 0) -> 1.818989404e-12 | AT112: =MAX(AT109 + SUM($H110:AT110), 0) -> 1.818989404e-12 | AU112: =MAX(AU109 + SUM($H110:AU110), 0) -> 1.818989404e-12
B114: Итого активы
B115: Капитальные затраты в периоде | D115: =smu -> млн руб. | E115: =SUM(H115:AU115) -> 67225.27833 | H115: =H56 + H69 + H82 + H95 + H107 -> 3147.555738 | I115: =I56 + I69 + I82 + I95 + I107 -> 10463.88952 | J115: 13592.99612 | K115: 20469.09593 | L115: 19551.74102 | M115: 0 | N115: 0 | O115: 0 | P115: 0 | Q115: 0 | R115: 0 | S115: 0 | T115: 0 | U115: 0 | V115: 0 | W115: 0 | X115: 0 | Y115: 0 | Z115: 0 | AA115: 0 | AB115: 0 | AC115: 0 | AD115: 0 | AE115: 0 | AF115: 0 | AG115: 0 | AH115: 0 | AI115: 0 | AJ115: 0 | AK115: 0 | AL115: 0 | AM115: 0 | AN115: 0 | AO115: 0 | AP115: 0 | AQ115: 0 | AR115: 0 | AS115: 0 | AT115: 0 | AU115: 0
B116: НЗС, к.п. | D116: млн руб. | H116: =H61 + H74 + H87 + H100 + H108 -> 3147.555738 | I116: 13611.44526 | J116: 27204.44138 | K116: 47673.53731 | L116: 67225.27833 | M116: 0 | N116: 0 | O116: 0 | P116: 0 | Q116: 0 | R116: 0 | S116: 0 | T116: 0 | U116: 0 | V116: 0 | W116: 0 | X116: 0 | Y116: 0 | Z116: 0 | AA116: 0 | AB116: 0 | AC116: 0 | AD116: 0 | AE116: 0 | AF116: 0 | AG116: 0 | AH116: 0 | AI116: 0 | AJ116: 0 | AK116: 0 | AL116: 0 | AM116: 0 | AN116: 0 | AO116: 0 | AP116: 0 | AQ116: 0 | AR116: 0 | AS116: 0 | AT116: 0 | AU116: 0
B117: ОС, к.п. | D117: млн руб. | H117: =H62 + H75 + H88 + H101 + H109 -> 0 | I117: 0 | J117: 0 | K117: 0 | L117: 0 | M117: 67225.27833 | N117: 67225.27833 | O117: 67225.27833 | P117: 67225.27833 | Q117: 67225.27833 | R117: 67225.27833 | S117: 67225.27833 | T117: 67225.27833 | U117: 67225.27833 | V117: 67225.27833 | W117: 67225.27833 | X117: 67225.27833 | Y117: 67225.27833 | Z117: 67225.27833 | AA117: 67225.27833 | AB117: 67225.27833 | AC117: 67225.27833 | AD117: 67225.27833 | AE117: 67225.27833 | AF117: 67225.27833 | AG117: 67225.27833 | AH117: 67225.27833 | AI117: 67225.27833 | AJ117: 67225.27833 | AK117: 67225.27833 | AL117: 67225.27833 | AM117: 67225.27833 | AN117: 67225.27833 | AO117: 67225.27833 | AP117: 67225.27833 | AQ117: 67225.27833 | AR117: 67225.27833 | AS117: 67225.27833 | AT117: 67225.27833 | AU117: 67225.27833
B118: Амортизация (линейным методом) | D118: млн руб. | E118: =SUM(H118:AU118) -> -67225.27833 | H118: =H63 + H76 + H89 + H102 + H110 -> 0 | I118: 0 | J118: 0 | K118: 0 | L118: 0 | M118: -4481.685222 | N118: -4481.685222 | O118: -4481.685222 | P118: -4481.685222 | Q118: -4481.685222 | R118: -4481.685222 | S118: -4481.685222 | T118: -4481.685222 | U118: -4481.685222 | V118: -4481.685222 | W118: -4481.685222 | X118: -4481.685222 | Y118: -4481.685222 | Z118: -4481.685222 | AA118: -4481.685222 | AB118: 0 | AC118: 0 | AD118: 0 | AE118: 0 | AF118: 0 | AG118: 0 | AH118: 0 | AI118: 0 | AJ118: 0 | AK118: 0 | AL118: 0 | AM118: 0 | AN118: 0 | AO118: 0 | AP118: 0 | AQ118: 0 | AR118: 0 | AS118: 0 | AT118: 0 | AU118: 0
B119: Накопленная амортизация | D119: млн руб. | H119: =H64 + H77 + H90 + H103 + H111 -> 0 | I119: 0 | J119: 0 | K119: 0 | L119: 0 | M119: -4481.685222 | N119: -8963.370444 | O119: -13445.05567 | P119: -17926.74089 | Q119: -22408.42611 | R119: -26890.11133 | S119: -31371.79655 | T119: -35853.48178 | U119: -40335.167 | V119: -44816.85222 | W119: -49298.53744 | X119: -53780.22266 | Y119: -58261.90788 | Z119: -62743.59311 | AA119: -67225.27833 | AB119: -67225.27833 | AC119: -67225.27833 | AD119: -67225.27833 | AE119: -67225.27833 | AF119: -67225.27833 | AG119: -67225.27833 | AH119: -67225.27833 | AI119: -67225.27833 | AJ119: -67225.27833 | AK119: -67225.27833 | AL119: -67225.27833 | AM119: -67225.27833 | AN119: -67225.27833 | AO119: -67225.27833 | AP119: -67225.27833 | AQ119: -67225.27833 | AR119: -67225.27833 | AS119: -67225.27833 | AT119: -67225.27833 | AU119: -67225.27833
B120: Чистая балансовая стоимость актива | D120: млн руб. | H120: =H65 + H78 + H91 + H104 + H112 -> 0 | I120: 0 | J120: 0 | K120: 0 | L120: 0 | M120: 62743.59311 | N120: 58261.90788 | O120: 53780.22266 | P120: 49298.53744 | Q120: 44816.85222 | R120: 40335.167 | S120: 35853.48178 | T120: 31371.79655 | U120: 26890.11133 | V120: 22408.42611 | W120: 17926.74089 | X120: 13445.05567 | Y120: 8963.370444 | Z120: 4481.685222 | AA120: 4.547473509e-12 | AB120: 4.547473509e-12 | AC120: 4.547473509e-12 | AD120: 4.547473509e-12 | AE120: 4.547473509e-12 | AF120: 4.547473509e-12 | AG120: 4.547473509e-12 | AH120: 4.547473509e-12 | AI120: 4.547473509e-12 | AJ120: 4.547473509e-12 | AK120: 4.547473509e-12 | AL120: 4.547473509e-12 | AM120: 4.547473509e-12 | AN120: 4.547473509e-12 | AO120: 4.547473509e-12 | AP120: 4.547473509e-12 | AQ120: 4.547473509e-12 | AR120: 4.547473509e-12 | AS120: 4.547473509e-12 | AT120: 4.547473509e-12 | AU120: 4.547473509e-12
A122: =MAX(A$1:A121) + 1 -> 4 | B122: Операционная деятельность
B124: Продукция
B125: Продукция 1 | D125: =smu -> млн руб. | E125: =SUM(H125:AU125) -> 1011500.11 | H125: =Вводные!$E137 * Вводные!$E$16 * Вводные!$E141 * H$44 * H$38 -> 0 | I125: =Вводные!$E137 * Вводные!$E$16 * Вводные!$E141 * I$44 * I$38 -> 0 | J125: =Вводные!$E137 * Вводные!$E$16 * Вводные!$E141 * J$44 * J$38 -> 0 | K125: =Вводные!$E137 * Вводные!$E$16 * Вводные!$E141 * K$44 * K$38 -> 0 | L125: =Вводные!$E137 * Вводные!$E$16 * Вводные!$E141 * L$44 * L$38 -> 0 | M125: =Вводные!$E137 * Вводные!$E$16 * Вводные!$E141 * M$44 * M$38 -> 50515.42851 | N125: =Вводные!$E137 * Вводные!$E$16 * Вводные!$E141 * N$44 * N$38 -> 52536.04565 | O125: =Вводные!$E137 * Вводные!$E$16 * Вводные!$E141 * O$44 * O$38 -> 54637.48747 | P125: =Вводные!$E137 * Вводные!$E$16 * Вводные!$E141 * P$44 * P$38 -> 56822.98697 | Q125: =Вводные!$E137 * Вводные!$E$16 * Вводные!$E141 * Q$44 * Q$38 -> 59095.90645 | R125: =Вводные!$E137 * Вводные!$E$16 * Вводные!$E141 * R$44 * R$38 -> 61459.74271 | S125: =Вводные!$E137 * Вводные!$E$16 * Вводные!$E141 * S$44 * S$38 -> 63918.13242 | T125: =Вводные!$E137 * Вводные!$E$16 * Вводные!$E141 * T$44 * T$38 -> 66474.85771 | U125: =Вводные!$E137 * Вводные!$E$16 * Вводные!$E141 * U$44 * U$38 -> 69133.85202 | V125: =Вводные!$E137 * Вводные!$E$16 * Вводные!$E141 * V$44 * V$38 -> 71899.2061 | W125: =Вводные!$E137 * Вводные!$E$16 * Вводные!$E141 * W$44 * W$38 -> 74775.17435 | X125: =Вводные!$E137 * Вводные!$E$16 * Вводные!$E141 * X$44 * X$38 -> 77766.18132 | Y125: =Вводные!$E137 * Вводные!$E$16 * Вводные!$E141 * Y$44 * Y$38 -> 80876.82858 | Z125: =Вводные!$E137 * Вводные!$E$16 * Вводные!$E141 * Z$44 * Z$38 -> 84111.90172 | AA125: =Вводные!$E137 * Вводные!$E$16 * Вводные!$E141 * AA$44 * AA$38 -> 87476.37779 | AB125: =Вводные!$E137 * Вводные!$E$16 * Вводные!$E141 * AB$44 * AB$38 -> 0 | AC125: =Вводные!$E137 * Вводные!$E$16 * Вводные!$E141 * AC$44 * AC$38 -> 0 | AD125: =Вводные!$E137 * Вводные!$E$16 * Вводные!$E141 * AD$44 * AD$38 -> 0 | AE125: =Вводные!$E137 * Вводные!$E$16 * Вводные!$E141 * AE$44 * AE$38 -> 0 | AF125: =Вводные!$E137 * Вводные!$E$16 * Вводные!$E141 * AF$44 * AF$38 -> 0 | AG125: =Вводные!$E137 * Вводные!$E$16 * Вводные!$E141 * AG$44 * AG$38 -> 0 | AH125: =Вводные!$E137 * Вводные!$E$16 * Вводные!$E141 * AH$44 * AH$38 -> 0 | AI125: =Вводные!$E137 * Вводные!$E$16 * Вводные!$E141 * AI$44 * AI$38 -> 0 | AJ125: =Вводные!$E137 * Вводные!$E$16 * Вводные!$E141 * AJ$44 * AJ$38 -> 0 | AK125: =Вводные!$E137 * Вводные!$E$16 * Вводные!$E141 * AK$44 * AK$38 -> 0 | AL125: =Вводные!$E137 * Вводные!$E$16 * Вводные!$E141 * AL$44 * AL$38 -> 0 | AM125: =Вводные!$E137 * Вводные!$E$16 * Вводные!$E141 * AM$44 * AM$38 -> 0 | AN125: =Вводные!$E137 * Вводные!$E$16 * Вводные!$E141 * AN$44 * AN$38 -> 0 | AO125: =Вводные!$E137 * Вводные!$E$16 * Вводные!$E141 * AO$44 * AO$38 -> 0 | AP125: =Вводные!$E137 * Вводные!$E$16 * Вводные!$E141 * AP$44 * AP$38 -> 0 | AQ125: =Вводные!$E137 * Вводные!$E$16 * Вводные!$E141 * AQ$44 * AQ$38 -> 0 | AR125: =Вводные!$E137 * Вводные!$E$16 * Вводные!$E141 * AR$44 * AR$38 -> 0 | AS125: =Вводные!$E137 * Вводные!$E$16 * Вводные!$E141 * AS$44 * AS$38 -> 0 | AT125: =Вводные!$E137 * Вводные!$E$16 * Вводные!$E141 * AT$44 * AT$38 -> 0 | AU125: =Вводные!$E137 * Вводные!$E$16 * Вводные!$E141 * AU$44 * AU$38 -> 0
B126: Продукция 2 | D126: =smu -> млн руб. | E126: =SUM(H126:AU126) -> 101150.011 | H126: =Вводные!$E138 * Вводные!$E$16 * Вводные!$E142 * H$44 * H$38 -> 0 | I126: =Вводные!$E138 * Вводные!$E$16 * Вводные!$E142 * I$44 * I$38 -> 0 | J126: =Вводные!$E138 * Вводные!$E$16 * Вводные!$E142 * J$44 * J$38 -> 0 | K126: =Вводные!$E138 * Вводные!$E$16 * Вводные!$E142 * K$44 * K$38 -> 0 | L126: =Вводные!$E138 * Вводные!$E$16 * Вводные!$E142 * L$44 * L$38 -> 0 | M126: =Вводные!$E138 * Вводные!$E$16 * Вводные!$E142 * M$44 * M$38 -> 5051.542851 | N126: =Вводные!$E138 * Вводные!$E$16 * Вводные!$E142 * N$44 * N$38 -> 5253.604565 | O126: =Вводные!$E138 * Вводные!$E$16 * Вводные!$E142 * O$44 * O$38 -> 5463.748747 | P126: =Вводные!$E138 * Вводные!$E$16 * Вводные!$E142 * P$44 * P$38 -> 5682.298697 | Q126: =Вводные!$E138 * Вводные!$E$16 * Вводные!$E142 * Q$44 * Q$38 -> 5909.590645 | R126: =Вводные!$E138 * Вводные!$E$16 * Вводные!$E142 * R$44 * R$38 -> 6145.974271 | S126: =Вводные!$E138 * Вводные!$E$16 * Вводные!$E142 * S$44 * S$38 -> 6391.813242 | T126: =Вводные!$E138 * Вводные!$E$16 * Вводные!$E142 * T$44 * T$38 -> 6647.485771 | U126: =Вводные!$E138 * Вводные!$E$16 * Вводные!$E142 * U$44 * U$38 -> 6913.385202 | V126: =Вводные!$E138 * Вводные!$E$16 * Вводные!$E142 * V$44 * V$38 -> 7189.92061 | W126: =Вводные!$E138 * Вводные!$E$16 * Вводные!$E142 * W$44 * W$38 -> 7477.517435 | X126: =Вводные!$E138 * Вводные!$E$16 * Вводные!$E142 * X$44 * X$38 -> 7776.618132 | Y126: =Вводные!$E138 * Вводные!$E$16 * Вводные!$E142 * Y$44 * Y$38 -> 8087.682858 | Z126: =Вводные!$E138 * Вводные!$E$16 * Вводные!$E142 * Z$44 * Z$38 -> 8411.190172 | AA126: =Вводные!$E138 * Вводные!$E$16 * Вводные!$E142 * AA$44 * AA$38 -> 8747.637779 | AB126: =Вводные!$E138 * Вводные!$E$16 * Вводные!$E142 * AB$44 * AB$38 -> 0 | AC126: =Вводные!$E138 * Вводные!$E$16 * Вводные!$E142 * AC$44 * AC$38 -> 0 | AD126: =Вводные!$E138 * Вводные!$E$16 * Вводные!$E142 * AD$44 * AD$38 -> 0 | AE126: =Вводные!$E138 * Вводные!$E$16 * Вводные!$E142 * AE$44 * AE$38 -> 0 | AF126: =Вводные!$E138 * Вводные!$E$16 * Вводные!$E142 * AF$44 * AF$38 -> 0 | AG126: =Вводные!$E138 * Вводные!$E$16 * Вводные!$E142 * AG$44 * AG$38 -> 0 | AH126: =Вводные!$E138 * Вводные!$E$16 * Вводные!$E142 * AH$44 * AH$38 -> 0 | AI126: =Вводные!$E138 * Вводные!$E$16 * Вводные!$E142 * AI$44 * AI$38 -> 0 | AJ126: =Вводные!$E138 * Вводные!$E$16 * Вводные!$E142 * AJ$44 * AJ$38 -> 0 | AK126: =Вводные!$E138 * Вводные!$E$16 * Вводные!$E142 * AK$44 * AK$38 -> 0 | AL126: =Вводные!$E138 * Вводные!$E$16 * Вводные!$E142 * AL$44 * AL$38 -> 0 | AM126: =Вводные!$E138 * Вводные!$E$16 * Вводные!$E142 * AM$44 * AM$38 -> 0 | AN126: =Вводные!$E138 * Вводные!$E$16 * Вводные!$E142 * AN$44 * AN$38 -> 0 | AO126: =Вводные!$E138 * Вводные!$E$16 * Вводные!$E142 * AO$44 * AO$38 -> 0 | AP126: =Вводные!$E138 * Вводные!$E$16 * Вводные!$E142 * AP$44 * AP$38 -> 0 | AQ126: =Вводные!$E138 * Вводные!$E$16 * Вводные!$E142 * AQ$44 * AQ$38 -> 0 | AR126: =Вводные!$E138 * Вводные!$E$16 * Вводные!$E142 * AR$44 * AR$38 -> 0 | AS126: =Вводные!$E138 * Вводные!$E$16 * Вводные!$E142 * AS$44 * AS$38 -> 0 | AT126: =Вводные!$E138 * Вводные!$E$16 * Вводные!$E142 * AT$44 * AT$38 -> 0 | AU126: =Вводные!$E138 * Вводные!$E$16 * Вводные!$E142 * AU$44 * AU$38 -> 0
B127: Доходная часть | D127: =smu -> млн руб. | E127: =SUM(H127:AU127) -> 1112650.121 | H127: =SUM(H125:H126) -> 0 | I127: =SUM(I125:I126) -> 0 | J127: 0 | K127: 0 | L127: 0 | M127: 55566.97136 | N127: 57789.65021 | O127: 60101.23622 | P127: 62505.28567 | Q127: 65005.4971 | R127: 67605.71698 | S127: 70309.94566 | T127: 73122.34349 | U127: 76047.23723 | V127: 79089.12671 | W127: 82252.69178 | X127: 85542.79945 | Y127: 88964.51143 | Z127: 92523.09189 | AA127: 96224.01557 | AB127: 0 | AC127: 0 | AD127: 0 | AE127: 0 | AF127: 0 | AG127: 0 | AH127: 0 | AI127: 0 | AJ127: 0 | AK127: 0 | AL127: 0 | AM127: 0 | AN127: 0 | AO127: 0 | AP127: 0 | AQ127: 0 | AR127: 0 | AS127: 0 | AT127: 0 | AU127: 0
B129: Продукция 1 | D129: =smu -> млн руб. | E129: =SUM(H129:AU129) -> -708050.0768 | H129: =- Вводные!$E137 * Вводные!$E$16 * Вводные!$E145 * H$44 * H$38 -> 0 | I129: =- Вводные!$E137 * Вводные!$E$16 * Вводные!$E145 * I$44 * I$38 -> 0 | J129: =- Вводные!$E137 * Вводные!$E$16 * Вводные!$E145 * J$44 * J$38 -> 0 | K129: =- Вводные!$E137 * Вводные!$E$16 * Вводные!$E145 * K$44 * K$38 -> 0 | L129: =- Вводные!$E137 * Вводные!$E$16 * Вводные!$E145 * L$44 * L$38 -> 0 | M129: =- Вводные!$E137 * Вводные!$E$16 * Вводные!$E145 * M$44 * M$38 -> -35360.79996 | N129: =- Вводные!$E137 * Вводные!$E$16 * Вводные!$E145 * N$44 * N$38 -> -36775.23195 | O129: =- Вводные!$E137 * Вводные!$E$16 * Вводные!$E145 * O$44 * O$38 -> -38246.24123 | P129: =- Вводные!$E137 * Вводные!$E$16 * Вводные!$E145 * P$44 * P$38 -> -39776.09088 | Q129: =- Вводные!$E137 * Вводные!$E$16 * Вводные!$E145 * Q$44 * Q$38 -> -41367.13452 | R129: =- Вводные!$E137 * Вводные!$E$16 * Вводные!$E145 * R$44 * R$38 -> -43021.8199 | S129: =- Вводные!$E137 * Вводные!$E$16 * Вводные!$E145 * S$44 * S$38 -> -44742.69269 | T129: =- Вводные!$E137 * Вводные!$E$16 * Вводные!$E145 * T$44 * T$38 -> -46532.4004 | U129: =- Вводные!$E137 * Вводные!$E$16 * Вводные!$E145 * U$44 * U$38 -> -48393.69642 | V129: =- Вводные!$E137 * Вводные!$E$16 * Вводные!$E145 * V$44 * V$38 -> -50329.44427 | W129: =- Вводные!$E137 * Вводные!$E$16 * Вводные!$E145 * W$44 * W$38 -> -52342.62204 | X129: =- Вводные!$E137 * Вводные!$E$16 * Вводные!$E145 * X$44 * X$38 -> -54436.32693 | Y129: =- Вводные!$E137 * Вводные!$E$16 * Вводные!$E145 * Y$44 * Y$38 -> -56613.78 | Z129: =- Вводные!$E137 * Вводные!$E$16 * Вводные!$E145 * Z$44 * Z$38 -> -58878.3312 | AA129: =- Вводные!$E137 * Вводные!$E$16 * Вводные!$E145 * AA$44 * AA$38 -> -61233.46445 | AB129: =- Вводные!$E137 * Вводные!$E$16 * Вводные!$E145 * AB$44 * AB$38 -> 0 | AC129: =- Вводные!$E137 * Вводные!$E$16 * Вводные!$E145 * AC$44 * AC$38 -> 0 | AD129: =- Вводные!$E137 * Вводные!$E$16 * Вводные!$E145 * AD$44 * AD$38 -> 0 | AE129: =- Вводные!$E137 * Вводные!$E$16 * Вводные!$E145 * AE$44 * AE$38 -> 0 | AF129: =- Вводные!$E137 * Вводные!$E$16 * Вводные!$E145 * AF$44 * AF$38 -> 0 | AG129: =- Вводные!$E137 * Вводные!$E$16 * Вводные!$E145 * AG$44 * AG$38 -> 0 | AH129: =- Вводные!$E137 * Вводные!$E$16 * Вводные!$E145 * AH$44 * AH$38 -> 0 | AI129: =- Вводные!$E137 * Вводные!$E$16 * Вводные!$E145 * AI$44 * AI$38 -> 0 | AJ129: =- Вводные!$E137 * Вводные!$E$16 * Вводные!$E145 * AJ$44 * AJ$38 -> 0 | AK129: =- Вводные!$E137 * Вводные!$E$16 * Вводные!$E145 * AK$44 * AK$38 -> 0 | AL129: =- Вводные!$E137 * Вводные!$E$16 * Вводные!$E145 * AL$44 * AL$38 -> 0 | AM129: =- Вводные!$E137 * Вводные!$E$16 * Вводные!$E145 * AM$44 * AM$38 -> 0 | AN129: =- Вводные!$E137 * Вводные!$E$16 * Вводные!$E145 * AN$44 * AN$38 -> 0 | AO129: =- Вводные!$E137 * Вводные!$E$16 * Вводные!$E145 * AO$44 * AO$38 -> 0 | AP129: =- Вводные!$E137 * Вводные!$E$16 * Вводные!$E145 * AP$44 * AP$38 -> 0 | AQ129: =- Вводные!$E137 * Вводные!$E$16 * Вводные!$E145 * AQ$44 * AQ$38 -> 0 | AR129: =- Вводные!$E137 * Вводные!$E$16 * Вводные!$E145 * AR$44 * AR$38 -> 0 | AS129: =- Вводные!$E137 * Вводные!$E$16 * Вводные!$E145 * AS$44 * AS$38 -> 0 | AT129: =- Вводные!$E137 * Вводные!$E$16 * Вводные!$E145 * AT$44 * AT$38 -> 0 | AU129: =- Вводные!$E137 * Вводные!$E$16 * Вводные!$E145 * AU$44 * AU$38 -> 0
B130: Продукция 2 | D130: =smu -> млн руб. | E130: =SUM(H130:AU130) -> -75862.50823 | H130: =- Вводные!$E138 * Вводные!$E$16 * Вводные!$E146 * H$44 * H$38 -> 0 | I130: =- Вводные!$E138 * Вводные!$E$16 * Вводные!$E146 * I$44 * I$38 -> 0 | J130: =- Вводные!$E138 * Вводные!$E$16 * Вводные!$E146 * J$44 * J$38 -> 0 | K130: =- Вводные!$E138 * Вводные!$E$16 * Вводные!$E146 * K$44 * K$38 -> 0 | L130: =- Вводные!$E138 * Вводные!$E$16 * Вводные!$E146 * L$44 * L$38 -> 0 | M130: =- Вводные!$E138 * Вводные!$E$16 * Вводные!$E146 * M$44 * M$38 -> -3788.657138 | N130: =- Вводные!$E138 * Вводные!$E$16 * Вводные!$E146 * N$44 * N$38 -> -3940.203424 | O130: =- Вводные!$E138 * Вводные!$E$16 * Вводные!$E146 * O$44 * O$38 -> -4097.811561 | P130: =- Вводные!$E138 * Вводные!$E$16 * Вводные!$E146 * P$44 * P$38 -> -4261.724023 | Q130: =- Вводные!$E138 * Вводные!$E$16 * Вводные!$E146 * Q$44 * Q$38 -> -4432.192984 | R130: =- Вводные!$E138 * Вводные!$E$16 * Вводные!$E146 * R$44 * R$38 -> -4609.480703 | S130: =- Вводные!$E138 * Вводные!$E$16 * Вводные!$E146 * S$44 * S$38 -> -4793.859931 | T130: =- Вводные!$E138 * Вводные!$E$16 * Вводные!$E146 * T$44 * T$38 -> -4985.614329 | U130: =- Вводные!$E138 * Вводные!$E$16 * Вводные!$E146 * U$44 * U$38 -> -5185.038902 | V130: =- Вводные!$E138 * Вводные!$E$16 * Вводные!$E146 * V$44 * V$38 -> -5392.440458 | W130: =- Вводные!$E138 * Вводные!$E$16 * Вводные!$E146 * W$44 * W$38 -> -5608.138076 | X130: =- Вводные!$E138 * Вводные!$E$16 * Вводные!$E146 * X$44 * X$38 -> -5832.463599 | Y130: =- Вводные!$E138 * Вводные!$E$16 * Вводные!$E146 * Y$44 * Y$38 -> -6065.762143 | Z130: =- Вводные!$E138 * Вводные!$E$16 * Вводные!$E146 * Z$44 * Z$38 -> -6308.392629 | AA130: =- Вводные!$E138 * Вводные!$E$16 * Вводные!$E146 * AA$44 * AA$38 -> -6560.728334 | AB130: =- Вводные!$E138 * Вводные!$E$16 * Вводные!$E146 * AB$44 * AB$38 -> 0 | AC130: =- Вводные!$E138 * Вводные!$E$16 * Вводные!$E146 * AC$44 * AC$38 -> 0 | AD130: =- Вводные!$E138 * Вводные!$E$16 * Вводные!$E146 * AD$44 * AD$38 -> 0 | AE130: =- Вводные!$E138 * Вводные!$E$16 * Вводные!$E146 * AE$44 * AE$38 -> 0 | AF130: =- Вводные!$E138 * Вводные!$E$16 * Вводные!$E146 * AF$44 * AF$38 -> 0 | AG130: =- Вводные!$E138 * Вводные!$E$16 * Вводные!$E146 * AG$44 * AG$38 -> 0 | AH130: =- Вводные!$E138 * Вводные!$E$16 * Вводные!$E146 * AH$44 * AH$38 -> 0 | AI130: =- Вводные!$E138 * Вводные!$E$16 * Вводные!$E146 * AI$44 * AI$38 -> 0 | AJ130: =- Вводные!$E138 * Вводные!$E$16 * Вводные!$E146 * AJ$44 * AJ$38 -> 0 | AK130: =- Вводные!$E138 * Вводные!$E$16 * Вводные!$E146 * AK$44 * AK$38 -> 0 | AL130: =- Вводные!$E138 * Вводные!$E$16 * Вводные!$E146 * AL$44 * AL$38 -> 0 | AM130: =- Вводные!$E138 * Вводные!$E$16 * Вводные!$E146 * AM$44 * AM$38 -> 0 | AN130: =- Вводные!$E138 * Вводные!$E$16 * Вводные!$E146 * AN$44 * AN$38 -> 0 | AO130: =- Вводные!$E138 * Вводные!$E$16 * Вводные!$E146 * AO$44 * AO$38 -> 0 | AP130: =- Вводные!$E138 * Вводные!$E$16 * Вводные!$E146 * AP$44 * AP$38 -> 0 | AQ130: =- Вводные!$E138 * Вводные!$E$16 * Вводные!$E146 * AQ$44 * AQ$38 -> 0 | AR130: =- Вводные!$E138 * Вводные!$E$16 * Вводные!$E146 * AR$44 * AR$38 -> 0 | AS130: =- Вводные!$E138 * Вводные!$E$16 * Вводные!$E146 * AS$44 * AS$38 -> 0 | AT130: =- Вводные!$E138 * Вводные!$E$16 * Вводные!$E146 * AT$44 * AT$38 -> 0 | AU130: =- Вводные!$E138 * Вводные!$E$16 * Вводные!$E146 * AU$44 * AU$38 -> 0
B131: Расходная часть (себестоимость) | D131: =smu -> млн руб. | E131: =SUM(H131:AU131) -> -783912.5851 | H131: =SUM(H129:H130) -> 0 | I131: =SUM(I129:I130) -> 0 | J131: 0 | K131: 0 | L131: 0 | M131: -39149.45709 | N131: -40715.43538 | O131: -42344.05279 | P131: -44037.8149 | Q131: -45799.3275 | R131: -47631.3006 | S131: -49536.55262 | T131: -51518.01473 | U131: -53578.73532 | V131: -55721.88473 | W131: -57950.76012 | X131: -60268.79053 | Y131: -62679.54215 | Z131: -65186.72383 | AA131: -67794.19279 | AB131: 0 | AC131: 0 | AD131: 0 | AE131: 0 | AF131: 0 | AG131: 0 | AH131: 0 | AI131: 0 | AJ131: 0 | AK131: 0 | AL131: 0 | AM131: 0 | AN131: 0 | AO131: 0 | AP131: 0 | AQ131: 0 | AR131: 0 | AS131: 0 | AT131: 0 | AU131: 0
B133: Постоянные производственные затраты | D133: =smu -> млн руб. | E133: =SUM(H133:AU133) -> -7586.250823 | H133: =- Вводные!$E$148 * Вводные!$E$16 * H$44 * H$38 -> 0 | I133: =- Вводные!$E$148 * Вводные!$E$16 * I$44 * I$38 -> 0 | J133: =- Вводные!$E$148 * Вводные!$E$16 * J$44 * J$38 -> 0 | K133: =- Вводные!$E$148 * Вводные!$E$16 * K$44 * K$38 -> 0 | L133: =- Вводные!$E$148 * Вводные!$E$16 * L$44 * L$38 -> 0 | M133: =- Вводные!$E$148 * Вводные!$E$16 * M$44 * M$38 -> -378.8657138 | N133: =- Вводные!$E$148 * Вводные!$E$16 * N$44 * N$38 -> -394.0203424 | O133: =- Вводные!$E$148 * Вводные!$E$16 * O$44 * O$38 -> -409.7811561 | P133: =- Вводные!$E$148 * Вводные!$E$16 * P$44 * P$38 -> -426.1724023 | Q133: =- Вводные!$E$148 * Вводные!$E$16 * Q$44 * Q$38 -> -443.2192984 | R133: =- Вводные!$E$148 * Вводные!$E$16 * R$44 * R$38 -> -460.9480703 | S133: =- Вводные!$E$148 * Вводные!$E$16 * S$44 * S$38 -> -479.3859931 | T133: =- Вводные!$E$148 * Вводные!$E$16 * T$44 * T$38 -> -498.5614329 | U133: =- Вводные!$E$148 * Вводные!$E$16 * U$44 * U$38 -> -518.5038902 | V133: =- Вводные!$E$148 * Вводные!$E$16 * V$44 * V$38 -> -539.2440458 | W133: =- Вводные!$E$148 * Вводные!$E$16 * W$44 * W$38 -> -560.8138076 | X133: =- Вводные!$E$148 * Вводные!$E$16 * X$44 * X$38 -> -583.2463599 | Y133: =- Вводные!$E$148 * Вводные!$E$16 * Y$44 * Y$38 -> -606.5762143 | Z133: =- Вводные!$E$148 * Вводные!$E$16 * Z$44 * Z$38 -> -630.8392629 | AA133: =- Вводные!$E$148 * Вводные!$E$16 * AA$44 * AA$38 -> -656.0728334 | AB133: =- Вводные!$E$148 * Вводные!$E$16 * AB$44 * AB$38 -> 0 | AC133: =- Вводные!$E$148 * Вводные!$E$16 * AC$44 * AC$38 -> 0 | AD133: =- Вводные!$E$148 * Вводные!$E$16 * AD$44 * AD$38 -> 0 | AE133: =- Вводные!$E$148 * Вводные!$E$16 * AE$44 * AE$38 -> 0 | AF133: =- Вводные!$E$148 * Вводные!$E$16 * AF$44 * AF$38 -> 0 | AG133: =- Вводные!$E$148 * Вводные!$E$16 * AG$44 * AG$38 -> 0 | AH133: =- Вводные!$E$148 * Вводные!$E$16 * AH$44 * AH$38 -> 0 | AI133: =- Вводные!$E$148 * Вводные!$E$16 * AI$44 * AI$38 -> 0 | AJ133: =- Вводные!$E$148 * Вводные!$E$16 * AJ$44 * AJ$38 -> 0 | AK133: =- Вводные!$E$148 * Вводные!$E$16 * AK$44 * AK$38 -> 0 | AL133: =- Вводные!$E$148 * Вводные!$E$16 * AL$44 * AL$38 -> 0 | AM133: =- Вводные!$E$148 * Вводные!$E$16 * AM$44 * AM$38 -> 0 | AN133: =- Вводные!$E$148 * Вводные!$E$16 * AN$44 * AN$38 -> 0 | AO133: =- Вводные!$E$148 * Вводные!$E$16 * AO$44 * AO$38 -> 0 | AP133: =- Вводные!$E$148 * Вводные!$E$16 * AP$44 * AP$38 -> 0 | AQ133: =- Вводные!$E$148 * Вводные!$E$16 * AQ$44 * AQ$38 -> 0 | AR133: =- Вводные!$E$148 * Вводные!$E$16 * AR$44 * AR$38 -> 0 | AS133: =- Вводные!$E$148 * Вводные!$E$16 * AS$44 * AS$38 -> 0 | AT133: =- Вводные!$E$148 * Вводные!$E$16 * AT$44 * AT$38 -> 0 | AU133: =- Вводные!$E$148 * Вводные!$E$16 * AU$44 * AU$38 -> 0
B135: Прочие непроизводственные затраты | D135: =smu -> млн руб. | E135: =SUM(H135:AU135) -> -10115.0011 | H135: =- Вводные!$E$150 * Вводные!$E$16 * H$44 * H$38 -> 0 | I135: =- Вводные!$E$150 * Вводные!$E$16 * I$44 * I$38 -> 0 | J135: =- Вводные!$E$150 * Вводные!$E$16 * J$44 * J$38 -> 0 | K135: =- Вводные!$E$150 * Вводные!$E$16 * K$44 * K$38 -> 0 | L135: =- Вводные!$E$150 * Вводные!$E$16 * L$44 * L$38 -> 0 | M135: =- Вводные!$E$150 * Вводные!$E$16 * M$44 * M$38 -> -505.1542851 | N135: =- Вводные!$E$150 * Вводные!$E$16 * N$44 * N$38 -> -525.3604565 | O135: =- Вводные!$E$150 * Вводные!$E$16 * O$44 * O$38 -> -546.3748747 | P135: =- Вводные!$E$150 * Вводные!$E$16 * P$44 * P$38 -> -568.2298697 | Q135: =- Вводные!$E$150 * Вводные!$E$16 * Q$44 * Q$38 -> -590.9590645 | R135: =- Вводные!$E$150 * Вводные!$E$16 * R$44 * R$38 -> -614.5974271 | S135: =- Вводные!$E$150 * Вводные!$E$16 * S$44 * S$38 -> -639.1813242 | T135: =- Вводные!$E$150 * Вводные!$E$16 * T$44 * T$38 -> -664.7485771 | U135: =- Вводные!$E$150 * Вводные!$E$16 * U$44 * U$38 -> -691.3385202 | V135: =- Вводные!$E$150 * Вводные!$E$16 * V$44 * V$38 -> -718.992061 | W135: =- Вводные!$E$150 * Вводные!$E$16 * W$44 * W$38 -> -747.7517435 | X135: =- Вводные!$E$150 * Вводные!$E$16 * X$44 * X$38 -> -777.6618132 | Y135: =- Вводные!$E$150 * Вводные!$E$16 * Y$44 * Y$38 -> -808.7682858 | Z135: =- Вводные!$E$150 * Вводные!$E$16 * Z$44 * Z$38 -> -841.1190172 | AA135: =- Вводные!$E$150 * Вводные!$E$16 * AA$44 * AA$38 -> -874.7637779 | AB135: =- Вводные!$E$150 * Вводные!$E$16 * AB$44 * AB$38 -> 0 | AC135: =- Вводные!$E$150 * Вводные!$E$16 * AC$44 * AC$38 -> 0 | AD135: =- Вводные!$E$150 * Вводные!$E$16 * AD$44 * AD$38 -> 0 | AE135: =- Вводные!$E$150 * Вводные!$E$16 * AE$44 * AE$38 -> 0 | AF135: =- Вводные!$E$150 * Вводные!$E$16 * AF$44 * AF$38 -> 0 | AG135: =- Вводные!$E$150 * Вводные!$E$16 * AG$44 * AG$38 -> 0 | AH135: =- Вводные!$E$150 * Вводные!$E$16 * AH$44 * AH$38 -> 0 | AI135: =- Вводные!$E$150 * Вводные!$E$16 * AI$44 * AI$38 -> 0 | AJ135: =- Вводные!$E$150 * Вводные!$E$16 * AJ$44 * AJ$38 -> 0 | AK135: =- Вводные!$E$150 * Вводные!$E$16 * AK$44 * AK$38 -> 0 | AL135: =- Вводные!$E$150 * Вводные!$E$16 * AL$44 * AL$38 -> 0 | AM135: =- Вводные!$E$150 * Вводные!$E$16 * AM$44 * AM$38 -> 0 | AN135: =- Вводные!$E$150 * Вводные!$E$16 * AN$44 * AN$38 -> 0 | AO135: =- Вводные!$E$150 * Вводные!$E$16 * AO$44 * AO$38 -> 0 | AP135: =- Вводные!$E$150 * Вводные!$E$16 * AP$44 * AP$38 -> 0 | AQ135: =- Вводные!$E$150 * Вводные!$E$16 * AQ$44 * AQ$38 -> 0 | AR135: =- Вводные!$E$150 * Вводные!$E$16 * AR$44 * AR$38 -> 0 | AS135: =- Вводные!$E$150 * Вводные!$E$16 * AS$44 * AS$38 -> 0 | AT135: =- Вводные!$E$150 * Вводные!$E$16 * AT$44 * AT$38 -> 0 | AU135: =- Вводные!$E$150 * Вводные!$E$16 * AU$44 * AU$38 -> 0
B137: Затраты на персонал | D137: =smu -> млн руб. | E137: =SUM(H137:AU137) -> -2275.875247 | H137: =- Вводные!$E$153 * Вводные!$E$154 * Вводные!$E$13 * Вводные!$E$16 / thn * H$44 * H$38 -> 0 | I137: =- Вводные!$E$153 * Вводные!$E$154 * Вводные!$E$13 * Вводные!$E$16 / thn * I$44 * I$38 -> 0 | J137: =- Вводные!$E$153 * Вводные!$E$154 * Вводные!$E$13 * Вводные!$E$16 / thn * J$44 * J$38 -> 0 | K137: =- Вводные!$E$153 * Вводные!$E$154 * Вводные!$E$13 * Вводные!$E$16 / thn * K$44 * K$38 -> 0 | L137: =- Вводные!$E$153 * Вводные!$E$154 * Вводные!$E$13 * Вводные!$E$16 / thn * L$44 * L$38 -> 0 | M137: =- Вводные!$E$153 * Вводные!$E$154 * Вводные!$E$13 * Вводные!$E$16 / thn * M$44 * M$38 -> -113.6597141 | N137: =- Вводные!$E$153 * Вводные!$E$154 * Вводные!$E$13 * Вводные!$E$16 / thn * N$44 * N$38 -> -118.2061027 | O137: =- Вводные!$E$153 * Вводные!$E$154 * Вводные!$E$13 * Вводные!$E$16 / thn * O$44 * O$38 -> -122.9343468 | P137: =- Вводные!$E$153 * Вводные!$E$154 * Вводные!$E$13 * Вводные!$E$16 / thn * P$44 * P$38 -> -127.8517207 | Q137: =- Вводные!$E$153 * Вводные!$E$154 * Вводные!$E$13 * Вводные!$E$16 / thn * Q$44 * Q$38 -> -132.9657895 | R137: =- Вводные!$E$153 * Вводные!$E$154 * Вводные!$E$13 * Вводные!$E$16 / thn * R$44 * R$38 -> -138.2844211 | S137: =- Вводные!$E$153 * Вводные!$E$154 * Вводные!$E$13 * Вводные!$E$16 / thn * S$44 * S$38 -> -143.8157979 | T137: =- Вводные!$E$153 * Вводные!$E$154 * Вводные!$E$13 * Вводные!$E$16 / thn * T$44 * T$38 -> -149.5684299 | U137: =- Вводные!$E$153 * Вводные!$E$154 * Вводные!$E$13 * Вводные!$E$16 / thn * U$44 * U$38 -> -155.5511671 | V137: =- Вводные!$E$153 * Вводные!$E$154 * Вводные!$E$13 * Вводные!$E$16 / thn * V$44 * V$38 -> -161.7732137 | W137: =- Вводные!$E$153 * Вводные!$E$154 * Вводные!$E$13 * Вводные!$E$16 / thn * W$44 * W$38 -> -168.2441423 | X137: =- Вводные!$E$153 * Вводные!$E$154 * Вводные!$E$13 * Вводные!$E$16 / thn * X$44 * X$38 -> -174.973908 | Y137: =- Вводные!$E$153 * Вводные!$E$154 * Вводные!$E$13 * Вводные!$E$16 / thn * Y$44 * Y$38 -> -181.9728643 | Z137: =- Вводные!$E$153 * Вводные!$E$154 * Вводные!$E$13 * Вводные!$E$16 / thn * Z$44 * Z$38 -> -189.2517789 | AA137: =- Вводные!$E$153 * Вводные!$E$154 * Вводные!$E$13 * Вводные!$E$16 / thn * AA$44 * AA$38 -> -196.82185 | AB137: =- Вводные!$E$153 * Вводные!$E$154 * Вводные!$E$13 * Вводные!$E$16 / thn * AB$44 * AB$38 -> 0 | AC137: =- Вводные!$E$153 * Вводные!$E$154 * Вводные!$E$13 * Вводные!$E$16 / thn * AC$44 * AC$38 -> 0 | AD137: =- Вводные!$E$153 * Вводные!$E$154 * Вводные!$E$13 * Вводные!$E$16 / thn * AD$44 * AD$38 -> 0 | AE137: =- Вводные!$E$153 * Вводные!$E$154 * Вводные!$E$13 * Вводные!$E$16 / thn * AE$44 * AE$38 -> 0 | AF137: =- Вводные!$E$153 * Вводные!$E$154 * Вводные!$E$13 * Вводные!$E$16 / thn * AF$44 * AF$38 -> 0 | AG137: =- Вводные!$E$153 * Вводные!$E$154 * Вводные!$E$13 * Вводные!$E$16 / thn * AG$44 * AG$38 -> 0 | AH137: =- Вводные!$E$153 * Вводные!$E$154 * Вводные!$E$13 * Вводные!$E$16 / thn * AH$44 * AH$38 -> 0 | AI137: =- Вводные!$E$153 * Вводные!$E$154 * Вводные!$E$13 * Вводные!$E$16 / thn * AI$44 * AI$38 -> 0 | AJ137: =- Вводные!$E$153 * Вводные!$E$154 * Вводные!$E$13 * Вводные!$E$16 / thn * AJ$44 * AJ$38 -> 0 | AK137: =- Вводные!$E$153 * Вводные!$E$154 * Вводные!$E$13 * Вводные!$E$16 / thn * AK$44 * AK$38 -> 0 | AL137: =- Вводные!$E$153 * Вводные!$E$154 * Вводные!$E$13 * Вводные!$E$16 / thn * AL$44 * AL$38 -> 0 | AM137: =- Вводные!$E$153 * Вводные!$E$154 * Вводные!$E$13 * Вводные!$E$16 / thn * AM$44 * AM$38 -> 0 | AN137: =- Вводные!$E$153 * Вводные!$E$154 * Вводные!$E$13 * Вводные!$E$16 / thn * AN$44 * AN$38 -> 0 | AO137: =- Вводные!$E$153 * Вводные!$E$154 * Вводные!$E$13 * Вводные!$E$16 / thn * AO$44 * AO$38 -> 0 | AP137: =- Вводные!$E$153 * Вводные!$E$154 * Вводные!$E$13 * Вводные!$E$16 / thn * AP$44 * AP$38 -> 0 | AQ137: =- Вводные!$E$153 * Вводные!$E$154 * Вводные!$E$13 * Вводные!$E$16 / thn * AQ$44 * AQ$38 -> 0 | AR137: =- Вводные!$E$153 * Вводные!$E$154 * Вводные!$E$13 * Вводные!$E$16 / thn * AR$44 * AR$38 -> 0 | AS137: =- Вводные!$E$153 * Вводные!$E$154 * Вводные!$E$13 * Вводные!$E$16 / thn * AS$44 * AS$38 -> 0 | AT137: =- Вводные!$E$153 * Вводные!$E$154 * Вводные!$E$13 * Вводные!$E$16 / thn * AT$44 * AT$38 -> 0 | AU137: =- Вводные!$E$153 * Вводные!$E$154 * Вводные!$E$13 * Вводные!$E$16 / thn * AU$44 * AU$38 -> 0
B138: Социальные отчисления | D138: =smu -> млн руб. | E138: =SUM(H138:AU138) -> -682.7625741 | H138: =Вводные!$E$247 * H137 -> 0 | I138: =Вводные!$E$247 * I137 -> 0 | J138: =Вводные!$E$247 * J137 -> 0 | K138: =Вводные!$E$247 * K137 -> 0 | L138: =Вводные!$E$247 * L137 -> 0 | M138: =Вводные!$E$247 * M137 -> -34.09791424 | N138: =Вводные!$E$247 * N137 -> -35.46183081 | O138: =Вводные!$E$247 * O137 -> -36.88030404 | P138: =Вводные!$E$247 * P137 -> -38.35551621 | Q138: =Вводные!$E$247 * Q137 -> -39.88973685 | R138: =Вводные!$E$247 * R137 -> -41.48532633 | S138: =Вводные!$E$247 * S137 -> -43.14473938 | T138: =Вводные!$E$247 * T137 -> -44.87052896 | U138: =Вводные!$E$247 * U137 -> -46.66535012 | V138: =Вводные!$E$247 * V137 -> -48.53196412 | W138: =Вводные!$E$247 * W137 -> -50.47324269 | X138: =Вводные!$E$247 * X137 -> -52.49217239 | Y138: =Вводные!$E$247 * Y137 -> -54.59185929 | Z138: =Вводные!$E$247 * Z137 -> -56.77553366 | AA138: =Вводные!$E$247 * AA137 -> -59.04655501 | AB138: =Вводные!$E$247 * AB137 -> 0 | AC138: =Вводные!$E$247 * AC137 -> 0 | AD138: =Вводные!$E$247 * AD137 -> 0 | AE138: =Вводные!$E$247 * AE137 -> 0 | AF138: =Вводные!$E$247 * AF137 -> 0 | AG138: =Вводные!$E$247 * AG137 -> 0 | AH138: =Вводные!$E$247 * AH137 -> 0 | AI138: =Вводные!$E$247 * AI137 -> 0 | AJ138: =Вводные!$E$247 * AJ137 -> 0 | AK138: =Вводные!$E$247 * AK137 -> 0 | AL138: =Вводные!$E$247 * AL137 -> 0 | AM138: =Вводные!$E$247 * AM137 -> 0 | AN138: =Вводные!$E$247 * AN137 -> 0 | AO138: =Вводные!$E$247 * AO137 -> 0 | AP138: =Вводные!$E$247 * AP137 -> 0 | AQ138: =Вводные!$E$247 * AQ137 -> 0 | AR138: =Вводные!$E$247 * AR137 -> 0 | AS138: =Вводные!$E$247 * AS137 -> 0 | AT138: =Вводные!$E$247 * AT137 -> 0 | AU138: =Вводные!$E$247 * AU137 -> 0
B140: Итого доходы | D140: =smu -> млн руб. | E140: =SUM(H140:AU140) -> 1112650.121 | H140: =H127 -> 0 | I140: =I127 -> 0 | J140: 0 | K140: 0 | L140: 0 | M140: 55566.97136 | N140: 57789.65021 | O140: 60101.23622 | P140: 62505.28567 | Q140: 65005.4971 | R140: 67605.71698 | S140: 70309.94566 | T140: 73122.34349 | U140: 76047.23723 | V140: 79089.12671 | W140: 82252.69178 | X140: 85542.79945 | Y140: 88964.51143 | Z140: 92523.09189 | AA140: 96224.01557 | AB140: 0 | AC140: 0 | AD140: 0 | AE140: 0 | AF140: 0 | AG140: 0 | AH140: 0 | AI140: 0 | AJ140: 0 | AK140: 0 | AL140: 0 | AM140: 0 | AN140: 0 | AO140: 0 | AP140: 0 | AQ140: 0 | AR140: 0 | AS140: 0 | AT140: 0 | AU140: 0
B141: Итого расходы | D141: =smu -> млн руб. | E141: =SUM(H141:AU141) -> -804572.4748 | H141: =H131 + H133 + H135 + H137 + H138 -> 0 | I141: =I131 + I133 + I135 + I137 + I138 -> 0 | J141: 0 | K141: 0 | L141: 0 | M141: -40181.23472 | N141: -41788.48411 | O141: -43460.02347 | P141: -45198.42441 | Q141: -47006.36139 | R141: -48886.61584 | S141: -50842.08048 | T141: -52875.7637 | U141: -54990.79425 | V141: -57190.42602 | W141: -59478.04306 | X141: -61857.16478 | Y141: -64331.45137 | Z141: -66904.70942 | AA141: -69580.8978 | AB141: 0 | AC141: 0 | AD141: 0 | AE141: 0 | AF141: 0 | AG141: 0 | AH141: 0 | AI141: 0 | AJ141: 0 | AK141: 0 | AL141: 0 | AM141: 0 | AN141: 0 | AO141: 0 | AP141: 0 | AQ141: 0 | AR141: 0 | AS141: 0 | AT141: 0 | AU141: 0
A143: =MAX(A$1:A142) + 1 -> 5 | B143: Оборотный капитал
B145: Дебиторская задолженность
